Workbook

Sheet Sheet1
B1: 総括表① | C1: 総括表① | D1: 総括表① | E1: 総括表① | F1: 総括表① | G1: 総括表① | H1: 総括表① | I1: 総括表① | J1: 総括表① | K1: 総括表① | L1: 総括表② | M1: 総括表② | N1: 総括表② | O1: 総括表② | P1: 総括表② | Q1: 総括表② | R1: 総括表② | S1: 総括表② | T1: 総括表② | U1: 総括表② | V1: 総括表② | W1: 総括表② | X1: 総括表② | Y1: 総括表② | Z1: 総括表② | AA1: 総括表② | AB1: 総括表② | AC1: 総括表② | AD1: 総括表② | AE1: 総括表② | AF1: 総括表② | AG1: 総括表② | AH1: 総括表② | AI1: 総括表② | AJ1: 総括表② | AK1: 総括表② | AL1: 総括表② | AM1: 総括表② | AN1: 総括表② | AO1: 総括表② | AP1: 総括表② | AQ1: 総括表② | AR1: 総括表② | AS1: 総括表② | AT1: １①②表 | AU1: 総括表② | AV1: 総括表② | AW1: １①②表 | AX1: 総括表② | AY1: 総括表② | AZ1: １①②表 | BA1: 総括表② | BB1: 総括表② | BC1: １①②表 | BD1: 総括表② | BE1: 総括表② | BF1: １①②表 | BG1: 総括表② | BH1: 総括表② | BI1: １①②表 | BJ1: 総括表② | BK1: 総括表② | BL1: １①②表 | BM1: 総括表② | BN1: 総括表② | BO1: １①②表 | BP1: 総括表② | BQ1: 総括表② | BR1: １①②表 | BS1: 総括表② | BT1: 総括表② | BU1: １①②表 | BV1: 総括表② | BW1: 総括表② | BX1: １①②表 | BY1: 総括表② | BZ1: 総括表② | CA1: １①②表 | CB1: 総括表② | CC1: 総括表② | CD1: １①②表 | CE1: 総括表② | CF1: 総括表② | CG1: 総括表② | CH1: 総括表② | CI1: 総括表② | CJ1: 総括表② | CK1: 総括表② | CL1: 総括表② | CM1: 総括表② | CN1: 総括表② | CO1: 総括表② | CP1: 総括表② | CQ1: 総括表② | CR1: 総括表② | CS1: 総括表② | CT1: 総括表② | CU1: 総括表② | CV1: 総括表② | CW1: 総括表② | CX1: 総括表② | CY1: 総括表② | CZ1: 総括表② | DA1: 総括表② | DB1: 総括表② | DC1: 総括表② | DD1: 総括表② | DE1: 総括表② | DF1: 総括表② | DG1: 総括表② | DH1: 総括表② | DI1: 総括表② | DJ1: 総括表② | DK1: 総括表② | DL1: 総括表② | DM1: 総括表② | DN1: 総括表② | DO1: 総括表② | DP1: 総括表② | DQ1: 総括表② | DR1: 総括表② | DS1: 総括表② | DT1: 総括表② | DU1: 総括表② | DV1: 総括表② | DW1: 総括表② | DX1: 総括表② | DY1: 総括表② | DZ1: 総括表② | EA1: 総括表② | EB1: 総括表② | EC1: 総括表② | ED1: 総括表② | EE1: 総括表② | EF1: 総括表② | EG1: 総括表② | EH1: 総括表② | EI1: 総括表② | EJ1: 総括表② | EK1: 総括表② | EL1: 総括表② | EM1: 総括表② | EN1: 総括表② | EO1: 総括表② | EP1: 総括表② | EQ1: 総括表② | ER1: 総括表② | ES1: 総括表② | ET1: 総括表② | EU1: 総括表② | EV1: 総括表② | EW1: 総括表② | EX1: 総括表② | EY1: 総括表② | EZ1: 総括表② | FA1: 総括表② | FB1: 総括表② | FC1: 総括表② | FD1: 総括表② | FE1: 総括表② | FF1: 総括表② | FG1: 総括表③ | FH1: 総括表③ | FI1: 総括表③ | FJ1: 総括表③ | FK1: 総括表③ | FL1: 総括表③ | FM1: 総括表③ | FN1: 総括表③ | FO1: 総括表③ | FP1: 総括表③ | FQ1: 総括表③ | FR1: 総括表③ | FS1: 総括表③ | FT1: 総括表③ | FU1: 総括表③ | FV1: 総括表③ | FW1: 総括表③ | FX1: 総括表③ | FY1: 総括表③ | FZ1: 総括表③ | GA1: 総括表③ | GB1: 総括表③ | GC1: 総括表③ | GD1: 総括表③ | GE1: 総括表③ | GF1: 総括表③ | GG1: 総括表③ | GH1: 総括表③ | GI1: 総括表③ | GJ1: 総括表③ | GK1: 総括表③ | GL1: 総括表③ | GM1: 総括表③ | GN1: 総括表③ | GO1: 総括表③ | GP1: 総括表③ | GQ1: 総括表③ | GR1: 総括表③ | GS1: 総括表③ | GT1: 総括表③ | GU1: 総括表③ | GV1: 総括表③ | GW1: 総括表③ | GX1: 総括表③ | GY1: 総括表③ | GZ1: 総括表③ | HA1: 総括表③ | HB1: 総括表③ | HC1: 総括表③ | HD1: 総括表③ | HE1: 総括表③ | HF1: 総括表③ | HG1: 総括表③ | HH1: 総括表③ | HI1: 総括表③ | HJ1: 総括表③ | HK1: 総括表③ | HL1: 総括表③ | HM1: 総括表③ | HN1: 総括表③ | HO1: 総括表③ | HP1: 総括表③ | HQ1: 総括表③ | HR1: 総括表③ | HS1: 総括表③ | HT1: 総括表③ | HU1: 総括表③ | HV1: 総括表③ | HW1: 総括表③ | HX1: 総括表③ | HY1: 総括表③ | HZ1: 総括表③ | IA1: 総括表③ | IB1: 総括表③ | IC1: 総括表③ | ID1: 総括表③
A2: バージョン | L2: 一般会計等1 | M2: 一般会計等1 | N2: 一般会計等2 | O2: 一般会計等2 | P2: 一般会計等3 | Q2: 一般会計等3 | R2: 一般会計等4 | S2: 一般会計等4 | T2: 一般会計等5 | U2: 一般会計等5 | V2: 一般会計等6 | W2: 一般会計等6 | X2: 一般会計等7 | Y2: 一般会計等7 | Z2: 一般会計等8 | AA2: 一般会計等8 | AB2: 一般会計等9 | AC2: 一般会計等9 | AD2: 一般会計等10 | AE2: 一般会計等10 | AF2: 一般会計等11 | AG2: 一般会計等11 | AH2: 一般会計等12 | AI2: 一般会計等12 | AJ2: 一般会計等13 | AK2: 一般会計等13 | AL2: 一般会計等14 | AM2: 一般会計等14 | AN2: 一般会計等15 | AO2: 一般会計等15 | AP2: 一般会計等16 | AQ2: 一般会計等16 | AR2: 一般会計等 | AS2: 一般会計等 | AT2: 公営事業1 | AU2: 公営事業1 | AV2: 公営事業1 | AW2: 公営事業2 | AX2: 公営事業2 | AY2: 公営事業2 | AZ2: 公営事業3 | BA2: 公営事業3 | BB2: 公営事業3 | BC2: 公営事業4 | BD2: 公営事業4 | BE2: 公営事業4 | BF2: 公営事業5 | BG2: 公営事業5 | BH2: 公営事業5 | BI2: 公営事業6 | BJ2: 公営事業6 | BK2: 公営事業6 | BL2: 公営事業7 | BM2: 公営事業7 | BN2: 公営事業7 | BO2: 公営事業8 | BP2: 公営事業8 | BQ2: 公営事業8 | BR2: 公営事業9 | BS2: 公営事業9 | BT2: 公営事業9 | BU2: 公営事業10 | BV2: 公営事業10 | BW2: 公営事業10 | BX2: 公営事業11 | BY2: 公営事業11 | BZ2: 公営事業11 | CA2: 公営事業12 | CB2: 公営事業12 | CC2: 公営事業12 | CD2: 公営事業13 | CE2: 公営事業13 | CF2: 公営事業13 | CG2: 法適1 | CH2: 法適1 | CI2: 法適2 | CJ2: 法適2 | CK2: 法適3 | CL2: 法適3 | CM2: 法適4 | CN2: 法適4 | CO2: 法適5 | CP2: 法適5 | CQ2: 法適6 | CR2: 法適6 | CS2: 法適7 | CT2: 法適7 | CU2: 法適8 | CV2: 法適8 | CW2: 法適9 | CX2: 法適9 | CY2: 法適10 | CZ2: 法適10 | DA2: 法適11 | DB2: 法適11 | DC2: 法適12 | DD2: 法適12 | DE2: 法適13 | DF2: 法適13 | DG2: 法適14 | DH2: 法適14 | DI2: 法適15 | DJ2: 法適15 | DK2: 法適16 | DL2: 法適16 | DM2: 法適17 | DN2: 法適17 | DO2: 法適18 | DP2: 法適18 | DQ2: 法適19 | DR2: 法適19 | DS2: 法非適1 | DT2: 法非適1 | DU2: 法非適2 | DV2: 法非適2 | DW2: 法非適3 | DX2: 法非適3 | DY2: 法非適4 | DZ2: 法非適4 | EA2: 法非適5 | EB2: 法非適5 | EC2: 法非適6 | ED2: 法非適6 | EE2: 法非適7 | EF2: 法非適7 | EG2: 法非適8 | EH2: 法非適8 | EI2: 法非適9 | EJ2: 法非適9 | EK2: 法非適10 | EL2: 法非適10 | EM2: 法非適11 | EN2: 法非適11 | EO2: 法非適12 | EP2: 法非適12 | EQ2: 法非適13 | ER2: 法非適13 | ES2: 法非適14 | ET2: 法非適14 | EU2: 法非適15 | EV2: 法非適15 | EW2: 法非適16 | EX2: 法非適16 | EY2: 法非適17 | EZ2: 法非適17 | FA2: 法非適18 | FB2: 法非適18 | FC2: 法非適19 | FD2: 法非適19 | FE2: 連結 | FF2: 連結 | FG2: 実質公債費比率 | FH2: 実質公債費比率 | FI2: 実質公債費比率 | FJ2: 実質公債費比率 | FK2: =$FG$3 -> 3年度 | FL2: =$FG$3 -> 3年度 | FM2: 3年度 | FN2: 3年度 | FO2: 3年度 | FP2: 3年度 | FQ2: 3年度 | FR2: 3年度 | FS2: 3年度 | FT2: 3年度 | FU2: 3年度 | FV2: 3年度 | FW2: 3年度 | FX2: 3年度 | FY2: 3年度 | FZ2: 3年度 | GA2: 3年度 | GB2: 3年度 | GC2: 3年度 | GD2: 3年度 | GE2: 3年度 | GF2: 3年度 | GG2: 3年度 | GH2: 3年度 | GI2: =$FH$3 -> 4年度 | GJ2: =$FH$3 -> 4年度 | GK2: 4年度 | GL2: 4年度 | GM2: 4年度 | GN2: 4年度 | GO2: 4年度 | GP2: 4年度 | GQ2: 4年度 | GR2: 4年度 | GS2: 4年度 | GT2: 4年度 | GU2: 4年度 | GV2: 4年度 | GW2: 4年度 | GX2: 4年度 | GY2: 4年度 | GZ2: 4年度 | HA2: 4年度 | HB2: 4年度 | HC2: 4年度 | HD2: 4年度 | HE2: 4年度 | HF2: 4年度 | HG2: =$FI$3 -> 5年度 | HH2: =$FI$3 -> 5年度 | HI2: 5年度 | HJ2: 5年度 | HK2: 5年度 | HL2: 5年度 | HM2: 5年度 | HN2: 5年度 | HO2: 5年度 | HP2: 5年度 | HQ2: 5年度 | HR2: 5年度 | HS2: 5年度 | HT2: 5年度 | HU2: 5年度 | HV2: 5年度 | HW2: 5年度 | HX2: 5年度 | HY2: 5年度 | HZ2: 5年度 | IA2: 5年度 | IB2: 5年度 | IC2: 5年度 | ID2: 5年度
B3: 地方公共団体コード | C3: 都道府県名 | D3: 市区町村名 | E3: 団体区分 | F3: 実質赤字比率 | G3: 連結実質赤字比率 | H3: 実質公債費比率 | I3: 将来負担比率 | J3: 標準財政規模 | K3: 臨財債発行可能額 | L3: 会計名 | M3: 実質収支額 | N3: 会計名 | O3: 実質収支額 | P3: 会計名 | Q3: 実質収支額 | R3: 会計名 | S3: 実質収支額 | T3: 会計名 | U3: 実質収支額 | V3: 会計名 | W3: 実質収支額 | X3: 会計名 | Y3: 実質収支額 | Z3: 会計名 | AA3: 実質収支額 | AB3: 会計名 | AC3: 実質収支額 | AD3: 会計名 | AE3: 実質収支額 | AF3: 会計名 | AG3: 実質収支額 | AH3: 会計名 | AI3: 実質収支額 | AJ3: 会計名 | AK3: 実質収支額 | AL3: 会計名 | AM3: 実質収支額 | AN3: 会計名 | AO3: 実質収支額 | AP3: 会計名 | AQ3: 実質収支額 | AR3: 小計 | AS3: 実質赤字比率 | AT3: 事業区分 | AU3: 会計名 | AV3: 実質収支額 | AW3: 事業区分 | AX3: 会計名 | AY3: 実質収支額 | AZ3: 事業区分 | BA3: 会計名 | BB3: 実質収支額 | BC3: 事業区分 | BD3: 会計名 | BE3: 実質収支額 | BF3: 事業区分 | BG3: 会計名 | BH3: 実質収支額 | BI3: 事業区分 | BJ3: 会計名 | BK3: 実質収支額 | BL3: 事業区分 | BM3: 会計名 | BN3: 実質収支額 | BO3: 事業区分 | BP3: 会計名 | BQ3: 実質収支額 | BR3: 事業区分 | BS3: 会計名 | BT3: 実質収支額 | BU3: 事業区分 | BV3: 会計名 | BW3: 実質収支額 | BX3: 事業区分 | BY3: 会計名 | BZ3: 実質収支額 | CA3: 事業区分 | CB3: 会計名 | CC3: 実質収支額 | CD3: 事業区分 | CE3: 会計名 | CF3: 実質収支額 | CG3: 会計名 | CH3: 資金不足・剰余額 | CI3: 会計名 | CJ3: 資金不足・剰余額 | CK3: 会計名 | CL3: 資金不足・剰余額 | CM3: 会計名 | CN3: 資金不足・剰余額 | CO3: 会計名 | CP3: 資金不足・剰余額 | CQ3: 会計名 | CR3: 資金不足・剰余額 | CS3: 会計名 | CT3: 資金不足・剰余額 | CU3: 会計名 | CV3: 資金不足・剰余額 | CW3: 会計名 | CX3: 資金不足・剰余額 | CY3: 会計名 | CZ3: 資金不足・剰余額 | DA3: 会計名 | DB3: 資金不足・剰余額 | DC3: 会計名 | DD3: 資金不足・剰余額 | DE3: 会計名 | DF3: 資金不足・剰余額 | DG3: 会計名 | DH3: 資金不足・剰余額 | DI3: 会計名 | DJ3: 資金不足・剰余額 | DK3: 会計名 | DL3: 資金不足・剰余額 | DM3: 会計名 | DN3: 資金不足・剰余額 | DO3: 会計名 | DP3: 資金不足・剰余額 | DQ3: 会計名 | DR3: 資金不足・剰余額 | DS3: 会計名 | DT3: 資金不足・剰余額 | DU3: 会計名 | DV3: 資金不足・剰余額 | DW3: 会計名 | DX3: 資金不足・剰余額 | DY3: 会計名 | DZ3: 資金不足・剰余額 | EA3: 会計名 | EB3: 資金不足・剰余額 | EC3: 会計名 | ED3: 資金不足・剰余額 | EE3: 会計名 | EF3: 資金不足・剰余額 | EG3: 会計名 | EH3: 資金不足・剰余額 | EI3: 会計名 | EJ3: 資金不足・剰余額 | EK3: 会計名 | EL3: 資金不足・剰余額 | EM3: 会計名 | EN3: 資金不足・剰余額 | EO3: 会計名 | EP3: 資金不足・剰余額 | EQ3: 会計名 | ER3: 資金不足・剰余額 | ES3: 会計名 | ET3: 資金不足・剰余額 | EU3: 会計名 | EV3: 資金不足・剰余額 | EW3: 会計名 | EX3: 資金不足・剰余額 | EY3: 会計名 | EZ3: 資金不足・剰余額 | FA3: 会計名 | FB3: 資金不足・剰余額 | FC3: 会計名 | FD3: 資金不足・剰余額 | FE3: 合計 | FF3: 連結実質赤字比率 | FG3: 3年度 | FH3: 4年度 | FI3: 5年度 | FJ3: 3ヵ年平均 | FK3: ① | FL3: ② | FM3: ③ | FN3: ④ | FO3: ⑤ | FP3: ⑥ | FQ3: ⑦ | FR3: ⑧ | FS3: ⑨ | FT3: ⑩ | FU3: ⑪ | FV3: ⑫ | FW3: ⑬ | FX3: ⑭ | FY3: ⑮ | FZ3: ⑥PFI | GA3: ⑥五省 | GB3: ⑥国営土地 | GC3: ⑥地共済 | GD3: ⑥社福 | GE3: ⑥損失補償 | GF3: ⑥債務引受 | GG3: ⑥その他 | GH3: ⑥利子補給 | GI3: ① | GJ3: ② | GK3: ③ | GL3: ④ | GM3: ⑤ | GN3: ⑥ | GO3: ⑦ | GP3: ⑧ | GQ3: ⑨ | GR3: ⑩ | GS3: ⑪ | GT3: ⑫ | GU3: ⑬ | GV3: ⑭ | GW3: ⑮ | GX3: ⑥PFI | GY3: ⑥五省 | GZ3: ⑥国営土地 | HA3: ⑥地共済 | HB3: ⑥社福 | HC3: ⑥損失補償 | HD3: ⑥債務引受 | HE3: ⑥その他 | HF3: ⑥利子補給 | HG3: ① | HH3: ② | HI3: ③ | HJ3: ④ | HK3: ⑤ | HL3: ⑥ | HM3: ⑦ | HN3: ⑧ | HO3: ⑨ | HP3: ⑩ | HQ3: ⑪ | HR3: ⑫ | HS3: ⑬ | HT3: ⑭ | HU3: ⑮ | HV3: ⑥PFI | HW3: ⑥五省 | HX3: ⑥国営土地 | HY3: ⑥地共済 | HZ3: ⑥社福 | IA3: ⑥損失補償 | IB3: ⑥債務引受 | IC3: ⑥その他 | ID3: ⑥利子補給
A4: Ver.05.00 | B4: 10006 | C4: 北海道 | D4: - | E4: 1 | F4: - | G4: - | H4: 19.1 | I4: 306.7 | J4: 1364505815 | K4: 11753279 | L4: 一般会計 | M4: 28269076 | N4: 公債管理特別会計 | O4: 0 | P4: 母子父子寡婦福祉資金貸付事業特別会計 | Q4: 0 | R4: 中小企業高度化資金貸付事業等特別会計 | S4: 0 | T4: 苫小牧東部地域開発出資特別会計 | U4: 0 | V4: 石狩湾新港地域開発出資特別会計 | W4: 0 | X4: 就農支援資金貸付事業等特別会計 | Y4: 0 | Z4: 沿岸漁業改善資金貸付事業特別会計 | AA4: 0 | AB4: 林業・木材産業改善資金貸付事業特別会計 | AC4: 0 | AD4: 道営住宅事業特別会計 | AE4: 137575 | AF4: 住宅供給公社経営健全化資金貸付事業特別会計 | AG4: 0 | AR4: 28406651 | AS4: -2.08 | AT4: ① | AU4: 国民健康保険事業特別会計 | AV4: 3944926 | AW4: ⑨ | AX4: 地方競馬特別会計 | AY4: 244572 | AZ4: 0 | BC4: 0 | BF4: 0 | BI4: 0 | BL4: 0 | BO4: 0 | BR4: 0 | BU4: 0 | BX4: 0 | CA4: 0 | CD4: 0 | CG4: 工業用水道事業会計 | CH4: 3375662 | CI4: 電気事業会計 | CJ4: 9404354 | CK4: 病院事業会計 | CL4: 0 | CM4: 公共下水道事業会計 | CN4: 62192 | CO4: 流域下水道事業会計 | CP4: 31726 | CQ4: 0 | CR4: 0 | CS4: 0 | CT4: 0 | CU4: 0 | CV4: 0 | CW4: 0 | CX4: 0 | CY4: 0 | CZ4: 0 | DA4: 0 | DB4: 0 | DC4: 0 | DD4: 0 | DE4: 0 | DF4: 0 | DG4: 0 | DH4: 0 | DI4: 0 | DJ4: 0 | DK4: 0 | DL4: 0 | DM4: 0 | DN4: 0 | DO4: 0 | DP4: 0 | DQ4: 0 | DR4: 0 | DS4: 0 | DT4: 0 | DU4: 0 | DV4: 0 | DW4: 0 | DX4: 0 | DY4: 0 | DZ4: 0 | EA4: 0 | EB4: 0 | EC4: 0 | ED4: 0 | EE4: 0 | EF4: 0 | EG4: 0 | EH4: 0 | EI4: 0 | EJ4: 0 | EK4: 0 | EL4: 0 | EM4: 0 | EN4: 0 | EO4: 0 | EP4: 0 | EQ4: 0 | ER4: 0 | ES4: 0 | ET4: 0 | EU4: 0 | EV4: 0 | EW4: 0 | EX4: 0 | EY4: 0 | EZ4: 0 | FA4: 0 | FB4: 0 | FC4: 0 | FD4: 0 | FE4: 45470083 | FF4: -3.33 | FG4: 18.52597057 | FH4: 18.98648468 | FI4: 19.90544695 | FJ4: 19.1 | FK4: 234559216 | FL4: 61138054 | FM4: 131682585 | FN4: 2931458 | FO4: 613566 | FP4: 5561122 | FQ4: 26372 | FR4: 5420862 | FS4: 21472016 | FT4: 188944729 | FU4: 720018 | FV4: 584681473 | FW4: 677935067 | FX4: 135798089 | FY4: 0 | FZ4: 34292 | GA4: 0 | GB4: 1965763 | GC4: 2707834 | GD4: 0 | GE4: 0 | GF4: 0 | GG4: 0 | GH4: 853233 | GI4: 232581336 | GJ4: 53205319 | GK4: 135242832 | GL4: 2962354 | GM4: 574147 | GN4: 4264561 | GO4: 3043 | GP4: 6213134 | GQ4: 20095869 | GR4: 182349881 | GS4: 778450 | GT4: 685364163 | GU4: 648947420 | GV4: 24451737 | GW4: 0 | GX4: 34310 | GY4: 0 | GZ4: 1464816 | HA4: 1905984 | HB4: 0 | HC4: 0 | HD4: 0 | HE4: 0 | HF4: 859451 | HG4: 240722157 | HH4: 51831624 | HI4: 136940653 | HJ4: 3099587 | HK4: 532487 | HL4: 3223549 | HM4: 396 | HN4: 5308999 | HO4: 19454693 | HP4: 178736070 | HQ4: 862065 | HR4: 702442846 | HS4: 650309690 | HT4: 11753279 | HU4: 0 | HV4: 34328 | HW4: 0 | HX4: 1001950 | HY4: 1348534 | HZ4: 0 | IA4: 0 | IB4: 0 | IC4: 0 | ID4: 838737
A5: Ver.05.00 | B5: 20001 | C5: 青森県 | D5: - | E5: 1 | F5: - | G5: - | H5: 13.4 | I5: 64.6 | J5: 378359033 | K5: 2253178 | L5: 一般会計 | M5: 5461148 | N5: 青森県公債費特別会計 | O5: 0 | P5: 青森県療育福祉・医療療育センター特別会計 | Q5: 41218 | R5: 青森県公共用地先行取得事業特別会計 | S5: 0 | T5: 青森県証紙特別会計 | U5: 174770 | V5: 青森県管理特別会計 | W5: 222308 | X5: 青森県鉄道施設事業特別会計 | Y5: 0 | Z5: 青森県母子父子寡婦福祉資金特別会計 | AA5: 0 | AB5: 青森県小規模企業者等設備導入資金特別会計 | AC5: 0 | AD5: 青森県林業・木材産業改善資金特別会計 | AE5: 0 | AF5: 青森県沿岸漁業改善資金特別会計 | AG5: 0 | AR5: 5899444 | AS5: -1.55 | AT5: ⑦ | AU5: 青森県駐車場事業特別会計 | AV5: 453 | AW5: ① | AX5: 青森県国民健康保険特別会計 | AY5: 5725906 | AZ5: 0 | BC5: 0 | BF5: 0 | BI5: 0 | BL5: 0 | BO5: 0 | BR5: 0 | BU5: 0 | BX5: 0 | CA5: 0 | CD5: 0 | CG5: 青森県病院事業会計 | CH5: 13063784 | CI5: 青森県工業用水道事業会計 | CJ5: 3498685 | CK5: 青森県下水道事業会計 | CL5: 31399 | CM5: 0 | CN5: 0 | CO5: 0 | CP5: 0 | CQ5: 0 | CR5: 0 | CS5: 0 | CT5: 0 | CU5: 0 | CV5: 0 | CW5: 0 | CX5: 0 | CY5: 0 | CZ5: 0 | DA5: 0 | DB5: 0 | DC5: 0 | DD5: 0 | DE5: 0 | DF5: 0 | DG5: 0 | DH5: 0 | DI5: 0 | DJ5: 0 | DK5: 0 | DL5: 0 | DM5: 0 | DN5: 0 | DO5: 0 | DP5: 0 | DQ5: 0 | DR5: 0 | DS5: 0 | DT5: 0 | DU5: 0 | DV5: 0 | DW5: 0 | DX5: 0 | DY5: 0 | DZ5: 0 | EA5: 0 | EB5: 0 | EC5: 0 | ED5: 0 | EE5: 0 | EF5: 0 | EG5: 0 | EH5: 0 | EI5: 0 | EJ5: 0 | EK5: 0 | EL5: 0 | EM5: 0 | EN5: 0 | EO5: 0 | EP5: 0 | EQ5: 0 | ER5: 0 | ES5: 0 | ET5: 0 | EU5: 0 | EV5: 0 | EW5: 青森県港湾整備事業特別会計 | EX5: 492274 | EY5: 0 | EZ5: 0 | FA5: 0 | FB5: 0 | FC5: 0 | FD5: 0 | FE5: 28711945 | FF5: -7.58 | FG5: 12.59367899 | FH5: 14.49966922 | FI5: 13.11569255 | FJ5: 13.4 | FK5: 104338683 | FL5: 0 | FM5: 1938602 | FN5: 1041863 | FO5: 0 | FP5: 93862 | FQ5: 10 | FR5: 1371630 | FS5: 16804574 | FT5: 47216670 | FU5: 165255 | FV5: 129292111 | FW5: 234196533 | FX5: 33046258 | FY5: 0 | FZ5: 0 | GA5: 0 | GB5: 0 | GC5: 0 | GD5: 0 | GE5: 0 | GF5: 0 | GG5: 0 | GH5: 93862 | GI5: 104484612 | GJ5: 0 | GK5: 2056719 | GL5: 1040331 | GM5: 0 | GN5: 85730 | GO5: 49 | GP5: 1230215 | GQ5: 14320708 | GR5: 45302412 | GS5: 186205 | GT5: 153374038 | GU5: 222453108 | GV5: 5561246 | GW5: 0 | GX5: 0 | GY5: 0 | GZ5: 0 | HA5: 0 | HB5: 0 | HC5: 0 | HD5: 0 | HE5: 0 | HF5: 85730 | HG5: 98207684 | HH5: 0 | HI5: 1944029 | HJ5: 1013606 | HK5: 0 | HL5: 78448 | HM5: 56 | HN5: 1387466 | HO5: 13415662 | HP5: 44195483 | HQ5: 203610 | HR5: 153324381 | HS5: 222781474 | HT5: 2253178 | HU5: 0 | HV5: 0 | HW5: 0 | HX5: 0 | HY5: 0 | HZ5: 0 | IA5: 0 | IB5: 0 | IC5: 0 | ID5: 78448
A6: Ver.05.00 | B6: 30007 | C6: 岩手県 | D6: - | E6: 1 | F6: - | G6: - | H6: 12.7 | I6: 201.1 | J6: 390645538 | K6: 2391774 | L6: 一般会計 | M6: 19464700 | N6: 母子父子寡婦福祉資金特別会計 | O6: 0 | P6: 中小企業振興資金特別会計 | Q6: 0 | R6: 証紙収入整理特別会計 | S6: 92906 | T6: 沿岸漁業改善資金特別会計 | U6: 0 | V6: 土地先行取得事業特別会計 | W6: 0 | X6: 県有林事業特別会計 | Y6: 0 | Z6: 林業・木材産業資金特別会計 | AA6: 0 | AB6: 公債管理特別会計 | AC6: 0 | AR6: 19557606 | AS6: -5 | AT6: ① | AU6: 国民健康保険特別会計 | AV6: 431741 | AW6: 0 | AZ6: 0 | BC6: 0 | BF6: 0 | BI6: 0 | BL6: 0 | BO6: 0 | BR6: 0 | BU6: 0 | BX6: 0 | CA6: 0 | CD6: 0 | CG6: 岩手県立病院等事業会計 | CH6: 11777007 | CI6: 岩手県工業用水道事業会計 | CJ6: 2052351 | CK6: 岩手県電気事業会計 | CL6: 16567656 | CM6: 岩手県流域下水道事業会計 | CN6: 1764059 | CO6: 0 | CP6: 0 | CQ6: 0 | CR6: 0 | CS6: 0 | CT6: 0 | CU6: 0 | CV6: 0 | CW6: 0 | CX6: 0 | CY6: 0 | CZ6: 0 | DA6: 0 | DB6: 0 | DC6: 0 | DD6: 0 | DE6: 0 | DF6: 0 | DG6: 0 | DH6: 0 | DI6: 0 | DJ6: 0 | DK6: 0 | DL6: 0 | DM6: 0 | DN6: 0 | DO6: 0 | DP6: 0 | DQ6: 0 | DR6: 0 | DS6: 岩手県港湾整備事業特別会計 | DT6: 893556 | DU6: 0 | DV6: 0 | DW6: 0 | DX6: 0 | DY6: 0 | DZ6: 0 | EA6: 0 | EB6: 0 | EC6: 0 | ED6: 0 | EE6: 0 | EF6: 0 | EG6: 0 | EH6: 0 | EI6: 0 | EJ6: 0 | EK6: 0 | EL6: 0 | EM6: 0 | EN6: 0 | EO6: 0 | EP6: 0 | EQ6: 0 | ER6: 0 | ES6: 0 | ET6: 0 | EU6: 0 | EV6: 0 | EW6: 0 | EX6: 0 | EY6: 0 | EZ6: 0 | FA6: 0 | FB6: 0 | FC6: 0 | FD6: 0 | FE6: 53043976 | FF6: -13.57 | FG6: 13.76670921 | FH6: 12.17440661 | FI6: 12.18105483 | FJ6: 12.7 | FK6: 100080998 | FL6: 0 | FM6: 1418033 | FN6: 9880852 | FO6: 0 | FP6: 662007 | FQ6: 99 | FR6: 2139938 | FS6: 10368607 | FT6: 49004109 | FU6: 3317131 | FV6: 138415101 | FW6: 232967504 | FX6: 34251974 | FY6: 0 | FZ6: 0 | GA6: 0 | GB6: 662007 | GC6: 0 | GD6: 0 | GE6: 0 | GF6: 0 | GG6: 0 | GH6: 0 | GI6: 91717146 | GJ6: 0 | GK6: 1513667 | GL6: 8800968 | GM6: 0 | GN6: 309894 | GO6: 95 | GP6: 2464107 | GQ6: 8914318 | GR6: 47102097 | GS6: 3499176 | GT6: 159826027 | GU6: 225158451 | GV6: 6063263 | GW6: 0 | GX6: 0 | GY6: 0 | GZ6: 309894 | HA6: 0 | HB6: 0 | HC6: 0 | HD6: 0 | HE6: 0 | HF6: 0 | HG6: 89354074 | HH6: 0 | HI6: 1747000 | HJ6: 9076321 | HK6: 0 | HL6: 283400 | HM6: 81 | HN6: 1853889 | HO6: 8036149 | HP6: 46413450 | HQ6: 3649755 | HR6: 160496486 | HS6: 227757278 | HT6: 2391774 | HU6: 0 | HV6: 28034 | HW6: 0 | HX6: 255366 | HY6: 0 | HZ6: 0 | IA6: 0 | IB6: 0 | IC6: 0 | ID6: 0
A7: Ver.05.00 | B7: 40002 | C7: 宮城県 | D7: - | E7: 1 | F7: - | G7: - | H7: 10.3 | I7: 135.3 | J7: 484916321 | K7: 10478615 | L7: 一般会計 | M7: 1733775 | N7: 公債費特別会計 | O7: 0 | P7: 母子父子寡婦福祉資金特別会計 | Q7: 0 | R7: 中小企業高度化資金特別会計 | S7: 0 | T7: 農業改良資金特別会計 | U7: 0 | V7: 沿岸漁業改善資金特別会計 | W7: 0 | X7: 林業・木材産業改善資金特別会計 | Y7: 0 | Z7: 県有林特別会計 | AA7: 28339 | AB7: 土地取得特別会計 | AC7: 98 | AR7: 1762212 | AS7: -0.36 | AT7: ① | AU7: 国民健康保険特別会計 | AV7: 1539272 | AW7: 0 | AZ7: 0 | BC7: 0 | BF7: 0 | BI7: 0 | BL7: 0 | BO7: 0 | BR7: 0 | BU7: 0 | BX7: 0 | CA7: 0 | CD7: 0 | CG7: 水道用水供給事業会計 | CH7: 23283835 | CI7: 工業用水道事業会計 | CJ7: 4632395 | CK7: 地域整備事業会計 | CL7: 5604793 | CM7: 流域下水道事業会計 | CN7: 3819995 | CO7: 0 | CP7: 0 | CQ7: 0 | CR7: 0 | CS7: 0 | CT7: 0 | CU7: 0 | CV7: 0 | CW7: 0 | CX7: 0 | CY7: 0 | CZ7: 0 | DA7: 0 | DB7: 0 | DC7: 0 | DD7: 0 | DE7: 0 | DF7: 0 | DG7: 0 | DH7: 0 | DI7: 0 | DJ7: 0 | DK7: 0 | DL7: 0 | DM7: 0 | DN7: 0 | DO7: 0 | DP7: 0 | DQ7: 0 | DR7: 0 | DS7: 0 | DT7: 0 | DU7: 0 | DV7: 0 | DW7: 0 | DX7: 0 | DY7: 0 | DZ7: 0 | EA7: 0 | EB7: 0 | EC7: 0 | ED7: 0 | EE7: 0 | EF7: 0 | EG7: 0 | EH7: 0 | EI7: 0 | EJ7: 0 | EK7: 0 | EL7: 0 | EM7: 0 | EN7: 0 | EO7: 0 | EP7: 0 | EQ7: 0 | ER7: 0 | ES7: 0 | ET7: 0 | EU7: 0 | EV7: 0 | EW7: 港湾整備事業特別会計 | EX7: 3462021 | EY7: 0 | EZ7: 0 | FA7: 0 | FB7: 0 | FC7: 0 | FD7: 0 | FE7: 44104523 | FF7: -9.09 | FG7: 10.37760621 | FH7: 10.46343781 | FI7: 10.11649677 | FJ7: 10.3 | FK7: 70576776 | FL7: 3387929 | FM7: 37007073 | FN7: 1173491 | FO7: 0 | FP7: 877898 | FQ7: 0 | FR7: 4792997 | FS7: 4581731 | FT7: 58430851 | FU7: 1090646 | FV7: 255359407 | FW7: 169426026 | FX7: 64530904 | FY7: 0 | FZ7: 518771 | GA7: 0 | GB7: 202713 | GC7: 0 | GD7: 0 | GE7: 0 | GF7: 0 | GG7: 0 | GH7: 156414 | GI7: 70325460 | GJ7: 1931467 | GK7: 37330917 | GL7: 1230964 | GM7: 0 | GN7: 721424 | GO7: 0 | GP7: 5039299 | GQ7: 4185658 | GR7: 57605864 | GS7: 1299386 | GT7: 305043020 | GU7: 154619790 | GV7: 18301544 | GW7: 0 | GX7: 517978 | GY7: 0 | GZ7: 52927 | HA7: 0 | HB7: 0 | HC7: 0 | HD7: 0 | HE7: 0 | HF7: 150519 | HG7: 70229740 | HH7: 321571.0941 | HI7: 37074250 | HJ7: 1380503 | HK7: 0 | HL7: 654529 | HM7: 0 | HN7: 4200657 | HO7: 4127814 | HP7: 57822985 | HQ7: 800863 | HR7: 315341452 | HS7: 159096254 | HT7: 10478615 | HU7: 0 | HV7: 518356 | HW7: 0 | HX7: 0 | HY7: 0 | HZ7: 0 | IA7: 0 | IB7: 0 | IC7: 0 | ID7: 136173
A8: Ver.05.00 | B8: 50008 | C8: 秋田県 | D8: - | E8: 1 | F8: - | G8: - | H8: 15.3 | I8: 243 | J8: 325377398 | K8: 1794258 | L8: 一般会計 | M8: 9991620 | N8: 母子父子寡婦福祉資金特別会計 | O8: 0 | P8: 就農支援資金貸付事業等特別会計 | Q8: 0 | R8: 中小企業設備導入助成資金特別会計 | S8: 0 | T8: 土地取得事業特別会計 | U8: 0 | V8: 林業・木材産業改善資金特別会計 | W8: 0 | X8: 市町村振興資金特別会計 | Y8: 0 | Z8: 沿岸漁業改善資金特別会計 | AA8: 0 | AB8: 地域総合整備資金特別会計 | AC8: 0 | AD8: 環境保全センター事業特別会計 | AE8: 0 | AF8: 証紙特別会計 | AG8: 0 | AH8: 公債費管理特別会計 | AI8: 0 | AJ8: 地方独立行政法人秋田県立病院機構施設整備等貸付金特別会計 | AK8: 0 | AR8: 9991620 | AS8: -3.07 | AT8: 0 | AU8: 国民健康保険特別会計 | AV8: 0 | AW8: 0 | AZ8: 0 | BC8: 0 | BF8: 0 | BI8: 0 | BL8: 0 | BO8: 0 | BR8: 0 | BU8: 0 | BX8: 0 | CA8: 0 | CD8: 0 | CG8: 工業用水道事業会計 | CH8: 1722959 | CI8: 電気事業会計 | CJ8: 15047247 | CK8: 下水道事業会計 | CL8: 2513201 | CM8: 0 | CN8: 0 | CO8: 0 | CP8: 0 | CQ8: 0 | CR8: 0 | CS8: 0 | CT8: 0 | CU8: 0 | CV8: 0 | CW8: 0 | CX8: 0 | CY8: 0 | CZ8: 0 | DA8: 0 | DB8: 0 | DC8: 0 | DD8: 0 | DE8: 0 | DF8: 0 | DG8: 0 | DH8: 0 | DI8: 0 | DJ8: 0 | DK8: 0 | DL8: 0 | DM8: 0 | DN8: 0 | DO8: 0 | DP8: 0 | DQ8: 0 | DR8: 0 | DS8: 港湾整備事業特別会計 | DT8: 0 | DU8: 0 | DV8: 0 | DW8: 0 | DX8: 0 | DY8: 0 | DZ8: 0 | EA8: 0 | EB8: 0 | EC8: 0 | ED8: 0 | EE8: 0 | EF8: 0 | EG8: 0 | EH8: 0 | EI8: 0 | EJ8: 0 | EK8: 0 | EL8: 0 | EM8: 0 | EN8: 0 | EO8: 0 | EP8: 0 | EQ8: 0 | ER8: 0 | ES8: 0 | ET8: 0 | EU8: 0 | EV8: 0 | EW8: 能代港エネルギー基地建設用地整備事業特別会計 | EX8: 0 | EY8: 秋田港飯島地区工業用地整備事業特別会計 | EZ8: 1840537 | FA8: 工業団地開発事業特別会計 | FB8: 5566320 | FC8: 0 | FD8: 0 | FE8: 36681884 | FF8: -11.27 | FG8: 17.76903744 | FH8: 13.9949859 | FI8: 14.32178136 | FJ8: 15.3 | FK8: 105597309 | FL8: 0 | FM8: 2000000 | FN8: 851092 | FO8: 0 | FP8: 136535 | FQ8: 7 | FR8: 3051596 | FS8: 9310434 | FT8: 45485042 | FU8: 289354 | FV8: 101728604 | FW8: 211057871 | FX8: 26210847 | FY8: 0 | FZ8: 0 | GA8: 0 | GB8: 0 | GC8: 123714 | GD8: 0 | GE8: 0 | GF8: 0 | GG8: 0 | GH8: 12821 | GI8: 90533949 | GJ8: 0 | GK8: 2333333.333 | GL8: 918010 | GM8: 0 | GN8: 141203 | GO8: 7 | GP8: 2955570 | GQ8: 8671104 | GR8: 43645889 | GS8: 290924 | GT8: 119550258 | GU8: 202596258 | GV8: 4581115 | GW8: 0 | GX8: 0 | GY8: 0 | GZ8: 0 | HA8: 132223 | HB8: 0 | HC8: 0 | HD8: 0 | HE8: 0 | HF8: 8980 | HG8: 89056729 | HH8: 0 | HI8: 2666666.667 | HJ8: 932936 | HK8: 0 | HL8: 131494 | HM8: 12 | HN8: 2915758 | HO8: 7966324 | HP8: 42246391 | HQ8: 292817 | HR8: 122288518 | HS8: 201294622 | HT8: 1794258 | HU8: 0 | HV8: 0 | HW8: 0 | HX8: 0 | HY8: 124805 | HZ8: 0 | IA8: 0 | IB8: 0 | IC8: 0 | ID8: 6689
A9: Ver.05.00 | B9: 60003 | C9: 山形県 | D9: - | E9: 1 | F9: - | G9: - | H9: 12.8 | I9: 218.3 | J9: 330114778 | K9: 2054689 | L9: 一般会計 | M9: 6151871 | N9: 公債管理特別会計 | O9: 0 | P9: 市町村振興資金特別会計 | Q9: 0 | R9: 母子父子寡婦福祉資金特別会計 | S9: 0 | T9: 小規模企業者等設備導入資金特別会計 | U9: 0 | V9: 農業改良資金特別会計 | W9: 0 | X9: 沿岸漁業改善資金特別会計 | Y9: 0 | Z9: 林業改善資金特別会計 | AA9: 0 | AR9: 6151871 | AS9: -1.86 | AT9: ① | AU9: 国民健康保険特別会計 | AV9: 534195 | AW9: 0 | AZ9: 0 | BC9: 0 | BF9: 0 | BI9: 0 | BL9: 0 | BO9: 0 | BR9: 0 | BU9: 0 | BX9: 0 | CA9: 0 | CD9: 0 | CG9: 病院事業会計 | CH9: -2868155 | CI9: 流域下水道事業会計 | CJ9: 471363 | CK9: 電気事業会計 | CL9: 20961693 | CM9: 工業用水道事業会計 | CN9: 1428914 | CO9: 公営企業資産運用事業会計 | CP9: 2922507 | CQ9: 水道用水供給事業会計 | CR9: 16411051 | CS9: 0 | CT9: 0 | CU9: 0 | CV9: 0 | CW9: 0 | CX9: 0 | CY9: 0 | CZ9: 0 | DA9: 0 | DB9: 0 | DC9: 0 | DD9: 0 | DE9: 0 | DF9: 0 | DG9: 0 | DH9: 0 | DI9: 0 | DJ9: 0 | DK9: 0 | DL9: 0 | DM9: 0 | DN9: 0 | DO9: 0 | DP9: 0 | DQ9: 0 | DR9: 0 | DS9: 港湾整備事業特別会計 | DT9: 0 | DU9: 0 | DV9: 0 | DW9: 0 | DX9: 0 | DY9: 0 | DZ9: 0 | EA9: 0 | EB9: 0 | EC9: 0 | ED9: 0 | EE9: 0 | EF9: 0 | EG9: 0 | EH9: 0 | EI9: 0 | EJ9: 0 | EK9: 0 | EL9: 0 | EM9: 0 | EN9: 0 | EO9: 0 | EP9: 0 | EQ9: 0 | ER9: 0 | ES9: 0 | ET9: 0 | EU9: 0 | EV9: 0 | EW9: 土地取得事業特別会計 | EX9: 0 | EY9: 0 | EZ9: 0 | FA9: 0 | FB9: 0 | FC9: 0 | FD9: 0 | FE9: 46013439 | FF9: -13.93 | FG9: 12.25608221 | FH9: 12.73856111 | FI9: 13.44437446 | FJ9: 12.8 | FK9: 88220545 | FL9: 0 | FM9: 0 | FN9: 2706149 | FO9: 632664 | FP9: 345151 | FQ9: 27118 | FR9: 2845521 | FS9: 7957975 | FT9: 43848530 | FU9: 2092934 | FV9: 116371112 | FW9: 195043337 | FX9: 29580543 | FY9: 0 | FZ9: 49925 | GA9: 5112 | GB9: 8565 | GC9: 0 | GD9: 0 | GE9: 0 | GF9: 0 | GG9: 0 | GH9: 281549 | GI9: 86801413 | GJ9: 0 | GK9: 0 | GL9: 2702405 | GM9: 644416 | GN9: 342946 | GO9: 32568 | GP9: 2997816 | GQ9: 7453378 | GR9: 42567750 | GS9: 2100595 | GT9: 137921585 | GU9: 187099105 | GV9: 5030453 | GW9: 0 | GX9: 49496 | GY9: 5112 | GZ9: 4624 | HA9: 0 | HB9: 0 | HC9: 0 | HD9: 0 | HE9: 0 | HF9: 283714 | HG9: 89348425 | HH9: 0 | HI9: 0 | HJ9: 2807382 | HK9: 790969 | HL9: 338493 | HM9: 53656 | HN9: 5126682 | HO9: 7338674 | HP9: 41457371 | HQ9: 1842346 | HR9: 139021211 | HS9: 189038878 | HT9: 2054689 | HU9: 0 | HV9: 49072 | HW9: 5112 | HX9: 1043 | HY9: 0 | HZ9: 0 | IA9: 0 | IB9: 0 | IC9: 0 | ID9: 283266
A10: Ver.05.00 | B10: 70009 | C10: 福島県 | D10: - | E10: 1 | F10: - | G10: - | H10: 6.4 | I10: 114.1 | J10: 498570050 | K10: 7193814 | L10: 一般会計 | M10: 7664109 | N10: 公債管理特別会計 | O10: 0 | P10: 土地取得事業特別会計 | Q10: 1 | R10: 母子父子寡婦福祉資金貸付金特別会計 | S10: 0 | T10: 小規模企業者等設備導入資金貸付金等特別会計 | U10: 0 | V10: 就農支援資金等貸付金特別会計 | W10: 0 | X10: 林業・木材産業改善資金貸付金特別会計 | Y10: 0 | Z10: 沿岸漁業改善資金貸付金特別会計 | AA10: 0 | AB10: 証紙収入整理特別会計 | AC10: 37515 | AD10: 奨学資金貸付金特別会計 | AE10: 0 | AR10: 7701625 | AS10: -1.54 | AT10: ① | AU10: 福島県国民健康保険特別会計 | AV10: 3047692 | AW10: 0 | AZ10: 0 | BC10: 0 | BF10: 0 | BI10: 0 | BL10: 0 | BO10: 0 | BR10: 0 | BU10: 0 | BX10: 0 | CA10: 0 | CD10: 0 | CG10: 福島県工業用水道事業会計 | CH10: 4135891 | CI10: 福島県立病院事業会計 | CJ10: 804059 | CK10: 福島県流域下水道事業会計 | CL10: 1126242 | CM10: 0 | CN10: 0 | CO10: 0 | CP10: 0 | CQ10: 0 | CR10: 0 | CS10: 0 | CT10: 0 | CU10: 0 | CV10: 0 | CW10: 0 | CX10: 0 | CY10: 0 | CZ10: 0 | DA10: 0 | DB10: 0 | DC10: 0 | DD10: 0 | DE10: 0 | DF10: 0 | DG10: 0 | DH10: 0 | DI10: 0 | DJ10: 0 | DK10: 福島県地域開発事業会計 | DL10: 28434 | DM10: 0 | DN10: 0 | DO10: 0 | DP10: 0 | DQ10: 0 | DR10: 0 | DS10: 0 | DT10: 0 | DU10: 0 | DV10: 0 | DW10: 0 | DX10: 0 | DY10: 0 | DZ10: 0 | EA10: 0 | EB10: 0 | EC10: 0 | ED10: 0 | EE10: 0 | EF10: 0 | EG10: 0 | EH10: 0 | EI10: 0 | EJ10: 0 | EK10: 0 | EL10: 0 | EM10: 0 | EN10: 0 | EO10: 0 | EP10: 0 | EQ10: 0 | ER10: 0 | ES10: 0 | ET10: 0 | EU10: 0 | EV10: 0 | EW10: 福島県港湾整備事業特別会計 | EX10: 246859 | EY10: 0 | EZ10: 0 | FA10: 0 | FB10: 0 | FC10: 0 | FD10: 0 | FE10: 17090802 | FF10: -3.42 | FG10: 6.646007852 | FH10: 6.581642458 | FI10: 6.188718557 | FJ10: 6.4 | FK10: 77028695 | FL10: 0 | FM10: 19792333 | FN10: 1357087 | FO10: 0 | FP10: 549978 | FQ10: 422 | FR10: 2660257 | FS10: 7620357 | FT10: 58292621 | FU10: 647735 | FV10: 240852324 | FW10: 212831226 | FX10: 56866181 | FY10: 0 | FZ10: 0 | GA10: 0 | GB10: 491146 | GC10: 15497 | GD10: 0 | GE10: 0 | GF10: 0 | GG10: 0 | GH10: 43335 | GI10: 73906312 | GJ10: 0 | GK10: 21104333 | GL10: 1424687 | GM10: 0 | GN10: 413847 | GO10: 2104 | GP10: 2472148 | GQ10: 7839121 | GR10: 57601991 | GS10: 685648 | GT10: 277905990 | GU10: 202684436 | GV10: 14796586 | GW10: 0 | GX10: 0 | GY10: 0 | GZ10: 370975 | HA10: 138 | HB10: 0 | HC10: 0 | HD10: 0 | HE10: 0 | HF10: 42734 | HG10: 72193132 | HH10: 0 | HI10: 21803222 | HJ10: 2020143.795 | HK10: 0 | HL10: 282397 | HM10: 0 | HN10: 2425543 | HO10: 8239530 | HP10: 58218167 | HQ10: 717864 | HR10: 279221904 | HS10: 212154332 | HT10: 7193814 | HU10: 0 | HV10: 0 | HW10: 0 | HX10: 255402 | HY10: 0 | HZ10: 0 | IA10: 0 | IB10: 0 | IC10: 0 | ID10: 26995
A11: Ver.05.00 | B11: 080004 | C11: 茨城県 | D11: - | E11: 1 | F11: - | G11: - | H11: 9.3 | I11: 166 | J11: 670201892 | K11: 15815350 | L11: 一般会計 | M11: 21031928 | N11: 公債管理特別会計 | O11: 0 | P11: 市町村振興資金特別会計 | Q11: 497134 | R11: 鹿島臨海工業地帯造成事業特別会計 | S11: 3554155 | T11: 母子・父子・寡婦福祉資金特別会計 | U11: 269750 | V11: 中小企業事業資金特別会計 | W11: 5186 | X11: 農業改良資金特別会計 | Y11: 26353 | Z11: 公共用地先行取得事業特別会計 | AA11: 0 | AB11: 林業・木材産業改善資金特別会計 | AC11: 160729 | AD11: 沿岸漁業改善資金特別会計 | AE11: 349395 | AR11: 25894630 | AS11: -3.86 | AT11: ⑨ | AU11: 競輪事業特別会計 | AV11: 805167 | AW11: ⑩ | AX11: 県立医療大学付属病院特別会計 | AY11: 126536 | AZ11: ① | BA11: 国民健康保険特別会計 | BB11: 3973047 | BC11: 0 | BF11: 0 | BI11: 0 | BL11: 0 | BO11: 0 | BR11: 0 | BU11: 0 | BX11: 0 | CA11: 0 | CD11: 0 | CG11: 水道事業会計 | CH11: 23464236 | CI11: 工業用水道事業会計 | CJ11: 26493238 | CK11: 病院事業会計 | CL11: 10425228 | CM11: 流域下水道事業会計 | CN11: 3680601 | CO11: 鹿島臨海都市計画下水道事業会計 | CP11: 6100028 | CQ11: 0 | CR11: 0 | CS11: 0 | CT11: 0 | CU11: 0 | CV11: 0 | CW11: 0 | CX11: 0 | CY11: 0 | CZ11: 0 | DA11: 0 | DB11: 0 | DC11: 0 | DD11: 0 | DE11: 0 | DF11: 0 | DG11: 0 | DH11: 0 | DI11: 0 | DJ11: 0 | DK11: 地域振興事業会計 | DL11: 0 | DM11: 0 | DN11: 0 | DO11: 0 | DP11: 0 | DQ11: 0 | DR11: 0 | DS11: 0 | DT11: 0 | DU11: 0 | DV11: 0 | DW11: 0 | DX11: 0 | DY11: 0 | DZ11: 0 | EA11: 0 | EB11: 0 | EC11: 0 | ED11: 0 | EE11: 0 | EF11: 0 | EG11: 0 | EH11: 0 | EI11: 0 | EJ11: 0 | EK11: 0 | EL11: 0 | EM11: 0 | EN11: 0 | EO11: 0 | EP11: 0 | EQ11: 0 | ER11: 0 | ES11: 0 | ET11: 0 | EU11: 0 | EV11: 0 | EW11: 港湾事業特別会計 | EX11: 1080966 | EY11: 都市計画事業土地区画整理事業特別会計 | EZ11: 0 | FA11: 0 | FB11: 0 | FC11: 0 | FD11: 0 | FE11: 102043677 | FF11: -15.22 | FG11: 8.787178588 | FH11: 9.530987862 | FI11: 9.712696573 | FJ11: 9.3 | FK11: 114487068 | FL11: 960593 | FM11: 27213030 | FN11: 3575701.094 | FO11: 0 | FP11: 488182 | FQ11: 0 | FR11: 4777759 | FS11: 8590181 | FT11: 79784874 | FU11: 2023447 | FV11: 371624141 | FW11: 215363303 | FX11: 90042052 | FY11: 0 | FZ11: 0 | GA11: 0 | GB11: 403745 | GC11: 0 | GD11: 0 | GE11: 0 | GF11: 0 | GG11: 0 | GH11: 84437 | GI11: 114456058 | GJ11: 369951 | GK11: 28604995 | GL11: 3592382 | GM11: 0 | GN11: 402764 | GO11: 0 | GP11: 3905853 | GQ11: 7976753 | GR11: 79396817 | GS11: 1886112 | GT11: 427066210 | GU11: 201935673 | GV11: 29565155 | GW11: 0 | GX11: 0 | GY11: 0 | GZ11: 342691 | HA11: 0 | HB11: 0 | HC11: 0 | HD11: 0 | HE11: 0 | HF11: 60073 | HG11: 115989799 | HH11: 0 | HI11: 30118423 | HJ11: 3237388.777 | HK11: 0 | HL11: 404348 | HM11: 0 | HN11: 4103288 | HO11: 7935426 | HP11: 79461634 | HQ11: 1820351 | HR11: 448959979 | HS11: 205426563 | HT11: 15815350 | HU11: 0 | HV11: 0 | HW11: 0 | HX11: 340395 | HY11: 0 | HZ11: 0 | IA11: 0 | IB11: 0 | IC11: 0 | ID11: 63953
A12: Ver.05.00 | B12: 090000 | C12: 栃木県 | D12: - | E12: 1 | F12: - | G12: - | H12: 9.4 | I12: 102.8 | J12: 457322530 | K12: 10483315 | L12: 一般会計 | M12: 9853620 | N12: 公債管理特別会計 | O12: 0 | P12: 県営林事業特別会計 | Q12: 196934 | R12: 林業・木材産業改善資金貸付事業特別会計 | S12: 0 | T12: 母子父子寡婦福祉資金貸付事業特別会計 | U12: 0 | V12: 心身障害者扶養共済事業特別会計 | W12: 817 | X12: 中小企業高度化等資金貸付事業特別会計 | Y12: 0 | Z12: 就農支援資金貸付事業特別会計 | AA12: 0 | AB12: 地方独立行政法人県立病院貸付金特別会計 | AC12: 0 | AR12: 10051371 | AS12: -2.19 | AT12: ① | AU12: 国民健康保険特別会計 | AV12: 4175566 | AW12: 0 | AZ12: 0 | BC12: 0 | BF12: 0 | BI12: 0 | BL12: 0 | BO12: 0 | BR12: 0 | BU12: 0 | BX12: 0 | CA12: 0 | CD12: 0 | CG12: 流域下水道事業会計 | CH12: 1804703 | CI12: 電気事業会計 | CJ12: 4494326 | CK12: 水道事業会計 | CL12: 9209047 | CM12: 工業用水道事業会計 | CN12: 2262111 | CO12: 施設管理事業会計 | CP12: 725965 | CQ12: 0 | CR12: 0 | CS12: 0 | CT12: 0 | CU12: 0 | CV12: 0 | CW12: 0 | CX12: 0 | CY12: 0 | CZ12: 0 | DA12: 0 | DB12: 0 | DC12: 0 | DD12: 0 | DE12: 0 | DF12: 0 | DG12: 0 | DH12: 0 | DI12: 0 | DJ12: 0 | DK12: 用地造成事業会計 | DL12: 0 | DM12: 0 | DN12: 0 | DO12: 0 | DP12: 0 | DQ12: 0 | DR12: 0 | DS12: 0 | DT12: 0 | DU12: 0 | DV12: 0 | DW12: 0 | DX12: 0 | DY12: 0 | DZ12: 0 | EA12: 0 | EB12: 0 | EC12: 0 | ED12: 0 | EE12: 0 | EF12: 0 | EG12: 0 | EH12: 0 | EI12: 0 | EJ12: 0 | EK12: 0 | EL12: 0 | EM12: 0 | EN12: 0 | EO12: 0 | EP12: 0 | EQ12: 0 | ER12: 0 | ES12: 0 | ET12: 0 | EU12: 0 | EV12: 0 | EW12: 0 | EX12: 0 | EY12: 0 | EZ12: 0 | FA12: 0 | FB12: 0 | FC12: 0 | FD12: 0 | FE12: 32723089 | FF12: -7.15 | FG12: 9.435386435 | FH12: 9.547503026 | FI12: 9.235214008 | FJ12: 9.4 | FK12: 94995097 | FL12: 0 | FM12: 4344500 | FN12: 1067849 | FO12: 0 | FP12: 1791361 | FQ12: 2906 | FR12: 2701505 | FS12: 7321315 | FT12: 53449816 | FU12: 464292 | FV12: 249591831 | FW12: 153280557 | FX12: 63908534 | FY12: 0 | FZ12: 1200954 | GA12: 0 | GB12: 0 | GC12: 499570 | GD12: 0 | GE12: 0 | GF12: 0 | GG12: 0 | GH12: 90837 | GI12: 92984101 | GJ12: 0 | GK12: 4455600 | GL12: 983204 | GM12: 0 | GN12: 1603931 | GO12: 2227 | GP12: 2798280 | GQ12: 6272061 | GR12: 53058670 | GS12: 469659 | GT12: 290234956 | GU12: 142169914 | GV12: 19439313 | GW12: 0 | GX12: 1091556 | GY12: 0 | GZ12: 0 | HA12: 417620 | HB12: 0 | HC12: 0 | HD12: 0 | HE12: 0 | HF12: 94755 | HG12: 92492857 | HH12: 0 | HI12: 3805533 | HJ12: 938690 | HK12: 0 | HL12: 1706711 | HM12: 2421 | HN12: 2800957 | HO12: 5924591 | HP12: 52954102 | HQ12: 517184 | HR12: 299912250 | HS12: 146926965 | HT12: 10483315 | HU12: 0 | HV12: 1193548 | HW12: 0 | HX12: 0 | HY12: 418401 | HZ12: 0 | IA12: 0 | IB12: 0 | IC12: 0 | ID12: 94762
A13: Ver.05.00 | B13: 100005 | C13: 群馬県 | D13: - | E13: 1 | F13: - | G13: - | H13: 9.3 | I13: 133.6 | J13: 459270457 | K13: 10156784 | L13: 一般会計 | M13: 9274776 | N13: 母子父子寡婦福祉資金貸付金 | O13: 0 | P13: 農業改良資金 | Q13: 0 | R13: 県有模範林施設費 | S13: 38221 | T13: 中小企業高度化資金 | U13: 0 | V13: 用地先行取得 | W13: 524460 | X13: 収入証紙 | Y13: 349520 | Z13: 林業改善資金 | AA13: 0 | AB13: 公債管理 | AC13: 0 | AD13: 中小企業振興資金 | AE13: 0 | AF13: 新エネルギー | AG13: 69736 | AR13: 10256713 | AS13: -2.23 | AT13: ① | AU13: 国民健康保険事業特別会計 | AV13: 3129801 | AW13: 0 | AZ13: 0 | BC13: 0 | BF13: 0 | BI13: 0 | BL13: 0 | BO13: 0 | BR13: 0 | BU13: 0 | BX13: 0 | CA13: 0 | CD13: 0 | CG13: 流域下水道事業会計 | CH13: 739196 | CI13: 病院事業会計 | CJ13: 6065087 | CK13: 電気事業会計 | CL13: 38047694 | CM13: 工業用水道事業会計 | CN13: 2390766 | CO13: 水道事業会計 | CP13: 14115696 | CQ13: 施設管理事業会計 | CR13: 1009680 | CS13: 0 | CT13: 0 | CU13: 0 | CV13: 0 | CW13: 0 | CX13: 0 | CY13: 0 | CZ13: 0 | DA13: 0 | DB13: 0 | DC13: 0 | DD13: 0 | DE13: 0 | DF13: 0 | DG13: 0 | DH13: 0 | DI13: 0 | DJ13: 0 | DK13: 団地造成事業会計 | DL13: 16301953 | DM13: 0 | DN13: 0 | DO13: 0 | DP13: 0 | DQ13: 0 | DR13: 0 | DS13: 0 | DT13: 0 | DU13: 0 | DV13: 0 | DW13: 0 | DX13: 0 | DY13: 0 | DZ13: 0 | EA13: 0 | EB13: 0 | EC13: 0 | ED13: 0 | EE13: 0 | EF13: 0 | EG13: 0 | EH13: 0 | EI13: 0 | EJ13: 0 | EK13: 0 | EL13: 0 | EM13: 0 | EN13: 0 | EO13: 0 | EP13: 0 | EQ13: 0 | ER13: 0 | ES13: 0 | ET13: 0 | EU13: 0 | EV13: 0 | EW13: 0 | EX13: 0 | EY13: 0 | EZ13: 0 | FA13: 0 | FB13: 0 | FC13: 0 | FD13: 0 | FE13: 92056586 | FF13: -20.04 | FG13: 9.194770679 | FH13: 9.593924141 | FI13: 9.264648548 | FJ13: 9.3 | FK13: 78755065 | FL13: 0 | FM13: 18333100 | FN13: 2957765 | FO13: 0 | FP13: 95473 | FQ13: 1774 | FR13: 1105720 | FS13: 5274158 | FT13: 55072266 | FU13: 1550115 | FV13: 243069645 | FW13: 157132302 | FX13: 65629821 | FY13: 0 | FZ13: 0 | GA13: 0 | GB13: 0 | GC13: 0 | GD13: 0 | GE13: 0 | GF13: 0 | GG13: 0 | GH13: 95473 | GI13: 76764440 | GJ13: 0 | GK13: 19666383 | GL13: 2760835 | GM13: 0 | GN13: 100312 | GO13: 1680 | GP13: 1004868 | GQ13: 4385892 | GR13: 54702918 | GS13: 1558261 | GT13: 285300098 | GU13: 148720681 | GV13: 18975767 | GW13: 0 | GX13: 0 | GY13: 0 | GZ13: 0 | HA13: 0 | HB13: 0 | HC13: 0 | HD13: 0 | HE13: 0 | HF13: 100312 | HG13: 75274101 | HH13: 0 | HI13: 20999667 | HJ13: 2446759 | HK13: 0 | HL13: 99124 | HM13: 1318 | HN13: 924500 | HO13: 4124272 | HP13: 55440652 | HQ13: 1432994 | HR13: 295351526 | HS13: 153762147 | HT13: 10156784 | HU13: 0 | HV13: 0 | HW13: 0 | HX13: 0 | HY13: 0 | HZ13: 0 | IA13: 0 | IB13: 0 | IC13: 0 | ID13: 99124
A14: Ver.05.00 | B14: 110001 | C14: 埼玉県 | D14: - | E14: 1 | F14: - | G14: - | H14: 10.8 | I14: 151.9 | J14: 1295347443 | K14: 53378143 | L14: 一般会計 | M14: 34976800 | N14: 公債費特別会計 | O14: 0 | P14: 市町村振興事業特別会計 | Q14: 0 | R14: 災害救助事業特別会計 | S14: 0 | T14: 母子父子寡婦福祉資金特別会計 | U14: 0 | V14: 地方独立行政法人埼玉県立病院機構貸付金事業等特別会計 | W14: 0 | X14: 中小企業高度化資金特別会計 | Y14: 0 | Z14: 就農支援資金貸付事業特別会計 | AA14: 0 | AB14: 林業・木材産業改善資金特別会計 | AC14: 0 | AD14: 本多静六博士育英事業特別会計 | AE14: 0 | AF14: 用地事業特別会計 | AG14: 236 | AH14: 県営住宅事業特別会計 | AI14: 70701 | AJ14: 高等学校等奨学金事業特別会計 | AK14: 45 | AR14: 35047782 | AS14: -2.7 | AT14: ① | AU14: 国民健康保険事業特別会計 | AV14: 820 | AW14: ⑨ | AX14: 公営競技事業特別会計 | AY14: 4384765 | AZ14: 0 | BC14: 0 | BF14: 0 | BI14: 0 | BL14: 0 | BO14: 0 | BR14: 0 | BU14: 0 | BX14: 0 | CA14: 0 | CD14: 0 | CG14: 埼玉県総合リハビリテーションセンター病院事業会計 | CH14: 3221570 | CI14: 工業用水道事業会計 | CJ14: 12754563 | CK14: 水道用水供給事業会計 | CL14: 50349185 | CM14: 流域下水道事業会計 | CN14: 13530036 | CO14: 0 | CP14: 0 | CQ14: 0 | CR14: 0 | CS14: 0 | CT14: 0 | CU14: 0 | CV14: 0 | CW14: 0 | CX14: 0 | CY14: 0 | CZ14: 0 | DA14: 0 | DB14: 0 | DC14: 0 | DD14: 0 | DE14: 0 | DF14: 0 | DG14: 0 | DH14: 0 | DI14: 0 | DJ14: 0 | DK14: 地域整備事業会計 | DL14: 63373484 | DM14: 0 | DN14: 0 | DO14: 0 | DP14: 0 | DQ14: 0 | DR14: 0 | DS14: 0 | DT14: 0 | DU14: 0 | DV14: 0 | DW14: 0 | DX14: 0 | DY14: 0 | DZ14: 0 | EA14: 0 | EB14: 0 | EC14: 0 | ED14: 0 | EE14: 0 | EF14: 0 | EG14: 0 | EH14: 0 | EI14: 0 | EJ14: 0 | EK14: 0 | EL14: 0 | EM14: 0 | EN14: 0 | EO14: 0 | EP14: 0 | EQ14: 0 | ER14: 0 | ES14: 0 | ET14: 0 | EU14: 0 | EV14: 0 | EW14: 0 | EX14: 0 | EY14: 0 | EZ14: 0 | FA14: 0 | FB14: 0 | FC14: 0 | FD14: 0 | FE14: 182662205 | FF14: -14.1 | FG14: 10.28547421 | FH14: 11.21194739 | FI14: 11.1695524 | FJ14: 10.8 | FK14: 114906177 | FL14: 0 | FM14: 177182963 | FN14: 2550974 | FO14: 0 | FP14: 898622 | FQ14: 0 | FR14: 15800726 | FS14: 13542802 | FT14: 145223364 | FU14: 4383857 | FV14: 802314758 | FW14: 290996946 | FX14: 203359094 | FY14: 0 | FZ14: 0 | GA14: 0 | GB14: 0 | GC14: 627317 | GD14: 0 | GE14: 0 | GF14: 0 | GG14: 0 | GH14: 271305 | GI14: 112609521 | GJ14: 0 | GK14: 180256823 | GL14: 2200075 | GM14: 0 | GN14: 889832 | GO14: 0 | GP14: 9369781 | GQ14: 12041324 | GR14: 145877977 | GS14: 4596354 | GT14: 945488352 | GU14: 245444313 | GV14: 78177685 | GW14: 0 | GX14: 0 | GY14: 0 | GZ14: 0 | HA14: 666473 | HB14: 0 | HC14: 0 | HD14: 0 | HE14: 0 | HF14: 223359 | HG14: 113610831 | HH14: 0 | HI14: 181332520 | HJ14: 2054505 | HK14: 0 | HL14: 935999 | HM14: 0 | HN14: 9174943 | HO14: 10807066 | HP14: 146976410 | HQ14: 4406859 | HR14: 974142781 | HS14: 267826519 | HT14: 53378143 | HU14: 0 | HV14: 0 | HW14: 0 | HX14: 0 | HY14: 683439 | HZ14: 0 | IA14: 0 | IB14: 0 | IC14: 4371 | ID14: 248189
A15: Ver.05.00 | B15: 120006 | C15: 千葉県 | D15: - | E15: 1 | F15: - | G15: - | H15: 7.5 | I15: 106.5 | J15: 1147566348 | K15: 46073336 | L15: 一般会計 | M15: 9646900 | N15: 財政調整基金 | O15: 0 | P15: 県債管理事業 | Q15: 0 | R15: 自動車税証紙 | S15: 411936 | T15: 地方消費税清算 | U15: 1065054 | V15: 市町村振興資金 | W15: 0 | X15: 母子父子寡婦福祉資金 | Y15: 48 | Z15: 心身障害者扶養年金事業 | AA15: 58 | AB15: 日本コンベンションセンター国際展示場事業 | AC15: 3590663 | AD15: 小規模企業者等設備導入資金 | AE15: 83479 | AF15: 就農支援資金 | AG15: 820 | AH15: 営林事業 | AI15: 39698 | AJ15: 林業・木材産業改善資金 | AK15: 6 | AL15: 沿岸漁業改善資金 | AM15: 536 | AN15: 奨学資金 | AO15: 2120 | AR15: 14841318 | AS15: -1.29 | AT15: ① | AU15: 国民健康保険事業 | AV15: 9142420 | AW15: 0 | AZ15: 0 | BC15: 0 | BF15: 0 | BI15: 0 | BL15: 0 | BO15: 0 | BR15: 0 | BU15: 0 | BX15: 0 | CA15: 0 | CD15: 0 | CG15: 上水道事業会計 | CH15: 34534540 | CI15: 工業用水道事業会計 | CJ15: 37015647 | CK15: 病院事業会計 | CL15: 2411038 | CM15: 流域下水道事業会計 | CN15: 6144120 | CO15: 0 | CP15: 0 | CQ15: 0 | CR15: 0 | CS15: 0 | CT15: 0 | CU15: 0 | CV15: 0 | CW15: 0 | CX15: 0 | CY15: 0 | CZ15: 0 | DA15: 0 | DB15: 0 | DC15: 0 | DD15: 0 | DE15: 0 | DF15: 0 | DG15: 0 | DH15: 0 | DI15: 0 | DJ15: 0 | DK15: 造成土地管理事業会計 | DL15: 106369732 | DM15: 0 | DN15: 0 | DO15: 0 | DP15: 0 | DQ15: 0 | DR15: 0 | DS15: 港湾整備事業 | DT15: 2543571 | DU15: 0 | DV15: 0 | DW15: 0 | DX15: 0 | DY15: 0 | DZ15: 0 | EA15: 0 | EB15: 0 | EC15: 0 | ED15: 0 | EE15: 0 | EF15: 0 | EG15: 0 | EH15: 0 | EI15: 0 | EJ15: 0 | EK15: 0 | EL15: 0 | EM15: 0 | EN15: 0 | EO15: 0 | EP15: 0 | EQ15: 0 | ER15: 0 | ES15: 0 | ET15: 0 | EU15: 0 | EV15: 0 | EW15: 土地区画整理事業 | EX15: 0 | EY15: 工業団地整備事業 | EZ15: 5620148 | FA15: 0 | FB15: 0 | FC15: 0 | FD15: 0 | FE15: 218622534 | FF15: -19.05 | FG15: 7.314286419 | FH15: 7.92324394 | FI15: 7.539778415 | FJ15: 7.5 | FK15: 84499981 | FL15: 3416099 | FM15: 128422353 | FN15: 3896886 | FO15: 0 | FP15: 2491037 | FQ15: 294 | FR15: 10143803 | FS15: 6466476 | FT15: 130920960 | FU15: 1635249 | FV15: 715008773 | FW15: 253162772 | FX15: 176556383 | FY15: 0 | FZ15: 333879 | GA15: 0 | GB15: 1767542 | GC15: 0 | GD15: 0 | GE15: 0 | GF15: 0 | GG15: 0 | GH15: 389616 | GI15: 86549127 | GJ15: 0 | GK15: 131023172 | GL15: 4112687 | GM15: 0 | GN15: 2249513 | GO15: 501 | GP15: 7530254 | GQ15: 6030892 | GR15: 131054424 | GS15: 1685503 | GT15: 839312107 | GU15: 211904955 | GV15: 67378783 | GW15: 0 | GX15: 337594 | GY15: 0 | GZ15: 1574024 | HA15: 0 | HB15: 0 | HC15: 0 | HD15: 0 | HE15: 0 | HF15: 337895 | HG15: 84026364 | HH15: 0 | HI15: 131479896 | HJ15: 4410381 | HK15: 0 | HL15: 2018183 | HM15: 1860 | HN15: 6188890 | HO15: 6603033 | HP15: 131461712 | HQ15: 1696800 | HR15: 869856987 | HS15: 231636025 | HT15: 46073336 | HU15: 0 | HV15: 340402 | HW15: 0 | HX15: 1380245 | HY15: 0 | HZ15: 0 | IA15: 0 | IB15: 0 | IC15: 0 | ID15: 297536
A16: Ver.05.00 | B16: 130001 | C16: 東京都 | D16: - | E16: 1 | F16: - | G16: - | H16: 1.3 | I16: 9.7 | J16: 4232272381 | K16: 0 | L16: 一般会計 | M16: 6092872 | N16: 特別会計 | O16: 0 | P16: 控除・調整 | Q16: 0 | AR16: 6092872 | AS16: -0.14 | AT16: ① | AU16: 国民健康保険事業会計 | AV16: 23502389 | AW16: 0 | AZ16: 0 | BC16: 0 | BF16: 0 | BI16: 0 | BL16: 0 | BO16: 0 | BR16: 0 | BU16: 0 | BX16: 0 | CA16: 0 | CD16: 0 | CG16: 中央卸売市場会計 | CH16: 519717288 | CI16: 港湾事業会計 | CJ16: 33349511 | CK16: 交通事業会計 | CL16: 19277030 | CM16: 高速電車事業会計 | CN16: 112194410 | CO16: 電気事業会計 | CP16: 7238451 | CQ16: 水道事業会計 | CR16: 90462943 | CS16: 下水道事業会計 | CT16: 24189236 | CU16: 0 | CV16: 0 | CW16: 0 | CX16: 0 | CY16: 0 | CZ16: 0 | DA16: 0 | DB16: 0 | DC16: 0 | DD16: 0 | DE16: 0 | DF16: 0 | DG16: 0 | DH16: 0 | DI16: 0 | DJ16: 0 | DK16: 都市再開発事業会計 | DL16: 14309173 | DM16: 臨海地域開発事業会計 | DN16: 241503328 | DO16: 0 | DP16: 0 | DQ16: 0 | DR16: 0 | DS16: と場会計 | DT16: 0 | DU16: 0 | DV16: 0 | DW16: 0 | DX16: 0 | DY16: 0 | DZ16: 0 | EA16: 0 | EB16: 0 | EC16: 0 | ED16: 0 | EE16: 0 | EF16: 0 | EG16: 0 | EH16: 0 | EI16: 0 | EJ16: 0 | EK16: 0 | EL16: 0 | EM16: 0 | EN16: 0 | EO16: 0 | EP16: 0 | EQ16: 0 | ER16: 0 | ES16: 0 | ET16: 0 | EU16: 0 | EV16: 0 | EW16: 0 | EX16: 0 | EY16: 0 | EZ16: 0 | FA16: 0 | FB16: 0 | FC16: 0 | FD16: 0 | FE16: 1091836631 | FF16: -25.79 | FG16: 1.779912193 | FH16: 0.871468817 | FI16: 1.351850428 | FJ16: 1.3 | FK16: 87250950 | FL16: 0 | FM16: 277440074 | FN16: 102956489 | FO16: 0 | FP16: 936507 | FQ16: 0 | FR16: 199403684 | FS16: 23561180 | FT16: 187275238 | FU16: 4088604 | FV16: 3263126737 | FW16: 0 | FX16: 0 | FY16: 0 | FZ16: 936507 | GA16: 0 | GB16: 0 | GC16: 0 | GD16: 0 | GE16: 0 | GF16: 0 | GG16: 0 | GH16: 0 | GI16: 79541380 | GJ16: 0 | GK16: 276564148.8 | GL16: 104157899 | GM16: 0 | GN16: 945885 | GO16: 0 | GP16: 219332853 | GQ16: 23040908 | GR16: 181781943 | GS16: 3767569 | GT16: 4028123502 | GU16: 0 | GV16: 0 | GW16: 0 | GX16: 945885 | GY16: 0 | GZ16: 0 | HA16: 0 | HB16: 0 | HC16: 0 | HD16: 0 | HE16: 0 | HF16: 0 | HG16: 73831485 | HH16: 0 | HI16: 267647828 | HJ16: 106390809 | HK16: 0 | HL16: 976486 | HM16: 0 | HN16: 213502925 | HO16: 19879009 | HP16: 157531018 | HQ16: 3160710 | HR16: 4232272381 | HS16: 0 | HT16: 0 | HU16: 0 | HV16: 976486 | HW16: 0 | HX16: 0 | HY16: 0 | HZ16: 0 | IA16: 0 | IB16: 0 | IC16: 0 | ID16: 0
A17: Ver.05.00 | B17: 140007 | C17: 神奈川県 | D17: - | E17: 1 | F17: - | G17: - | H17: 8.9 | I17: 64 | J17: 1414177145 | K17: 58901252 | L17: 一般会計 | M17: 22937840 | N17: 公債管理特別会計 | O17: 0 | P17: 公営競技収益配分金等管理会計 | Q17: 0 | R17: 地方消費税清算会計 | S17: 0 | T17: 水源環境保全・再生事業会計 | U17: 0 | V17: 市町村自治振興事業会計 | W17: 0 | X17: 恩賜記念林業振興資金会計 | Y17: 0 | Z17: 林業改善資金会計 | AA17: 0 | AB17: 沿岸漁業改善資金会計 | AC17: 0 | AD17: 災害救助基金会計 | AE17: 0 | AF17: 母子父子寡婦福祉資金会計 | AG17: 0 | AH17: 介護保険財政安定化基金会計 | AI17: 0 | AJ17: 中小企業資金会計 | AK17: 0 | AL17: 県営住宅事業会計 | AM17: 0 | AN17: 地方独立行政法人神奈川県立病院機構資金会計 | AO17: 0 | AR17: 22937840 | AS17: -1.62 | AT17: 0 | AU17: 国民健康保険事業会計 | AV17: 7509759 | AW17: 0 | AZ17: 0 | BC17: 0 | BF17: 0 | BI17: 0 | BL17: 0 | BO17: 0 | BR17: 0 | BU17: 0 | BX17: 0 | CA17: 0 | CD17: 0 | CG17: 水道事業会計 | CH17: 9436342 | CI17: 電気事業会計 | CJ17: 18822040 | CK17: 公営企業資金等運用事業会計 | CL17: 13016518 | CM17: 相模川総合開発共同事業会計 | CN17: 0 | CO17: 酒匂川総合開発事業会計 | CP17: 0 | CQ17: 流域下水道事業会計 | CR17: 1640713 | CS17: 0 | CT17: 0 | CU17: 0 | CV17: 0 | CW17: 0 | CX17: 0 | CY17: 0 | CZ17: 0 | DA17: 0 | DB17: 0 | DC17: 0 | DD17: 0 | DE17: 0 | DF17: 0 | DG17: 0 | DH17: 0 | DI17: 0 | DJ17: 0 | DK17: 0 | DL17: 0 | DM17: 0 | DN17: 0 | DO17: 0 | DP17: 0 | DQ17: 0 | DR17: 0 | DS17: 0 | DT17: 0 | DU17: 0 | DV17: 0 | DW17: 0 | DX17: 0 | DY17: 0 | DZ17: 0 | EA17: 0 | EB17: 0 | EC17: 0 | ED17: 0 | EE17: 0 | EF17: 0 | EG17: 0 | EH17: 0 | EI17: 0 | EJ17: 0 | EK17: 0 | EL17: 0 | EM17: 0 | EN17: 0 | EO17: 0 | EP17: 0 | EQ17: 0 | ER17: 0 | ES17: 0 | ET17: 0 | EU17: 0 | EV17: 0 | EW17: 0 | EX17: 0 | EY17: 0 | EZ17: 0 | FA17: 0 | FB17: 0 | FC17: 0 | FD17: 0 | FE17: 73363212 | FF17: -5.18 | FG17: 8.760173301 | FH17: 10.09644275 | FI17: 8.06688463 | FJ17: 8.9 | FK17: 114397669 | FL17: 5801611 | FM17: 164235168 | FN17: 2766411 | FO17: 0 | FP17: 1771553 | FQ17: 0 | FR17: 4369971 | FS17: 4588247 | FT17: 169589898 | FU17: 2544808 | FV17: 960326510 | FW17: 201893004 | FX17: 245980081 | FY17: 0 | FZ17: 1069310 | GA17: 0 | GB17: 0 | GC17: 0 | GD17: 0 | GE17: 0 | GF17: 0 | GG17: 702243 | GH17: 0 | GI17: 128233908 | GJ17: 1674374 | GK17: 165609023 | GL17: 2331220 | GM17: 0 | GN17: 1650719 | GO17: 0 | GP17: 3533300 | GQ17: 4183896 | GR17: 168177203 | GS17: 2202180 | GT17: 1146727943 | GU17: 140097099 | GV17: 90168321 | GW17: 0 | GX17: 1069519 | GY17: 0 | GZ17: 0 | HA17: 0 | HB17: 0 | HC17: 0 | HD17: 0 | HE17: 581200 | HF17: 0 | HG17: 114896803 | HH17: 263640 | HI17: 159879842 | HJ17: 2071878 | HK17: 0 | HL17: 1433575 | HM17: 0 | HN17: 4135885 | HO17: 4188396 | HP17: 168131530 | HQ17: 2078400 | HR17: 1202565719 | HS17: 152710174 | HT17: 58901252 | HU17: 0 | HV17: 968718 | HW17: 0 | HX17: 0 | HY17: 0 | HZ17: 0 | IA17: 0 | IB17: 0 | IC17: 464857 | ID17: 0
A18: Ver.05.00 | B18: 150002 | C18: 新潟県 | D18: - | E18: 1 | F18: - | G18: - | H18: 18.4 | I18: 297.8 | J18: 552223066 | K18: 5408981 | L18: 一般会計 | M18: 8198293 | N18: 県債管理特別会計 | O18: 0 | P18: 地域づくり資金貸付事業特別会計 | Q18: 3977851 | R18: 災害救助事業特別会計 | S18: 354897 | T18: 母子父子寡婦福祉資金貸付事業特別会計 | U18: 45624 | V18: 心身障害児・者総合施設事業特別会計 | W18: 0 | X18: 中小企業支援資金貸付事業特別会計 | Y18: 191897 | Z18: 林業振興資金貸付事業特別会計 | AA18: 149280 | AB18: 沿岸漁業改善資金貸付事業特別会計 | AC18: 201011 | AD18: 県有林事業特別会計 | AE18: 15168 | AF18: 用地先行取得事業特別会計 | AG18: 0 | AH18: 都市開発資金事業特別会計 | AI18: 0 | AR18: 13134021 | AS18: -2.37 | AT18: 0 | AU18: 国民健康保険事業特別会計 | AV18: 7880661 | AW18: 0 | AZ18: 0 | BC18: 0 | BF18: 0 | BI18: 0 | BL18: 0 | BO18: 0 | BR18: 0 | BU18: 0 | BX18: 0 | CA18: 0 | CD18: 0 | CG18: 電気事業会計 | CH18: 20826830 | CI18: 工業用水道事業会計 | CJ18: 5317429 | CK18: 基幹病院事業会計 | CL18: 3539839 | CM18: 病院事業会計 | CN18: 4327092 | CO18: 流域下水道事業会計 | CP18: 2727710 | CQ18: 0 | CR18: 0 | CS18: 0 | CT18: 0 | CU18: 0 | CV18: 0 | CW18: 0 | CX18: 0 | CY18: 0 | CZ18: 0 | DA18: 0 | DB18: 0 | DC18: 0 | DD18: 0 | DE18: 0 | DF18: 0 | DG18: 0 | DH18: 0 | DI18: 0 | DJ18: 0 | DK18: 工業用地造成事業会計 | DL18: -365193 | DM18: 新潟東港臨海用地造成事業会計 | DN18: 2114732 | DO18: 0 | DP18: 0 | DQ18: 0 | DR18: 0 | DS18: 港湾整備事業特別会計 | DT18: 253159 | DU18: 0 | DV18: 0 | DW18: 0 | DX18: 0 | DY18: 0 | DZ18: 0 | EA18: 0 | EB18: 0 | EC18: 0 | ED18: 0 | EE18: 0 | EF18: 0 | EG18: 0 | EH18: 0 | EI18: 0 | EJ18: 0 | EK18: 0 | EL18: 0 | EM18: 0 | EN18: 0 | EO18: 0 | EP18: 0 | EQ18: 0 | ER18: 0 | ES18: 0 | ET18: 0 | EU18: 0 | EV18: 0 | EW18: 0 | EX18: 0 | EY18: 0 | EZ18: 0 | FA18: 0 | FB18: 0 | FC18: 0 | FD18: 0 | FE18: 59756280 | FF18: -10.82 | FG18: 17.91993476 | FH18: 18.975372 | FI18: 18.5547617 | FJ18: 18.4 | FK18: 102205090 | FL18: 9855782 | FM18: 65786750 | FN18: 6574780 | FO18: 0 | FP18: 1532599 | FQ18: 4681 | FR18: 2877332 | FS18: 14728610 | FT18: 82508806 | FU18: 1954376 | FV18: 239018007 | FW18: 271463187 | FX18: 56851577 | FY18: 0 | FZ18: 878390 | GA18: 39416 | GB18: 451103 | GC18: 93852 | GD18: 0 | GE18: 0 | GF18: 0 | GG18: 0 | GH18: 69838 | GI18: 96352482 | GJ18: 10673140 | GK18: 67239783 | GL18: 6626836.503 | GM18: 0 | GN18: 1119354 | GO18: 3119 | GP18: 743730 | GQ18: 14068026 | GR18: 79176234 | GS18: 2099127 | GT18: 279389032 | GU18: 257847577 | GV18: 10944264 | GW18: 0 | GX18: 571878 | GY18: 21794 | GZ18: 373713 | HA18: 91641 | HB18: 0 | HC18: 0 | HD18: 0 | HE18: 0 | HF18: 60328 | HG18: 92132444 | HH18: 11722282 | HI18: 67705033 | HJ18: 6954739 | HK18: 0 | HL18: 1078492 | HM18: 2452 | HN18: 639345 | HO18: 13382007 | HP18: 78390588 | HQ18: 2146245 | HR18: 285496007 | HS18: 261318078 | HT18: 5408981 | HU18: 0 | HV18: 571664 | HW18: 17293 | HX18: 337558 | HY18: 99419 | HZ18: 0 | IA18: 0 | IB18: 0 | IC18: 0 | ID18: 52558
A19: Ver.05.00 | B19: 160008 | C19: 富山県 | D19: - | E19: 1 | F19: - | G19: - | H19: 13.8 | I19: 217.7 | J19: 309874046 | K19: 3006553 | L19: 一般会計 | M19: 699127 | N19: 物品調達等管理特別会計 | O19: 242172 | P19: 公債管理特別会計 | Q19: 0 | R19: 収入証紙特別会計 | S19: 111997 | T19: 母子父子寡婦福祉資金特別会計 | U19: 1 | V19: 中小企業活性化資金特別会計 | W19: 0 | X19: 就農支援資金特別会計 | Y19: 0 | Z19: 沿岸漁業改善資金特別会計 | AA19: 0 | AB19: 林業振興・有峰森林特別会計 | AC19: 0 | AD19: 奨学資金特別会計 | AE19: 0 | AF19: 公共用地先行取得事業特別会計 | AG19: 323970 | AH19: 「元富山県営水力電気並鉄道事業」資金特別会計 | AI19: 7055189 | AR19: 8432456 | AS19: -2.72 | AT19: ① | AU19: 国民健康保険特別会計 | AV19: 2578534 | AW19: 0 | AZ19: 0 | BC19: 0 | BF19: 0 | BI19: 0 | BL19: 0 | BO19: 0 | BR19: 0 | BU19: 0 | BX19: 0 | CA19: 0 | CD19: 0 | CG19: 病院事業会計 | CH19: 6591913 | CI19: 電気事業会計 | CJ19: 11091770 | CK19: 水道事業会計 | CL19: 2946848 | CM19: 工業用水道事業会計 | CN19: 4494982 | CO19: 地域開発事業会計 | CP19: 4671 | CQ19: 流域下水道事業会計 | CR19: 378320 | CS19: 0 | CT19: 0 | CU19: 0 | CV19: 0 | CW19: 0 | CX19: 0 | CY19: 0 | CZ19: 0 | DA19: 0 | DB19: 0 | DC19: 0 | DD19: 0 | DE19: 0 | DF19: 0 | DG19: 0 | DH19: 0 | DI19: 0 | DJ19: 0 | DK19: 0 | DL19: 0 | DM19: 0 | DN19: 0 | DO19: 0 | DP19: 0 | DQ19: 0 | DR19: 0 | DS19: 0 | DT19: 0 | DU19: 0 | DV19: 0 | DW19: 0 | DX19: 0 | DY19: 0 | DZ19: 0 | EA19: 0 | EB19: 0 | EC19: 0 | ED19: 0 | EE19: 0 | EF19: 0 | EG19: 0 | EH19: 0 | EI19: 0 | EJ19: 0 | EK19: 0 | EL19: 0 | EM19: 0 | EN19: 0 | EO19: 0 | EP19: 0 | EQ19: 0 | ER19: 0 | ES19: 0 | ET19: 0 | EU19: 0 | EV19: 0 | EW19: 港湾施設特別会計 | EX19: 240874 | EY19: 工業用地等管理特別会計 | EZ19: 1495951 | FA19: 0 | FB19: 0 | FC19: 0 | FD19: 0 | FE19: 38256319 | FF19: -12.34 | FG19: 13.09727201 | FH19: 14.32894334 | FI19: 14.10090556 | FJ19: 13.8 | FK19: 77337827 | FL19: 0 | FM19: 9422369 | FN19: 2734314 | FO19: 0 | FP19: 260504 | FQ19: 52 | FR19: 247910 | FS19: 10791972 | FT19: 43813200 | FU19: 792235 | FV19: 132185978 | FW19: 150735478 | FX19: 32909948 | FY19: 0 | FZ19: 0 | GA19: 0 | GB19: 0 | GC19: 0 | GD19: 0 | GE19: 0 | GF19: 0 | GG19: 42219 | GH19: 218285 | GI19: 77559070 | GJ19: 0 | GK19: 10021074 | GL19: 2624662.066 | GM19: 0 | GN19: 215940 | GO19: 1453 | GP19: 239425 | GQ19: 10248446 | GR19: 42742086 | GS19: 863454 | GT19: 155078474 | GU19: 145436603 | GV19: 6873222 | GW19: 0 | GX19: 0 | GY19: 0 | GZ19: 0 | HA19: 0 | HB19: 0 | HC19: 0 | HD19: 0 | HE19: 0 | HF19: 215940 | HG19: 76088409 | HH19: 0 | HI19: 10429060.83 | HJ19: 2467690.355 | HK19: 0 | HL19: 208928 | HM19: 446 | HN19: 214015 | HO19: 10052142 | HP19: 41704871 | HQ19: 962370 | HR19: 160759718 | HS19: 146107775 | HT19: 3006553 | HU19: 0 | HV19: 0 | HW19: 0 | HX19: 0 | HY19: 0 | HZ19: 0 | IA19: 0 | IB19: 0 | IC19: 0 | ID19: 208928
A20: Ver.05.00 | B20: 170003 | C20: 石川県 | D20: - | E20: 1 | F20: - | G20: - | H20: 12.3 | I20: 192 | J20: 316093206 | K20: 3944141 | L20: 一般会計 | M20: 2735650 | N20: 石川県証紙特別会計 | O20: 0 | P20: 石川県土地取得特別会計 | Q20: 0 | R20: 石川県母子父子寡婦福祉資金特別会計 | S20: 0 | T20: 石川県中小企業近代化資金貸付金特別会計 | U20: 0 | V20: 石川県林業改善資金特別会計 | W20: 0 | X20: 石川県沿岸漁業改善資金特別会計 | Y20: 0 | Z20: 石川県育英資金特別会計 | AA20: 0 | AB20: 石川県公債管理特別会計 | AC20: 0 | AR20: 2735650 | AS20: -0.86 | AT20: ① | AU20: 石川県国民健康保険特別会計 | AV20: 1480043 | AW20: ⑨ | AX20: 石川県公営競馬特別会計 | AY20: 86698 | AZ20: 0 | BC20: 0 | BF20: 0 | BI20: 0 | BL20: 0 | BO20: 0 | BR20: 0 | BU20: 0 | BX20: 0 | CA20: 0 | CD20: 0 | CG20: 石川県立中央病院事業会計 | CH20: 14682549 | CI20: 石川県立こころの病院事業会計 | CJ20: 4189217 | CK20: 石川県水道用水供給事業会計 | CL20: 2938024 | CM20: 石川県流域下水道事業会計 | CN20: 676306 | CO20: 0 | CP20: 0 | CQ20: 0 | CR20: 0 | CS20: 0 | CT20: 0 | CU20: 0 | CV20: 0 | CW20: 0 | CX20: 0 | CY20: 0 | CZ20: 0 | DA20: 0 | DB20: 0 | DC20: 0 | DD20: 0 | DE20: 0 | DF20: 0 | DG20: 0 | DH20: 0 | DI20: 0 | DJ20: 0 | DK20: 石川県港湾土地造成事業会計 | DL20: 1447725 | DM20: 0 | DN20: 0 | DO20: 0 | DP20: 0 | DQ20: 0 | DR20: 0 | DS20: 0 | DT20: 0 | DU20: 0 | DV20: 0 | DW20: 0 | DX20: 0 | DY20: 0 | DZ20: 0 | EA20: 0 | EB20: 0 | EC20: 0 | ED20: 0 | EE20: 0 | EF20: 0 | EG20: 0 | EH20: 0 | EI20: 0 | EJ20: 0 | EK20: 0 | EL20: 0 | EM20: 0 | EN20: 0 | EO20: 0 | EP20: 0 | EQ20: 0 | ER20: 0 | ES20: 0 | ET20: 0 | EU20: 0 | EV20: 0 | EW20: 石川県港湾整備特別会計 | EX20: 12376 | EY20: 0 | EZ20: 0 | FA20: 0 | FB20: 0 | FC20: 0 | FD20: 0 | FE20: 28248588 | FF20: -8.93 | FG20: 12.4483401 | FH20: 12.36879545 | FI20: 12.31256802 | FJ20: 12.3 | FK20: 83451746 | FL20: 0 | FM20: 1933966.667 | FN20: 2444359 | FO20: 0 | FP20: 0 | FQ20: 0 | FR20: 1090352 | FS20: 8911397 | FT20: 44024947 | FU20: 510218 | FV20: 141875036 | FW20: 143492006 | FX20: 35530099 | FY20: 0 | FZ20: 0 | GA20: 0 | GB20: 0 | GC20: 0 | GD20: 0 | GE20: 0 | GF20: 0 | GG20: 0 | GH20: 0 | GI20: 79680816 | GJ20: 0 | GK20: 2693866.667 | GL20: 2369674 | GM20: 0 | GN20: 0 | GO20: 0 | GP20: 1126368 | GQ20: 7920215 | GR20: 42854776 | GS20: 597082 | GT20: 164798426 | GU20: 139307365 | GV20: 7970049 | GW20: 0 | GX20: 0 | GY20: 0 | GZ20: 0 | HA20: 0 | HB20: 0 | HC20: 0 | HD20: 0 | HE20: 0 | HF20: 0 | HG20: 77678007 | HH20: 0 | HI20: 4023000 | HJ20: 1889603.879 | HK20: 0 | HL20: 0 | HM20: 0 | HN20: 1018040 | HO20: 7556187 | HP20: 41551610 | HQ20: 675141 | HR20: 172317675 | HS20: 139831390 | HT20: 3944141 | HU20: 0 | HV20: 0 | HW20: 0 | HX20: 0 | HY20: 0 | HZ20: 0 | IA20: 0 | IB20: 0 | IC20: 0 | ID20: 0
A21: Ver.05.00 | B21: 180009 | C21: 福井県 | D21: - | E21: 1 | F21: - | G21: - | H21: 11.7 | I21: 153.8 | J21: 264055575 | K21: 1669550 | L21: 一般会計 | M21: 6336022 | N21: 公債管理特別会計 | O21: 0 | P21: 用品等集中管理事業特別会計 | Q21: 22959 | R21: 災害救助基金特別会計 | S21: 0 | T21: 母子父子寡婦福祉資金貸付金特別会計 | U21: 0 | V21: 中小企業支援資金貸付金特別会計 | W21: 0 | X21: 沿岸漁業改善資金貸付金特別会計 | Y21: 0 | Z21: 林業改善資金貸付金特別会計 | AA21: 0 | AB21: 県有林事業特別会計 | AC21: 0 | AD21: 用地先行取得事業特別会計 | AE21: 0 | AF21: 証紙特別会計 | AG21: 350051 | AR21: 6709032 | AS21: -2.54 | AT21: 0 | AU21: 国民健康保険特別会計 | AV21: 618041 | AW21: 0 | AX21: 駐車場整備事業特別会計 | AY21: 26 | AZ21: 0 | BC21: 0 | BF21: 0 | BI21: 0 | BL21: 0 | BO21: 0 | BR21: 0 | BU21: 0 | BX21: 0 | CA21: 0 | CD21: 0 | CG21: 病院事業会計 | CH21: 11742520 | CI21: 工業用水道事業会計 | CJ21: 3173418 | CK21: 水道用水供給事業会計 | CL21: 11864505 | CM21: 臨海下水道事業会計 | CN21: 1753646 | CO21: 流域下水道事業会計 | CP21: 874486 | CQ21: 0 | CR21: 0 | CS21: 0 | CT21: 0 | CU21: 0 | CV21: 0 | CW21: 0 | CX21: 0 | CY21: 0 | CZ21: 0 | DA21: 0 | DB21: 0 | DC21: 0 | DD21: 0 | DE21: 0 | DF21: 0 | DG21: 0 | DH21: 0 | DI21: 0 | DJ21: 0 | DK21: 臨海工業用地等造成事業会計 | DL21: 8617496 | DM21: 0 | DN21: 0 | DO21: 0 | DP21: 0 | DQ21: 0 | DR21: 0 | DS21: 0 | DT21: 0 | DU21: 0 | DV21: 0 | DW21: 0 | DX21: 0 | DY21: 0 | DZ21: 0 | EA21: 0 | EB21: 0 | EC21: 0 | ED21: 0 | EE21: 0 | EF21: 0 | EG21: 0 | EH21: 0 | EI21: 0 | EJ21: 0 | EK21: 0 | EL21: 0 | EM21: 0 | EN21: 0 | EO21: 0 | EP21: 0 | EQ21: 0 | ER21: 0 | ES21: 0 | ET21: 0 | EU21: 0 | EV21: 0 | EW21: 港湾整備事業特別会計 | EX21: 0 | EY21: 福井県営産業団地整備事業特別会計 | EZ21: 0 | FA21: 0 | FB21: 0 | FC21: 0 | FD21: 0 | FE21: 45353170 | FF21: -17.17 | FG21: 12.56906106 | FH21: 11.76132854 | FI21: 10.89610205 | FJ21: 11.7 | FK21: 68562730 | FL21: 0 | FM21: 12751017 | FN21: 3191875 | FO21: 0 | FP21: 672541 | FQ21: 0 | FR21: 11415643 | FS21: 5103936 | FT21: 39303390 | FU21: 1209398 | FV21: 101433235 | FW21: 143139288 | FX21: 24973386 | FY21: 0 | FZ21: 0 | GA21: 0 | GB21: 0 | GC21: 0 | GD21: 0 | GE21: 0 | GF21: 531911 | GG21: 0 | GH21: 140630 | GI21: 54645058 | GJ21: 0 | GK21: 12823709 | GL21: 2827263 | GM21: 0 | GN21: 661597 | GO21: 0 | GP21: 1337612 | GQ21: 4779362 | GR21: 37936446 | GS21: 1234036 | GT21: 121205503 | GU21: 136839724 | GV21: 4163727 | GW21: 0 | GX21: 0 | GY21: 0 | GZ21: 0 | HA21: 0 | HB21: 0 | HC21: 0 | HD21: 557441 | HE21: 0 | HF21: 104156 | HG21: 50428526 | HH21: 0 | HI21: 13302654.39 | HJ21: 3266834 | HK21: 0 | HL21: 637964 | HM21: 0 | HN21: 462776 | HO21: 4869257 | HP21: 36974293 | HQ21: 1253821 | HR21: 123068353 | HS21: 139317672 | HT21: 1669550 | HU21: 0 | HV21: 0 | HW21: 0 | HX21: 0 | HY21: 0 | HZ21: 0 | IA21: 0 | IB21: 520927 | IC21: 0 | ID21: 117037
A22: Ver.05.00 | B22: 190004 | C22: 山梨県 | D22: - | E22: 1 | F22: - | G22: - | H22: 11.2 | I22: 173.4 | J22: 270856606 | K22: 1623946 | L22: 一般会計 | M22: 5578170 | N22: 恩賜県有財産特別会計 | O22: 817929 | P22: 災害救助基金特別会計 | Q22: 0 | R22: 母子父子寡婦福祉資金特別会計 | S22: 0 | T22: 中小企業近代化資金特別会計 | U22: 2687375 | V22: 市町村振興資金特別会計 | W22: 6575117 | X22: 県税証紙特別会計 | Y22: 33998 | Z22: 集中管理特別会計 | AA22: 0 | AB22: 林業・木材産業改善資金特別会計 | AC22: 0 | AD22: 公債管理特別会計 | AE22: 0 | AR22: 15692589 | AS22: -5.79 | AT22: ① | AU22: 国民健康保険特別会計 | AV22: 80395 | AW22: 0 | AZ22: 0 | BC22: 0 | BF22: 0 | BI22: 0 | BL22: 0 | BO22: 0 | BR22: 0 | BU22: 0 | BX22: 0 | CA22: 0 | CD22: 0 | CG22: 電気事業会計 | CH22: 11684375 | CI22: 温泉事業会計 | CJ22: 470662 | CK22: 地域振興事業会計 | CL22: 7240 | CM22: 流域下水道事業会計 | CN22: 438722 | CO22: 0 | CP22: 0 | CQ22: 0 | CR22: 0 | CS22: 0 | CT22: 0 | CU22: 0 | CV22: 0 | CW22: 0 | CX22: 0 | CY22: 0 | CZ22: 0 | DA22: 0 | DB22: 0 | DC22: 0 | DD22: 0 | DE22: 0 | DF22: 0 | DG22: 0 | DH22: 0 | DI22: 0 | DJ22: 0 | DK22: 0 | DL22: 0 | DM22: 0 | DN22: 0 | DO22: 0 | DP22: 0 | DQ22: 0 | DR22: 0 | DS22: 0 | DT22: 0 | DU22: 0 | DV22: 0 | DW22: 0 | DX22: 0 | DY22: 0 | DZ22: 0 | EA22: 0 | EB22: 0 | EC22: 0 | ED22: 0 | EE22: 0 | EF22: 0 | EG22: 0 | EH22: 0 | EI22: 0 | EJ22: 0 | EK22: 0 | EL22: 0 | EM22: 0 | EN22: 0 | EO22: 0 | EP22: 0 | EQ22: 0 | ER22: 0 | ES22: 0 | ET22: 0 | EU22: 0 | EV22: 0 | EW22: 0 | EX22: 0 | EY22: 0 | EZ22: 0 | FA22: 0 | FB22: 0 | FC22: 0 | FD22: 0 | FE22: 28373983 | FF22: -10.47 | FG22: 11.46329339 | FH22: 11.40845559 | FI22: 11.01419314 | FJ22: 11.2 | FK22: 67317726 | FL22: 0 | FM22: 6766666 | FN22: 1380111 | FO22: 0 | FP22: 267788 | FQ22: 432 | FR22: 2441403 | FS22: 7656293 | FT22: 38451204 | FU22: 929965 | FV22: 96270966 | FW22: 153822333 | FX22: 25969602 | FY22: 0 | FZ22: 238987 | GA22: 0 | GB22: 0 | GC22: 0 | GD22: 0 | GE22: 0 | GF22: 0 | GG22: 0 | GH22: 28801 | GI22: 64934285 | GJ22: 0 | GK22: 6733333 | GL22: 1318594 | GM22: 0 | GN22: 269858 | GO22: 332 | GP22: 2486505 | GQ22: 7001495 | GR22: 37364519 | GS22: 929283 | GT22: 115071491 | GU22: 149231612 | GV22: 4287975 | GW22: 0 | GX22: 239141 | GY22: 0 | GZ22: 0 | HA22: 0 | HB22: 0 | HC22: 0 | HD22: 0 | HE22: 0 | HF22: 30717 | HG22: 63505786 | HH22: 0 | HI22: 6700000 | HJ22: 1235690 | HK22: 0 | HL22: 291977 | HM22: 163 | HN22: 2742766 | HO22: 6594845 | HP22: 36438159 | HQ22: 971969 | HR22: 124534553 | HS22: 144698107 | HT22: 1623946 | HU22: 0 | HV22: 239176 | HW22: 0 | HX22: 0 | HY22: 0 | HZ22: 0 | IA22: 0 | IB22: 0 | IC22: 20625 | ID22: 32176
A23: Ver.05.00 | B23: 200000 | C23: 長野県 | D23: - | E23: 1 | F23: - | G23: - | H23: 9.4 | I23: 152 | J23: 523193843 | K23: 6701397 | L23: 一般会計 | M23: 8329779 | N23: 公債費特別会計 | O23: 0 | P23: 母子父子寡婦福祉資金貸付金特別会計 | Q23: 0 | R23: 心身障害者扶養共済事業費特別会計 | S23: 1326 | T23: 地方独立行政法人長野県立病院機構施設整備等資金貸付金特別会計 | U23: 0 | V23: 小規模企業者等設備導入資金特別会計 | W23: 0 | X23: 農業改良資金特別会計 | Y23: 0 | Z23: 漁業改善資金特別会計 | AA23: 0 | AB23: 県営林経営費特別会計 | AC23: 48016 | AD23: 林業改善資金特別会計 | AE23: 0 | AF23: 高等学校等奨学金貸付金特別会計 | AG23: 0 | AR23: 8379121 | AS23: -1.6 | AT23: ① | AU23: 国民健康保険特別会計 | AV23: 8397016 | AW23: 0 | AZ23: 0 | BC23: 0 | BF23: 0 | BI23: 0 | BL23: 0 | BO23: 0 | BR23: 0 | BU23: 0 | BX23: 0 | CA23: 0 | CD23: 0 | CG23: 電気事業会計 | CH23: 6780921 | CI23: 水道事業会計 | CJ23: 6091602 | CK23: 流域下水道事業会計 | CL23: 260062 | CM23: 総合リハビリテーション事業会計 | CN23: 222790 | CO23: 0 | CP23: 0 | CQ23: 0 | CR23: 0 | CS23: 0 | CT23: 0 | CU23: 0 | CV23: 0 | CW23: 0 | CX23: 0 | CY23: 0 | CZ23: 0 | DA23: 0 | DB23: 0 | DC23: 0 | DD23: 0 | DE23: 0 | DF23: 0 | DG23: 0 | DH23: 0 | DI23: 0 | DJ23: 0 | DK23: 0 | DL23: 0 | DM23: 0 | DN23: 0 | DO23: 0 | DP23: 0 | DQ23: 0 | DR23: 0 | DS23: 0 | DT23: 0 | DU23: 0 | DV23: 0 | DW23: 0 | DX23: 0 | DY23: 0 | DZ23: 0 | EA23: 0 | EB23: 0 | EC23: 0 | ED23: 0 | EE23: 0 | EF23: 0 | EG23: 0 | EH23: 0 | EI23: 0 | EJ23: 0 | EK23: 0 | EL23: 0 | EM23: 0 | EN23: 0 | EO23: 0 | EP23: 0 | EQ23: 0 | ER23: 0 | ES23: 0 | ET23: 0 | EU23: 0 | EV23: 0 | EW23: 0 | EX23: 0 | EY23: 0 | EZ23: 0 | FA23: 0 | FB23: 0 | FC23: 0 | FD23: 0 | FE23: 30131512 | FF23: -5.75 | FG23: 9.756224543 | FH23: 9.559026213 | FI23: 9.020716428 | FJ23: 9.4 | FK23: 65113174 | FL23: 0 | FM23: 56328440.21 | FN23: 1648563 | FO23: 0 | FP23: 91711 | FQ23: 0 | FR23: 3050520 | FS23: 9273812 | FT23: 65925036 | FU23: 689923 | FV23: 240927712 | FW23: 229342483 | FX23: 59099295 | FY23: 0 | FZ23: 0 | GA23: 0 | GB23: 0 | GC23: 0 | GD23: 0 | GE23: 0 | GF23: 0 | GG23: 0 | GH23: 91711 | GI23: 59891085 | GJ23: 0 | GK23: 57891423 | GL23: 1816275 | GM23: 0 | GN23: 90490 | GO23: 0 | GP23: 2878302 | GQ23: 8889858 | GR23: 65036687 | GS23: 671338 | GT23: 287050301 | GU23: 214583712 | GV23: 14568350 | GW23: 0 | GX23: 0 | GY23: 0 | GZ23: 0 | HA23: 0 | HB23: 0 | HC23: 0 | HD23: 0 | HE23: 0 | HF23: 90490 | HG23: 57416378 | HH23: 0 | HI23: 58944597 | HJ23: 1750908 | HK23: 0 | HL23: 88446 | HM23: 0 | HN23: 2905053 | HO23: 8770997 | HP23: 65404753 | HQ23: 675843 | HR23: 301831043 | HS23: 214661403 | HT23: 6701397 | HU23: 0 | HV23: 0 | HW23: 0 | HX23: 0 | HY23: 0 | HZ23: 0 | IA23: 0 | IB23: 0 | IC23: 0 | ID23: 88446
A24: Ver.05.00 | B24: 210005 | C24: 岐阜県 | D24: - | E24: 1 | F24: - | G24: - | H24: 8.3 | I24: 223.7 | J24: 490011911 | K24: 7726616 | L24: 一般会計 | M24: 7193391 | N24: 公債管理特別会計 | O24: 0 | P24: 用度事業特別会計 | Q24: 1771 | R24: 地方独立行政法人資金貸付特別会計 | S24: 0 | T24: 母子父子寡婦福祉資金貸付特別会計 | U24: 0 | V24: 中小企業振興資金貸付特別会計 | W24: 0 | X24: 就農支援資金貸付特別会計 | Y24: 19951 | Z24: 林業改善資金貸付特別会計 | AA24: 0 | AB24: 徳山ダム上流域公有地化特別会計 | AC24: 0 | AD24: 県営住宅特別会計 | AE24: 74568 | AR24: 7289681 | AS24: -1.48 | AT24: ① | AU24: 国民健康保険特別会計 | AV24: 2695745 | AW24: 0 | AZ24: 0 | BC24: 0 | BF24: 0 | BI24: 0 | BL24: 0 | BO24: 0 | BR24: 0 | BU24: 0 | BX24: 0 | CA24: 0 | CD24: 0 | CG24: 水道事業会計 | CH24: 15497904 | CI24: 工業用水道事業会計 | CJ24: 173297 | CK24: 流域下水道事業会計 | CL24: 1047049 | CM24: 0 | CN24: 0 | CO24: 0 | CP24: 0 | CQ24: 0 | CR24: 0 | CS24: 0 | CT24: 0 | CU24: 0 | CV24: 0 | CW24: 0 | CX24: 0 | CY24: 0 | CZ24: 0 | DA24: 0 | DB24: 0 | DC24: 0 | DD24: 0 | DE24: 0 | DF24: 0 | DG24: 0 | DH24: 0 | DI24: 0 | DJ24: 0 | DK24: 0 | DL24: 0 | DM24: 0 | DN24: 0 | DO24: 0 | DP24: 0 | DQ24: 0 | DR24: 0 | DS24: 0 | DT24: 0 | DU24: 0 | DV24: 0 | DW24: 0 | DX24: 0 | DY24: 0 | DZ24: 0 | EA24: 0 | EB24: 0 | EC24: 0 | ED24: 0 | EE24: 0 | EF24: 0 | EG24: 0 | EH24: 0 | EI24: 0 | EJ24: 0 | EK24: 0 | EL24: 0 | EM24: 0 | EN24: 0 | EO24: 0 | EP24: 0 | EQ24: 0 | ER24: 0 | ES24: 0 | ET24: 0 | EU24: 0 | EV24: 0 | EW24: 0 | EX24: 0 | EY24: 0 | EZ24: 0 | FA24: 0 | FB24: 0 | FC24: 0 | FD24: 0 | FE24: 26703676 | FF24: -5.44 | FG24: 7.094628287 | FH24: 8.626402128 | FI24: 9.228800197 | FJ24: 8.3 | FK24: 86701948 | FL24: 0 | FM24: 13803483 | FN24: 368643 | FO24: 0 | FP24: 2706053 | FQ24: 4508 | FR24: 2165852 | FS24: 8255871 | FT24: 62017004 | FU24: 755482 | FV24: 238451595 | FW24: 204118926 | FX24: 56816092 | FY24: 0 | FZ24: 0 | GA24: 0 | GB24: 2369417 | GC24: 25883 | GD24: 0 | GE24: 0 | GF24: 0 | GG24: 210210 | GH24: 100543 | GI24: 88704649 | GJ24: 0 | GK24: 15092317 | GL24: 382735 | GM24: 0 | GN24: 2671222 | GO24: 2819 | GP24: 2184499 | GQ24: 7449743 | GR24: 60587936 | GS24: 774097 | GT24: 276212500 | GU24: 193135238 | GV24: 15135212 | GW24: 0 | GX24: 0 | GY24: 0 | GZ24: 2352670 | HA24: 15049 | HB24: 0 | HC24: 0 | HD24: 0 | HE24: 203766 | HF24: 99737 | HG24: 91183003 | HH24: 0 | HI24: 15744483 | HJ24: 308570 | HK24: 0 | HL24: 2629900 | HM24: 3855 | HN24: 2386807 | HO24: 8197945 | HP24: 59583777 | HQ24: 809179 | HR24: 285590934 | HS24: 196694361 | HT24: 7726616 | HU24: 0 | HV24: 0 | HW24: 0 | HX24: 2333567 | HY24: 15049 | HZ24: 0 | IA24: 0 | IB24: 0 | IC24: 196328 | ID24: 84956
A25: Ver.05.00 | B25: 220001 | C25: 静岡県 | D25: - | E25: 1 | F25: - | G25: - | H25: 13.6 | I25: 235.4 | J25: 737591268 | K25: 23130626 | L25: 一般会計 | M25: 6703722 | N25: 静岡県公債管理特別会計 | O25: 0 | P25: 静岡県自動車税等証紙徴収事務特別会計 | Q25: 0 | R25: 静岡県林業改善資金特別会計 | S25: 171431 | T25: 静岡県母子父子寡婦福祉資金特別会計 | U25: 30512 | V25: 静岡県心身障害者扶養共済事業特別会計 | W25: 882 | X25: 静岡県中小企業高度化資金貸付事業等特別会計 | Y25: 2070 | Z25: 静岡県沿岸漁業改善資金特別会計 | AA25: 156328 | AB25: 静岡県県営住宅事業特別会計 | AC25: 275174 | AD25: 静岡県物品調達事務等特別会計 | AE25: 0 | AR25: 7340119 | AS25: -0.99 | AT25: ① | AU25: 静岡県国民健康保険事業特別会計 | AV25: 8861341 | AW25: 0 | AZ25: 0 | BC25: 0 | BF25: 0 | BI25: 0 | BL25: 0 | BO25: 0 | BR25: 0 | BU25: 0 | BX25: 0 | CA25: 0 | CD25: 0 | CG25: 静岡県工業用水道事業会計 | CH25: 4521248 | CI25: 静岡県水道事業会計 | CJ25: 5969302 | CK25: 静岡県立静岡がんセンター事業会計 | CL25: 7053600 | CM25: 静岡県流域下水道事業会計 | CN25: 1535704 | CO25: 0 | CP25: 0 | CQ25: 0 | CR25: 0 | CS25: 0 | CT25: 0 | CU25: 0 | CV25: 0 | CW25: 0 | CX25: 0 | CY25: 0 | CZ25: 0 | DA25: 0 | DB25: 0 | DC25: 0 | DD25: 0 | DE25: 0 | DF25: 0 | DG25: 0 | DH25: 0 | DI25: 0 | DJ25: 0 | DK25: 静岡県地域振興整備事業会計 | DL25: 9535031 | DM25: 0 | DN25: 0 | DO25: 0 | DP25: 0 | DQ25: 0 | DR25: 0 | DS25: 0 | DT25: 0 | DU25: 0 | DV25: 0 | DW25: 0 | DX25: 0 | DY25: 0 | DZ25: 0 | EA25: 0 | EB25: 0 | EC25: 0 | ED25: 0 | EE25: 0 | EF25: 0 | EG25: 0 | EH25: 0 | EI25: 0 | EJ25: 0 | EK25: 0 | EL25: 0 | EM25: 0 | EN25: 0 | EO25: 0 | EP25: 0 | EQ25: 0 | ER25: 0 | ES25: 0 | ET25: 0 | EU25: 0 | EV25: 0 | EW25: 静岡県清水港等港湾整備事業特別会計 | EX25: 0 | EY25: 0 | EZ25: 0 | FA25: 0 | FB25: 0 | FC25: 0 | FD25: 0 | FE25: 44816345 | FF25: -6.07 | FG25: 12.28339119 | FH25: 14.22979665 | FI25: 14.34548497 | FJ25: 13.6 | FK25: 53282764 | FL25: 6957828 | FM25: 135375159 | FN25: 1521018 | FO25: 0 | FP25: 840375 | FQ25: 0 | FR25: 4684278 | FS25: 12311294 | FT25: 100247584 | FU25: 2714646 | FV25: 427128016 | FW25: 206160077 | FX25: 117146689 | FY25: 0 | FZ25: 619665 | GA25: 0 | GB25: 0 | GC25: 0 | GD25: 0 | GE25: 0 | GF25: 0 | GG25: 220710 | GH25: 0 | GI25: 58217225 | GJ25: 5693404 | GK25: 138948822 | GL25: 1401214 | GM25: 0 | GN25: 843370 | GO25: 0 | GP25: 5483771 | GQ25: 10029705 | GR25: 99374296 | GS25: 2792711 | GT25: 504509786 | GU25: 182125531 | GV25: 39931046 | GW25: 0 | GX25: 619931 | GY25: 0 | GZ25: 0 | HA25: 0 | HB25: 0 | HC25: 0 | HD25: 0 | HE25: 223439 | HF25: 0 | HG25: 55521300 | HH25: 6214789.388 | HI25: 140838636.7 | HJ25: 1321216 | HK25: 0 | HL25: 1012624 | HM25: 0 | HN25: 4977830 | HO25: 9175929 | HP25: 97841258 | HQ25: 2865744 | HR25: 524148200 | HS25: 190312442 | HT25: 23130626 | HU25: 0 | HV25: 620197 | HW25: 0 | HX25: 0 | HY25: 0 | HZ25: 0 | IA25: 0 | IB25: 0 | IC25: 392427 | ID25: 0
A26: Ver.05.00 | B26: 230006 | C26: 愛知県 | D26: - | E26: 1 | F26: - | G26: - | H26: 13.2 | I26: 162.3 | J26: 1440405836 | K26: 54620562 | L26: 一般会計 | M26: 57349036 | N26: 公債管理特別会計 | O26: 0 | P26: 証紙特別会計 | Q26: 503711 | R26: 母子父子寡婦福祉資金特別会計 | S26: 0 | T26: 中小企業設備導入資金特別会計 | U26: 0 | V26: 就農支援資金特別会計 | W26: 0 | X26: 県有林野特別会計 | Y26: 88221 | Z26: 林業改善資金特別会計 | AA26: 0 | AB26: 沿岸漁業改善資金特別会計 | AC26: 0 | AD26: 県営住宅管理事業特別会計 | AE26: 225400 | AR26: 58166368 | AS26: -4.03 | AT26: 0 | AU26: 国民健康保険事業特別会計 | AV26: 6267431 | AW26: 0 | AZ26: 0 | BC26: 0 | BF26: 0 | BI26: 0 | BL26: 0 | BO26: 0 | BR26: 0 | BU26: 0 | BX26: 0 | CA26: 0 | CD26: 0 | CG26: 県立病院事業会計 | CH26: 604349 | CI26: 水道事業会計 | CJ26: 22320058 | CK26: 工業用水道事業会計 | CL26: 9316562 | CM26: 流域下水道事業会計 | CN26: 5905258 | CO26: 0 | CP26: 0 | CQ26: 0 | CR26: 0 | CS26: 0 | CT26: 0 | CU26: 0 | CV26: 0 | CW26: 0 | CX26: 0 | CY26: 0 | CZ26: 0 | DA26: 0 | DB26: 0 | DC26: 0 | DD26: 0 | DE26: 0 | DF26: 0 | DG26: 0 | DH26: 0 | DI26: 0 | DJ26: 0 | DK26: 用地造成事業会計 | DL26: 18925168 | DM26: 0 | DN26: 0 | DO26: 0 | DP26: 0 | DQ26: 0 | DR26: 0 | DS26: 港湾整備事業特別会計 | DT26: 320088 | DU26: 0 | DV26: 0 | DW26: 0 | DX26: 0 | DY26: 0 | DZ26: 0 | EA26: 0 | EB26: 0 | EC26: 0 | ED26: 0 | EE26: 0 | EF26: 0 | EG26: 0 | EH26: 0 | EI26: 0 | EJ26: 0 | EK26: 0 | EL26: 0 | EM26: 0 | EN26: 0 | EO26: 0 | EP26: 0 | EQ26: 0 | ER26: 0 | ES26: 0 | ET26: 0 | EU26: 0 | EV26: 0 | EW26: 0 | EX26: 0 | EY26: 0 | EZ26: 0 | FA26: 0 | FB26: 0 | FC26: 0 | FD26: 0 | FE26: 121825282 | FF26: -8.45 | FG26: 12.53923338 | FH26: 13.70836593 | FI26: 13.59253176 | FJ26: 13.2 | FK26: 207029734 | FL26: 0 | FM26: 158177604.8 | FN26: 7012985 | FO26: 2838150 | FP26: 9735952 | FQ26: 0 | FR26: 12675665 | FS26: 14281647 | FT26: 202468372 | FU26: 2252801 | FV26: 1013043471 | FW26: 176341700 | FX26: 250712561 | FY26: 0 | FZ26: 367773 | GA26: 0 | GB26: 8322896 | GC26: 0 | GD26: 0 | GE26: 927022 | GF26: 0 | GG26: 0 | GH26: 118261 | GI26: 208755383 | GJ26: 0 | GK26: 164016995 | GL26: 6559892 | GM26: 2650882 | GN26: 9291961.49 | GO26: 0 | GP26: 11276286 | GQ26: 13916403 | GR26: 201416998 | GS26: 2585875 | GT26: 1162517062 | GU26: 132074522 | GV26: 105668113 | GW26: 0 | GX26: 367858 | GY26: 0 | GZ26: 8121771 | HA26: 0 | HB26: 0 | HC26: 699343.49 | HD26: 0 | HE26: 0 | HF26: 102989 | HG26: 210474647 | HH26: 0 | HI26: 162998301 | HJ26: 6369631 | HK26: 2593530 | HL26: 9273840 | HM26: 0 | HN26: 10691660 | HO26: 13655047 | HP26: 198507881 | HQ26: 2205890 | HR26: 1262150711 | HS26: 123634563 | HT26: 54620562 | HU26: 0 | HV26: 367945 | HW26: 0 | HX26: 8016833 | HY26: 0 | HZ26: 0 | IA26: 787103 | IB26: 0 | IC26: 0 | ID26: 101959
A27: Ver.05.00 | B27: 240001 | C27: 三重県 | D27: - | E27: 1 | F27: - | G27: - | H27: 11.6 | I27: 164.5 | J27: 450753939 | K27: 9096141 | L27: 一般会計 | M27: 11171861 | N27: 県債管理特別会計 | O27: 0 | P27: 総合医療センター資金貸付特別会計 | Q27: 0 | R27: 母子及び父子並びに寡婦福祉資金貸付事業特別会計 | S27: 0 | T27: 子ども心身発達医療センター事業特別会計 | U27: 6896 | V27: 就農施設等資金貸付事業等特別会計 | W27: 0 | X27: 林業改善資金貸付事業特別会計 | Y27: 0 | Z27: 沿岸漁業改善資金貸付事業特別会計 | AA27: 0 | AB27: 中小企業者等支援資金貸付事業等特別会計 | AC27: 0 | AR27: 11178757 | AS27: -2.48 | AT27: 0 | AU27: 国民健康保険事業特別会計 | AV27: 2376803 | AW27: 0 | AZ27: 0 | BC27: 0 | BF27: 0 | BI27: 0 | BL27: 0 | BO27: 0 | BR27: 0 | BU27: 0 | BX27: 0 | CA27: 0 | CD27: 0 | CG27: 水道事業会計 | CH27: 9766633 | CI27: 工業用水道事業会計 | CJ27: 7180881 | CK27: 病院事業会計 | CL27: 1782926.473 | CM27: 流域下水道事業会計 | CN27: 712603 | CO27: 0 | CP27: 0 | CQ27: 0 | CR27: 0 | CS27: 0 | CT27: 0 | CU27: 0 | CV27: 0 | CW27: 0 | CX27: 0 | CY27: 0 | CZ27: 0 | DA27: 0 | DB27: 0 | DC27: 0 | DD27: 0 | DE27: 0 | DF27: 0 | DG27: 0 | DH27: 0 | DI27: 0 | DJ27: 0 | DK27: 0 | DL27: 0 | DM27: 0 | DN27: 0 | DO27: 0 | DP27: 0 | DQ27: 0 | DR27: 0 | DS27: 地方卸売市場事業特別会計 | DT27: 28721 | DU27: 港湾整備事業特別会計 | DV27: 2821 | DW27: 0 | DX27: 0 | DY27: 0 | DZ27: 0 | EA27: 0 | EB27: 0 | EC27: 0 | ED27: 0 | EE27: 0 | EF27: 0 | EG27: 0 | EH27: 0 | EI27: 0 | EJ27: 0 | EK27: 0 | EL27: 0 | EM27: 0 | EN27: 0 | EO27: 0 | EP27: 0 | EQ27: 0 | ER27: 0 | ES27: 0 | ET27: 0 | EU27: 0 | EV27: 0 | EW27: 0 | EX27: 0 | EY27: 0 | EZ27: 0 | FA27: 0 | FB27: 0 | FC27: 0 | FD27: 0 | FE27: 33030145.47 | FF27: -7.32 | FG27: 11.61547059 | FH27: 12.47781476 | FI27: 10.94020323 | FJ27: 11.6 | FK27: 107223909 | FL27: 678790 | FM27: 7353333 | FN27: 3070420 | FO27: 1004004 | FP27: 638871 | FQ27: 7 | FR27: 1775185 | FS27: 11258367 | FT27: 60549369 | FU27: 1463564 | FV27: 231871708 | FW27: 167363547 | FX27: 60786187 | FY27: 0 | FZ27: 0 | GA27: 0 | GB27: 302324 | GC27: 231957 | GD27: 0 | GE27: 0 | GF27: 0 | GG27: 0 | GH27: 104590 | GI27: 107585535 | GJ27: 0 | GK27: 8190000 | GL27: 3201204 | GM27: 1004405 | GN27: 550377 | GO27: 0 | GP27: 2031420 | GQ27: 11297469 | GR27: 59172442 | GS27: 1450723 | GT27: 266158210 | GU27: 161346184 | GV27: 17714513 | GW27: 0 | GX27: 0 | GY27: 0 | GZ27: 194039 | HA27: 243852 | HB27: 0 | HC27: 0 | HD27: 0 | HE27: 0 | HF27: 112486 | HG27: 102146345 | HH27: 0 | HI27: 9093333 | HJ27: 2542962 | HK27: 951407 | HL27: 434058 | HM27: 0 | HN27: 2100361 | HO27: 11199331 | HP27: 59032426 | HQ27: 1354244 | HR27: 276822580 | HS27: 164835218 | HT27: 9096141 | HU27: 0 | HV27: 0 | HW27: 0 | HX27: 60900 | HY27: 248788 | HZ27: 0 | IA27: 0 | IB27: 0 | IC27: 0 | ID27: 124370
A28: Ver.05.00 | B28: 250007 | C28: 滋賀県 | D28: - | E28: 1 | F28: - | G28: - | H28: 11.3 | I28: 183.3 | J28: 352918448 | K28: 5361199 | L28: 一般会計 | M28: 921300 | N28: 市町振興資金貸付事業特別会計 | O28: 149971 | P28: 母子父子寡婦福祉資金貸付事業特別会計 | Q28: 0 | R28: 中小企業支援資金貸付事業特別会計 | S28: 0 | T28: 林業・木材産業改善資金貸付事業特別会計 | U28: 0 | V28: 沿岸漁業改善資金貸付事業特別会計 | W28: 0 | X28: 公債管理特別会計 | Y28: 0 | Z28: 土地取得事業特別会計 | AA28: 0 | AB28: 用品調達事業特別会計 | AC28: 18752 | AD28: 収入証紙特別会計 | AE28: 802 | AR28: 1090825 | AS28: -0.3 | AT28: ① | AU28: 国民健康保険事業特別会計 | AV28: 1854049 | AW28: 0 | AZ28: 0 | BC28: 0 | BF28: 0 | BI28: 0 | BL28: 0 | BO28: 0 | BR28: 0 | BU28: 0 | BX28: 0 | CA28: 0 | CD28: 0 | CG28: モーターボート競走事業会計 | CH28: 9832957 | CI28: 琵琶湖流域下水道事業会計 | CJ28: 2360420 | CK28: 病院事業会計 | CL28: 4650446 | CM28: 工業用水道事業会計 | CN28: 4755495 | CO28: 水道用水供給事業会計 | CP28: 7236219 | CQ28: 0 | CR28: 0 | CS28: 0 | CT28: 0 | CU28: 0 | CV28: 0 | CW28: 0 | CX28: 0 | CY28: 0 | CZ28: 0 | DA28: 0 | DB28: 0 | DC28: 0 | DD28: 0 | DE28: 0 | DF28: 0 | DG28: 0 | DH28: 0 | DI28: 0 | DJ28: 0 | DK28: 0 | DL28: 0 | DM28: 0 | DN28: 0 | DO28: 0 | DP28: 0 | DQ28: 0 | DR28: 0 | DS28: 0 | DT28: 0 | DU28: 0 | DV28: 0 | DW28: 0 | DX28: 0 | DY28: 0 | DZ28: 0 | EA28: 0 | EB28: 0 | EC28: 0 | ED28: 0 | EE28: 0 | EF28: 0 | EG28: 0 | EH28: 0 | EI28: 0 | EJ28: 0 | EK28: 0 | EL28: 0 | EM28: 0 | EN28: 0 | EO28: 0 | EP28: 0 | EQ28: 0 | ER28: 0 | ES28: 0 | ET28: 0 | EU28: 0 | EV28: 0 | EW28: 0 | EX28: 0 | EY28: 0 | EZ28: 0 | FA28: 0 | FB28: 0 | FC28: 0 | FD28: 0 | FE28: 31780411 | FF28: -9 | FG28: 10.69657861 | FH28: 11.78587301 | FI28: 11.46754059 | FJ28: 11.3 | FK28: 73710623 | FL28: 3.333 | FM28: 3333333.333 | FN28: 2933753 | FO28: 212 | FP28: 3108533 | FQ28: 14431 | FR28: 505308 | FS28: 4768510 | FT28: 44706567 | FU28: 600821 | FV28: 167001097 | FW28: 142521366 | FX28: 44572915 | FY28: 0 | FZ28: 91454 | GA28: 0 | GB28: 0 | GC28: 3247 | GD28: 0 | GE28: 0 | GF28: 2668576 | GG28: 345256 | GH28: 0 | GI28: 74968905 | GJ28: 0 | GK28: 3500000 | GL28: 2927457 | GM28: 146 | GN28: 4118392 | GO28: 7748 | GP28: 1488032 | GQ28: 4379617 | GR28: 43900190 | GS28: 641243 | GT28: 197859363 | GU28: 137484416 | GV28: 11506546 | GW28: 0 | GX28: 1078403 | GY28: 0 | GZ28: 0 | HA28: 1372 | HB28: 0 | HC28: 0 | HD28: 2693361 | HE28: 345256 | HF28: 0 | HG28: 73650311 | HH28: 0 | HI28: 3500000 | HJ28: 2934532.445 | HK28: 70 | HL28: 3601593 | HM28: 4944 | HN28: 681639 | HO28: 4320426 | HP28: 42946796 | HQ28: 781534 | HR28: 210603582 | HS28: 136953667 | HT28: 5361199 | HU28: 0 | HV28: 557169 | HW28: 0 | HX28: 0 | HY28: 0 | HZ28: 0 | IA28: 0 | IB28: 2695626 | IC28: 348798 | ID28: 0
A29: Ver.05.00 | B29: 260002 | C29: 京都府 | D29: - | E29: 1 | F29: - | G29: - | H29: 16.8 | I29: 264.6 | J29: 540357771 | K29: 9560830 | L29: 一般会計 | M29: 13183086 | N29: 営林事業特別会計 | O29: 0 | P29: 母子及び父子並びに寡婦福祉資金貸付事業特別会計 | Q29: 0 | R29: 農業改良資金助成事業等特別会計 | S29: 0 | T29: 中小企業経営基盤強化資金助成事業特別会計 | U29: 0 | V29: 公共用地先行取得事業特別会計 | W29: 0 | X29: 公債費特別会計 | Y29: 0 | AR29: 13183086 | AS29: -2.43 | AT29: ⑨ | AU29: 収益事業特別会計 | AV29: 2122322 | AW29: ① | AX29: 国民健康保険事業特別会計 | AY29: 3273022 | AZ29: 0 | BC29: 0 | BF29: 0 | BI29: 0 | BL29: 0 | BO29: 0 | BR29: 0 | BU29: 0 | BX29: 0 | CA29: 0 | CD29: 0 | CG29: 電気事業会計 | CH29: 874014 | CI29: 水道事業会計 | CJ29: 4890556 | CK29: 工業用水道事業会計 | CL29: 715249 | CM29: 病院事業会計 | CN29: 2157877 | CO29: 流域下水道事業会計 | CP29: 0 | CQ29: 0 | CR29: 0 | CS29: 0 | CT29: 0 | CU29: 0 | CV29: 0 | CW29: 0 | CX29: 0 | CY29: 0 | CZ29: 0 | DA29: 0 | DB29: 0 | DC29: 0 | DD29: 0 | DE29: 0 | DF29: 0 | DG29: 0 | DH29: 0 | DI29: 0 | DJ29: 0 | DK29: 0 | DL29: 0 | DM29: 0 | DN29: 0 | DO29: 0 | DP29: 0 | DQ29: 0 | DR29: 0 | DS29: 0 | DT29: 0 | DU29: 0 | DV29: 0 | DW29: 0 | DX29: 0 | DY29: 0 | DZ29: 0 | EA29: 0 | EB29: 0 | EC29: 0 | ED29: 0 | EE29: 0 | EF29: 0 | EG29: 0 | EH29: 0 | EI29: 0 | EJ29: 0 | EK29: 0 | EL29: 0 | EM29: 0 | EN29: 0 | EO29: 0 | EP29: 0 | EQ29: 0 | ER29: 0 | ES29: 0 | ET29: 0 | EU29: 0 | EV29: 0 | EW29: 港湾事業特別会計 | EX29: 0 | EY29: 地域開発事業特別会計 | EZ29: 0 | FA29: 0 | FB29: 0 | FC29: 0 | FD29: 0 | FE29: 27216126 | FF29: -5.03 | FG29: 16.09593862 | FH29: 17.16609232 | FI29: 17.41367965 | FJ29: 16.8 | FK29: 45453139 | FL29: 19114193 | FM29: 85974760 | FN29: 1160499 | FO29: 0 | FP29: 185097 | FQ29: 0 | FR29: 2374167 | FS29: 4976857 | FT29: 68698474 | FU29: 907874 | FV29: 264974084 | FW29: 207043792 | FX29: 68088451 | FY29: 0 | FZ29: 35097 | GA29: 0 | GB29: 150000 | GC29: 0 | GD29: 0 | GE29: 0 | GF29: 0 | GG29: 0 | GH29: 0 | GI29: 47590803 | GJ29: 18974286.08 | GK29: 87372973.72 | GL29: 1601688 | GM29: 0 | GN29: 435686 | GO29: 0 | GP29: 2636045 | GQ29: 4781443 | GR29: 68648545 | GS29: 889440 | GT29: 329859817 | GU29: 187565712 | GV29: 17219769 | GW29: 0 | GX29: 35105 | GY29: 0 | GZ29: 400581 | HA29: 0 | HB29: 0 | HC29: 0 | HD29: 0 | HE29: 0 | HF29: 0 | HG29: 50825408 | HH29: 16973096 | HI29: 86900994 | HJ29: 2158176 | HK29: 0 | HL29: 468131 | HM29: 0 | HN29: 2629110 | HO29: 4980591 | HP29: 67585715 | HQ29: 812098 | HR29: 338488418 | HS29: 192308523 | HT29: 9560830 | HU29: 0 | HV29: 35112 | HW29: 0 | HX29: 433019 | HY29: 0 | HZ29: 0 | IA29: 0 | IB29: 0 | IC29: 0 | ID29: 0
A30: Ver.05.00 | B30: 270008 | C30: 大阪府 | D30: - | E30: 1 | F30: - | G30: - | H30: 10.7 | I30: 118.4 | J30: 1707056365 | K30: 66684204 | L30: 一般会計 | M30: 13291739 | N30: 日本万国博覧会記念公園事業特別会計 | O30: 383891 | P30: 就農支援資金等特別会計 | Q30: 0 | R30: 大阪府営住宅事業特別会計 | S30: 1121387 | T30: 関西国際空港関連事業特別会計 | U30: 0 | V30: 不動産調達特別会計 | W30: 77708 | X30: 市町村施設整備資金特別会計 | Y30: 50262 | Z30: 公債管理特別会計 | AA30: 606510 | AB30: 地方消費税清算特別会計 | AC30: 0 | AD30: 母子父子寡婦福祉資金特別会計 | AE30: 0 | AF30: 中小企業振興資金特別会計 | AG30: 0 | AH30: 沿岸漁業改善資金特別会計 | AI30: 0 | AJ30: 林業改善資金特別会計 | AK30: 0 | AR30: 15531497 | AS30: -0.9 | AT30: ① | AU30: 国民健康保険特別会計 | AV30: 14437973 | AW30: 0 | AZ30: 0 | BC30: 0 | BF30: 0 | BI30: 0 | BL30: 0 | BO30: 0 | BR30: 0 | BU30: 0 | BX30: 0 | CA30: 0 | CD30: 0 | CG30: 大阪府中央卸売市場事業会計 | CH30: 2639992 | CI30: 大阪府流域下水道事業会計 | CJ30: 3967201 | CK30: 大阪府まちづくり促進事業会計 | CL30: 2530830 | CM30: 0 | CN30: 0 | CO30: 0 | CP30: 0 | CQ30: 0 | CR30: 0 | CS30: 0 | CT30: 0 | CU30: 0 | CV30: 0 | CW30: 0 | CX30: 0 | CY30: 0 | CZ30: 0 | DA30: 0 | DB30: 0 | DC30: 0 | DD30: 0 | DE30: 0 | DF30: 0 | DG30: 0 | DH30: 0 | DI30: 0 | DJ30: 0 | DK30: 0 | DL30: 0 | DM30: 0 | DN30: 0 | DO30: 0 | DP30: 0 | DQ30: 0 | DR30: 0 | DS30: 0 | DT30: 0 | DU30: 0 | DV30: 0 | DW30: 0 | DX30: 0 | DY30: 0 | DZ30: 0 | EA30: 0 | EB30: 0 | EC30: 0 | ED30: 0 | EE30: 0 | EF30: 0 | EG30: 0 | EH30: 0 | EI30: 0 | EJ30: 0 | EK30: 0 | EL30: 0 | EM30: 0 | EN30: 0 | EO30: 0 | EP30: 0 | EQ30: 0 | ER30: 0 | ES30: 0 | ET30: 0 | EU30: 0 | EV30: 0 | EW30: 港湾整備事業特別会計 | EX30: 6196677 | EY30: 箕面北部丘陵整備事業特別会計 | EZ30: 0 | FA30: 0 | FB30: 0 | FC30: 0 | FD30: 0 | FE30: 45304170 | FF30: -2.65 | FG30: 10.50641047 | FH30: 11.29848028 | FI30: 10.31615579 | FJ30: 10.7 | FK30: 91566930 | FL30: 35690360 | FM30: 258535198 | FN30: 6769382 | FO30: 2373 | FP30: 3531764 | FQ30: 0 | FR30: 29991258 | FS30: 10361245 | FT30: 198009947 | FU30: 3382264 | FV30: 1008773375 | FW30: 379144244 | FX30: 292951226 | FY30: 0 | FZ30: 562207 | GA30: 0 | GB30: 390558 | GC30: 0 | GD30: 0 | GE30: 0 | GF30: 0 | GG30: 2536126 | GH30: 42873 | GI30: 91084813 | GJ30: 31044352 | GK30: 269309117 | GL30: 7310092 | GM30: 2537 | GN30: 4275266 | GO30: 0 | GP30: 30126074 | GQ30: 9299680 | GR30: 196839172 | GS30: 2633635 | GT30: 1242234693 | GU30: 310958509 | GV30: 108231429 | GW30: 0 | GX30: 562462 | GY30: 0 | GZ30: 390558 | HA30: 0 | HB30: 0 | HC30: 0 | HD30: 0 | HE30: 3319131 | HF30: 3115 | HG30: 85841266 | HH30: 25075026 | HI30: 265769430 | HJ30: 12073055 | HK30: 2846 | HL30: 5101932 | HM30: 0 | HN30: 29608549 | HO30: 9095211 | HP30: 198181247 | HQ30: 2518755 | HR30: 1301769324 | HS30: 338602837 | HT30: 66684204 | HU30: 0 | HV30: 543861 | HW30: 0 | HX30: 0 | HY30: 0 | HZ30: 0 | IA30: 0 | IB30: 0 | IC30: 4555430 | ID30: 2641
A31: Ver.05.00 | B31: 280003 | C31: 兵庫県 | D31: - | E31: 1 | F31: - | G31: - | H31: 16.3 | I31: 321.5 | J31: 1121332872 | K31: 25674481 | L31: 一般会計 | M31: 14110995 | N31: 県有環境林等特別会計 | O31: 0 | P31: 県営住宅事業特別会計 | Q31: 39580 | R31: 勤労者総合福祉施設整備事業特別会計 | S31: 0 | T31: 庁用自動車管理特別会計 | U31: 0 | V31: 公債費特別会計 | W31: 0 | X31: 自治振興助成事業特別会計 | Y31: 0 | Z31: 母子父子寡婦福祉資金特別会計 | AA31: 0 | AB31: 小規模企業者等振興資金特別会計 | AC31: 0 | AD31: 農林水産資金特別会計 | AE31: 0 | AF31: 地方消費税清算特別会計 | AG31: 0 | AR31: 14150575 | AS31: -1.26 | AT31: ① | AU31: 国民健康保険事業特別会計 | AV31: 6732816 | AW31: 0 | AZ31: 0 | BC31: 0 | BF31: 0 | BI31: 0 | BL31: 0 | BO31: 0 | BR31: 0 | BU31: 0 | BX31: 0 | CA31: 0 | CD31: 0 | CG31: 水道用水供給事業会計 | CH31: 27695354 | CI31: 工業用水道事業会計 | CJ31: 16342464 | CK31: 水源開発事業課会計 | CL31: 170 | CM31: 企業資産運用会計 | CN31: 4204055 | CO31: 病院事業会計 | CP31: 75885 | CQ31: 流域下水道事業会計 | CR31: 1566774 | CS31: 0 | CT31: 0 | CU31: 0 | CV31: 0 | CW31: 0 | CX31: 0 | CY31: 0 | CZ31: 0 | DA31: 0 | DB31: 0 | DC31: 0 | DD31: 0 | DE31: 0 | DF31: 0 | DG31: 0 | DH31: 0 | DI31: 0 | DJ31: 0 | DK31: 地域整備事業会計 | DL31: 0 | DM31: 地域創生整備事業会計 | DN31: 4141255 | DO31: 0 | DP31: 0 | DQ31: 0 | DR31: 0 | DS31: 港湾整備事業特別会計 | DT31: 96572.079 | DU31: 0 | DV31: 0 | DW31: 0 | DX31: 0 | DY31: 0 | DZ31: 0 | EA31: 0 | EB31: 0 | EC31: 0 | ED31: 0 | EE31: 0 | EF31: 0 | EG31: 0 | EH31: 0 | EI31: 0 | EJ31: 0 | EK31: 0 | EL31: 0 | EM31: 0 | EN31: 0 | EO31: 0 | EP31: 0 | EQ31: 0 | ER31: 0 | ES31: 0 | ET31: 0 | EU31: 0 | EV31: 0 | EW31: 0 | EX31: 0 | EY31: 0 | EZ31: 0 | FA31: 0 | FB31: 0 | FC31: 0 | FD31: 0 | FE31: 75005920.08 | FF31: -6.68 | FG31: 15.50703086 | FH31: 15.95381016 | FI31: 17.50911435 | FJ31: 16.3 | FK31: 174539440 | FL31: 16417096.5 | FM31: 119453408 | FN31: 12223033 | FO31: 7271 | FP31: 102903 | FQ31: 172686 | FR31: 11258577 | FS31: 19448968 | FT31: 139114833 | FU31: 3514498 | FV31: 600402463 | FW31: 371130266 | FX31: 155133587 | FY31: 0 | FZ31: 32068 | GA31: 0 | GB31: 0 | GC31: 0 | GD31: 0 | GE31: 0 | GF31: 0 | GG31: 62249 | GH31: 8586 | GI31: 168338829 | GJ31: 21419217.72 | GK31: 124962861 | GL31: 12492925.92 | GM31: 6848 | GN31: 102017 | GO31: 82487 | GP31: 16428941 | GQ31: 17879680 | GR31: 139232297 | GS31: 3827142 | GT31: 707967674 | GU31: 346064072 | GV31: 47354352 | GW31: 0 | GX31: 31940 | GY31: 0 | GZ31: 0 | HA31: 0 | HB31: 0 | HC31: 0 | HD31: 0 | HE31: 62249 | HF31: 7828 | HG31: 175323996 | HH31: 24932971 | HI31: 129087765 | HJ31: 11895180 | HK31: 6857 | HL31: 450380 | HM31: 37233 | HN31: 13600729 | HO31: 16839682 | HP31: 138752905 | HQ31: 4180456 | HR31: 736223809 | HS31: 359434582 | HT31: 25674481 | HU31: 0 | HV31: 0 | HW31: 0 | HX31: 0 | HY31: 0 | HZ31: 0 | IA31: 380096 | IB31: 0 | IC31: 63202 | ID31: 7082
A32: Ver.05.00 | B32: 290009 | C32: 奈良県 | D32: - | E32: 1 | F32: - | G32: - | H32: 9.3 | I32: 106.1 | J32: 339864651 | K32: 2240109 | L32: 一般会計 | M32: 4871393 | N32: 公立大学法人奈良県立医科大学関係経費特別会計 | O32: 0 | P32: 奈良県自動車駐車場及び奈良県自動車乗降場費特別会計 | Q32: 52289 | R32: 奈良県母子父子寡婦福祉資金貸付金特別会計 | S32: 0 | T32: 奈良県農業改良資金貸付金特別会計 | U32: 0 | V32: 奈良県中小企業振興資金貸付金特別会計 | W32: 0 | X32: 奈良県証紙収入特別会計 | Y32: 193260 | Z32: 奈良県林業改善資金貸付金特別会計 | AA32: 0 | AB32: 奈良県公債管理特別会計 | AC32: 0 | AD32: 奈良県育成奨学金貸付金特別会計 | AE32: 0 | AF32: 地方独立行政法人奈良県立病院機構関係経費特別会計 | AG32: 0 | AR32: 5116942 | AS32: -1.5 | AT32: ⑨ | AU32: 奈良県営競輪事業費特別会計 | AV32: 150677 | AW32: ① | AX32: 奈良県国民健康保険事業費特別会計 | AY32: 498206 | AZ32: 0 | BC32: 0 | BF32: 0 | BI32: 0 | BL32: 0 | BO32: 0 | BR32: 0 | BU32: 0 | BX32: 0 | CA32: 0 | CD32: 0 | CG32: 奈良県水道用水供給事業費特別会計 | CH32: 28553732 | CI32: 奈良県流域下水道事業費特別会計 | CJ32: 2931889 | CK32: 0 | CL32: 0 | CM32: 0 | CN32: 0 | CO32: 0 | CP32: 0 | CQ32: 0 | CR32: 0 | CS32: 0 | CT32: 0 | CU32: 0 | CV32: 0 | CW32: 0 | CX32: 0 | CY32: 0 | CZ32: 0 | DA32: 0 | DB32: 0 | DC32: 0 | DD32: 0 | DE32: 0 | DF32: 0 | DG32: 0 | DH32: 0 | DI32: 0 | DJ32: 0 | DK32: 0 | DL32: 0 | DM32: 0 | DN32: 0 | DO32: 0 | DP32: 0 | DQ32: 0 | DR32: 0 | DS32: 奈良県中央卸売市場事業費特別会計 | DT32: 28431 | DU32: 0 | DV32: 0 | DW32: 0 | DX32: 0 | DY32: 0 | DZ32: 0 | EA32: 0 | EB32: 0 | EC32: 0 | ED32: 0 | EE32: 0 | EF32: 0 | EG32: 0 | EH32: 0 | EI32: 0 | EJ32: 0 | EK32: 0 | EL32: 0 | EM32: 0 | EN32: 0 | EO32: 0 | EP32: 0 | EQ32: 0 | ER32: 0 | ES32: 0 | ET32: 0 | EU32: 0 | EV32: 0 | EW32: 0 | EX32: 0 | EY32: 0 | EZ32: 0 | FA32: 0 | FB32: 0 | FC32: 0 | FD32: 0 | FE32: 37279877 | FF32: -10.96 | FG32: 10.05923722 | FH32: 9.667692705 | FI32: 8.357863676 | FJ32: 9.3 | FK32: 67010541 | FL32: 3196741.855 | FM32: 6840000 | FN32: 326937 | FO32: 161536 | FP32: 3339415 | FQ32: 0 | FR32: 963568 | FS32: 6105070 | FT32: 41679423 | FU32: 2505419 | FV32: 132127489 | FW32: 180082696 | FX32: 32552262 | FY32: 0 | FZ32: 29146 | GA32: 0 | GB32: 252934 | GC32: 0 | GD32: 0 | GE32: 0 | GF32: 0 | GG32: 0 | GH32: 3057335 | GI32: 66485388 | GJ32: 2412189 | GK32: 7090000 | GL32: 429152 | GM32: 82738 | GN32: 1760110 | GO32: 0 | GP32: 1345875 | GQ32: 5471824.351 | GR32: 41075151 | GS32: 2584770 | GT32: 153196790 | GU32: 177706541 | GV32: 5597464 | GW32: 0 | GX32: 29602 | GY32: 0 | GZ32: 662340 | HA32: 0 | HB32: 0 | HC32: 0 | HD32: 0 | HE32: 0 | HF32: 1068168 | HG32: 62942297 | HH32: 2095165 | HI32: 7337823.333 | HJ32: 470110 | HK32: 73548 | HL32: 291985 | HM32: 0 | HN32: 721772 | HO32: 5084762 | HP32: 40370010 | HQ32: 2649445 | HR32: 157293760 | HS32: 180330782 | HT32: 2240109 | HU32: 0 | HV32: 30065 | HW32: 0 | HX32: 119517 | HY32: 0 | HZ32: 0 | IA32: 0 | IB32: 0 | IC32: 0 | ID32: 142403
A33: Ver.05.00 | B33: 300004 | C33: 和歌山県 | D33: - | E33: 1 | F33: - | G33: - | H33: 9.5 | I33: 202 | J33: 306373803 | K33: 1759641 | L33: 一般会計 | M33: 18504677 | N33: 農林水産振興資金特別会計 | O33: 0 | P33: 中小企業振興資金特別会計 | Q33: 0 | R33: 母子父子寡婦福祉資金特別会計 | S33: 0 | T33: 修学奨励金特別会計 | U33: 0 | V33: 職員住宅特別会計 | W33: 24118 | X33: 市町村振興資金特別会計 | Y33: 0 | Z33: 自動車税証紙特別会計 | AA33: 0 | AB33: 用地取得事業特別会計 | AC33: 0 | AD33: 公債管理特別会計 | AE33: 0 | AR33: 18528795 | AS33: -6.04 | AT33: ⑨ | AU33: 県営競輪事業特別会計 | AV33: 951087 | AW33: ① | AX33: 国民健康保険特別会計 | AY33: 5021117 | AZ33: 0 | BC33: 0 | BF33: 0 | BI33: 0 | BL33: 0 | BO33: 0 | BR33: 0 | BU33: 0 | BX33: 0 | CA33: 0 | CD33: 0 | CG33: 工業用水道事業会計 | CH33: 3546317 | CI33: 流域下水道事業会計 | CJ33: 107472 | CK33: 県立こころの医療センター事業会計 | CL33: 137815 | CM33: 0 | CN33: 0 | CO33: 0 | CP33: 0 | CQ33: 0 | CR33: 0 | CS33: 0 | CT33: 0 | CU33: 0 | CV33: 0 | CW33: 0 | CX33: 0 | CY33: 0 | CZ33: 0 | DA33: 0 | DB33: 0 | DC33: 0 | DD33: 0 | DE33: 0 | DF33: 0 | DG33: 0 | DH33: 0 | DI33: 0 | DJ33: 0 | DK33: 土地造成事業会計 | DL33: 0 | DM33: 0 | DN33: 0 | DO33: 0 | DP33: 0 | DQ33: 0 | DR33: 0 | DS33: 県営港湾施設管理特別会計 | DT33: 58591 | DU33: 0 | DV33: 0 | DW33: 0 | DX33: 0 | DY33: 0 | DZ33: 0 | EA33: 0 | EB33: 0 | EC33: 0 | ED33: 0 | EE33: 0 | EF33: 0 | EG33: 0 | EH33: 0 | EI33: 0 | EJ33: 0 | EK33: 0 | EL33: 0 | EM33: 0 | EN33: 0 | EO33: 0 | EP33: 0 | EQ33: 0 | ER33: 0 | ES33: 0 | ET33: 0 | EU33: 0 | EV33: 0 | EW33: 0 | EX33: 0 | EY33: 0 | EZ33: 0 | FA33: 0 | FB33: 0 | FC33: 0 | FD33: 0 | FE33: 28351194 | FF33: -9.25 | FG33: 7.843142813 | FH33: 9.683422981 | FI33: 11.00533185 | FJ33: 9.5 | FK33: 73044306 | FL33: 0 | FM33: 333333 | FN33: 994985 | FO33: 0 | FP33: 137816 | FQ33: 74 | FR33: 4461884 | FS33: 5872709 | FT33: 42208106 | FU33: 1214529 | FV33: 95280896 | FW33: 193530654 | FX33: 25088003 | FY33: 0 | FZ33: 0 | GA33: 0 | GB33: 0 | GC33: 0 | GD33: 0 | GE33: 0 | GF33: 0 | GG33: 110687 | GH33: 27129 | GI33: 74283205 | GJ33: 0 | GK33: 666666.6667 | GL33: 977941 | GM33: 0 | GN33: 136497 | GO33: 50 | GP33: 3059263 | GQ33: 5737914 | GR33: 41094699 | GS33: 1237192 | GT33: 111765444 | GU33: 189435916 | GV33: 4373376 | GW33: 0 | GX33: 0 | GY33: 0 | GZ33: 0 | HA33: 0 | HB33: 0 | HC33: 0 | HD33: 0 | HE33: 108742 | HF33: 27755 | HG33: 75125512 | HH33: 0 | HI33: 1000000 | HJ33: 938560 | HK33: 0 | HL33: 731914 | HM33: 516 | HN33: 2392512 | HO33: 5620785 | HP33: 39823111 | HQ33: 1397715 | HR33: 115827728 | HS33: 188786434 | HT33: 1759641 | HU33: 0 | HV33: 0 | HW33: 0 | HX33: 0 | HY33: 0 | HZ33: 0 | IA33: 0 | IB33: 0 | IC33: 705279 | ID33: 26635
A34: Ver.05.00 | B34: 310000 | C34: 鳥取県 | D34: - | E34: 1 | F34: - | G34: - | H34: 9.3 | I34: 131.4 | J34: 218367059 | K34: 1108383 | L34: 一般会計 | M34: 9328933 | N34: 鳥取県用品調達等集中管理事業特別会計 | O34: 47133 | P34: 鳥取県収入証紙特別会計 | Q34: 0 | R34: 鳥取県公債管理特別会計 | S34: 0 | T34: 鳥取県給与集中管理特別会計 | U34: 8986 | V34: 鳥取県母子父子寡婦福祉資金貸付事業特別会計 | W34: 0 | X34: 鳥取県中小企業近代化資金助成事業特別会計 | Y34: 0 | Z34: 鳥取県沿岸漁業改善資金助成事業特別会計 | AA34: 0 | AB34: 鳥取県県営林事業特別会計 | AC34: 3582 | AD34: 鳥取県林業・木材産業改善資金助成事業特別会計 | AE34: 0 | AF34: 鳥取県就農支援資金貸付事業特別会計 | AG34: 0 | AH34: 鳥取県県立学校農業実習特別会計 | AI34: 15512 | AJ34: 鳥取県育英奨学事業特別会計 | AK34: 0 | AR34: 9404146 | AS34: -4.3 | AT34: ① | AU34: 鳥取県国民健康保険運営事業特別会計 | AV34: 1585154 | AW34: 0 | AZ34: 0 | BC34: 0 | BF34: 0 | BI34: 0 | BL34: 0 | BO34: 0 | BR34: 0 | BU34: 0 | BX34: 0 | CA34: 0 | CD34: 0 | CG34: 鳥取県営電気事業会計 | CH34: 3634916 | CI34: 鳥取県営工業用水道事業会計 | CJ34: 241450 | CK34: 鳥取県営病院事業会計 | CL34: 12084954 | CM34: 鳥取県天神川流域下水道事業会計 | CN34: 415467 | CO34: 0 | CP34: 0 | CQ34: 0 | CR34: 0 | CS34: 0 | CT34: 0 | CU34: 0 | CV34: 0 | CW34: 0 | CX34: 0 | CY34: 0 | CZ34: 0 | DA34: 0 | DB34: 0 | DC34: 0 | DD34: 0 | DE34: 0 | DF34: 0 | DG34: 0 | DH34: 0 | DI34: 0 | DJ34: 0 | DK34: 鳥取県営埋立事業会計 | DL34: 2215531 | DM34: 0 | DN34: 0 | DO34: 0 | DP34: 0 | DQ34: 0 | DR34: 0 | DS34: 鳥取県県営境港水産施設事業特別会計 | DT34: 391 | DU34: 0 | DV34: 0 | DW34: 0 | DX34: 0 | DY34: 0 | DZ34: 0 | EA34: 0 | EB34: 0 | EC34: 0 | ED34: 0 | EE34: 0 | EF34: 0 | EG34: 0 | EH34: 0 | EI34: 0 | EJ34: 0 | EK34: 0 | EL34: 0 | EM34: 0 | EN34: 0 | EO34: 0 | EP34: 0 | EQ34: 0 | ER34: 0 | ES34: 0 | ET34: 0 | EU34: 0 | EV34: 0 | EW34: 鳥取県港湾整備事業特別会計 | EX34: 0 | EY34: 0 | EZ34: 0 | FA34: 0 | FB34: 0 | FC34: 0 | FD34: 0 | FE34: 29582009 | FF34: -13.54 | FG34: 9.401344529 | FH34: 8.874724959 | FI34: 9.902485837 | FJ34: 9.3 | FK34: 52703235 | FL34: 0 | FM34: 515752 | FN34: 1210194 | FO34: 978230 | FP34: 110234 | FQ34: 9669 | FR34: 175704 | FS34: 4903977 | FT34: 32426572 | FU34: 423703 | FV34: 59064721 | FW34: 148945237 | FX34: 16923457 | FY34: 0 | FZ34: 0 | GA34: 0 | GB34: 46018 | GC34: 0 | GD34: 4379 | GE34: 0 | GF34: 0 | GG34: 0 | GH34: 59837 | GI34: 50252719 | GJ34: 0 | GK34: 805619 | GL34: 1303968 | GM34: 991943 | GN34: 104051 | GO34: 3206 | GP34: 240563 | GQ34: 5036823 | GR34: 31556313 | GS34: 527728 | GT34: 69672928 | GU34: 145776562 | GV34: 3086337 | GW34: 0 | GX34: 0 | GY34: 0 | GZ34: 37875 | HA34: 0 | HB34: 2497 | HC34: 0 | HD34: 0 | HE34: 0 | HF34: 63679 | HG34: 50630667 | HH34: 0 | HI34: 1087419 | HJ34: 1216949.168 | HK34: 899140 | HL34: 403482 | HM34: 12731 | HN34: 262402 | HO34: 4964977 | HP34: 30317151 | HQ34: 639195 | HR34: 70630269 | HS34: 146628407 | HT34: 1108383 | HU34: 0 | HV34: 307859 | HW34: 0 | HX34: 30150 | HY34: 0 | HZ34: 1221 | IA34: 0 | IB34: 0 | IC34: 0 | ID34: 64252
A35: Ver.05.00 | B35: 320005 | C35: 島根県 | D35: - | E35: 1 | F35: - | G35: - | H35: 6.5 | I35: 161.8 | J35: 276422240 | K35: 1298820 | L35: 一般会計 | M35: 17310598 | N35: 公債管理特別会計 | O35: 0 | P35: 総務事務集中処理特別会計 | Q35: 0 | R35: 証紙特別会計 | S35: 114423 | T35: 市町村振興資金特別会計 | U35: 0 | V35: 農林漁業改善資金特別会計 | W35: 0 | X35: 島根あさひ社会復帰促進センター診療所特別会計 | Y35: 69053 | Z35: 母子父子寡婦福祉資金特別会計 | AA35: 0 | AB35: 中小企業近代化資金特別会計 | AC35: 0 | AD35: 中小企業制度融資等特別会計 | AE35: 0 | AF35: 県営住宅特別会計 | AG35: 25509 | AR35: 17519583 | AS35: -6.33 | AT35: ① | AU35: 国民健康保険特別会計 | AV35: 533095 | AW35: 0 | AZ35: 0 | BC35: 0 | BF35: 0 | BI35: 0 | BL35: 0 | BO35: 0 | BR35: 0 | BU35: 0 | BX35: 0 | CA35: 0 | CD35: 0 | CG35: 島根県電気事業会計 | CH35: 3685791 | CI35: 島根県工業用水道事業会計 | CJ35: 424835 | CK35: 島根県水道事業会計 | CL35: 1276595 | CM35: 島根県病院事業会計 | CN35: 2908546 | CO35: 島根県流域下水道事業会計 | CP35: 268689 | CQ35: 0 | CR35: 0 | CS35: 0 | CT35: 0 | CU35: 0 | CV35: 0 | CW35: 0 | CX35: 0 | CY35: 0 | CZ35: 0 | DA35: 0 | DB35: 0 | DC35: 0 | DD35: 0 | DE35: 0 | DF35: 0 | DG35: 0 | DH35: 0 | DI35: 0 | DJ35: 0 | DK35: 島根県宅地造成事業会計 | DL35: 0 | DM35: 0 | DN35: 0 | DO35: 0 | DP35: 0 | DQ35: 0 | DR35: 0 | DS35: 島根県立中海水中貯木場特別会計 | DT35: 0 | DU35: 0 | DV35: 0 | DW35: 0 | DX35: 0 | DY35: 0 | DZ35: 0 | EA35: 0 | EB35: 0 | EC35: 0 | ED35: 0 | EE35: 0 | EF35: 0 | EG35: 0 | EH35: 0 | EI35: 0 | EJ35: 0 | EK35: 0 | EL35: 0 | EM35: 0 | EN35: 0 | EO35: 0 | EP35: 0 | EQ35: 0 | ER35: 0 | ES35: 0 | ET35: 0 | EU35: 0 | EV35: 0 | EW35: 島根県臨港地域整備特別会計 | EX35: 1285007 | EY35: 0 | EZ35: 0 | FA35: 0 | FB35: 0 | FC35: 0 | FD35: 0 | FE35: 27902141 | FF35: -10.09 | FG35: 5.886267815 | FH35: 8.316917323 | FI35: 5.380114658 | FJ35: 6.5 | FK35: 58116678 | FL35: 0 | FM35: 9276882 | FN35: 2386350 | FO35: 327592 | FP35: 606723 | FQ35: 0 | FR35: 1190071 | FS35: 12560147 | FT35: 42020585 | FU35: 1212510 | FV35: 71251783 | FW35: 196353831 | FX35: 21457884 | FY35: 0 | FZ35: 77104 | GA35: 0 | GB35: 188028 | GC35: 0 | GD35: 190050 | GE35: 0 | GF35: 0 | GG35: 48183 | GH35: 103358 | GI35: 59180498 | GJ35: 0 | GK35: 9377662 | GL35: 2444453 | GM35: 287399 | GN35: 473020 | GO35: 0 | GP35: 884317 | GQ35: 10934563 | GR35: 39927580 | GS35: 1229973 | GT35: 84212494 | GU35: 189892672 | GV35: 3871112 | GW35: 0 | GX35: 57828 | GY35: 0 | GZ35: 158316 | HA35: 0 | HB35: 158788 | HC35: 0 | HD35: 0 | HE35: 495 | HF35: 97593 | HG35: 49900968 | HH35: 0 | HI35: 9512095 | HJ35: 2409435 | HK35: 203895 | HL35: 363728 | HM35: 0 | HN35: 1003977 | HO35: 9485965 | HP35: 38424869 | HQ35: 1248294 | HR35: 86529629 | HS35: 188593791 | HT35: 1298820 | HU35: 0 | HV35: 0 | HW35: 0 | HX35: 152119 | HY35: 0 | HZ35: 142807 | IA35: 0 | IB35: 0 | IC35: 550 | ID35: 68252
A36: Ver.05.00 | B36: 330001 | C36: 岡山県 | D36: - | E36: 1 | F36: - | G36: - | H36: 10.9 | I36: 164.6 | J36: 432540929 | K36: 5950116 | L36: 一般会計 | M36: 1069385 | N36: 岡山県公共用地等取得事業特別会計 | O36: 1034066 | P36: 岡山県収入証紙等特別会計 | Q36: 67407 | R36: 岡山県公債管理特別会計 | S36: 0 | T36: 母子父子寡婦福祉資金貸付金 | U36: 0 | V36: 中小企業支援資金貸付金特別会計 | W36: 0 | X36: 岡山県造林事業等特別会計 | Y36: 22934 | Z36: 岡山県林業改善資金貸付金特別会計 | AA36: 0 | AB36: 岡山県沿岸漁業改善資金貸付金特別会計 | AC36: 0 | AD36: 岡山県後楽園特別会計 | AE36: 9133 | AF36: 岡山県用品調達特別会計 | AG36: 10697 | AR36: 2213622 | AS36: -0.51 | AT36: ① | AU36: 国民健康保険事業特別会計 | AV36: 6317229 | AW36: 0 | AZ36: 0 | BC36: 0 | BF36: 0 | BI36: 0 | BL36: 0 | BO36: 0 | BR36: 0 | BU36: 0 | BX36: 0 | CA36: 0 | CD36: 0 | CG36: 岡山県営電気事業会計 | CH36: 9223287 | CI36: 岡山県営工業用水道事業会計 | CJ36: 9048232 | CK36: 岡山県流域下水道事業会計 | CL36: 2849818 | CM36: 0 | CN36: 0 | CO36: 0 | CP36: 0 | CQ36: 0 | CR36: 0 | CS36: 0 | CT36: 0 | CU36: 0 | CV36: 0 | CW36: 0 | CX36: 0 | CY36: 0 | CZ36: 0 | DA36: 0 | DB36: 0 | DC36: 0 | DD36: 0 | DE36: 0 | DF36: 0 | DG36: 0 | DH36: 0 | DI36: 0 | DJ36: 0 | DK36: 0 | DL36: 0 | DM36: 0 | DN36: 0 | DO36: 0 | DP36: 0 | DQ36: 0 | DR36: 0 | DS36: 岡山県営食肉地方卸売市場特別会計 | DT36: 8155 | DU36: 0 | DV36: 0 | DW36: 0 | DX36: 0 | DY36: 0 | DZ36: 0 | EA36: 0 | EB36: 0 | EC36: 0 | ED36: 0 | EE36: 0 | EF36: 0 | EG36: 0 | EH36: 0 | EI36: 0 | EJ36: 0 | EK36: 0 | EL36: 0 | EM36: 0 | EN36: 0 | EO36: 0 | EP36: 0 | EQ36: 0 | ER36: 0 | ES36: 0 | ET36: 0 | EU36: 0 | EV36: 0 | EW36: 岡山県内陸工業団地及び流通業務団地造成事業特別会計 | EX36: 0 | EY36: 岡山県港湾整備事業特別会計 | EZ36: 0 | FA36: 0 | FB36: 0 | FC36: 0 | FD36: 0 | FE36: 29660343 | FF36: -6.85 | FG36: 10.75324822 | FH36: 11.15284593 | FI36: 11.03109397 | FJ36: 10.9 | FK36: 89803950 | FL36: 0 | FM36: 10166666.67 | FN36: 689332 | FO36: 0 | FP36: 786542 | FQ36: 0 | FR36: 1569077 | FS36: 6537437 | FT36: 52264079 | FU36: 341076 | FV36: 200196269 | FW36: 188888501 | FX36: 48871933 | FY36: 0 | FZ36: 133627 | GA36: 0 | GB36: 0 | GC36: 336973 | GD36: 0 | GE36: 31335 | GF36: 0 | GG36: 259802 | GH36: 24805 | GI36: 88052853 | GJ36: 0 | GK36: 10000000 | GL36: 448368 | GM36: 0 | GN36: 716702 | GO36: 0 | GP36: 903281 | GQ36: 5851998 | GR36: 50729660 | GS36: 261607 | GT36: 242750311 | GU36: 174142107 | GV36: 11796538 | GW36: 0 | GX36: 134028 | GY36: 0 | GZ36: 0 | HA36: 322888 | HB36: 0 | HC36: 16753 | HD36: 0 | HE36: 221322 | HF36: 21711 | HG36: 87532928 | HH36: 0 | HI36: 9666667 | HJ36: 408974 | HK36: 0 | HL36: 712022 | HM36: 0 | HN36: 1031880 | HO36: 5584075 | HP36: 49934167 | HQ36: 203152 | HR36: 250654156 | HS36: 175936657 | HT36: 5950116 | HU36: 0 | HV36: 134619 | HW36: 0 | HX36: 0 | HY36: 376248 | HZ36: 0 | IA36: 31656 | IB36: 0 | IC36: 129048 | ID36: 40451
A37: Ver.05.00 | B37: 340006 | C37: 広島県 | D37: - | E37: 1 | F37: - | G37: - | H37: 14.4 | I37: 195.3 | J37: 588217627 | K37: 11820549 | L37: 一般会計 | M37: 4908014 | N37: 証紙等特別会計 | O37: 43122 | P37: 管理事務費特別会計 | Q37: 10045 | R37: 公共用地等取得事業特別会計 | S37: 0 | T37: 母子・父子・寡婦福祉資金特別会計 | U37: 0 | V37: 中小企業支援資金特別会計 | W37: 0 | X37: 水産振興資金特別会計 | Y37: 0 | Z37: 県営林事業費特別会計 | AA37: 0 | AB37: 県営住宅事業費特別会計 | AC37: 506181 | AD37: 高等学校等奨学金特別会計 | AE37: 0 | AF37: 公債管理特別会計 | AG37: 0 | AR37: 5467362 | AS37: -0.92 | AT37: ① | AU37: 国民健康保険事業費特別会計 | AV37: 2633235 | AW37: 0 | AZ37: 0 | BC37: 0 | BF37: 0 | BI37: 0 | BL37: 0 | BO37: 0 | BR37: 0 | BU37: 0 | BX37: 0 | CA37: 0 | CD37: 0 | CG37: 病院事業会計 | CH37: 2288589 | CI37: 流域下水道事業会計 | CJ37: 1116303 | CK37: 0 | CL37: 0 | CM37: 0 | CN37: 0 | CO37: 0 | CP37: 0 | CQ37: 0 | CR37: 0 | CS37: 0 | CT37: 0 | CU37: 0 | CV37: 0 | CW37: 0 | CX37: 0 | CY37: 0 | CZ37: 0 | DA37: 0 | DB37: 0 | DC37: 0 | DD37: 0 | DE37: 0 | DF37: 0 | DG37: 0 | DH37: 0 | DI37: 0 | DJ37: 0 | DK37: 土地造成事業会計 | DL37: 0 | DM37: 0 | DN37: 0 | DO37: 0 | DP37: 0 | DQ37: 0 | DR37: 0 | DS37: 0 | DT37: 0 | DU37: 0 | DV37: 0 | DW37: 0 | DX37: 0 | DY37: 0 | DZ37: 0 | EA37: 0 | EB37: 0 | EC37: 0 | ED37: 0 | EE37: 0 | EF37: 0 | EG37: 0 | EH37: 0 | EI37: 0 | EJ37: 0 | EK37: 0 | EL37: 0 | EM37: 0 | EN37: 0 | EO37: 0 | EP37: 0 | EQ37: 0 | ER37: 0 | ES37: 0 | ET37: 0 | EU37: 0 | EV37: 0 | EW37: 港湾特別整備事業費特別会計 | EX37: 0 | EY37: 0 | EZ37: 0 | FA37: 0 | FB37: 0 | FC37: 0 | FD37: 0 | FE37: 11505489 | FF37: -1.95 | FG37: 13.98508757 | FH37: 14.65088391 | FI37: 14.83314011 | FJ37: 14.4 | FK37: 83181859 | FL37: 3054794 | FM37: 71753759 | FN37: 2737463 | FO37: 0 | FP37: 203589 | FQ37: 0 | FR37: 4672655 | FS37: 10285600 | FT37: 73828828 | FU37: 1200115 | FV37: 305114682 | FW37: 210884256 | FX37: 76600709 | FY37: 0 | FZ37: 17561 | GA37: 0 | GB37: 0 | GC37: 0 | GD37: 0 | GE37: 0 | GF37: 0 | GG37: 135667 | GH37: 50361 | GI37: 83714035 | GJ37: 2787275 | GK37: 73914391 | GL37: 2297117 | GM37: 0 | GN37: 239707 | GO37: 0 | GP37: 5788227 | GQ37: 11372707 | GR37: 72162426 | GS37: 1168036 | GT37: 360220426 | GU37: 195856738 | GV37: 23211379 | GW37: 0 | GX37: 17912 | GY37: 0 | GZ37: 0 | HA37: 0 | HB37: 0 | HC37: 0 | HD37: 0 | HE37: 171968 | HF37: 49827 | HG37: 80731687 | HH37: 3066783 | HI37: 75641871 | HJ37: 1991059 | HK37: 5223 | HL37: 272158 | HM37: 0 | HN37: 3669568 | HO37: 9530607 | HP37: 72452431 | HQ37: 1133879 | HR37: 380178348 | HS37: 196218730 | HT37: 11820549 | HU37: 0 | HV37: 18112 | HW37: 0 | HX37: 0 | HY37: 0 | HZ37: 0 | IA37: 0 | IB37: 0 | IC37: 205854 | ID37: 48192
A38: Ver.05.00 | B38: 350001 | C38: 山口県 | D38: - | E38: 1 | F38: - | G38: - | H38: 8.8 | I38: 170.6 | J38: 377054808 | K38: 2813572 | L38: 一般会計 | M38: 23572686 | N38: 母子父子寡婦福祉資金特別会計 | O38: 0 | P38: 就農支援資金特別会計 | Q38: 0 | R38: 中小企業近代化資金特別会計 | S38: 0 | T38: 林業・木材産業改善資金特別会計 | U38: 0 | V38: 沿岸漁業改善資金特別会計 | W38: 0 | X38: 収入証紙特別会計 | Y38: 189036 | Z38: 土地取得事業特別会計 | AA38: 0 | AB38: 公債管理特別会計 | AC38: 0 | AD38: 地方独立行政法人山口県立病院機構特別会計 | AE38: 0 | AR38: 23761722 | AS38: -6.3 | AT38: ⑨ | AU38: 当せん金付証票発売事業 | AV38: 344891 | AW38: ① | AX38: 国民健康保険特別会計 | AY38: 4852429 | AZ38: 0 | BC38: 0 | BF38: 0 | BI38: 0 | BL38: 0 | BO38: 0 | BR38: 0 | BU38: 0 | BX38: 0 | CA38: 0 | CD38: 0 | CG38: 工業用水道事業会計 | CH38: 10249304 | CI38: 電気事業会計 | CJ38: 5356678 | CK38: 流域下水道事業会計 | CL38: 32023 | CM38: 0 | CN38: 0 | CO38: 0 | CP38: 0 | CQ38: 0 | CR38: 0 | CS38: 0 | CT38: 0 | CU38: 0 | CV38: 0 | CW38: 0 | CX38: 0 | CY38: 0 | CZ38: 0 | DA38: 0 | DB38: 0 | DC38: 0 | DD38: 0 | DE38: 0 | DF38: 0 | DG38: 0 | DH38: 0 | DI38: 0 | DJ38: 0 | DK38: 0 | DL38: 0 | DM38: 0 | DN38: 0 | DO38: 0 | DP38: 0 | DQ38: 0 | DR38: 0 | DS38: 港湾整備事業特別会計 | DT38: 882548 | DU38: 0 | DV38: 0 | DW38: 0 | DX38: 0 | DY38: 0 | DZ38: 0 | EA38: 0 | EB38: 0 | EC38: 0 | ED38: 0 | EE38: 0 | EF38: 0 | EG38: 0 | EH38: 0 | EI38: 0 | EJ38: 0 | EK38: 0 | EL38: 0 | EM38: 0 | EN38: 0 | EO38: 0 | EP38: 0 | EQ38: 0 | ER38: 0 | ES38: 0 | ET38: 0 | EU38: 0 | EV38: 0 | EW38: 下関漁港地方卸売市場特別会計 | EX38: 14276 | EY38: 産業団地整備事業特別会計 | EZ38: 0 | FA38: 0 | FB38: 0 | FC38: 0 | FD38: 0 | FE38: 45493871 | FF38: -12.06 | FG38: 8.06685362 | FH38: 9.115449265 | FI38: 9.458875166 | FJ38: 8.8 | FK38: 88037898 | FL38: 0 | FM38: 0 | FN38: 218614 | FO38: 0 | FP38: 2294257 | FQ38: 2700 | FR38: 6235983 | FS38: 8280414 | FT38: 49220700 | FU38: 205479 | FV38: 154294747 | FW38: 194432905 | FX38: 38858399 | FY38: 0 | FZ38: 4072 | GA38: 0 | GB38: 54268 | GC38: 13887 | GD38: 0 | GE38: 0 | GF38: 0 | GG38: 0 | GH38: 2222030 | GI38: 87685646 | GJ38: 0 | GK38: 0 | GL38: 199601 | GM38: 0 | GN38: 2205819 | GO38: 4 | GP38: 5365488 | GQ38: 7703998 | GR38: 47531716 | GS38: 239965 | GT38: 182885370 | GU38: 186490494 | GV38: 6982551 | GW38: 0 | GX38: 4049 | GY38: 0 | GZ38: 40447 | HA38: 13887 | HB38: 0 | HC38: 0 | HD38: 0 | HE38: 0 | HF38: 2147436 | HG38: 86844539 | HH38: 0 | HI38: 0 | HJ38: 200983 | HK38: 0 | HL38: 1408670 | HM38: 1 | HN38: 4253804 | HO38: 7268631 | HP38: 46075410 | HQ38: 261705 | HR38: 191608367 | HS38: 182632869 | HT38: 2813572 | HU38: 0 | HV38: 4294 | HW38: 0 | HX38: 34959 | HY38: 0 | HZ38: 0 | IA38: 0 | IB38: 0 | IC38: 0 | ID38: 1369417
A39: Ver.05.00 | B39: 360007 | C39: 徳島県 | D39: - | E39: 1 | F39: - | G39: - | H39: 12.3 | I39: 152.2 | J39: 256922987 | K39: 1405161 | L39: 一般会計 | M39: 15009687 | N39: 市町村振興資金貸付金特別会計 | O39: 0 | P39: 母子父子寡婦福祉資金貸付金特別会計 | Q39: 0 | R39: 中小企業近代化資金貸付金特別会計 | S39: 0 | T39: 中小企業・雇用対策事業特別会計 | U39: 0 | V39: 徳島ビル管理事業特別会計 | W39: 0 | X39: 農業改良資金貸付金特別会計 | Y39: 0 | Z39: 林業改善資金貸付金特別会計 | AA39: 0 | AB39: 県有林県行造林事業特別会計 | AC39: 0 | AD39: 沿岸漁業改善資金貸付金特別会計 | AE39: 0 | AF39: 公用地公共用地取得事業特別会計 | AG39: 0 | AH39: 県営住宅敷金等管理特別会計 | AI39: 0 | AJ39: 奨学金貸付金特別会計 | AK39: 0 | AL39: 都市用水水源費負担金特別会計 | AM39: 0 | AN39: 用度事業特別会計 | AO39: 0 | AP39: 外４会計 | AQ39: 0 | AR39: 15009687 | AS39: -5.84 | AT39: ① | AU39: 国民健康保険事業特別会計 | AV39: 1507714 | AW39: 0 | AZ39: 0 | BC39: 0 | BF39: 0 | BI39: 0 | BL39: 0 | BO39: 0 | BR39: 0 | BU39: 0 | BX39: 0 | CA39: 0 | CD39: 0 | CG39: 病院事業会計 | CH39: 6812933 | CI39: 電気事業会計 | CJ39: 14418634 | CK39: 工業用水道事業会計 | CL39: 3119977 | CM39: 駐車場事業会計 | CN39: 805569 | CO39: 流域下水道事業会計 | CP39: 475 | CQ39: 0 | CR39: 0 | CS39: 0 | CT39: 0 | CU39: 0 | CV39: 0 | CW39: 0 | CX39: 0 | CY39: 0 | CZ39: 0 | DA39: 0 | DB39: 0 | DC39: 0 | DD39: 0 | DE39: 0 | DF39: 0 | DG39: 0 | DH39: 0 | DI39: 0 | DJ39: 0 | DK39: 土地造成事業会計 | DL39: 838443 | DM39: 0 | DN39: 0 | DO39: 0 | DP39: 0 | DQ39: 0 | DR39: 0 | DS39: 0 | DT39: 0 | DU39: 0 | DV39: 0 | DW39: 0 | DX39: 0 | DY39: 0 | DZ39: 0 | EA39: 0 | EB39: 0 | EC39: 0 | ED39: 0 | EE39: 0 | EF39: 0 | EG39: 0 | EH39: 0 | EI39: 0 | EJ39: 0 | EK39: 0 | EL39: 0 | EM39: 0 | EN39: 0 | EO39: 0 | EP39: 0 | EQ39: 0 | ER39: 0 | ES39: 0 | ET39: 0 | EU39: 0 | EV39: 0 | EW39: 港湾等整備事業特別会計 | EX39: 76493 | EY39: 0 | EZ39: 0 | FA39: 0 | FB39: 0 | FC39: 0 | FD39: 0 | FE39: 42589925 | FF39: -16.57 | FG39: 11.61901263 | FH39: 12.85066503 | FI39: 12.64460033 | FJ39: 12.3 | FK39: 59470811 | FL39: 0 | FM39: 11330833 | FN39: 1781727 | FO39: 4058 | FP39: 1055083 | FQ39: 35 | FR39: 2819042 | FS39: 5171804 | FT39: 38877507 | FU39: 991026 | FV39: 80291093 | FW39: 166001786 | FX39: 20652441 | FY39: 0 | FZ39: 245812 | GA39: 0 | GB39: 809271 | GC39: 0 | GD39: 0 | GE39: 0 | GF39: 0 | GG39: 0 | GH39: 0 | GI39: 57151540 | GJ39: 0 | GK39: 11710000 | GL39: 1882323 | GM39: 4094 | GN39: 1867696 | GO39: 3 | GP39: 2505079 | GQ39: 4247425 | GR39: 37025253 | GS39: 1050704 | GT39: 96429456 | GU39: 158482034 | GV39: 3643464 | GW39: 0 | GX39: 1230642 | GY39: 0 | GZ39: 637054 | HA39: 0 | HB39: 0 | HC39: 0 | HD39: 0 | HE39: 0 | HF39: 0 | HG39: 55265429 | HH39: 0 | HI39: 11784000 | HJ39: 1859505 | HK39: 4087 | HL39: 866676 | HM39: 0 | HN39: 2023004 | HO39: 3882462 | HP39: 35035513 | HQ39: 1457100 | HR39: 97766402 | HS39: 157751424 | HT39: 1405161 | HU39: 0 | HV39: 367661 | HW39: 0 | HX39: 499015 | HY39: 0 | HZ39: 0 | IA39: 0 | IB39: 0 | IC39: 0 | ID39: 0
A40: Ver.05.00 | B40: 370002 | C40: 香川県 | D40: - | E40: 1 | F40: - | G40: - | H40: 10.2 | I40: 165.1 | J40: 270112017 | K40: 2686529 | L40: 一般会計 | M40: 6885174 | N40: 母子父子寡婦福祉資金特別会計 | O40: 0 | P40: 中小企業高度化資金特別会計 | Q40: 0 | R40: 集中管理特別会計 | S40: 6713 | T40: 証紙特別会計 | U40: 190315 | V40: 栗林公園特別会計 | W40: 0 | X40: 吉野川総合開発香川用水建設事業特別会計 | Y40: 0 | Z40: 林業・木材産業改善資金特別会計 | AA40: 0 | AB40: 沿岸漁業改善資金特別会計 | AC40: 0 | AD40: 県立大学特別会計 | AE40: 0 | AF40: 奨学金特別会計 | AG40: 24483 | AH40: 県債管理特別会計 | AI40: 0 | AR40: 7106685 | AS40: -2.63 | AT40: ① | AU40: 国民健康保険事業特別会計 | AV40: 0 | AW40: ⑦ | AX40: 駐車場事業特別会計 | AY40: 0 | AZ40: 0 | BC40: 0 | BF40: 0 | BI40: 0 | BL40: 0 | BO40: 0 | BR40: 0 | BU40: 0 | BX40: 0 | CA40: 0 | CD40: 0 | CG40: 香川県立病院事業会計 | CH40: 8807729 | CI40: 香川県流域下水道事業会計 | CJ40: 216028 | CK40: 0 | CL40: 0 | CM40: 0 | CN40: 0 | CO40: 0 | CP40: 0 | CQ40: 0 | CR40: 0 | CS40: 0 | CT40: 0 | CU40: 0 | CV40: 0 | CW40: 0 | CX40: 0 | CY40: 0 | CZ40: 0 | DA40: 0 | DB40: 0 | DC40: 0 | DD40: 0 | DE40: 0 | DF40: 0 | DG40: 0 | DH40: 0 | DI40: 0 | DJ40: 0 | DK40: 0 | DL40: 0 | DM40: 0 | DN40: 0 | DO40: 0 | DP40: 0 | DQ40: 0 | DR40: 0 | DS40: 0 | DT40: 0 | DU40: 0 | DV40: 0 | DW40: 0 | DX40: 0 | DY40: 0 | DZ40: 0 | EA40: 0 | EB40: 0 | EC40: 0 | ED40: 0 | EE40: 0 | EF40: 0 | EG40: 0 | EH40: 0 | EI40: 0 | EJ40: 0 | EK40: 0 | EL40: 0 | EM40: 0 | EN40: 0 | EO40: 0 | EP40: 0 | EQ40: 0 | ER40: 0 | ES40: 0 | ET40: 0 | EU40: 0 | EV40: 0 | EW40: 臨海工業地帯造成事業特別会計 | EX40: 0 | EY40: 番の州地区臨海工業用土地造成事業特別会計 | EZ40: 0 | FA40: 内陸工業団地造成事業特別会計 | FB40: 0 | FC40: 0 | FD40: 0 | FE40: 16130442 | FF40: -5.97 | FG40: 9.533668504 | FH40: 10.47515056 | FI40: 10.69142973 | FJ40: 10.2 | FK40: 60111084 | FL40: 0 | FM40: 0 | FN40: 1175680 | FO40: 0 | FP40: 201674 | FQ40: 527 | FR40: 349230 | FS40: 4278561 | FT40: 33650789 | FU40: 596593 | FV40: 114085905 | FW40: 131614516 | FX40: 30024791 | FY40: 0 | FZ40: 0 | GA40: 0 | GB40: 186756 | GC40: 0 | GD40: 0 | GE40: 0 | GF40: 0 | GG40: 14918 | GH40: 0 | GI40: 60389087 | GJ40: 0 | GK40: 0 | GL40: 1411415 | GM40: 0 | GN40: 179694 | GO40: 32 | GP40: 352120 | GQ40: 3862767 | GR40: 32960807 | GS40: 608821 | GT40: 134777683 | GU40: 127625009 | GV40: 6011710 | GW40: 0 | GX40: 0 | GY40: 0 | GZ40: 164776 | HA40: 0 | HB40: 0 | HC40: 0 | HD40: 0 | HE40: 14918 | HF40: 0 | HG40: 60225382 | HH40: 0 | HI40: 0 | HJ40: 1208792 | HK40: 0 | HL40: 92998 | HM40: 1241 | HN40: 304538 | HO40: 3482638 | HP40: 32078659 | HQ40: 655875 | HR40: 136621947 | HS40: 130803541 | HT40: 2686529 | HU40: 0 | HV40: 0 | HW40: 0 | HX40: 49390 | HY40: 0 | HZ40: 0 | IA40: 0 | IB40: 0 | IC40: 43608 | ID40: 0
A41: Ver.05.00 | B41: 380008 | C41: 愛媛県 | D41: - | E41: 1 | F41: - | G41: - | H41: 11.2 | I41: 119 | J41: 363639715 | K41: 2329919 | L41: 一般会計 | M41: 5186543 | N41: 災害救助基金 | O41: 0 | P41: 母子父子寡婦福祉資金 | Q41: 0 | R41: 中小企業振興資金 | S41: 0 | T41: 農業改良資金 | U41: 0 | V41: 国営農業水利事業負担金 | W41: 0 | X41: 県有林経営事業 | Y41: 59361 | Z41: 林業改善資金 | AA41: 0 | AB41: 沿岸漁業改善資金 | AC41: 0 | AD41: 公共用地整備事業 | AE41: 0 | AF41: 用品調達（重複会計） | AG41: 0 | AH41: 自動車集中管理（重複会計） | AI41: 1188 | AJ41: 奨学資金 | AK41: 0 | AL41: 公債管理 | AM41: 0 | AR41: 5247092 | AS41: -1.44 | AT41: ① | AU41: 国民健康保険事業 | AV41: 9970787 | AW41: 0 | AZ41: 0 | BC41: 0 | BF41: 0 | BI41: 0 | BL41: 0 | BO41: 0 | BR41: 0 | BU41: 0 | BX41: 0 | CA41: 0 | CD41: 0 | CG41: 電気事業会計 | CH41: 5451646 | CI41: 病院事業会計 | CJ41: 1844095 | CK41: 0 | CL41: 0 | CM41: 0 | CN41: 0 | CO41: 0 | CP41: 0 | CQ41: 0 | CR41: 0 | CS41: 0 | CT41: 0 | CU41: 0 | CV41: 0 | CW41: 0 | CX41: 0 | CY41: 0 | CZ41: 0 | DA41: 0 | DB41: 0 | DC41: 0 | DD41: 0 | DE41: 0 | DF41: 0 | DG41: 0 | DH41: 0 | DI41: 0 | DJ41: 0 | DK41: 工業用水道事業会計 | DL41: 4021515 | DM41: 0 | DN41: 0 | DO41: 0 | DP41: 0 | DQ41: 0 | DR41: 0 | DS41: 0 | DT41: 0 | DU41: 0 | DV41: 0 | DW41: 0 | DX41: 0 | DY41: 0 | DZ41: 0 | EA41: 0 | EB41: 0 | EC41: 0 | ED41: 0 | EE41: 0 | EF41: 0 | EG41: 0 | EH41: 0 | EI41: 0 | EJ41: 0 | EK41: 0 | EL41: 0 | EM41: 0 | EN41: 0 | EO41: 0 | EP41: 0 | EQ41: 0 | ER41: 0 | ES41: 0 | ET41: 0 | EU41: 0 | EV41: 0 | EW41: 港湾施設整備事業特別会計 | EX41: 896160 | EY41: 0 | EZ41: 0 | FA41: 0 | FB41: 0 | FC41: 0 | FD41: 0 | FE41: 27431295 | FF41: -7.54 | FG41: 13.07813012 | FH41: 10.36765156 | FI41: 10.27874266 | FJ41: 11.2 | FK41: 92483658 | FL41: 0 | FM41: 0 | FN41: 2058271 | FO41: 0 | FP41: 142867 | FQ41: 0 | FR41: 1870200 | FS41: 5176169 | FT41: 45329435 | FU41: 449591 | FV41: 144313321 | FW41: 191958342 | FX41: 34755290 | FY41: 0 | FZ41: 0 | GA41: 0 | GB41: 0 | GC41: 142867 | GD41: 0 | GE41: 0 | GF41: 0 | GG41: 0 | GH41: 0 | GI41: 80744025 | GJ41: 0 | GK41: 0 | GL41: 1797148 | GM41: 0 | GN41: 68512 | GO41: 0 | GP41: 255402 | GQ41: 4991859 | GR41: 44438308 | GS41: 477337 | GT41: 175546592 | GU41: 181587908 | GV41: 5734708 | GW41: 0 | GX41: 0 | GY41: 0 | GZ41: 0 | HA41: 68512 | HB41: 0 | HC41: 0 | HD41: 0 | HE41: 0 | HF41: 0 | HG41: 79440365 | HH41: 0 | HI41: 0 | HJ41: 1878604 | HK41: 0 | HL41: 49910 | HM41: 0 | HN41: 602520 | HO41: 4656289 | HP41: 43222675 | HQ41: 480555 | HR41: 179562076 | HS41: 181747720 | HT41: 2329919 | HU41: 0 | HV41: 0 | HW41: 0 | HX41: 0 | HY41: 49910 | HZ41: 0 | IA41: 0 | IB41: 0 | IC41: 0 | ID41: 0
A42: Ver.05.00 | B42: 390003 | C42: 高知県 | D42: - | E42: 1 | F42: - | G42: - | H42: 11.7 | I42: 177.3 | J42: 269981457 | K42: 1323428 | L42: 一般会計 | M42: 2723162 | N42: 給与等集中管理特別会計 | O42: 0 | P42: 旅費集中管理特別会計 | Q42: 0 | R42: 用品等調達特別会計 | S42: 0 | T42: 会計事務集中管理特別会計 | U42: 0 | V42: 県債管理特別会計 | W42: 0 | X42: 土地取得事業特別会計 | Y42: 0 | Z42: 災害救助基金特別会計 | AA42: 0 | AB42: 母子父子寡婦福祉資金特別会計 | AC42: 0 | AD42: 中小企業近代化資金助成事業特別会計 | AE42: 0 | AF42: 農業改良資金助成事業特別会計 | AG42: 761 | AH42: 県営林事業特別会計 | AI42: 0 | AJ42: 林業・木材産業改善資金助成事業特別会計 | AK42: 0 | AL42: 沿岸漁業改善資金助成事業特別会計 | AM42: 0 | AN42: 高等学校等奨学金特別会計 | AO42: 0 | AP42: 収入証紙等管理特別会計 | AQ42: 0 | AR42: 2723923 | AS42: -1 | AT42: ① | AU42: 国民健康保険事業特別会計 | AV42: 1577304 | AW42: 0 | AZ42: 0 | BC42: 0 | BF42: 0 | BI42: 0 | BL42: 0 | BO42: 0 | BR42: 0 | BU42: 0 | BX42: 0 | CA42: 0 | CD42: 0 | CG42: 病院事業会計 | CH42: 3508360 | CI42: 電気事業会計 | CJ42: 7439486 | CK42: 工業用水道事業会計 | CL42: 819506 | CM42: 流域下水道事業会計 | CN42: 168724 | CO42: 0 | CP42: 0 | CQ42: 0 | CR42: 0 | CS42: 0 | CT42: 0 | CU42: 0 | CV42: 0 | CW42: 0 | CX42: 0 | CY42: 0 | CZ42: 0 | DA42: 0 | DB42: 0 | DC42: 0 | DD42: 0 | DE42: 0 | DF42: 0 | DG42: 0 | DH42: 0 | DI42: 0 | DJ42: 0 | DK42: 0 | DL42: 0 | DM42: 0 | DN42: 0 | DO42: 0 | DP42: 0 | DQ42: 0 | DR42: 0 | DS42: 0 | DT42: 0 | DU42: 0 | DV42: 0 | DW42: 0 | DX42: 0 | DY42: 0 | DZ42: 0 | EA42: 0 | EB42: 0 | EC42: 0 | ED42: 0 | EE42: 0 | EF42: 0 | EG42: 0 | EH42: 0 | EI42: 0 | EJ42: 0 | EK42: 0 | EL42: 0 | EM42: 0 | EN42: 0 | EO42: 0 | EP42: 0 | EQ42: 0 | ER42: 0 | ES42: 0 | ET42: 0 | EU42: 0 | EV42: 0 | EW42: 港湾整備事業特別会計 | EX42: 0 | EY42: 流通団地及び工業団地造成事業特別会計 | EZ42: 0 | FA42: 0 | FB42: 0 | FC42: 0 | FD42: 0 | FE42: 16237303 | FF42: -6.01 | FG42: 10.80330574 | FH42: 11.77028894 | FI42: 12.77376689 | FJ42: 11.7 | FK42: 56389523 | FL42: 1249844 | FM42: 10937920 | FN42: 1171413 | FO42: 918856 | FP42: 633927 | FQ42: 31794 | FR42: 574392 | FS42: 4531733 | FT42: 39923602 | FU42: 984739 | FV42: 70391549 | FW42: 188470269 | FX42: 20939956 | FY42: 0 | FZ42: 0 | GA42: 0 | GB42: 78604 | GC42: 120907 | GD42: 0 | GE42: 0 | GF42: 0 | GG42: 0 | GH42: 434416 | GI42: 56453998 | GJ42: 874372 | GK42: 11537229 | GL42: 1288227 | GM42: 865770 | GN42: 558639 | GO42: 48253 | GP42: 606870 | GQ42: 4393432 | GR42: 38906442 | GS42: 1030379 | GT42: 84746796 | GU42: 182543288 | GV42: 3792164 | GW42: 0 | GX42: 0 | GY42: 0 | GZ42: 66347 | HA42: 103221 | HB42: 0 | HC42: 0 | HD42: 0 | HE42: 0 | HF42: 389071 | HG42: 58636307 | HH42: 1177729 | HI42: 12036239 | HJ42: 1268753 | HK42: 812123 | HL42: 568027 | HM42: 62688 | HN42: 2422710 | HO42: 4324874 | HP42: 37793785 | HQ42: 1047660 | HR42: 85484313 | HS42: 183173716 | HT42: 1323428 | HU42: 0 | HV42: 0 | HW42: 0 | HX42: 55555 | HY42: 96244 | HZ42: 0 | IA42: 0 | IB42: 0 | IC42: 0 | ID42: 416228
A43: Ver.05.00 | B43: 400009 | C43: 福岡県 | D43: - | E43: 1 | F43: - | G43: - | H43: 11.3 | I43: 248.4 | J43: 1007208352 | K43: 23641999 | L43: 一般会計 | M43: 11837303 | N43: 福岡県財政調整基金特別会計 | O43: 0 | P43: 福岡県公債管理特別会計 | Q43: 0 | R43: 福岡県市町村振興基金特別会計 | S43: 0 | T43: 福岡県母子父子寡婦福祉資金貸付事業特別会計 | U43: 0 | V43: 福岡県災害救助基金特別会計 | W43: 0 | X43: 福岡県就農支援資金貸付事業特別会計 | Y43: 0 | Z43: 福岡県県営林造成事業特別会計 | AA43: 0 | AB43: 福岡県林業改善資金助成事業特別会計 | AC43: 0 | AD43: 福岡県沿岸漁業改善資金助成事業特別会計 | AE43: 0 | AF43: 福岡県小規模企業者等設備導入資金貸付事業特別会計 | AG43: 0 | AH43: 福岡県公共用地先行取得事業特別会計 | AI43: 0 | AJ43: 福岡県住宅管理特別会計 | AK43: 0 | AR43: 11837303 | AS43: -1.17 | AT43: 0 | AU43: 福岡県国民健康保険特別会計 | AV43: 9540107 | AW43: 0 | AZ43: 0 | BC43: 0 | BF43: 0 | BI43: 0 | BL43: 0 | BO43: 0 | BR43: 0 | BU43: 0 | BX43: 0 | CA43: 0 | CD43: 0 | CG43: 福岡県病院事業会計 | CH43: 1269568 | CI43: 福岡県流域下水道事業会計 | CJ43: 1404802 | CK43: 福岡県電気事業 | CL43: 2276129 | CM43: 福岡県工業用水道事業 | CN43: 4241164 | CO43: 0 | CP43: 0 | CQ43: 0 | CR43: 0 | CS43: 0 | CT43: 0 | CU43: 0 | CV43: 0 | CW43: 0 | CX43: 0 | CY43: 0 | CZ43: 0 | DA43: 0 | DB43: 0 | DC43: 0 | DD43: 0 | DE43: 0 | DF43: 0 | DG43: 0 | DH43: 0 | DI43: 0 | DJ43: 0 | DK43: 福岡県工業用地造成事業 | DL43: 81808 | DM43: 0 | DN43: 0 | DO43: 0 | DP43: 0 | DQ43: 0 | DR43: 0 | DS43: 0 | DT43: 0 | DU43: 0 | DV43: 0 | DW43: 0 | DX43: 0 | DY43: 0 | DZ43: 0 | EA43: 0 | EB43: 0 | EC43: 0 | ED43: 0 | EE43: 0 | EF43: 0 | EG43: 0 | EH43: 0 | EI43: 0 | EJ43: 0 | EK43: 0 | EL43: 0 | EM43: 0 | EN43: 0 | EO43: 0 | EP43: 0 | EQ43: 0 | ER43: 0 | ES43: 0 | ET43: 0 | EU43: 0 | EV43: 0 | EW43: 福岡県県営埠頭施設整備運営事業特別会計 | EX43: 0 | EY43: 0 | EZ43: 0 | FA43: 0 | FB43: 0 | FC43: 0 | FD43: 0 | FE43: 30650881 | FF43: -3.04 | FG43: 10.81725322 | FH43: 11.55738579 | FI43: 11.77819716 | FJ43: 11.3 | FK43: 128706626 | FL43: 2216313 | FM43: 100175914 | FN43: 3814168 | FO43: 0 | FP43: 440953 | FQ43: 23420 | FR43: 7057442 | FS43: 14961990 | FT43: 119219087 | FU43: 314507 | FV43: 535713506 | FW43: 328464407 | FX43: 137676196 | FY43: 0 | FZ43: 0 | GA43: 0 | GB43: 0 | GC43: 334510 | GD43: 0 | GE43: 0 | GF43: 0 | GG43: 33555 | GH43: 72888 | GI43: 128481767 | GJ43: 1814416 | GK43: 103815008 | GL43: 4243305 | GM43: 0 | GN43: 280576 | GO43: 1791 | GP43: 5548164 | GQ43: 13700031 | GR43: 120353125 | GS43: 382572 | GT43: 655683370 | GU43: 289953881 | GV43: 42390914 | GW43: 0 | GX43: 0 | GY43: 0 | GZ43: 0 | HA43: 177130 | HB43: 0 | HC43: 0 | HD43: 0 | HE43: 30475 | HF43: 72971 | HG43: 129426893 | HH43: 2138282 | HI43: 107539671 | HJ43: 4480367 | HK43: 0 | HL43: 104091 | HM43: 5037 | HN43: 4523571 | HO43: 13391512 | HP43: 122855995 | HQ43: 385140 | HR43: 676159555 | HS43: 307406798 | HT43: 23641999 | HU43: 0 | HV43: 0 | HW43: 0 | HX43: 0 | HY43: 0 | HZ43: 0 | IA43: 0 | IB43: 0 | IC43: 32755 | ID43: 71336
A44: Ver.05.00 | B44: 410004 | C44: 佐賀県 | D44: - | E44: 1 | F44: - | G44: - | H44: 9.7 | I44: 135.3 | J44: 267714418 | K44: 1517477 | L44: 一般会計 | M44: 9528113 | N44: 災害救助基金特別会計 | O44: 0 | P44: 母子父子寡婦福祉資金特別会計 | Q44: 0 | R44: 就農支援資金特別会計 | S44: 0 | T44: 小規模企業者等設備導入等事業支援特別会計 | U44: 0 | V44: 財政調整積立金特別会計 | W44: 0 | X44: 証紙特別会計 | Y44: 111092 | Z44: 土地取得特別会計 | AA44: 0 | AB44: 林業改善資金特別会計 | AC44: 0 | AD44: 沿岸漁業改善資金特別会計 | AE44: 0 | AF44: 公債管理特別会計 | AG44: 0 | AH44: 育英資金特別会計 | AI44: 0 | AJ44: 地方独立行政法人佐賀県医療センター好生館貸付金特別会計 | AK44: 0 | AR44: 9639205 | AS44: -3.6 | AT44: ① | AU44: 国民健康保険事業特別会計 | AV44: 509737 | AW44: 0 | AZ44: 0 | BC44: 0 | BF44: 0 | BI44: 0 | BL44: 0 | BO44: 0 | BR44: 0 | BU44: 0 | BX44: 0 | CA44: 0 | CD44: 0 | CG44: 佐賀県工業用水道特別会計 | CH44: 2112769 | CI44: 0 | CJ44: 0 | CK44: 0 | CL44: 0 | CM44: 0 | CN44: 0 | CO44: 0 | CP44: 0 | CQ44: 0 | CR44: 0 | CS44: 0 | CT44: 0 | CU44: 0 | CV44: 0 | CW44: 0 | CX44: 0 | CY44: 0 | CZ44: 0 | DA44: 0 | DB44: 0 | DC44: 0 | DD44: 0 | DE44: 0 | DF44: 0 | DG44: 0 | DH44: 0 | DI44: 0 | DJ44: 0 | DK44: 0 | DL44: 0 | DM44: 0 | DN44: 0 | DO44: 0 | DP44: 0 | DQ44: 0 | DR44: 0 | DS44: 港湾整備事業特別会計 | DT44: 441073 | DU44: 0 | DV44: 0 | DW44: 0 | DX44: 0 | DY44: 0 | DZ44: 0 | EA44: 0 | EB44: 0 | EC44: 0 | ED44: 0 | EE44: 0 | EF44: 0 | EG44: 0 | EH44: 0 | EI44: 0 | EJ44: 0 | EK44: 0 | EL44: 0 | EM44: 0 | EN44: 0 | EO44: 0 | EP44: 0 | EQ44: 0 | ER44: 0 | ES44: 0 | ET44: 0 | EU44: 0 | EV44: 0 | EW44: 佐賀県産業用地造成事業特別会計 | EX44: 0 | EY44: 0 | EZ44: 0 | FA44: 0 | FB44: 0 | FC44: 0 | FD44: 0 | FE44: 12702784 | FF44: -4.74 | FG44: 8.954347301 | FH44: 9.638119391 | FI44: 10.62475525 | FJ44: 9.7 | FK44: 58153212 | FL44: 0 | FM44: 2749643 | FN44: 213 | FO44: 0 | FP44: 681101 | FQ44: 1504 | FR44: 807568 | FS44: 6465272 | FT44: 33314064 | FU44: 223079 | FV44: 89432759 | FW44: 160751906 | FX44: 21835666 | FY44: 0 | FZ44: 0 | GA44: 0 | GB44: 588410 | GC44: 0 | GD44: 0 | GE44: 0 | GF44: 0 | GG44: 0 | GH44: 92691 | GI44: 57983633 | GJ44: 0 | GK44: 3082976 | GL44: 295 | GM44: 0 | GN44: 375760 | GO44: 1227 | GP44: 882208 | GQ44: 6128860 | GR44: 32241723 | GS44: 276640 | GT44: 105527652 | GU44: 156592281 | GV44: 3900070 | GW44: 0 | GX44: 0 | GY44: 0 | GZ44: 281230 | HA44: 0 | HB44: 0 | HC44: 0 | HD44: 0 | HE44: 0 | HF44: 94530 | HG44: 59847751 | HH44: 0 | HI44: 3192067 | HJ44: 8260 | HK44: 0 | HL44: 274318 | HM44: 28937 | HN44: 1129283 | HO44: 6085913 | HP44: 31411349 | HQ44: 296255 | HR44: 109543485 | HS44: 156653456 | HT44: 1517477 | HU44: 0 | HV44: 0 | HW44: 0 | HX44: 185002 | HY44: 0 | HZ44: 0 | IA44: 0 | IB44: 0 | IC44: 0 | ID44: 89316
A45: Ver.05.00 | B45: 420000 | C45: 長崎県 | D45: - | E45: 1 | F45: - | G45: - | H45: 10.6 | I45: 175.8 | J45: 390235323 | K45: 2280081 | L45: 一般会計 | M45: 1075089 | N45: 母子父子寡婦福祉資金特別会計 | O45: 0 | P45: 農業改良資金特別会計 | Q45: 0 | R45: 県営林特別会計 | S45: 243 | T45: 小規模企業者等設備導入資金特別会計 | U45: 0 | V45: 用地特別会計 | W45: 542 | X45: 林業改善資金特別会計 | Y45: 0 | Z45: 庁用管理特別会計 | AA45: 16471 | AB45: 沿岸漁業改善資金特別会計 | AC45: 0 | AD45: 公債管理特別会計 | AE45: 0 | AR45: 1092345 | AS45: -0.27 | AT45: 0 | AU45: 国民健康保険事業特別会計 | AV45: 2574401 | AW45: 0 | AZ45: 0 | BC45: 0 | BF45: 0 | BI45: 0 | BL45: 0 | BO45: 0 | BR45: 0 | BU45: 0 | BX45: 0 | CA45: 0 | CD45: 0 | CG45: 交通事業会計 | CH45: 0 | CI45: 流域下水道事業会計 | CJ45: 643480 | CK45: 0 | CL45: 0 | CM45: 0 | CN45: 0 | CO45: 0 | CP45: 0 | CQ45: 0 | CR45: 0 | CS45: 0 | CT45: 0 | CU45: 0 | CV45: 0 | CW45: 0 | CX45: 0 | CY45: 0 | CZ45: 0 | DA45: 0 | DB45: 0 | DC45: 0 | DD45: 0 | DE45: 0 | DF45: 0 | DG45: 0 | DH45: 0 | DI45: 0 | DJ45: 0 | DK45: 0 | DL45: 0 | DM45: 0 | DN45: 0 | DO45: 0 | DP45: 0 | DQ45: 0 | DR45: 0 | DS45: 長崎魚市場特別会計 | DT45: 6 | DU45: 0 | DV45: 0 | DW45: 0 | DX45: 0 | DY45: 0 | DZ45: 0 | EA45: 0 | EB45: 0 | EC45: 0 | ED45: 0 | EE45: 0 | EF45: 0 | EG45: 0 | EH45: 0 | EI45: 0 | EJ45: 0 | EK45: 0 | EL45: 0 | EM45: 0 | EN45: 0 | EO45: 0 | EP45: 0 | EQ45: 0 | ER45: 0 | ES45: 0 | ET45: 0 | EU45: 0 | EV45: 0 | EW45: 長崎県港湾施設整備特別会計 | EX45: 4952851 | EY45: 0 | EZ45: 0 | FA45: 0 | FB45: 0 | FC45: 0 | FD45: 0 | FE45: 9263083 | FF45: -2.37 | FG45: 9.896712102 | FH45: 10.39073531 | FI45: 11.5678911 | FJ45: 10.6 | FK45: 90398255 | FL45: 0 | FM45: 4666667 | FN45: 429234 | FO45: 817215 | FP45: 239054 | FQ45: 0 | FR45: 4933814 | FS45: 11145217 | FT45: 46250723 | FU45: 220993 | FV45: 128159136 | FW45: 240250232 | FX45: 32752751 | FY45: 0 | FZ45: 0 | GA45: 0 | GB45: 0 | GC45: 0 | GD45: 0 | GE45: 0 | GF45: 0 | GG45: 0 | GH45: 239054 | GI45: 88390906 | GJ45: 0 | GK45: 5448470 | GL45: 393021 | GM45: 893793 | GN45: 102003 | GO45: 0 | GP45: 4868931 | GQ45: 10942109 | GR45: 44461140 | GS45: 215082 | GT45: 150732037 | GU45: 233609076 | GV45: 5622478 | GW45: 0 | GX45: 0 | GY45: 0 | GZ45: 0 | HA45: 0 | HB45: 0 | HC45: 0 | HD45: 0 | HE45: 0 | HF45: 102003 | HG45: 90536744 | HH45: 0 | HI45: 5782037 | HJ45: 235721 | HK45: 846047 | HL45: 122962 | HM45: 0 | HN45: 4070913 | HO45: 10875941 | HP45: 43517997 | HQ45: 236220 | HR45: 153534363 | HS45: 234420879 | HT45: 2280081 | HU45: 0 | HV45: 0 | HW45: 0 | HX45: 0 | HY45: 0 | HZ45: 0 | IA45: 0 | IB45: 0 | IC45: 0 | ID45: 122962
A46: Ver.05.00 | B46: 430005 | C46: 熊本県 | D46: - | E46: 1 | F46: - | G46: - | H46: 8.3 | I46: 217 | J46: 440447592 | K46: 2752731 | L46: 一般会計 | M46: 29458108 | N46: 中小企業振興資金特別会計 | O46: 0 | P46: 母子父子寡婦福祉資金特別会計 | Q46: 0 | R46: 収入証紙特別会計 | S46: 232942 | T46: 県立高等学校実習資金特別会計 | U46: 123041 | V46: 育英資金等貸与特別会計 | W46: 0 | X46: 林業改善資金特別会計 | Y46: 0 | Z46: 沿岸漁業改善資金特別会計 | AA46: 0 | AB46: 市町村振興資金貸付事業特別会計 | AC46: 1488602 | AD46: チッソ県債償還等特別会計 | AE46: 0 | AF46: 公債管理特別会計 | AG46: 0 | AH46: 用地先行取得事業特別会計 | AI46: 0 | AR46: 31302693 | AS46: -7.1 | AT46: ① | AU46: 国民健康保険事業特別会計 | AV46: 7959879 | AW46: 0 | AZ46: 0 | BC46: 0 | BF46: 0 | BI46: 0 | BL46: 0 | BO46: 0 | BR46: 0 | BU46: 0 | BX46: 0 | CA46: 0 | CD46: 0 | CG46: 電気事業会計 | CH46: 4023280 | CI46: 工業用水道事業会計 | CJ46: 1708369 | CK46: 有料駐車場事業会計 | CL46: 801648 | CM46: 病院事業会計 | CN46: 2591091 | CO46: 流域下水道事業会計 | CP46: 980206 | CQ46: 0 | CR46: 0 | CS46: 0 | CT46: 0 | CU46: 0 | CV46: 0 | CW46: 0 | CX46: 0 | CY46: 0 | CZ46: 0 | DA46: 0 | DB46: 0 | DC46: 0 | DD46: 0 | DE46: 0 | DF46: 0 | DG46: 0 | DH46: 0 | DI46: 0 | DJ46: 0 | DK46: 0 | DL46: 0 | DM46: 0 | DN46: 0 | DO46: 0 | DP46: 0 | DQ46: 0 | DR46: 0 | DS46: 港湾整備事業特別会計 | DT46: 330518 | DU46: 0 | DV46: 0 | DW46: 0 | DX46: 0 | DY46: 0 | DZ46: 0 | EA46: 0 | EB46: 0 | EC46: 0 | ED46: 0 | EE46: 0 | EF46: 0 | EG46: 0 | EH46: 0 | EI46: 0 | EJ46: 0 | EK46: 0 | EL46: 0 | EM46: 0 | EN46: 0 | EO46: 0 | EP46: 0 | EQ46: 0 | ER46: 0 | ES46: 0 | ET46: 0 | EU46: 0 | EV46: 0 | EW46: 臨海工業用地造成事業特別会計 | EX46: 1414062 | EY46: 高度技術研究開発基盤整備事業等特別会計 | EZ46: 0 | FA46: 0 | FB46: 0 | FC46: 0 | FD46: 0 | FE46: 51111746 | FF46: -11.6 | FG46: 7.108723431 | FH46: 9.312011409 | FI46: 8.611598217 | FJ46: 8.3 | FK46: 77121489 | FL46: 0 | FM46: 19992322 | FN46: 1246393 | FO46: 0 | FP46: 2317241 | FQ46: 598 | FR46: 6048349 | FS46: 14480195 | FT46: 53437616 | FU46: 106442 | FV46: 162992253 | FW46: 237531664 | FX46: 41765016 | FY46: 0 | FZ46: 0 | GA46: 0 | GB46: 210506 | GC46: 113800 | GD46: 0 | GE46: 0 | GF46: 0 | GG46: 0 | GH46: 1992935 | GI46: 83347012 | GJ46: 0 | GK46: 20197405 | GL46: 1381358 | GM46: 0 | GN46: 2221183 | GO46: 37 | GP46: 5088963 | GQ46: 15479423 | GR46: 52276482 | GS46: 103600 | GT46: 200574995 | GU46: 227546190 | GV46: 6990093 | GW46: 0 | GX46: 0 | GY46: 0 | GZ46: 151984 | HA46: 107194 | HB46: 0 | HC46: 0 | HD46: 0 | HE46: 0 | HF46: 1962005 | HG46: 82236935 | HH46: 0 | HI46: 21468552 | HJ46: 1374219 | HK46: 0 | HL46: 1429867 | HM46: 16 | HN46: 5667273 | HO46: 15897974 | HP46: 52838785 | HQ46: 104295 | HR46: 210540090 | HS46: 227154771 | HT46: 2752731 | HU46: 0 | HV46: 0 | HW46: 0 | HX46: 155199 | HY46: 82256 | HZ46: 0 | IA46: 0 | IB46: 0 | IC46: 0 | ID46: 1192412
A47: Ver.05.00 | B47: 440001 | C47: 大分県 | D47: - | E47: 1 | F47: - | G47: - | H47: 9.8 | I47: 164.6 | J47: 334661515 | K47: 2084937 | L47: 一般会計 | M47: 8086066 | N47: 母子父子寡婦福祉資金特別会計 | O47: 4 | P47: 県営林事業特別会計 | Q47: 69680 | R47: 林業・木材産業改善資金特別会計 | S47: 430 | T47: 沿岸漁業改善資金特別会計 | U47: 184 | V47: 中小企業設備導入資金特別会計 | W47: 0 | X47: 用品調達特別会計 | Y47: 0 | Z47: 公債管理特別会計 | AA47: 0 | AR47: 8156364 | AS47: -2.43 | AT47: ① | AU47: 大分県国民健康保険事業特別会計 | AV47: 4444444 | AW47: 0 | AZ47: 0 | BC47: 0 | BF47: 0 | BI47: 0 | BL47: 0 | BO47: 0 | BR47: 0 | BU47: 0 | BX47: 0 | CA47: 0 | CD47: 0 | CG47: 大分県病院事業会計 | CH47: 6591258 | CI47: 大分県工業用水道事業会計 | CJ47: 6283745 | CK47: 大分県電気事業会計 | CL47: 5709800 | CM47: 0 | CN47: 0 | CO47: 0 | CP47: 0 | CQ47: 0 | CR47: 0 | CS47: 0 | CT47: 0 | CU47: 0 | CV47: 0 | CW47: 0 | CX47: 0 | CY47: 0 | CZ47: 0 | DA47: 0 | DB47: 0 | DC47: 0 | DD47: 0 | DE47: 0 | DF47: 0 | DG47: 0 | DH47: 0 | DI47: 0 | DJ47: 0 | DK47: 0 | DL47: 0 | DM47: 0 | DN47: 0 | DO47: 0 | DP47: 0 | DQ47: 0 | DR47: 0 | DS47: 大分県港湾施設整備事業特別会計 | DT47: 47573 | DU47: 0 | DV47: 0 | DW47: 0 | DX47: 0 | DY47: 0 | DZ47: 0 | EA47: 0 | EB47: 0 | EC47: 0 | ED47: 0 | EE47: 0 | EF47: 0 | EG47: 0 | EH47: 0 | EI47: 0 | EJ47: 0 | EK47: 0 | EL47: 0 | EM47: 0 | EN47: 0 | EO47: 0 | EP47: 0 | EQ47: 0 | ER47: 0 | ES47: 0 | ET47: 0 | EU47: 0 | EV47: 0 | EW47: 大分県流通業務団地造成事業特別会計 | EX47: 26382 | EY47: 大分県臨海工業地帯建設事業特別会計 | EZ47: 1161067 | FA47: 0 | FB47: 0 | FC47: 0 | FD47: 0 | FE47: 32420633 | FF47: -9.68 | FG47: 8.858491141 | FH47: 10.02368999 | FI47: 10.58816692 | FJ47: 9.8 | FK47: 68141542 | FL47: 0 | FM47: 9833333 | FN47: 629385 | FO47: 0 | FP47: 1294511 | FQ47: 158 | FR47: 1425808 | FS47: 9068690 | FT47: 43713041 | FU47: 86032 | FV47: 118773793 | FW47: 192668606 | FX47: 30474115 | FY47: 0 | FZ47: 9074 | GA47: 0 | GB47: 151001 | GC47: 0 | GD47: 0 | GE47: 0 | GF47: 425535 | GG47: 0 | GH47: 708901 | GI47: 69099346 | GJ47: 0 | GK47: 9666667 | GL47: 252201 | GM47: 0 | GN47: 1331622 | GO47: 37 | GP47: 1357373 | GQ47: 8099187 | GR47: 42491120 | GS47: 100471 | GT47: 143588516 | GU47: 184323348 | GV47: 5127251 | GW47: 0 | GX47: 9182 | GY47: 0 | GZ47: 207731 | HA47: 0 | HB47: 0 | HC47: 0 | HD47: 436596 | HE47: 0 | HF47: 678113 | HG47: 70266733 | HH47: 99000 | HI47: 9000000 | HJ47: 265099 | HK47: 0 | HL47: 1410167 | HM47: 53 | HN47: 1311784 | HO47: 7790566 | HP47: 41614710 | HQ47: 134865 | HR47: 147257216 | HS47: 185319362 | HT47: 2084937 | HU47: 0 | HV47: 9677 | HW47: 0 | HX47: 199445 | HY47: 0 | HZ47: 0 | IA47: 0 | IB47: 465313 | IC47: 0 | ID47: 735732
A48: Ver.05.00 | B48: 450006 | C48: 宮崎県 | D48: - | E48: 1 | F48: - | G48: - | H48: 11.5 | I48: 97.7 | J48: 332887667 | K48: 1963065 | L48: 一般会計 | M48: 13485899 | N48: 小規模企業者等設備導入資金特別会計 | O48: 0 | P48: 沿岸漁業改善資金特別会計 | Q48: 0 | R48: 山林基本財産特別会計 | S48: 39233 | T48: 拡大造林事業特別会計 | U48: 34935 | V48: 公共用地取得事業特別会計 | W48: 303 | X48: 公債管理特別会計 | Y48: 0 | Z48: 県立学校実習事業特別会計 | AA48: 36562 | AB48: 開発事業特別資金特別会計 | AC48: 320 | AD48: 育英資金特別会計 | AE48: 0 | AF48: 林業改善資金特別会計 | AG48: 0 | AH48: 母子父子寡婦福祉資金特別会計 | AI48: 0 | AR48: 13597252 | AS48: -4.08 | AT48: ① | AU48: 国民健康保険特別会計 | AV48: 4098327 | AW48: 0 | AZ48: 0 | BC48: 0 | BF48: 0 | BI48: 0 | BL48: 0 | BO48: 0 | BR48: 0 | BU48: 0 | BX48: 0 | CA48: 0 | CD48: 0 | CG48: 工業用水道事業会計 | CH48: 1939553 | CI48: 電気事業会計 | CJ48: 16252341 | CK48: 地域振興事業会計 | CL48: 168926 | CM48: 県立病院事業会計 | CN48: 3241161 | CO48: 0 | CP48: 0 | CQ48: 0 | CR48: 0 | CS48: 0 | CT48: 0 | CU48: 0 | CV48: 0 | CW48: 0 | CX48: 0 | CY48: 0 | CZ48: 0 | DA48: 0 | DB48: 0 | DC48: 0 | DD48: 0 | DE48: 0 | DF48: 0 | DG48: 0 | DH48: 0 | DI48: 0 | DJ48: 0 | DK48: 0 | DL48: 0 | DM48: 0 | DN48: 0 | DO48: 0 | DP48: 0 | DQ48: 0 | DR48: 0 | DS48: えびの高原スポーツレクリエーション施設特別会計 | DT48: 210 | DU48: 県営国民宿舎特別会計 | DV48: 572 | DW48: 0 | DX48: 0 | DY48: 0 | DZ48: 0 | EA48: 0 | EB48: 0 | EC48: 0 | ED48: 0 | EE48: 0 | EF48: 0 | EG48: 0 | EH48: 0 | EI48: 0 | EJ48: 0 | EK48: 0 | EL48: 0 | EM48: 0 | EN48: 0 | EO48: 0 | EP48: 0 | EQ48: 0 | ER48: 0 | ES48: 0 | ET48: 0 | EU48: 0 | EV48: 0 | EW48: 港湾整備事業特別会計 | EX48: 1497781 | EY48: 0 | EZ48: 0 | FA48: 0 | FB48: 0 | FC48: 0 | FD48: 0 | FE48: 40796123 | FF48: -12.25 | FG48: 10.67861109 | FH48: 12.81450399 | FI48: 11.29214595 | FJ48: 11.5 | FK48: 75583676 | FL48: 0 | FM48: 2643876 | FN48: 2424242 | FO48: 0 | FP48: 951030 | FQ48: 0 | FR48: 769396 | FS48: 6196538 | FT48: 42234096 | FU48: 1283858 | FV48: 110435696 | FW48: 202101483 | FX48: 28591016 | FY48: 0 | FZ48: 0 | GA48: 0 | GB48: 669883 | GC48: 280843 | GD48: 0 | GE48: 0 | GF48: 0 | GG48: 0 | GH48: 304 | GI48: 76930737 | GJ48: 0 | GK48: 3210543 | GL48: 2355167 | GM48: 0 | GN48: 2142245 | GO48: 0 | GP48: 733276 | GQ48: 5524695 | GR48: 40586893 | GS48: 1285937 | GT48: 133542954 | GU48: 193905654 | GV48: 4843994 | GW48: 0 | GX48: 265272 | GY48: 0 | GZ48: 545835 | HA48: 530975 | HB48: 0 | HC48: 0 | HD48: 0 | HE48: 0 | HF48: 800163 | HG48: 71961848 | HH48: 0 | HI48: 3710543 | HJ48: 2968761 | HK48: 0 | HL48: 620414 | HM48: 0 | HN48: 910027 | HO48: 5371668 | HP48: 39293126 | HQ48: 1285340 | HR48: 137053047 | HS48: 193871555 | HT48: 1963065 | HU48: 0 | HV48: 22 | HW48: 0 | HX48: 369207 | HY48: 251129 | HZ48: 0 | IA48: 0 | IB48: 0 | IC48: 0 | ID48: 56
A49: Ver.05.00 | B49: 460001 | C49: 鹿児島県 | D49: - | E49: 1 | F49: - | G49: - | H49: 11.4 | I49: 196.2 | J49: 483573931 | K49: 2789586 | L49: 一般会計 | M49: 16345381 | N49: 母子父子寡婦福祉資金貸付事業特別会計 | O49: 0 | P49: 中小企業支援資金貸付事業特別会計 | Q49: 0 | R49: 就農支援資金貸付事業特別会計 | S49: 0 | T49: 公共土木用地取得先行事業等特別会計 | U49: 43 | V49: 林業・木材産業改善資金貸付事業特別会計 | W49: 0 | X49: 沿岸漁業改善資金貸付事業特別会計 | Y49: 0 | Z49: 公債管理特別会計 | AA49: 49021 | AR49: 16394445 | AS49: -3.39 | AT49: ① | AU49: 国民健康保険事業特別会計 | AV49: 4292252 | AW49: 0 | AZ49: 0 | BC49: 0 | BF49: 0 | BI49: 0 | BL49: 0 | BO49: 0 | BR49: 0 | BU49: 0 | BX49: 0 | CA49: 0 | CD49: 0 | CG49: 鹿児島県工業用水道事業特別会計 | CH49: 1147183 | CI49: 鹿児島県病院事業特別会計 | CJ49: 15196156 | CK49: 0 | CL49: 0 | CM49: 0 | CN49: 0 | CO49: 0 | CP49: 0 | CQ49: 0 | CR49: 0 | CS49: 0 | CT49: 0 | CU49: 0 | CV49: 0 | CW49: 0 | CX49: 0 | CY49: 0 | CZ49: 0 | DA49: 0 | DB49: 0 | DC49: 0 | DD49: 0 | DE49: 0 | DF49: 0 | DG49: 0 | DH49: 0 | DI49: 0 | DJ49: 0 | DK49: 0 | DL49: 0 | DM49: 0 | DN49: 0 | DO49: 0 | DP49: 0 | DQ49: 0 | DR49: 0 | DS49: 鹿児島県港湾整備事業特別会計 | DT49: 2364093 | DU49: 0 | DV49: 0 | DW49: 0 | DX49: 0 | DY49: 0 | DZ49: 0 | EA49: 0 | EB49: 0 | EC49: 0 | ED49: 0 | EE49: 0 | EF49: 0 | EG49: 0 | EH49: 0 | EI49: 0 | EJ49: 0 | EK49: 0 | EL49: 0 | EM49: 0 | EN49: 0 | EO49: 0 | EP49: 0 | EQ49: 0 | ER49: 0 | ES49: 0 | ET49: 0 | EU49: 0 | EV49: 0 | EW49: 0 | EX49: 0 | EY49: 0 | EZ49: 0 | FA49: 0 | FB49: 0 | FC49: 0 | FD49: 0 | FE49: 39394129 | FF49: -8.14 | FG49: 11.47081209 | FH49: 11.6199393 | FI49: 11.20606067 | FJ49: 11.4 | FK49: 90245335 | FL49: 0 | FM49: 29954977 | FN49: 612368 | FO49: 0 | FP49: 805575.927 | FQ49: 0 | FR49: 2410441 | FS49: 13192642 | FT49: 56952700 | FU49: 175611 | FV49: 160680146 | FW49: 295404314 | FX49: 40421331 | FY49: 0 | FZ49: 0 | GA49: 0 | GB49: 482893.43 | GC49: 124788.08 | GD49: 0 | GE49: 0 | GF49: 0 | GG49: 0 | GH49: 197894.417 | GI49: 84947076 | GJ49: 0 | GK49: 31070877 | GL49: 441859 | GM49: 0 | GN49: 801675.835 | GO49: 0 | GP49: 2048593 | GQ49: 11595738 | GR49: 54958658 | GS49: 138550 | GT49: 194634292 | GU49: 282511774 | GV49: 7104559 | GW49: 0 | GX49: 0 | GY49: 0 | GZ49: 395139.968 | HA49: 202710.458 | HB49: 0 | HC49: 0 | HD49: 0 | HE49: 0 | HF49: 203825.409 | HG49: 79608471 | HH49: 0 | HI49: 31759377 | HJ49: 515967 | HK49: 0 | HL49: 1382753 | HM49: 0 | HN49: 2086103 | HO49: 10680680 | HP49: 53364933 | HQ49: 137683 | HR49: 194903322 | HS49: 285881023 | HT49: 2789586 | HU49: 0 | HV49: 0 | HW49: 0 | HX49: 1156296 | HY49: 26772 | HZ49: 0 | IA49: 0 | IB49: 0 | IC49: 0 | ID49: 199685
A50: Ver.05.00 | B50: 470007 | C50: 沖縄県 | D50: - | E50: 1 | F50: - | G50: - | H50: 7.4 | I50: 24.9 | J50: 407514427 | K50: 2411754 | L50: 一般会計 | M50: 4438369 | N50: 沖縄県農業改良資金特別会計 | O50: 70520 | P50: 沖縄県小規模企業者等設備導入資金特別会計 | Q50: 0 | R50: 沖縄県中小企業振興資金特別会計 | S50: 472833 | T50: 沖縄県下地島空港特別会計 | U50: 2222 | V50: 沖縄県母子父子寡婦福祉資金特別会計 | W50: 0 | X50: 沖縄県所有者不明土地管理特別会計 | Y50: 191855 | Z50: 沖縄県沿岸漁業改善資金特別会計 | AA50: 318201 | AB50: 沖縄県林業・木材産業改善資金特別会計 | AC50: 90253 | AD50: 沖縄県産業振興基金特別会計 | AE50: 88433 | AF50: 沖縄県公債管理特別会計 | AG50: 0 | AR50: 5672686 | AS50: -1.39 | AT50: ① | AU50: 沖縄県国民健康保険事業特別会計 | AV50: 4282929 | AW50: ⑦ | AX50: 沖縄県駐車場事業特別会計 | AY50: 103356 | AZ50: 0 | BC50: 0 | BF50: 0 | BI50: 0 | BL50: 0 | BO50: 0 | BR50: 0 | BU50: 0 | BX50: 0 | CA50: 0 | CD50: 0 | CG50: 沖縄県病院事業会計 | CH50: 18640435 | CI50: 沖縄県水道事業会計 | CJ50: 10122405 | CK50: 沖縄県工業用水道事業会計 | CL50: 948246 | CM50: 沖縄県流域下水道事業会計 | CN50: 1455291 | CO50: 0 | CP50: 0 | CQ50: 0 | CR50: 0 | CS50: 0 | CT50: 0 | CU50: 0 | CV50: 0 | CW50: 0 | CX50: 0 | CY50: 0 | CZ50: 0 | DA50: 0 | DB50: 0 | DC50: 0 | DD50: 0 | DE50: 0 | DF50: 0 | DG50: 0 | DH50: 0 | DI50: 0 | DJ50: 0 | DK50: 0 | DL50: 0 | DM50: 0 | DN50: 0 | DO50: 0 | DP50: 0 | DQ50: 0 | DR50: 0 | DS50: 沖縄県中央卸売市場事業特別会計 | DT50: 1753 | DU50: 沖縄県宜野湾港整備事業特別会計 | DV50: 9644 | DW50: 沖縄県中城湾港（新港地区）整備事業特別会計 | DX50: 37 | DY50: 沖縄県国際物流拠点産業集積 地域那覇地区特別会計 | DZ50: 443242 | EA50: 0 | EB50: 0 | EC50: 0 | ED50: 0 | EE50: 0 | EF50: 0 | EG50: 0 | EH50: 0 | EI50: 0 | EJ50: 0 | EK50: 0 | EL50: 0 | EM50: 0 | EN50: 0 | EO50: 0 | EP50: 0 | EQ50: 0 | ER50: 0 | ES50: 0 | ET50: 0 | EU50: 0 | EV50: 0 | EW50: 沖縄県中城湾港マリン・タウン特別会計 | EX50: 1169406 | EY50: 沖縄県中城湾港（泡瀬地区）臨海部土地造成事業特別会計 | EZ50: 0 | FA50: 沖縄県中城湾港（新港地区）臨海部土地造成事業特別会計 | FB50: 6429343 | FC50: 0 | FD50: 0 | FE50: 49278773 | FF50: -12.09 | FG50: 6.961292872 | FH50: 7.982955314 | FI50: 7.501077498 | FJ50: 7.4 | FK50: 65145794 | FL50: 0 | FM50: 0 | FN50: 3632803 | FO50: 438904 | FP50: 0 | FQ50: 14422 | FR50: 2095037 | FS50: 3591726 | FT50: 36928719 | FU50: 966067 | FV50: 140112055 | FW50: 235339493 | FX50: 34506374 | FY50: 0 | FZ50: 0 | GA50: 0 | GB50: 0 | GC50: 0 | GD50: 0 | GE50: 0 | GF50: 0 | GG50: 0 | GH50: 0 | GI50: 67809291 | GJ50: 0 | GK50: 0 | GL50: 3673775 | GM50: 458193 | GN50: 0 | GO50: 28266 | GP50: 2149014 | GQ50: 3583990 | GR50: 36155748 | GS50: 1027676 | GT50: 167492999 | GU50: 231012065 | GV50: 6201466 | GW50: 0 | GX50: 0 | GY50: 0 | GZ50: 0 | HA50: 0 | HB50: 0 | HC50: 0 | HD50: 0 | HE50: 0 | HF50: 0 | HG50: 65230390 | HH50: 0 | HI50: 0 | HJ50: 4141336 | HK50: 415634 | HL50: 0 | HM50: 47273 | HN50: 2141841 | HO50: 3739970 | HP50: 35272815 | HQ50: 1122622 | HR50: 175165957 | HS50: 229936716 | HT50: 2411754 | HU50: 0 | HV50: 0 | HW50: 0 | HX50: 0 | HY50: 0 | HZ50: 0 | IA50: 0 | IB50: 0 | IC50: 0 | ID50: 0
J52: =SUM(J4:J50) -> 29889112399 | FK52: =SUM(FK4:FK50) -> 4207040481 | FL52: =SUM(FL4:FL50) -> 173136031.7 | FM52: 2217177180 | FN52: 220287574.1 | FO52: 8744631 | FP52: 56615571.93 | FQ52: 340700 | FR52: 397569080 | FS52: 442394723 | FT52: 3425857373 | FU52: 60192879 | FV52: 15947831069 | FW52: 10034780239 | FX52: 3242049966 | FY52: 0 | GI52: =SUM(GI4:GI50) -> 4141180463 | GJ52: =SUM(GJ4:GJ50) -> 152873762.8 | GK52: 2276151734 | GL52: 219899227.5 | GM52: 8467311 | GN52: 54333603.33 | GO52: 223138 | GP52: 395297495 | GQ52: 412012367.4 | GR52: 3365441704 | GS52: 60942248 | GT52: 19059131686 | GU52: 9336825518 | GV52: 954341163 | GW52: 0 | HG52: =SUM(HG4:HG50) -> 4077841853 | HH52: =SUM(HH4:HH50) -> 145911958.5 | HI52: =SUM(HI4:HI50) -> 2282995179 | HJ52: =SUM(HJ4:HJ50) -> 226891131.4 | HK52: 8137863 | HL52: 48951143 | HM52: 267386 | HN52: 379238544 | HO52: 394450525 | HP52: 3309640745 | HQ52: 60572902 | HR52: =SUM(HR4:HR50) -> 19855317358 | HS52: =SUM(HS4:HS50) -> 9502680170 | HT52: =SUM(HT4:HT50) -> 531114871 | HU52: 0
FJ53: =FK2 -> 3年度 | FK53: =((SUM(FK52:FQ52)-SUM(FR52:FU52,FY52))/(SUM(FV52:FX52)-SUM(FS52:FU52,FY52))*100) -> 10.10952818 | GH53: =GI2 -> 4年度 | GI53: =((SUM(GI52:GO52)-SUM(GP52:GS52,GW52))/(SUM(GT52:GV52)-SUM(GQ52:GS52,GW52))*100) -> 10.26750346 | HF53: =HG2 -> 5年度 | HG53: =((SUM(HG52:HM52)-SUM(HN52:HQ52,HU52))/(SUM(HR52:HT52)-SUM(HO52:HQ52,HU52))*100) -> 10.13263046 | HT53: =SUM(HR52:HT52) -> 29889112399
FJ54: 3ヵ年平均 | FK54: =ROUNDDOWN((FK53+GI53+HG53)/3,1) -> 10.1

Sheet Sheet2
B1: 総括表① | C1: 総括表① | D1: 総括表① | E1: 総括表① | F1: 総括表④ | G1: 総括表④ | H1: 総括表④ | I1: 総括表④ | J1: 総括表④ | K1: 総括表④ | L1: 総括表④ | M1: 総括表④ | N1: 総括表④ | O1: 総括表④ | P1: 総括表④ | Q1: 総括表④ | R1: 総括表④ | S1: 総括表④ | T1: 総括表④ | U1: 総括表④ | V1: 総括表④ | W1: 総括表④ | X1: 総括表④ | Y1: 総括表④ | Z1: 総括表④ | AA1: 総括表④ | AB1: ４①表 | AC1: ４①表 | AD1: ４①表 | AE1: ４①表 | AF1: ４①表 | AG1: ４①表 | AH1: ４①表 | AI1: ４①表 | AJ1: ４①表 | AK1: ４①表 | AL1: ４①表 | AM1: ４①表 | AN1: ４①表 | AO1: ４①表 | AP1: ４①表 | AQ1: ４①表 | AR1: ４①表 | AS1: ４①表 | AT1: ４①表 | AU1: ４①表 | AV1: ４①表 | AW1: ４①表 | AX1: ４①表 | AY1: ４①表 | AZ1: ４①表 | BA1: ４①表 | BB1: ４①表 | BC1: ４①表 | BD1: ４①表 | BE1: ４①表 | BF1: ４①表 | BG1: ４①表 | BH1: ４①表 | BI1: ４①表 | BJ1: ４①表 | BK1: ４①表 | BL1: ４①表 | BM1: ４①表 | BN1: ４①表 | BO1: ４①表 | BP1: ４①表 | BQ1: ４①表 | BR1: ４①表 | BS1: ４①表 | BT1: ４①表 | BU1: ４①表 | BV1: ４①表 | BW1: ４①表 | BX1: ４①表 | BY1: ４①表 | BZ1: ４①表 | CA1: ４①表 | CB1: ４①表 | CC1: ４①表 | CD1: ４①表 | CE1: ４①表 | CF1: ４①表 | CG1: ４①表 | CH1: ４①表 | CI1: ４①表 | CJ1: ４①表 | CK1: ４①表 | CL1: ４①表 | CM1: ４①表 | CN1: ４①表 | CO1: ４①表 | CP1: ４①表 | CQ1: ４①表 | CR1: ４①表 | CS1: ４①表 | CT1: ４①表 | CU1: ４①表 | CV1: ４①表 | CW1: ４①表 | CX1: ４①表 | CY1: ４①表 | CZ1: ４①表 | DA1: ４①表 | DB1: ４①表 | DC1: ４①表 | DD1: ４①表 | DE1: ４①表 | DF1: ４①表 | DG1: ４①表 | DH1: ４①表 | DI1: ４①表 | DJ1: ４①表 | DK1: ４①表 | DL1: ４①表 | DM1: ４①表 | DN1: ４①表 | DO1: ４①表 | DP1: ４①表 | DQ1: ４①表 | DR1: ４①表 | DS1: ４①表 | DT1: ４①表 | DU1: ４①表 | DV1: ４①表 | DW1: ４①表 | DX1: ４①表 | DY1: ４①表 | DZ1: ４①表 | EA1: ４①表 | EB1: ４①表 | EC1: ４①表 | ED1: ４①表 | EE1: ４①表 | EF1: ４①表 | EG1: ４①表 | EH1: ４①表 | EI1: ４①表 | EJ1: ４①表 | EK1: ４①表 | EL1: ４①表 | EM1: ４①表 | EN1: ４①表 | EO1: ４①表 | EP1: ４①表 | EQ1: ４①表 | ER1: ４①表 | ES1: ４①表 | ET1: ４①表 | EU1: ４①表 | EV1: ４①表 | EW1: ４①表 | EX1: ４①表 | EY1: ４①表 | EZ1: ４①表 | FA1: ４①表 | FB1: ４①表 | FC1: ４①表 | FD1: ４①表 | FE1: ４①表 | FF1: ４①表 | FG1: ４①表 | FH1: ４①表 | FI1: ４①表 | FJ1: ４①表 | FK1: ４①表 | FL1: ４①表 | FM1: ４①表 | FN1: ４①表 | FO1: ４①表 | FP1: ４①表 | FQ1: ４①表 | FR1: ４①表 | FS1: ４①表 | FT1: ４①表 | FU1: ４①表 | FV1: ４①表 | FW1: ４①表 | FX1: ４①表 | FY1: ４①表 | FZ1: ４①表 | GA1: ４①表 | GB1: ４①表 | GC1: ４①表 | GD1: ４①表 | GE1: ４①表 | GF1: ４①表 | GG1: ４①表 | GH1: ４①表 | GI1: ４①表 | GJ1: ４①表 | GK1: ４①表 | GL1: ４①表 | GM1: ４①表 | GN1: ４①表 | GO1: ４①表 | GP1: ４①表 | GQ1: ４①表 | GR1: ４①表 | GS1: ４①表 | GT1: ４①表 | GU1: ４①表 | GV1: ４①表 | GW1: ４①表 | GX1: ４①表 | GY1: ４①表 | GZ1: ４①表 | HA1: ４①表 | HB1: ４①表 | HC1: ４①表 | HD1: ４①表 | HE1: ４①表 | HF1: ４①表 | HG1: ４①表 | HH1: ４①表 | HI1: ４①表 | HJ1: ４①表 | HK1: ４①表 | HL1: ４①表 | HM1: ４①表 | HN1: ４①表 | HO1: ４①表 | HP1: ４①表 | HQ1: ４①表 | HR1: ４①表 | HS1: ４①表 | HT1: ４①表 | HU1: ４①表 | HV1: ４①表 | HW1: ４①表 | HX1: ４①表 | HY1: ４①表 | HZ1: ４①表 | IA1: ４①表 | IB1: ４①表 | IC1: ４①表 | ID1: ４①表 | IE1: ４①表 | IF1: ４①表 | IG1: ４①表 | IH1: ４①表 | II1: ４①表 | IJ1: ４①表 | IK1: ４①表 | IL1: ４①表 | IM1: ４①表 | IN1: ４①表 | IO1: ４①表 | IP1: ４①表 | IQ1: ４①表 | IR1: ４①表 | IS1: ４①表 | IT1: ４①表
A2: バージョン | F2: 将来負担額 | G2: 将来負担額 | H2: 将来負担額 | I2: 将来負担額 | J2: 将来負担額 | K2: 将来負担額 | L2: 将来負担額 | M2: 将来負担額 | N2: 将来負担額 | O2: 将来負担額 | P2: 将来負担額 | Q2: 将来負担額 | R2: 充当財源 | S2: 充当財源 | T2: 充当財源 | U2: 充当財源 | V2: A | W2: B | Y2: D | AB2: ① | AC2: ② | AD2: ③ | AE2: ④ | AF2: ⑤ | AG2: ⑥ | AH2: ⑦ | AI2: ⑧ | AJ2: ⑨ | AK2: ⑩ | AL2: 将来負担額 | AM2: 1 | AN2: 1 | AO2: 1 | AP2: 1 | AQ2: =AM2+1 -> 2 | AR2: =AN2+1 -> 2 | AS2: =AO2+1 -> 2 | AT2: =AP2+1 -> 2 | AU2: =AQ2+1 -> 3 | AV2: 3 | AW2: 3 | AX2: 3 | AY2: 4 | AZ2: 4 | BA2: 4 | BB2: 4 | BC2: 5 | BD2: 5 | BE2: 5 | BF2: 5 | BG2: 6 | BH2: 6 | BI2: 6 | BJ2: 6 | BK2: 7 | BL2: 7 | BM2: 7 | BN2: 7 | BO2: 8 | BP2: 8 | BQ2: 8 | BR2: 8 | BS2: 9 | BT2: 9 | BU2: 9 | BV2: 9 | BW2: 10 | BX2: 10 | BY2: 10 | BZ2: 10 | CA2: 11 | CB2: 11 | CC2: 11 | CD2: 11 | CE2: 12 | CF2: 12 | CG2: 12 | CH2: 12 | CI2: 13 | CJ2: 13 | CK2: 13 | CL2: 13 | CM2: 14 | CN2: 14 | CO2: 14 | CP2: 14 | CQ2: 15 | CR2: 15 | CS2: 15 | CT2: 15 | CU2: 16 | CV2: 16 | CW2: 16 | CX2: 16 | CY2: 17 | CZ2: 17 | DA2: 17 | DB2: 17 | DC2: 18 | DD2: 18 | DE2: 18 | DF2: 18 | DG2: =DC2+1 -> 19 | DH2: 19 | DI2: 19 | DJ2: 19 | DK2: 20 | DL2: 20 | DM2: 20 | DN2: 20 | DO2: 21 | DP2: 21 | DQ2: 21 | DR2: 21 | DS2: 22 | DT2: 22 | DU2: 22 | DV2: 22 | DW2: 23 | DX2: 23 | DY2: 23 | DZ2: 23 | EA2: 24 | EB2: 24 | EC2: 24 | ED2: 24 | EE2: 25 | EF2: 25 | EG2: 25 | EH2: 25 | EI2: 26 | EJ2: 26 | EK2: 26 | EL2: 26 | EM2: 27 | EN2: 27 | EO2: 27 | EP2: 27 | EQ2: 28 | ER2: 28 | ES2: 28 | ET2: 28 | EU2: 29 | EV2: 29 | EW2: 29 | EX2: 29 | EY2: 30 | EZ2: 30 | FA2: 30 | FB2: 30 | FC2: 31 | FD2: 31 | FE2: 31 | FF2: 31 | FG2: 32 | FH2: 32 | FI2: 32 | FJ2: 32 | FK2: 33 | FL2: 33 | FM2: 33 | FN2: 33 | FO2: 34 | FP2: 34 | FQ2: 34 | FR2: 34 | FS2: =FO2+1 -> 35 | FT2: 35 | FU2: 35 | FV2: 35 | FW2: 36 | FX2: 36 | FY2: 36 | FZ2: 36 | GA2: 37 | GB2: 37 | GC2: 37 | GD2: 37 | GE2: 38 | GF2: 38 | GG2: 38 | GH2: 38 | GI2: 39 | GJ2: 39 | GK2: 39 | GL2: 39 | GM2: 40 | GN2: 40 | GO2: 40 | GP2: 40 | GQ2: 41 | GR2: 41 | GS2: 41 | GT2: 41 | GU2: 42 | GV2: 42 | GW2: 42 | GX2: 42 | GY2: 43 | GZ2: 43 | HA2: 43 | HB2: 43 | HC2: 44 | HD2: 44 | HE2: 44 | HF2: 44 | HG2: 45 | HH2: 45 | HI2: 45 | HJ2: 45 | HK2: 46 | HL2: 46 | HM2: 46 | HN2: 46 | HO2: 47 | HP2: 47 | HQ2: 47 | HR2: 47 | HS2: 48 | HT2: 48 | HU2: 48 | HV2: 48 | HW2: 49 | HX2: 49 | HY2: 49 | HZ2: 49 | IA2: 50 | IB2: 50 | IC2: 50 | ID2: 50 | IE2: =IA2+1 -> 51 | IF2: 51 | IG2: 51 | IH2: 51 | II2: 52 | IJ2: 52 | IK2: 52 | IL2: 52 | IM2: 53 | IN2: 53 | IO2: 53 | IP2: 53 | IQ2: 54 | IR2: 54 | IS2: 54 | IT2: 54
B3: 地方公共団体コード | C3: 都道府県名 | D3: 市区町村名 | E3: 団体区分 | F3: 地方債 | G3: 債務負担 | H3: 公営企業債 | I3: 組合等 | J3: 退職手当 | K3: 設立法人等計 | L3: 道路公社 | M3: 土地公社 | N3: 独立法人 | O3: 三セク等 | P3: 連結赤字 | Q3: 組合連結 | R3: 基金 | S3: 特定歳入 | T3: 都市計画税 | U3: 交付税 | V3: 将来負担 | W3: 充当財源B | X3: A-B | Y3: 算入公債費 | Z3: C-D | AA3: 将来負担比率 | AB3: PFI | AC3: 五省協定 | AD3: 国営土地 | AE3: 森林総合研究所 | AF3: 地共済 | AG3: 依頼土地 | AH3: 施設建設費 | AI3: 損失補償等 | AJ3: 債務引受 | AK3: その他 | AL3: 合計 | AM3: 区分 | AN3: 事項 | AO3: 期間 | AP3: 支出予定額 | AQ3: 区分 | AR3: 事項 | AS3: 期間 | AT3: 支出予定額 | AU3: 区分 | AV3: 事項 | AW3: 期間 | AX3: 支出予定額 | AY3: 区分 | AZ3: 事項 | BA3: 期間 | BB3: 支出予定額 | BC3: 区分 | BD3: 事項 | BE3: 期間 | BF3: 支出予定額 | BG3: 区分 | BH3: 事項 | BI3: 期間 | BJ3: 支出予定額 | BK3: 区分 | BL3: 事項 | BM3: 期間 | BN3: 支出予定額 | BO3: 区分 | BP3: 事項 | BQ3: 期間 | BR3: 支出予定額 | BS3: 区分 | BT3: 事項 | BU3: 期間 | BV3: 支出予定額 | BW3: 区分 | BX3: 事項 | BY3: 期間 | BZ3: 支出予定額 | CA3: 区分 | CB3: 事項 | CC3: 期間 | CD3: 支出予定額 | CE3: 区分 | CF3: 事項 | CG3: 期間 | CH3: 支出予定額 | CI3: 区分 | CJ3: 事項 | CK3: 期間 | CL3: 支出予定額 | CM3: 区分 | CN3: 事項 | CO3: 期間 | CP3: 支出予定額 | CQ3: 区分 | CR3: 事項 | CS3: 期間 | CT3: 支出予定額 | CU3: 区分 | CV3: 事項 | CW3: 期間 | CX3: 支出予定額 | CY3: 区分 | CZ3: 事項 | DA3: 期間 | DB3: 支出予定額 | DC3: 区分 | DD3: 事項 | DE3: 期間 | DF3: 支出予定額 | DG3: 区分 | DH3: 事項 | DI3: 期間 | DJ3: 支出予定額 | DK3: 区分 | DL3: 事項 | DM3: 期間 | DN3: 支出予定額 | DO3: 区分 | DP3: 事項 | DQ3: 期間 | DR3: 支出予定額 | DS3: 区分 | DT3: 事項 | DU3: 期間 | DV3: 支出予定額 | DW3: 区分 | DX3: 事項 | DY3: 期間 | DZ3: 支出予定額 | EA3: 区分 | EB3: 事項 | EC3: 期間 | ED3: 支出予定額 | EE3: 区分 | EF3: 事項 | EG3: 期間 | EH3: 支出予定額 | EI3: 区分 | EJ3: 事項 | EK3: 期間 | EL3: 支出予定額 | EM3: 区分 | EN3: 事項 | EO3: 期間 | EP3: 支出予定額 | EQ3: 区分 | ER3: 事項 | ES3: 期間 | ET3: 支出予定額 | EU3: 区分 | EV3: 事項 | EW3: 期間 | EX3: 支出予定額 | EY3: 区分 | EZ3: 事項 | FA3: 期間 | FB3: 支出予定額 | FC3: 区分 | FD3: 事項 | FE3: 期間 | FF3: 支出予定額 | FG3: 区分 | FH3: 事項 | FI3: 期間 | FJ3: 支出予定額 | FK3: 区分 | FL3: 事項 | FM3: 期間 | FN3: 支出予定額 | FO3: 区分 | FP3: 事項 | FQ3: 期間 | FR3: 支出予定額 | FS3: 区分 | FT3: 事項 | FU3: 期間 | FV3: 支出予定額 | FW3: 区分 | FX3: 事項 | FY3: 期間 | FZ3: 支出予定額 | GA3: 区分 | GB3: 事項 | GC3: 期間 | GD3: 支出予定額 | GE3: 区分 | GF3: 事項 | GG3: 期間 | GH3: 支出予定額 | GI3: 区分 | GJ3: 事項 | GK3: 期間 | GL3: 支出予定額 | GM3: 区分 | GN3: 事項 | GO3: 期間 | GP3: 支出予定額 | GQ3: 区分 | GR3: 事項 | GS3: 期間 | GT3: 支出予定額 | GU3: 区分 | GV3: 事項 | GW3: 期間 | GX3: 支出予定額 | GY3: 区分 | GZ3: 事項 | HA3: 期間 | HB3: 支出予定額 | HC3: 区分 | HD3: 事項 | HE3: 期間 | HF3: 支出予定額 | HG3: 区分 | HH3: 事項 | HI3: 期間 | HJ3: 支出予定額 | HK3: 区分 | HL3: 事項 | HM3: 期間 | HN3: 支出予定額 | HO3: 区分 | HP3: 事項 | HQ3: 期間 | HR3: 支出予定額 | HS3: 区分 | HT3: 事項 | HU3: 期間 | HV3: 支出予定額 | HW3: 区分 | HX3: 事項 | HY3: 期間 | HZ3: 支出予定額 | IA3: 区分 | IB3: 事項 | IC3: 期間 | ID3: 支出予定額 | IE3: 区分 | IF3: 事項 | IG3: 期間 | IH3: 支出予定額 | II3: 区分 | IJ3: 事項 | IK3: 期間 | IL3: 支出予定額 | IM3: 区分 | IN3: 事項 | IO3: 期間 | IP3: 支出予定額 | IQ3: 区分 | IR3: 事項 | IS3: 期間 | IT3: 支出予定額
A4: Ver.05.00 | B4: 10006 | C4: 北海道 | D4: - | E4: 1 | F4: 5968738092 | G4: 24517250 | H4: 31315802 | I4: 10348308 | J4: 473582875 | K4: 23204911 | L4: 0 | M4: 9196364 | N4: 0 | O4: 14008547 | P4: 0 | Q4: 0 | R4: 382867153 | S4: 78214593 | T4: 0 | U4: 2495719614 | V4: 6531707238 | W4: 2956801360 | X4: 3574905878 | Y4: 199052828 | Z4: 1165452987 | AA4: 306.7 | AB4: 395195 | AC4: 0 | AD4: 2093932 | AE4: 152935 | AF4: 7413560 | AG4: 14461628 | AH4: 0 | AI4: 0 | AJ4: 0 | AK4: 0 | AL4: 24517250 | AM4: ① | AN4: 八雲広域公園整備運営事業に関する債務負担行為 | AO4: 13 | AP4: 395195 | AQ4: ③ | AR4: 国営土地改良事業の道負担金に関する債務負担行為 | AS4: 12 | AT4: 2093932 | AU4: ④ | AV4: 森林開発公団営大規模林道事業滝雄・厚和線に関する債務負担行為 | AW4: 12 | AX4: 80453 | AY4: ④ | AZ4: 森林開発公団営大規模林道事業平取・えりも線に関する債務負担行為 | BA4: 18 | BB4: 30868 | BC4: ④ | BD4: 森林開発公団営大規模林道事業置戸・阿寒線に関する債務負担行為 | BE4: 16 | BF4: 41614 | BG4: ⑤ | BH4: 教職員宿舎の購入に関する債務負担行為 | BI4: 10 | BJ4: 364025 | BK4: ⑤ | BL4: 警察職員宿舎の賃借に関する債務負担行為 | BM4: 10 | BN4: 358591 | BO4: ⑤ | BP4: 交番、駐在所庁舎の賃借に関する債務負担行為 | BQ4: 27 | BR4: 6690944 | BS4: ⑥ | BT4: 苫小牧東部工業基地用地の先行取得に関する債務負担行為 | BU4: 11 | BV4: 11814761 | BW4: ⑥ | BX4: 平成１１年度石狩湾新港地域港湾用地の先行取得に関する債務負担行為 | BY4: 9 | BZ4: 2078020 | CA4: ⑥ | CB4: 公有地の拡大に伴う土地の先行取得に関する債務負担行為 | CC4: 10 | CD4: 568847 | CE4: 0 | CF4: 0 | CG4: 0 | CH4: 0 | CI4: 0 | CJ4: 0 | CK4: 0 | CL4: 0 | CM4: 0 | CN4: 0 | CO4: 0 | CP4: 0 | CQ4: 0 | CR4: 0 | CS4: 0 | CT4: 0 | CU4: 0 | CV4: 0 | CW4: 0 | CX4: 0 | CY4: 0 | CZ4: 0 | DA4: 0 | DB4: 0 | DC4: 0 | DD4: 0 | DE4: 0 | DF4: 0 | DG4: 0 | DH4: 0 | DI4: 0 | DJ4: 0 | DK4: 0 | DL4: 0 | DM4: 0 | DN4: 0 | DO4: 0 | DP4: 0 | DQ4: 0 | DR4: 0 | DS4: 0 | DT4: 0 | DU4: 0 | DV4: 0 | DW4: 0 | DX4: 0 | DY4: 0 | DZ4: 0 | EA4: 0 | EB4: 0 | EC4: 0 | ED4: 0 | EE4: 0 | EF4: 0 | EG4: 0 | EH4: 0 | EI4: 0 | EJ4: 0 | EK4: 0 | EL4: 0 | EM4: 0 | EN4: 0 | EO4: 0 | EP4: 0 | EQ4: 0 | ER4: 0 | ES4: 0 | ET4: 0 | EU4: 0 | EV4: 0 | EW4: 0 | EX4: 0 | EY4: 0 | EZ4: 0 | FA4: 0 | FB4: 0 | FC4: 0 | FD4: 0 | FE4: 0 | FF4: 0 | FG4: 0 | FH4: 0 | FI4: 0 | FJ4: 0 | FK4: 0 | FL4: 0 | FM4: 0 | FN4: 0 | FO4: 0 | FP4: 0 | FQ4: 0 | FR4: 0 | FS4: 0 | FT4: 0 | FU4: 0 | FV4: 0 | FW4: 0 | FX4: 0 | FY4: 0 | FZ4: 0 | GA4: 0 | GB4: 0 | GC4: 0 | GD4: 0 | GE4: 0 | GF4: 0 | GG4: 0 | GH4: 0 | GI4: 0 | GJ4: 0 | GK4: 0 | GL4: 0 | GM4: 0 | GN4: 0 | GO4: 0 | GP4: 0 | GQ4: 0 | GR4: 1 | GS4: 0 | GT4: 0 | GU4: 0 | GV4: 1 | GW4: 0 | GX4: 0 | GY4: 0 | GZ4: 1 | HA4: 0 | HB4: 0 | HC4: 0 | HD4: 1 | HE4: 0 | HF4: 0 | HG4: 0 | HH4: 1 | HI4: 0 | HJ4: 0 | HK4: 0 | HL4: 1 | HM4: 0 | HN4: 0 | HO4: 0 | HP4: 1 | HQ4: 0 | HR4: 0 | HS4: 0 | HT4: 1 | HU4: 0 | HV4: 0 | HW4: 0 | HX4: 1 | HY4: 0 | HZ4: 0 | IA4: 0 | IB4: 1 | IC4: 0 | ID4: 0 | IE4: 0 | IF4: 1 | IG4: 0 | IH4: 0 | II4: 0 | IJ4: 1 | IK4: 0 | IL4: 0 | IM4: 0 | IN4: 1 | IO4: 0 | IP4: 0 | IQ4: 0 | IR4: 1 | IS4: 0 | IT4: 0
A5: Ver.05.00 | B5: 20001 | C5: 青森県 | D5: - | E5: 1 | F5: 891900976 | G5: 4671804 | H5: 7618734 | I5: 0 | J5: 126177537 | K5: 27947 | L5: 0 | M5: 0 | N5: 0 | O5: 27947 | P5: 0 | Q5: 0 | R5: 146337443 | S5: 17689816 | T5: 0 | U5: 659121283 | V5: 1030396998 | W5: 823148542 | X5: 207248456 | Y5: 57814755 | Z5: 320544278 | AA5: 64.6 | AB5: 3810448 | AC5: 0 | AD5: 861356 | AE5: 0 | AF5: 0 | AG5: 0 | AH5: 0 | AI5: 0 | AJ5: 0 | AK5: 0 | AL5: 4671804 | AM5: ③ | AN5: 国営小田川二期地区事業費負担償還金 | AO5: 19 | AP5: 563715 | AQ5: ③ | AR5: 国営平川二期地区事業費負担償還金 | AS5: 20 | AT5: 297641 | AU5: ① | AV5: 新青森県総合運動公園新水泳場等整備運営事業費 | AW5: 20 | AX5: 3810448 | AY5: 0 | AZ5: 0 | BA5: 0 | BB5: 0 | BC5: 0 | BD5: 0 | BE5: 0 | BF5: 0 | BG5: 0 | BH5: 0 | BI5: 0 | BJ5: 0 | BK5: 0 | BL5: 0 | BM5: 0 | BN5: 0 | BO5: 0 | BP5: 0 | BQ5: 0 | BR5: 0 | BS5: 0 | BT5: 0 | BU5: 0 | BV5: 0 | BW5: 0 | BX5: 0 | BY5: 0 | BZ5: 0 | CA5: 0 | CB5: 0 | CC5: 0 | CD5: 0 | CE5: 0 | CF5: 0 | CG5: 0 | CH5: 0 | CI5: 0 | CJ5: 0 | CK5: 0 | CL5: 0 | CM5: 0 | CN5: 0 | CO5: 0 | CP5: 0 | CQ5: 0 | CR5: 0 | CS5: 0 | CT5: 0 | CU5: 0 | CV5: 0 | CW5: 0 | CX5: 0 | CY5: 0 | CZ5: 0 | DA5: 0 | DB5: 0 | DC5: 0 | DD5: 0 | DE5: 0 | DF5: 0 | DG5: 0 | DH5: 0 | DI5: 0 | DJ5: 0 | DK5: 0 | DL5: 0 | DM5: 0 | DN5: 0 | DO5: 0 | DP5: 0 | DQ5: 0 | DR5: 0 | DS5: 0 | DT5: 0 | DU5: 0 | DV5: 0 | DW5: 0 | DX5: 0 | DY5: 0 | DZ5: 0 | EA5: 0 | EB5: 0 | EC5: 0 | ED5: 0 | EE5: 0 | EF5: 0 | EG5: 0 | EH5: 0 | EI5: 0 | EJ5: 0 | EK5: 0 | EL5: 0 | EM5: 0 | EN5: 0 | EO5: 0 | EP5: 0 | EQ5: 0 | ER5: 0 | ES5: 0 | ET5: 0 | EU5: 0 | EV5: 0 | EW5: 0 | EX5: 0 | EY5: 0 | EZ5: 0 | FA5: 0 | FB5: 0 | FC5: 0 | FD5: 0 | FE5: 0 | FF5: 0 | FG5: 0 | FH5: 0 | FI5: 0 | FJ5: 0 | FK5: 0 | FL5: 0 | FM5: 0 | FN5: 0 | FO5: 0 | FP5: 0 | FQ5: 0 | FR5: 0 | FS5: 0 | FT5: 0 | FU5: 0 | FV5: 0 | FW5: 0 | FX5: 0 | FY5: 0 | FZ5: 0 | GA5: 0 | GB5: 0 | GC5: 0 | GD5: 0 | GE5: 0 | GF5: 0 | GG5: 0 | GH5: 0 | GI5: 0 | GJ5: 0 | GK5: 0 | GL5: 0 | GM5: 0 | GN5: 0 | GO5: 0 | GP5: 0 | GQ5: 0 | GR5: 1 | GS5: 0 | GT5: 0 | GU5: 0 | GV5: 1 | GW5: 0 | GX5: 0 | GY5: 0 | GZ5: 1 | HA5: 0 | HB5: 0 | HC5: 0 | HD5: 1 | HE5: 0 | HF5: 0 | HG5: 0 | HH5: 1 | HI5: 0 | HJ5: 0 | HK5: 0 | HL5: 1 | HM5: 0 | HN5: 0 | HO5: 0 | HP5: 1 | HQ5: 0 | HR5: 0 | HS5: 0 | HT5: 1 | HU5: 0 | HV5: 0 | HW5: 0 | HX5: 1 | HY5: 0 | HZ5: 0 | IA5: 0 | IB5: 1 | IC5: 0 | ID5: 0 | IE5: 0 | IF5: 1 | IG5: 0 | IH5: 0 | II5: 0 | IJ5: 1 | IK5: 0 | IL5: 0 | IM5: 0 | IN5: 1 | IO5: 0 | IP5: 0 | IQ5: 0 | IR5: 1 | IS5: 0 | IT5: 0
A6: Ver.05.00 | B6: 30007 | C6: 岩手県 | D6: - | E6: 1 | F6: 1280263355 | G6: 808005 | H6: 52610377 | I6: 0 | J6: 150871703 | K6: 37303 | L6: 0 | M6: 0 | N6: 0 | O6: 37303 | P6: 0 | Q6: 0 | R6: 113950231 | S6: 48520717 | T6: 0 | U6: 653037555 | V6: 1484590743 | W6: 815508503 | X6: 669082240 | Y6: 58099354 | Z6: 332546184 | AA6: 201.1 | AB6: 393900 | AC6: 0 | AD6: 0 | AE6: 414105 | AF6: 0 | AG6: 0 | AH6: 0 | AI6: 0 | AJ6: 0 | AK6: 0 | AL6: 808005 | AM6: ④ | AN6: 森林総合研究所営土地改良事業 | AO6: 7 | AP6: 414105 | AQ6: ① | AR6: 盛岡南公園野球場（仮称）整備事業費負担金 | AS6: 19 | AT6: 393900 | AU6: 0 | AV6: 0 | AW6: 0 | AX6: 0 | AY6: 0 | AZ6: 0 | BA6: 0 | BB6: 0 | BC6: 0 | BD6: 0 | BE6: 0 | BF6: 0 | BG6: 0 | BH6: 0 | BI6: 0 | BJ6: 0 | BK6: 0 | BL6: 0 | BM6: 0 | BN6: 0 | BO6: 0 | BP6: 0 | BQ6: 0 | BR6: 0 | BS6: 0 | BT6: 0 | BU6: 0 | BV6: 0 | BW6: 0 | BX6: 0 | BY6: 0 | BZ6: 0 | CA6: 0 | CB6: 0 | CC6: 0 | CD6: 0 | CE6: 0 | CF6: 0 | CG6: 0 | CH6: 0 | CI6: 0 | CJ6: 0 | CK6: 0 | CL6: 0 | CM6: 0 | CN6: 0 | CO6: 0 | CP6: 0 | CQ6: 0 | CR6: 0 | CS6: 0 | CT6: 0 | CU6: 0 | CV6: 0 | CW6: 0 | CX6: 0 | CY6: 0 | CZ6: 0 | DA6: 0 | DB6: 0 | DC6: 0 | DD6: 0 | DE6: 0 | DF6: 0 | DG6: 0 | DH6: 0 | DI6: 0 | DJ6: 0 | DK6: 0 | DL6: 0 | DM6: 0 | DN6: 0 | DO6: 0 | DP6: 0 | DQ6: 0 | DR6: 0 | DS6: 0 | DT6: 0 | DU6: 0 | DV6: 0 | DW6: 0 | DX6: 0 | DY6: 0 | DZ6: 0 | EA6: 0 | EB6: 0 | EC6: 0 | ED6: 0 | EE6: 0 | EF6: 0 | EG6: 0 | EH6: 0 | EI6: 0 | EJ6: 0 | EK6: 0 | EL6: 0 | EM6: 0 | EN6: 0 | EO6: 0 | EP6: 0 | EQ6: 0 | ER6: 0 | ES6: 0 | ET6: 0 | EU6: 0 | EV6: 0 | EW6: 0 | EX6: 0 | EY6: 0 | EZ6: 0 | FA6: 0 | FB6: 0 | FC6: 0 | FD6: 0 | FE6: 0 | FF6: 0 | FG6: 0 | FH6: 0 | FI6: 0 | FJ6: 0 | FK6: 0 | FL6: 0 | FM6: 0 | FN6: 0 | FO6: 0 | FP6: 0 | FQ6: 0 | FR6: 0 | FS6: 0 | FT6: 0 | FU6: 0 | FV6: 0 | FW6: 0 | FX6: 0 | FY6: 0 | FZ6: 0 | GA6: 0 | GB6: 0 | GC6: 0 | GD6: 0 | GE6: 0 | GF6: 0 | GG6: 0 | GH6: 0 | GI6: 0 | GJ6: 0 | GK6: 0 | GL6: 0 | GM6: 0 | GN6: 0 | GO6: 0 | GP6: 0 | GQ6: 0 | GR6: 1 | GS6: 0 | GT6: 0 | GU6: 0 | GV6: 1 | GW6: 0 | GX6: 0 | GY6: 0 | GZ6: 1 | HA6: 0 | HB6: 0 | HC6: 0 | HD6: 1 | HE6: 0 | HF6: 0 | HG6: 0 | HH6: 1 | HI6: 0 | HJ6: 0 | HK6: 0 | HL6: 1 | HM6: 0 | HN6: 0 | HO6: 0 | HP6: 1 | HQ6: 0 | HR6: 0 | HS6: 0 | HT6: 1 | HU6: 0 | HV6: 0 | HW6: 0 | HX6: 1 | HY6: 0 | HZ6: 0 | IA6: 0 | IB6: 1 | IC6: 0 | ID6: 0 | IE6: 0 | IF6: 1 | IG6: 0 | IH6: 0 | II6: 0 | IJ6: 1 | IK6: 0 | IL6: 0 | IM6: 0 | IN6: 1 | IO6: 0 | IP6: 0 | IQ6: 0 | IR6: 1 | IS6: 0 | IT6: 0
A7: Ver.05.00 | B7: 40002 | C7: 宮城県 | D7: - | E7: 1 | F7: 1636308727 | G7: 1776962 | H7: 12600305 | I7: 0 | J7: 159427472 | K7: 6424798 | L7: 0 | M7: 0 | N7: 4204273 | O7: 2220525 | P7: 0 | Q7: 0 | R7: 334520732 | S7: 91391770 | T7: 0 | U7: 819046054 | V7: 1816538264 | W7: 1244958556 | X7: 571579708 | Y7: 62751662 | Z7: 422164659 | AA7: 135.3 | AB7: 1776962 | AC7: 0 | AD7: 0 | AE7: 0 | AF7: 0 | AG7: 0 | AH7: 0 | AI7: 0 | AJ7: 0 | AK7: 0 | AL7: 1776962 | AM7: ① | AN7: 消防学校移転整備ＰＦＩ事業 | AO7: 12 | AP7: 383978 | AQ7: ① | AR7: 教育・福祉複合施設整備ＰＦＩ事業 | AS7: 8 | AT7: 1392984 | AU7: 0 | AV7: 0 | AW7: 0 | AX7: 0 | AY7: 0 | AZ7: 0 | BA7: 0 | BB7: 0 | BC7: 0 | BD7: 0 | BE7: 0 | BF7: 0 | BG7: 0 | BH7: 0 | BI7: 0 | BJ7: 0 | BK7: 0 | BL7: 0 | BM7: 0 | BN7: 0 | BO7: 0 | BP7: 0 | BQ7: 0 | BR7: 0 | BS7: 0 | BT7: 0 | BU7: 0 | BV7: 0 | BW7: 0 | BX7: 0 | BY7: 0 | BZ7: 0 | CA7: 0 | CB7: 0 | CC7: 0 | CD7: 0 | CE7: 0 | CF7: 0 | CG7: 0 | CH7: 0 | CI7: 0 | CJ7: 0 | CK7: 0 | CL7: 0 | CM7: 0 | CN7: 0 | CO7: 0 | CP7: 0 | CQ7: 0 | CR7: 0 | CS7: 0 | CT7: 0 | CU7: 0 | CV7: 0 | CW7: 0 | CX7: 0 | CY7: 0 | CZ7: 0 | DA7: 0 | DB7: 0 | DC7: 0 | DD7: 0 | DE7: 0 | DF7: 0 | DG7: 0 | DH7: 0 | DI7: 0 | DJ7: 0 | DK7: 0 | DL7: 0 | DM7: 0 | DN7: 0 | DO7: 0 | DP7: 0 | DQ7: 0 | DR7: 0 | DS7: 0 | DT7: 0 | DU7: 0 | DV7: 0 | DW7: 0 | DX7: 0 | DY7: 0 | DZ7: 0 | EA7: 0 | EB7: 0 | EC7: 0 | ED7: 0 | EE7: 0 | EF7: 0 | EG7: 0 | EH7: 0 | EI7: 0 | EJ7: 0 | EK7: 0 | EL7: 0 | EM7: 0 | EN7: 0 | EO7: 0 | EP7: 0 | EQ7: 0 | ER7: 0 | ES7: 0 | ET7: 0 | EU7: 0 | EV7: 0 | EW7: 0 | EX7: 0 | EY7: 0 | EZ7: 0 | FA7: 0 | FB7: 0 | FC7: 0 | FD7: 0 | FE7: 0 | FF7: 0 | FG7: 0 | FH7: 0 | FI7: 0 | FJ7: 0 | FK7: 0 | FL7: 0 | FM7: 0 | FN7: 0 | FO7: 0 | FP7: 0 | FQ7: 0 | FR7: 0 | FS7: 0 | FT7: 0 | FU7: 0 | FV7: 0 | FW7: 0 | FX7: 0 | FY7: 0 | FZ7: 0 | GA7: 0 | GB7: 0 | GC7: 0 | GD7: 0 | GE7: 0 | GF7: 0 | GG7: 0 | GH7: 0 | GI7: 0 | GJ7: 0 | GK7: 0 | GL7: 0 | GM7: 0 | GN7: 0 | GO7: 0 | GP7: 0 | GQ7: 0 | GR7: 1 | GS7: 0 | GT7: 0 | GU7: 0 | GV7: 1 | GW7: 0 | GX7: 0 | GY7: 0 | GZ7: 1 | HA7: 0 | HB7: 0 | HC7: 0 | HD7: 1 | HE7: 0 | HF7: 0 | HG7: 0 | HH7: 1 | HI7: 0 | HJ7: 0 | HK7: 0 | HL7: 1 | HM7: 0 | HN7: 0 | HO7: 0 | HP7: 1 | HQ7: 0 | HR7: 0 | HS7: 0 | HT7: 1 | HU7: 0 | HV7: 0 | HW7: 0 | HX7: 1 | HY7: 0 | HZ7: 0 | IA7: 0 | IB7: 1 | IC7: 0 | ID7: 0 | IE7: 0 | IF7: 1 | IG7: 0 | IH7: 0 | II7: 0 | IJ7: 1 | IK7: 0 | IL7: 0 | IM7: 0 | IN7: 1 | IO7: 0 | IP7: 0 | IQ7: 0 | IR7: 1 | IS7: 0 | IT7: 0
A8: Ver.05.00 | B8: 50008 | C8: 秋田県 | D8: - | E8: 1 | F8: 1237900548 | G8: 1669797 | H8: 7018351 | I8: 0 | J8: 118210875 | K8: 9666805 | L8: 0 | M8: 0 | N8: 3412859 | O8: 6253946 | P8: 0 | Q8: 0 | R8: 81504567 | S8: 26097308 | T8: 0 | U8: 598697901 | V8: 1374466376 | W8: 706299776 | X8: 668166600 | Y8: 50505532 | Z8: 274871866 | AA8: 243 | AB8: 0 | AC8: 0 | AD8: 0 | AE8: 0 | AF8: 1669797 | AG8: 0 | AH8: 0 | AI8: 0 | AJ8: 0 | AK8: 0 | AL8: 1669797 | AM8: ⑤ | AN8: 警察職員住宅建築費償還金（平成21年度改修分） | AO8: 10 | AP8: 22429 | AQ8: ⑤ | AR8: 警察職員住宅建築費償還金（平成23年度建築分） | AS8: 12 | AT8: 24848 | AU8: ⑤ | AV8: 警察職員住宅建築費償還金（平成24年度建築分） | AW8: 13 | AX8: 42185 | AY8: ⑤ | AZ8: 警察職員住宅建築費償還金（平成24年度改修分） | BA8: 13 | BB8: 58752 | BC8: ⑤ | BD8: 警察職員住宅建築費償還金（平成27年度建築分） | BE8: 16 | BF8: 84918 | BG8: ⑤ | BH8: 警察職員住宅建築費償還金（平成28年度建築分） | BI8: 18 | BJ8: 100441 | BK8: ⑤ | BL8: 警察職員住宅建築費償還金（平成28年度改修分） | BM8: 17 | BN8: 88086 | BO8: ⑤ | BP8: 警察職員住宅建築費償還金（平成29年度改修分） | BQ8: 18 | BR8: 74428 | BS8: ⑤ | BT8: 警察職員住宅建築費償還金（平成30年度改修分） | BU8: 20 | BV8: 115038 | BW8: ⑤ | BX8: 警察職員住宅建築費償還金（平成30年度改修分） | BY8: 20 | BZ8: 351467 | CA8: ⑤ | CB8: 警察職員住宅建築費償還金（令和元年度改修分） | CC8: 21 | CD8: 323343 | CE8: ⑤ | CF8: 警察職員住宅建築費償還金（令和２年度改修分） | CG8: 22 | CH8: 223610 | CI8: ⑤ | CJ8: 警察職員住宅建築費償還金（令和３年度建築分） | CK8: 23 | CL8: 160252 | CM8: 0 | CN8: 0 | CO8: 0 | CP8: 0 | CQ8: 0 | CR8: 0 | CS8: 0 | CT8: 0 | CU8: 0 | CV8: 0 | CW8: 0 | CX8: 0 | CY8: 0 | CZ8: 0 | DA8: 0 | DB8: 0 | DC8: 0 | DD8: 0 | DE8: 0 | DF8: 0 | DG8: 0 | DH8: 0 | DI8: 0 | DJ8: 0 | DK8: 0 | DL8: 0 | DM8: 0 | DN8: 0 | DO8: 0 | DP8: 0 | DQ8: 0 | DR8: 0 | DS8: 0 | DT8: 0 | DU8: 0 | DV8: 0 | DW8: 0 | DX8: 0 | DY8: 0 | DZ8: 0 | EA8: 0 | EB8: 0 | EC8: 0 | ED8: 0 | EE8: 0 | EF8: 0 | EG8: 0 | EH8: 0 | EI8: 0 | EJ8: 0 | EK8: 0 | EL8: 0 | EM8: 0 | EN8: 0 | EO8: 0 | EP8: 0 | EQ8: 0 | ER8: 0 | ES8: 0 | ET8: 0 | EU8: 0 | EV8: 0 | EW8: 0 | EX8: 0 | EY8: 0 | EZ8: 0 | FA8: 0 | FB8: 0 | FC8: 0 | FD8: 0 | FE8: 0 | FF8: 0 | FG8: 0 | FH8: 0 | FI8: 0 | FJ8: 0 | FK8: 0 | FL8: 0 | FM8: 0 | FN8: 0 | FO8: 0 | FP8: 0 | FQ8: 0 | FR8: 0 | FS8: 0 | FT8: 0 | FU8: 0 | FV8: 0 | FW8: 0 | FX8: 0 | FY8: 0 | FZ8: 0 | GA8: 0 | GB8: 0 | GC8: 0 | GD8: 0 | GE8: 0 | GF8: 0 | GG8: 0 | GH8: 0 | GI8: 0 | GJ8: 0 | GK8: 0 | GL8: 0 | GM8: 0 | GN8: 0 | GO8: 0 | GP8: 0 | GQ8: 0 | GR8: 1 | GS8: 0 | GT8: 0 | GU8: 0 | GV8: 1 | GW8: 0 | GX8: 0 | GY8: 0 | GZ8: 1 | HA8: 0 | HB8: 0 | HC8: 0 | HD8: 1 | HE8: 0 | HF8: 0 | HG8: 0 | HH8: 1 | HI8: 0 | HJ8: 0 | HK8: 0 | HL8: 1 | HM8: 0 | HN8: 0 | HO8: 0 | HP8: 1 | HQ8: 0 | HR8: 0 | HS8: 0 | HT8: 1 | HU8: 0 | HV8: 0 | HW8: 0 | HX8: 1 | HY8: 0 | HZ8: 0 | IA8: 0 | IB8: 1 | IC8: 0 | ID8: 0 | IE8: 0 | IF8: 1 | IG8: 0 | IH8: 0 | II8: 0 | IJ8: 1 | IK8: 0 | IL8: 0 | IM8: 0 | IN8: 1 | IO8: 0 | IP8: 0 | IQ8: 0 | IR8: 1 | IS8: 0 | IT8: 0
A9: Ver.05.00 | B9: 60003 | C9: 山形県 | D9: - | E9: 1 | F9: 1146909352 | G9: 516022 | H9: 29582074 | I9: 4038147 | J9: 113099766 | K9: 6961663 | L9: 0 | M9: 0 | N9: 0 | O9: 6961663 | P9: 0 | Q9: 0 | R9: 64040772 | S9: 9021758 | T9: 0 | U9: 617889804 | V9: 1301107024 | W9: 690952334 | X9: 610154690 | Y9: 50638391 | Z9: 279476387 | AA9: 218.3 | AB9: 308478 | AC9: 0 | AD9: 0 | AE9: 156 | AF9: 207388 | AG9: 0 | AH9: 0 | AI9: 0 | AJ9: 0 | AK9: 0 | AL9: 516022 | AM9: ④ | AN9: 大規模林道真室川小国線の開設、改良事業に係る負担金 | AO9: 6 | AP9: 156 | AQ9: ① | AR9: 県営住宅（鈴川団地）建替事業 | AS9: 37 | AT9: 157491 | AU9: ① | AV9: 県営住宅（松境・住吉団地）建替事業 | AW9: 9 | AX9: 105619 | AY9: ① | AZ9: 県営住宅（通町団地）建替事業 | BA9: 11 | BB9: 45368 | BC9: ⑤ | BD9: 新庄警察署肘折駐在所賃貸借契約 | BE9: 8 | BF9: 15177 | BG9: ⑤ | BH9: 山形警第２８号職員アパート賃貸借契約 | BI9: 14 | BJ9: 120766 | BK9: ⑤ | BL9: 米沢警第１３号職員アパート賃貸借契約 | BM9: 16 | BN9: 71445 | BO9: 0 | BP9: 0 | BQ9: 0 | BR9: 0 | BS9: 0 | BT9: 0 | BU9: 0 | BV9: 0 | BW9: 0 | BX9: 0 | BY9: 0 | BZ9: 0 | CA9: 0 | CB9: 0 | CC9: 0 | CD9: 0 | CE9: 0 | CF9: 0 | CG9: 0 | CH9: 0 | CI9: 0 | CJ9: 0 | CK9: 0 | CL9: 0 | CM9: 0 | CN9: 0 | CO9: 0 | CP9: 0 | CQ9: 0 | CR9: 0 | CS9: 0 | CT9: 0 | CU9: 0 | CV9: 0 | CW9: 0 | CX9: 0 | CY9: 0 | CZ9: 0 | DA9: 0 | DB9: 0 | DC9: 0 | DD9: 0 | DE9: 0 | DF9: 0 | DG9: 0 | DH9: 0 | DI9: 0 | DJ9: 0 | DK9: 0 | DL9: 0 | DM9: 0 | DN9: 0 | DO9: 0 | DP9: 0 | DQ9: 0 | DR9: 0 | DS9: 0 | DT9: 0 | DU9: 0 | DV9: 0 | DW9: 0 | DX9: 0 | DY9: 0 | DZ9: 0 | EA9: 0 | EB9: 0 | EC9: 0 | ED9: 0 | EE9: 0 | EF9: 0 | EG9: 0 | EH9: 0 | EI9: 0 | EJ9: 0 | EK9: 0 | EL9: 0 | EM9: 0 | EN9: 0 | EO9: 0 | EP9: 0 | EQ9: 0 | ER9: 0 | ES9: 0 | ET9: 0 | EU9: 0 | EV9: 0 | EW9: 0 | EX9: 0 | EY9: 0 | EZ9: 0 | FA9: 0 | FB9: 0 | FC9: 0 | FD9: 0 | FE9: 0 | FF9: 0 | FG9: 0 | FH9: 0 | FI9: 0 | FJ9: 0 | FK9: 0 | FL9: 0 | FM9: 0 | FN9: 0 | FO9: 0 | FP9: 0 | FQ9: 0 | FR9: 0 | FS9: 0 | FT9: 0 | FU9: 0 | FV9: 0 | FW9: 0 | FX9: 0 | FY9: 0 | FZ9: 0 | GA9: 0 | GB9: 0 | GC9: 0 | GD9: 0 | GE9: 0 | GF9: 0 | GG9: 0 | GH9: 0 | GI9: 0 | GJ9: 0 | GK9: 0 | GL9: 0 | GM9: 0 | GN9: 0 | GO9: 0 | GP9: 0 | GQ9: 0 | GR9: 1 | GS9: 0 | GT9: 0 | GU9: 0 | GV9: 1 | GW9: 0 | GX9: 0 | GY9: 0 | GZ9: 1 | HA9: 0 | HB9: 0 | HC9: 0 | HD9: 1 | HE9: 0 | HF9: 0 | HG9: 0 | HH9: 1 | HI9: 0 | HJ9: 0 | HK9: 0 | HL9: 1 | HM9: 0 | HN9: 0 | HO9: 0 | HP9: 1 | HQ9: 0 | HR9: 0 | HS9: 0 | HT9: 1 | HU9: 0 | HV9: 0 | HW9: 0 | HX9: 1 | HY9: 0 | HZ9: 0 | IA9: 0 | IB9: 1 | IC9: 0 | ID9: 0 | IE9: 0 | IF9: 1 | IG9: 0 | IH9: 0 | II9: 0 | IJ9: 1 | IK9: 0 | IL9: 0 | IM9: 0 | IN9: 1 | IO9: 0 | IP9: 0 | IQ9: 0 | IR9: 1 | IS9: 0 | IT9: 0
A10: Ver.05.00 | B10: 70009 | C10: 福島県 | D10: - | E10: 1 | F10: 1668582052 | G10: 1757062 | H10: 25014603 | I10: 0 | J10: 202294982 | K10: 12204195 | L10: 108802 | M10: 0 | N10: 0 | O10: 12095393 | P10: 0 | Q10: 0 | R10: 387886455 | S10: 96511731 | T10: 0 | U10: 932849114 | V10: 1909852894 | W10: 1417247300 | X10: 492605594 | Y10: 67175561 | Z10: 431394489 | AA10: 114.1 | AB10: 0 | AC10: 0 | AD10: 1397425 | AE10: 359637 | AF10: 0 | AG10: 0 | AH10: 0 | AI10: 0 | AJ10: 0 | AK10: 0 | AL10: 1757062 | AM10: ③ | AN10: 国営土地改良事業費負担金(郡山東部地区) | AO10: 8 | AP10: 141158 | AQ10: ③ | AR10: 国営土地改良事業費負担金(隈戸川地区) | AS10: 19 | AT10: 1246494 | AU10: ③ | AV10: 国営土地改良事業費負担金(安積疏水二期地区) | AW10: 17 | AX10: 9773 | AY10: ④ | AZ10: 緑資源幹線林道事業費負担金（一の木区間） | BA10: 13 | BB10: 35538 | BC10: ④ | BD10: 緑資源幹線林道事業費負担金（山都区間） | BE10: 14 | BF10: 22895 | BG10: ④ | BH10: 緑資源幹線林道事業費負担金（新鶴・柳津区間） | BI10: 16 | BJ10: 55681 | BK10: ④ | BL10: 緑資源幹線林道事業費負担金（田島・舘岩区間） | BM10: 22 | BN10: 49440 | BO10: ④ | BP10: 緑資源幹線林道事業費負担金（下郷（Ⅰ）区間） | BQ10: 8 | BR10: 24413 | BS10: ④ | BT10: 緑資源幹線林道事業費負担金（北塩原・磐梯区間） | BU10: 20 | BV10: 34937 | BW10: ④ | BX10: 緑資源機構営土地改良事業費負担金（郡山地区） | BY10: 6 | BZ10: 136733 | CA10: 0 | CB10: 0 | CC10: 0 | CD10: 0 | CE10: 0 | CF10: 0 | CG10: 0 | CH10: 0 | CI10: 0 | CJ10: 0 | CK10: 0 | CL10: 0 | CM10: 0 | CN10: 0 | CO10: 0 | CP10: 0 | CQ10: 0 | CR10: 0 | CS10: 0 | CT10: 0 | CU10: 0 | CV10: 0 | CW10: 0 | CX10: 0 | CY10: 0 | CZ10: 0 | DA10: 0 | DB10: 0 | DC10: 0 | DD10: 0 | DE10: 0 | DF10: 0 | DG10: 0 | DH10: 0 | DI10: 0 | DJ10: 0 | DK10: 0 | DL10: 0 | DM10: 0 | DN10: 0 | DO10: 0 | DP10: 0 | DQ10: 0 | DR10: 0 | DS10: 0 | DT10: 0 | DU10: 0 | DV10: 0 | DW10: 0 | DX10: 0 | DY10: 0 | DZ10: 0 | EA10: 0 | EB10: 0 | EC10: 0 | ED10: 0 | EE10: 0 | EF10: 0 | EG10: 0 | EH10: 0 | EI10: 0 | EJ10: 0 | EK10: 0 | EL10: 0 | EM10: 0 | EN10: 0 | EO10: 0 | EP10: 0 | EQ10: 0 | ER10: 0 | ES10: 0 | ET10: 0 | EU10: 0 | EV10: 0 | EW10: 0 | EX10: 0 | EY10: 0 | EZ10: 0 | FA10: 0 | FB10: 0 | FC10: 0 | FD10: 0 | FE10: 0 | FF10: 0 | FG10: 0 | FH10: 0 | FI10: 0 | FJ10: 0 | FK10: 0 | FL10: 0 | FM10: 0 | FN10: 0 | FO10: 0 | FP10: 0 | FQ10: 0 | FR10: 0 | FS10: 0 | FT10: 0 | FU10: 0 | FV10: 0 | FW10: 0 | FX10: 0 | FY10: 0 | FZ10: 0 | GA10: 0 | GB10: 0 | GC10: 0 | GD10: 0 | GE10: 0 | GF10: 0 | GG10: 0 | GH10: 0 | GI10: 0 | GJ10: 0 | GK10: 0 | GL10: 0 | GM10: 0 | GN10: 0 | GO10: 0 | GP10: 0 | GQ10: 0 | GR10: 1 | GS10: 0 | GT10: 0 | GU10: 0 | GV10: 1 | GW10: 0 | GX10: 0 | GY10: 0 | GZ10: 1 | HA10: 0 | HB10: 0 | HC10: 0 | HD10: 1 | HE10: 0 | HF10: 0 | HG10: 0 | HH10: 1 | HI10: 0 | HJ10: 0 | HK10: 0 | HL10: 1 | HM10: 0 | HN10: 0 | HO10: 0 | HP10: 1 | HQ10: 0 | HR10: 0 | HS10: 0 | HT10: 1 | HU10: 0 | HV10: 0 | HW10: 0 | HX10: 1 | HY10: 0 | HZ10: 0 | IA10: 0 | IB10: 1 | IC10: 0 | ID10: 0 | IE10: 0 | IF10: 1 | IG10: 0 | IH10: 0 | II10: 0 | IJ10: 1 | IK10: 0 | IL10: 0 | IM10: 0 | IN10: 1 | IO10: 0 | IP10: 0 | IQ10: 0 | IR10: 1 | IS10: 0 | IT10: 0
A11: Ver.05.00 | B11: 080004 | C11: 茨城県 | D11: - | E11: 1 | F11: 2189215002 | G11: 17842204 | H11: 58809701 | I11: 0 | J11: 231415413 | K11: 2818340 | L11: 0 | M11: 0 | N11: 0 | O11: 2818340 | P11: 0 | Q11: 0 | R11: 317254407 | S11: 54254038 | T11: 0 | U11: 1163847404 | V11: 2500100660 | W11: 1535355849 | X11: 964744811 | Y11: 89217411 | Z11: 580984481 | AA11: 166 | AB11: 0 | AC11: 0 | AD11: 3696107 | AE11: 0 | AF11: 0 | AG11: 0 | AH11: 0 | AI11: 0 | AJ11: 134331 | AK11: 14011766 | AL11: 17842204 | AM11: ⑩ | AN11: 工業用地造成委託債務確定譲渡債務（三菱UFJ信託銀行） | AO11: 11 | AP11: 14011766 | AQ11: ③ | AR11: 国営土地改良事業負担金 | AS11: 17 | AT11: 3696107 | AU11: ⑨ | AV11: 農林振興公社分収林債務継承 | AW11: 31 | AX11: 134331 | AY11: 0 | AZ11: 0 | BA11: 0 | BB11: 0 | BC11: 0 | BD11: 0 | BE11: 0 | BF11: 0 | BG11: 0 | BH11: 0 | BI11: 0 | BJ11: 0 | BK11: 0 | BL11: 0 | BM11: 0 | BN11: 0 | BO11: 0 | BP11: 0 | BQ11: 0 | BR11: 0 | BS11: 0 | BT11: 0 | BU11: 0 | BV11: 0 | BW11: 0 | BX11: 0 | BY11: 0 | BZ11: 0 | CA11: 0 | CB11: 0 | CC11: 0 | CD11: 0 | CE11: 0 | CF11: 0 | CG11: 0 | CH11: 0 | CI11: 0 | CJ11: 0 | CK11: 0 | CL11: 0 | CM11: 0 | CN11: 0 | CO11: 0 | CP11: 0 | CQ11: 0 | CR11: 0 | CS11: 0 | CT11: 0 | CU11: 0 | CV11: 0 | CW11: 0 | CX11: 0 | CY11: 0 | CZ11: 0 | DA11: 0 | DB11: 0 | DC11: 0 | DD11: 0 | DE11: 0 | DF11: 0 | DG11: 0 | DH11: 0 | DI11: 0 | DJ11: 0 | DK11: 0 | DL11: 0 | DM11: 0 | DN11: 0 | DO11: 0 | DP11: 0 | DQ11: 0 | DR11: 0 | DS11: 0 | DT11: 0 | DU11: 0 | DV11: 0 | DW11: 0 | DX11: 0 | DY11: 0 | DZ11: 0 | EA11: 0 | EB11: 0 | EC11: 0 | ED11: 0 | EE11: 0 | EF11: 0 | EG11: 0 | EH11: 0 | EI11: 0 | EJ11: 0 | EK11: 0 | EL11: 0 | EM11: 0 | EN11: 0 | EO11: 0 | EP11: 0 | EQ11: 0 | ER11: 0 | ES11: 0 | ET11: 0 | EU11: 0 | EV11: 0 | EW11: 0 | EX11: 0 | EY11: 0 | EZ11: 0 | FA11: 0 | FB11: 0 | FC11: 0 | FD11: 0 | FE11: 0 | FF11: 0 | FG11: 0 | FH11: 0 | FI11: 0 | FJ11: 0 | FK11: 0 | FL11: 0 | FM11: 0 | FN11: 0 | FO11: 0 | FP11: 0 | FQ11: 0 | FR11: 0 | FS11: 0 | FT11: 0 | FU11: 0 | FV11: 0 | FW11: 0 | FX11: 0 | FY11: 0 | FZ11: 0 | GA11: 0 | GB11: 0 | GC11: 0 | GD11: 0 | GE11: 0 | GF11: 0 | GG11: 0 | GH11: 0 | GI11: 0 | GJ11: 0 | GK11: 0 | GL11: 0 | GM11: 0 | GN11: 0 | GO11: 0 | GP11: 0 | GQ11: 0 | GR11: 1 | GS11: 0 | GT11: 0 | GU11: 0 | GV11: 1 | GW11: 0 | GX11: 0 | GY11: 0 | GZ11: 1 | HA11: 0 | HB11: 0 | HC11: 0 | HD11: 1 | HE11: 0 | HF11: 0 | HG11: 0 | HH11: 1 | HI11: 0 | HJ11: 0 | HK11: 0 | HL11: 1 | HM11: 0 | HN11: 0 | HO11: 0 | HP11: 1 | HQ11: 0 | HR11: 0 | HS11: 0 | HT11: 1 | HU11: 0 | HV11: 0 | HW11: 0 | HX11: 1 | HY11: 0 | HZ11: 0 | IA11: 0 | IB11: 1 | IC11: 0 | ID11: 0 | IE11: 0 | IF11: 1 | IG11: 0 | IH11: 0 | II11: 0 | IJ11: 1 | IK11: 0 | IL11: 0 | IM11: 0 | IN11: 1 | IO11: 0 | IP11: 0 | IQ11: 0 | IR11: 1 | IS11: 0 | IT11: 0
A12: Ver.05.00 | B12: 090000 | C12: 栃木県 | D12: - | E12: 1 | F12: 1172776880 | G12: 24101090 | H12: 7485981 | I12: 0 | J12: 162652409 | K12: 19742170 | L12: 17741042 | M12: 0 | N12: 0 | O12: 2001128 | P12: 0 | Q12: 0 | R12: 160739333 | S12: 11687824 | T12: 0 | U12: 805153838 | V12: 1386758530 | W12: 977580995 | X12: 409177535 | Y12: 59395877 | Z12: 397926653 | AA12: 102.8 | AB12: 18224765 | AC12: 0 | AD12: 0 | AE12: 0 | AF12: 5876325 | AG12: 0 | AH12: 0 | AI12: 0 | AJ12: 0 | AK12: 0 | AL12: 24101090 | AM12: ① | AN12: 総合スポーツゾーン東エリア整備運営事業 | AO12: 17 | AP12: 13144184 | AQ12: ① | AR12: 栃木県立みかも自然の家整備運営事業 | AS12: 20 | AT12: 5080581 | AU12: ⑤ | AV12: 平成12年度共済組合警察職員住宅等賃借料 | AW12: 6 | AX12: 285409 | AY12: ⑤ | AZ12: 平成13年度共済組合警察職員住宅等賃借料 | BA12: 7 | BB12: 109760 | BC12: ⑤ | BD12: 平成14年度共済組合警察職員住宅等賃借料 | BE12: 8 | BF12: 214200 | BG12: ⑤ | BH12: 平成15年度共済組合警察職員住宅等賃借料 | BI12: 9 | BJ12: 131861 | BK12: ⑤ | BL12: 平成16年度共済組合警察職員住宅等賃借料 | BM12: 10 | BN12: 139509 | BO12: ⑤ | BP12: 平成17年度共済組合警察職員住宅等賃借料 | BQ12: 11 | BR12: 608940 | BS12: ⑤ | BT12: 平成18年度共済組合警察職員住宅等賃借料 | BU12: 12 | BV12: 355558 | BW12: ⑤ | BX12: 平成19年度共済組合警察職員住宅等賃借料 | BY12: 13 | BZ12: 359220 | CA12: ⑤ | CB12: 平成20年度共済組合警察職員住宅等賃借料 | CC12: 14 | CD12: 784083 | CE12: ⑤ | CF12: 平成21年度共済組合警察職員住宅等賃借料 | CG12: 15 | CH12: 142525 | CI12: ⑤ | CJ12: 平成22年度共済組合警察職員住宅等賃借料 | CK12: 16 | CL12: 28726 | CM12: ⑤ | CN12: 平成23年度共済組合警察職員住宅等賃借料 | CO12: 7 | CP12: 41428 | CQ12: ⑤ | CR12: 平成23年度共済組合警察職員住宅等賃借料 | CS12: 17 | CT12: 102880 | CU12: ⑤ | CV12: 平成24年度共済組合警察職員住宅等賃借料 | CW12: 8 | CX12: 51316 | CY12: ⑤ | CZ12: 平成24年度共済組合警察職員住宅等賃借料 | DA12: 18 | DB12: 111567 | DC12: ⑤ | DD12: 平成25年度共済組合警察職員住宅等賃借料 | DE12: 9 | DF12: 53312 | DG12: ⑤ | DH12: 平成25年度共済組合警察職員住宅等賃借料 | DI12: 19 | DJ12: 153095 | DK12: ⑤ | DL12: 平成26年度共済組合警察職員住宅等賃借料 | DM12: 10 | DN12: 80247 | DO12: ⑤ | DP12: 平成26年度共済組合警察職員住宅等賃借料 | DQ12: 20 | DR12: 175283 | DS12: ⑤ | DT12: 平成27年度共済組合警察職員住宅等賃借料 | DU12: 21 | DV12: 446093 | DW12: ⑤ | DX12: 平成28年度共済組合警察職員住宅等賃借料 | DY12: 12 | DZ12: 142775 | EA12: ⑤ | EB12: 平成28年度共済組合警察職員住宅等賃借料 | EC12: 22 | ED12: 183190 | EE12: ⑤ | EF12: 平成29年度共済組合警察職員住宅等賃借料 | EG12: 23 | EH12: 553632 | EI12: ⑤ | EJ12: 平成30年度共済組合警察職員住宅等賃借料 | EK12: 24 | EL12: 621716 | EM12: 0 | EN12: 0 | EO12: 0 | EP12: 0 | EQ12: 0 | ER12: 0 | ES12: 0 | ET12: 0 | EU12: 0 | EV12: 0 | EW12: 0 | EX12: 0 | EY12: 0 | EZ12: 0 | FA12: 0 | FB12: 0 | FC12: 0 | FD12: 0 | FE12: 0 | FF12: 0 | FG12: 0 | FH12: 0 | FI12: 0 | FJ12: 0 | FK12: 0 | FL12: 0 | FM12: 0 | FN12: 0 | FO12: 0 | FP12: 0 | FQ12: 0 | FR12: 0 | FS12: 0 | FT12: 0 | FU12: 0 | FV12: 0 | FW12: 0 | FX12: 0 | FY12: 0 | FZ12: 0 | GA12: 0 | GB12: 0 | GC12: 0 | GD12: 0 | GE12: 0 | GF12: 0 | GG12: 0 | GH12: 0 | GI12: 0 | GJ12: 0 | GK12: 0 | GL12: 0 | GM12: 0 | GN12: 0 | GO12: 0 | GP12: 0 | GQ12: 0 | GR12: 1 | GS12: 0 | GT12: 0 | GU12: 0 | GV12: 1 | GW12: 0 | GX12: 0 | GY12: 0 | GZ12: 1 | HA12: 0 | HB12: 0 | HC12: 0 | HD12: 1 | HE12: 0 | HF12: 0 | HG12: 0 | HH12: 1 | HI12: 0 | HJ12: 0 | HK12: 0 | HL12: 1 | HM12: 0 | HN12: 0 | HO12: 0 | HP12: 1 | HQ12: 0 | HR12: 0 | HS12: 0 | HT12: 1 | HU12: 0 | HV12: 0 | HW12: 0 | HX12: 1 | HY12: 0 | HZ12: 0 | IA12: 0 | IB12: 1 | IC12: 0 | ID12: 0 | IE12: 0 | IF12: 1 | IG12: 0 | IH12: 0 | II12: 0 | IJ12: 1 | IK12: 0 | IL12: 0 | IM12: 0 | IN12: 1 | IO12: 0 | IP12: 0 | IQ12: 0 | IR12: 1 | IS12: 0 | IT12: 0
A13: Ver.05.00 | B13: 100005 | C13: 群馬県 | D13: - | E13: 1 | F13: 1352623341 | G13: 621869 | H13: 20916306 | I13: 0 | J13: 170923571 | K13: 1349884 | L13: 0 | M13: 0 | N13: 0 | O13: 1349884 | P13: 0 | Q13: 0 | R13: 197549376 | S13: 10319681 | T13: 0 | U13: 806264238 | V13: 1546434971 | W13: 1014133295 | X13: 532301676 | Y13: 60997918 | Z13: 398272539 | AA13: 133.6 | AB13: 0 | AC13: 0 | AD13: 0 | AE13: 621869 | AF13: 0 | AG13: 0 | AH13: 0 | AI13: 0 | AJ13: 0 | AK13: 0 | AL13: 621869 | AM13: ④ | AN13: 水資源機構営群馬用水緊急改築事業 | AO13: 8 | AP13: 621869 | AQ13: 0 | AR13: 0 | AS13: 0 | AT13: 0 | AU13: 0 | AV13: 0 | AW13: 0 | AX13: 0 | AY13: 0 | AZ13: 0 | BA13: 0 | BB13: 0 | BC13: 0 | BD13: 0 | BE13: 0 | BF13: 0 | BG13: 0 | BH13: 0 | BI13: 0 | BJ13: 0 | BK13: 0 | BL13: 0 | BM13: 0 | BN13: 0 | BO13: 0 | BP13: 0 | BQ13: 0 | BR13: 0 | BS13: 0 | BT13: 0 | BU13: 0 | BV13: 0 | BW13: 0 | BX13: 0 | BY13: 0 | BZ13: 0 | CA13: 0 | CB13: 0 | CC13: 0 | CD13: 0 | CE13: 0 | CF13: 0 | CG13: 0 | CH13: 0 | CI13: 0 | CJ13: 0 | CK13: 0 | CL13: 0 | CM13: 0 | CN13: 0 | CO13: 0 | CP13: 0 | CQ13: 0 | CR13: 0 | CS13: 0 | CT13: 0 | CU13: 0 | CV13: 0 | CW13: 0 | CX13: 0 | CY13: 0 | CZ13: 0 | DA13: 0 | DB13: 0 | DC13: 0 | DD13: 0 | DE13: 0 | DF13: 0 | DG13: 0 | DH13: 0 | DI13: 0 | DJ13: 0 | DK13: 0 | DL13: 0 | DM13: 0 | DN13: 0 | DO13: 0 | DP13: 0 | DQ13: 0 | DR13: 0 | DS13: 0 | DT13: 0 | DU13: 0 | DV13: 0 | DW13: 0 | DX13: 0 | DY13: 0 | DZ13: 0 | EA13: 0 | EB13: 0 | EC13: 0 | ED13: 0 | EE13: 0 | EF13: 0 | EG13: 0 | EH13: 0 | EI13: 0 | EJ13: 0 | EK13: 0 | EL13: 0 | EM13: 0 | EN13: 0 | EO13: 0 | EP13: 0 | EQ13: 0 | ER13: 0 | ES13: 0 | ET13: 0 | EU13: 0 | EV13: 0 | EW13: 0 | EX13: 0 | EY13: 0 | EZ13: 0 | FA13: 0 | FB13: 0 | FC13: 0 | FD13: 0 | FE13: 0 | FF13: 0 | FG13: 0 | FH13: 0 | FI13: 0 | FJ13: 0 | FK13: 0 | FL13: 0 | FM13: 0 | FN13: 0 | FO13: 0 | FP13: 0 | FQ13: 0 | FR13: 0 | FS13: 0 | FT13: 0 | FU13: 0 | FV13: 0 | FW13: 0 | FX13: 0 | FY13: 0 | FZ13: 0 | GA13: 0 | GB13: 0 | GC13: 0 | GD13: 0 | GE13: 0 | GF13: 0 | GG13: 0 | GH13: 0 | GI13: 0 | GJ13: 0 | GK13: 0 | GL13: 0 | GM13: 0 | GN13: 0 | GO13: 0 | GP13: 0 | GQ13: 0 | GR13: 1 | GS13: 0 | GT13: 0 | GU13: 0 | GV13: 1 | GW13: 0 | GX13: 0 | GY13: 0 | GZ13: 1 | HA13: 0 | HB13: 0 | HC13: 0 | HD13: 1 | HE13: 0 | HF13: 0 | HG13: 0 | HH13: 1 | HI13: 0 | HJ13: 0 | HK13: 0 | HL13: 1 | HM13: 0 | HN13: 0 | HO13: 0 | HP13: 1 | HQ13: 0 | HR13: 0 | HS13: 0 | HT13: 1 | HU13: 0 | HV13: 0 | HW13: 0 | HX13: 1 | HY13: 0 | HZ13: 0 | IA13: 0 | IB13: 1 | IC13: 0 | ID13: 0 | IE13: 0 | IF13: 1 | IG13: 0 | IH13: 0 | II13: 0 | IJ13: 1 | IK13: 0 | IL13: 0 | IM13: 0 | IN13: 1 | IO13: 0 | IP13: 0 | IQ13: 0 | IR13: 1 | IS13: 0 | IT13: 0
A14: Ver.05.00 | B14: 110001 | C14: 埼玉県 | D14: - | E14: 1 | F14: 4839270246 | G14: 9973119 | H14: 31467084 | I14: 0 | J14: 327359413 | K14: 21834897 | L14: 6183572 | M14: 0 | N14: 333853 | O14: 15317472 | P14: 0 | Q14: 0 | R14: 1256532251 | S14: 54253517 | T14: 0 | U14: 2197311556 | V14: 5229904759 | W14: 3508097324 | X14: 1721807435 | Y14: 162190335 | Z14: 1133157108 | AA14: 151.9 | AB14: 942214 | AC14: 0 | AD14: 0 | AE14: 0 | AF14: 8936538 | AG14: 0 | AH14: 0 | AI14: 0 | AJ14: 0 | AK14: 94367 | AL14: 9973119 | AM14: ① | AN14: 公共関与による資源循環モデル事業 | AO14: 11 | AP14: 942214 | AQ14: ⑤ | AR14: 警察共済組合不動産投資施設特約譲渡事業償還金 | AS14: 29 | AT14: 8936538 | AU14: ⑩ | AV14: 山間山添い地域水道水源開発施設整備費償還金補助 | AW14: 15 | AX14: 70476 | AY14: ⑩ | AZ14: 旧山西省友好記念館施設改修費等補助 | BA14: 11 | BB14: 23891 | BC14: 0 | BD14: 0 | BE14: 0 | BF14: 0 | BG14: 0 | BH14: 0 | BI14: 0 | BJ14: 0 | BK14: 0 | BL14: 0 | BM14: 0 | BN14: 0 | BO14: 0 | BP14: 0 | BQ14: 0 | BR14: 0 | BS14: 0 | BT14: 0 | BU14: 0 | BV14: 0 | BW14: 0 | BX14: 0 | BY14: 0 | BZ14: 0 | CA14: 0 | CB14: 0 | CC14: 0 | CD14: 0 | CE14: 0 | CF14: 0 | CG14: 0 | CH14: 0 | CI14: 0 | CJ14: 0 | CK14: 0 | CL14: 0 | CM14: 0 | CN14: 0 | CO14: 0 | CP14: 0 | CQ14: 0 | CR14: 0 | CS14: 0 | CT14: 0 | CU14: 0 | CV14: 0 | CW14: 0 | CX14: 0 | CY14: 0 | CZ14: 0 | DA14: 0 | DB14: 0 | DC14: 0 | DD14: 0 | DE14: 0 | DF14: 0 | DG14: 0 | DH14: 0 | DI14: 0 | DJ14: 0 | DK14: 0 | DL14: 0 | DM14: 0 | DN14: 0 | DO14: 0 | DP14: 0 | DQ14: 0 | DR14: 0 | DS14: 0 | DT14: 0 | DU14: 0 | DV14: 0 | DW14: 0 | DX14: 0 | DY14: 0 | DZ14: 0 | EA14: 0 | EB14: 0 | EC14: 0 | ED14: 0 | EE14: 0 | EF14: 0 | EG14: 0 | EH14: 0 | EI14: 0 | EJ14: 0 | EK14: 0 | EL14: 0 | EM14: 0 | EN14: 0 | EO14: 0 | EP14: 0 | EQ14: 0 | ER14: 0 | ES14: 0 | ET14: 0 | EU14: 0 | EV14: 0 | EW14: 0 | EX14: 0 | EY14: 0 | EZ14: 0 | FA14: 0 | FB14: 0 | FC14: 0 | FD14: 0 | FE14: 0 | FF14: 0 | FG14: 0 | FH14: 0 | FI14: 0 | FJ14: 0 | FK14: 0 | FL14: 0 | FM14: 0 | FN14: 0 | FO14: 0 | FP14: 0 | FQ14: 0 | FR14: 0 | FS14: 0 | FT14: 0 | FU14: 0 | FV14: 0 | FW14: 0 | FX14: 0 | FY14: 0 | FZ14: 0 | GA14: 0 | GB14: 0 | GC14: 0 | GD14: 0 | GE14: 0 | GF14: 0 | GG14: 0 | GH14: 0 | GI14: 0 | GJ14: 0 | GK14: 0 | GL14: 0 | GM14: 0 | GN14: 0 | GO14: 0 | GP14: 0 | GQ14: 0 | GR14: 1 | GS14: 0 | GT14: 0 | GU14: 0 | GV14: 1 | GW14: 0 | GX14: 0 | GY14: 0 | GZ14: 1 | HA14: 0 | HB14: 0 | HC14: 0 | HD14: 1 | HE14: 0 | HF14: 0 | HG14: 0 | HH14: 1 | HI14: 0 | HJ14: 0 | HK14: 0 | HL14: 1 | HM14: 0 | HN14: 0 | HO14: 0 | HP14: 1 | HQ14: 0 | HR14: 0 | HS14: 0 | HT14: 1 | HU14: 0 | HV14: 0 | HW14: 0 | HX14: 1 | HY14: 0 | HZ14: 0 | IA14: 0 | IB14: 1 | IC14: 0 | ID14: 0 | IE14: 0 | IF14: 1 | IG14: 0 | IH14: 0 | II14: 0 | IJ14: 1 | IK14: 0 | IL14: 0 | IM14: 0 | IN14: 1 | IO14: 0 | IP14: 0 | IQ14: 0 | IR14: 1 | IS14: 0 | IT14: 0
A15: Ver.05.00 | B15: 120006 | C15: 千葉県 | D15: - | E15: 1 | F15: 3694585378 | G15: 16731946 | H15: 62469389 | I15: 0 | J15: 324362784 | K15: 7682014 | L15: 3534186 | M15: 0 | N15: 0 | O15: 4147828 | P15: 0 | Q15: 0 | R15: 1130692126 | S15: 37706525 | T15: 0 | U15: 1864088265 | V15: 4105831511 | W15: 3032486916 | X15: 1073344595 | Y15: 139761545 | Z15: 1007804803 | AA15: 106.5 | AB15: 5755379 | AC15: 0 | AD15: 6870898 | AE15: 993221 | AF15: 0 | AG15: 3112448 | AH15: 0 | AI15: 0 | AJ15: 0 | AK15: 0 | AL15: 16731946 | AM15: ① | AN15: 警察本部新庁舎建設等事業（PFI事業） | AO15: 10 | AP15: 5755379 | AQ15: ③ | AR15: 国営北総中央用水事業 | AS15: 19 | AT15: 6300220 | AU15: ③ | AV15: 国営両総用水事業 | AW15: 9 | AX15: 570678 | AY15: ④ | AZ15: 印旛沼開発施設緊急改築事業 | BA15: 7 | BB15: 502966 | BC15: ④ | BD15: 安房南部地区農用地総合整備事業 | BE15: 7 | BF15: 490255 | BG15: ⑥ | BH15: 土地開発公社による用地取得 | BI15: 9 | BJ15: 3112448 | BK15: 0 | BL15: 0 | BM15: 0 | BN15: 0 | BO15: 0 | BP15: 0 | BQ15: 0 | BR15: 0 | BS15: 0 | BT15: 0 | BU15: 0 | BV15: 0 | BW15: 0 | BX15: 0 | BY15: 0 | BZ15: 0 | CA15: 0 | CB15: 0 | CC15: 0 | CD15: 0 | CE15: 0 | CF15: 0 | CG15: 0 | CH15: 0 | CI15: 0 | CJ15: 0 | CK15: 0 | CL15: 0 | CM15: 0 | CN15: 0 | CO15: 0 | CP15: 0 | CQ15: 0 | CR15: 0 | CS15: 0 | CT15: 0 | CU15: 0 | CV15: 0 | CW15: 0 | CX15: 0 | CY15: 0 | CZ15: 0 | DA15: 0 | DB15: 0 | DC15: 0 | DD15: 0 | DE15: 0 | DF15: 0 | DG15: 0 | DH15: 0 | DI15: 0 | DJ15: 0 | DK15: 0 | DL15: 0 | DM15: 0 | DN15: 0 | DO15: 0 | DP15: 0 | DQ15: 0 | DR15: 0 | DS15: 0 | DT15: 0 | DU15: 0 | DV15: 0 | DW15: 0 | DX15: 0 | DY15: 0 | DZ15: 0 | EA15: 0 | EB15: 0 | EC15: 0 | ED15: 0 | EE15: 0 | EF15: 0 | EG15: 0 | EH15: 0 | EI15: 0 | EJ15: 0 | EK15: 0 | EL15: 0 | EM15: 0 | EN15: 0 | EO15: 0 | EP15: 0 | EQ15: 0 | ER15: 0 | ES15: 0 | ET15: 0 | EU15: 0 | EV15: 0 | EW15: 0 | EX15: 0 | EY15: 0 | EZ15: 0 | FA15: 0 | FB15: 0 | FC15: 0 | FD15: 0 | FE15: 0 | FF15: 0 | FG15: 0 | FH15: 0 | FI15: 0 | FJ15: 0 | FK15: 0 | FL15: 0 | FM15: 0 | FN15: 0 | FO15: 0 | FP15: 0 | FQ15: 0 | FR15: 0 | FS15: 0 | FT15: 0 | FU15: 0 | FV15: 0 | FW15: 0 | FX15: 0 | FY15: 0 | FZ15: 0 | GA15: 0 | GB15: 0 | GC15: 0 | GD15: 0 | GE15: 0 | GF15: 0 | GG15: 0 | GH15: 0 | GI15: 0 | GJ15: 0 | GK15: 0 | GL15: 0 | GM15: 0 | GN15: 0 | GO15: 0 | GP15: 0 | GQ15: 0 | GR15: 1 | GS15: 0 | GT15: 0 | GU15: 0 | GV15: 1 | GW15: 0 | GX15: 0 | GY15: 0 | GZ15: 1 | HA15: 0 | HB15: 0 | HC15: 0 | HD15: 1 | HE15: 0 | HF15: 0 | HG15: 0 | HH15: 1 | HI15: 0 | HJ15: 0 | HK15: 0 | HL15: 1 | HM15: 0 | HN15: 0 | HO15: 0 | HP15: 1 | HQ15: 0 | HR15: 0 | HS15: 0 | HT15: 1 | HU15: 0 | HV15: 0 | HW15: 0 | HX15: 1 | HY15: 0 | HZ15: 0 | IA15: 0 | IB15: 1 | IC15: 0 | ID15: 0 | IE15: 0 | IF15: 1 | IG15: 0 | IH15: 0 | II15: 0 | IJ15: 1 | IK15: 0 | IL15: 0 | IM15: 0 | IN15: 1 | IO15: 0 | IP15: 0 | IQ15: 0 | IR15: 1 | IS15: 0 | IT15: 0
A16: Ver.05.00 | B16: 130001 | C16: 東京都 | D16: - | E16: 1 | F16: 5261525816 | G16: 47931638 | H16: 1079866109 | I16: 0 | J16: 978690524 | K16: 38003734 | L16: 0 | M16: 0 | N16: 10566083 | O16: 27437651 | P16: 0 | Q16: 0 | R16: 3926226794 | S16: 1744621117 | T16: 1681827439 | U16: 1339960760 | V16: 7406017821 | W16: 7010808671 | X16: 395209150 | Y16: 180570737 | Z16: 4051701644 | AA16: 9.7 | AB16: 30533000 | AC16: 0 | AD16: 0 | AE16: 0 | AF16: 0 | AG16: 0 | AH16: 0 | AI16: 0 | AJ16: 10274 | AK16: 17388364 | AL16: 47931638 | AM16: ⑩ | AN16: 公衆浴場確保浴場融資利差補助 | AO16: 25 | AP16: 92455 | AQ16: ⑩ | AR16: 公衆浴場改善資金利子補給 | AS16: 26 | AT16: 229261 | AU16: ⑩ | AV16: 優良民間賃貸住宅建設資金利子補給 | AW16: 12 | AX16: 889753 | AY16: ⑩ | AZ16: 民間住宅建設資金利子補給 | BA16: 27 | BB16: 453422 | BC16: ⑩ | BD16: 民間住宅建設資金利子補助 | BE16: 7 | BF16: 106 | BG16: ⑨ | BH16: ディーゼル車買替促進融資利子及び信用保証料補助 | BI16: 12 | BJ16: 10274 | BK16: ⑩ | BL16: 独立行政法人福祉医療機構借入金利子補助 | BM16: 35 | BN16: 1294185 | BO16: ⑩ | BP16: 老人保健施設建設資金利子補給 | BQ16: 35 | BR16: 14429182 | BS16: ① | BT16: 葛西臨海水族園（仮称）整備運営事業（整備事業分） | BU16: 29 | BV16: 30533000 | BW16: ① | BX16: 区部ユース・プラザ（仮称）整備等事業 | BY16: 5 | BZ16: 0 | CA16: ① | CB16: 神宮前一丁目民活再生プロジェクト事業委託 | CC16: 5 | CD16: 0 | CE16: 0 | CF16: 0 | CG16: 0 | CH16: 0 | CI16: 0 | CJ16: 0 | CK16: 0 | CL16: 0 | CM16: 0 | CN16: 0 | CO16: 0 | CP16: 0 | CQ16: 0 | CR16: 0 | CS16: 0 | CT16: 0 | CU16: 0 | CV16: 0 | CW16: 0 | CX16: 0 | CY16: 0 | CZ16: 0 | DA16: 0 | DB16: 0 | DC16: 0 | DD16: 0 | DE16: 0 | DF16: 0 | DG16: 0 | DH16: 0 | DI16: 0 | DJ16: 0 | DK16: 0 | DL16: 0 | DM16: 0 | DN16: 0 | DO16: 0 | DP16: 0 | DQ16: 0 | DR16: 0 | DS16: 0 | DT16: 0 | DU16: 0 | DV16: 0 | DW16: 0 | DX16: 0 | DY16: 0 | DZ16: 0 | EA16: 0 | EB16: 0 | EC16: 0 | ED16: 0 | EE16: 0 | EF16: 0 | EG16: 0 | EH16: 0 | EI16: 0 | EJ16: 0 | EK16: 0 | EL16: 0 | EM16: 0 | EN16: 0 | EO16: 0 | EP16: 0 | EQ16: 0 | ER16: 0 | ES16: 0 | ET16: 0 | EU16: 0 | EV16: 0 | EW16: 0 | EX16: 0 | EY16: 0 | EZ16: 0 | FA16: 0 | FB16: 0 | FC16: 0 | FD16: 0 | FE16: 0 | FF16: 0 | FG16: 0 | FH16: 0 | FI16: 0 | FJ16: 0 | FK16: 0 | FL16: 0 | FM16: 0 | FN16: 0 | FO16: 0 | FP16: 0 | FQ16: 0 | FR16: 0 | FS16: 0 | FT16: 0 | FU16: 0 | FV16: 0 | FW16: 0 | FX16: 0 | FY16: 0 | FZ16: 0 | GA16: 0 | GB16: 0 | GC16: 0 | GD16: 0 | GE16: 0 | GF16: 0 | GG16: 0 | GH16: 0 | GI16: 0 | GJ16: 0 | GK16: 0 | GL16: 0 | GM16: 0 | GN16: 0 | GO16: 0 | GP16: 0 | GQ16: 0 | GR16: 1 | GS16: 0 | GT16: 0 | GU16: 0 | GV16: 1 | GW16: 0 | GX16: 0 | GY16: 0 | GZ16: 1 | HA16: 0 | HB16: 0 | HC16: 0 | HD16: 1 | HE16: 0 | HF16: 0 | HG16: 0 | HH16: 1 | HI16: 0 | HJ16: 0 | HK16: 0 | HL16: 1 | HM16: 0 | HN16: 0 | HO16: 0 | HP16: 1 | HQ16: 0 | HR16: 0 | HS16: 0 | HT16: 1 | HU16: 0 | HV16: 0 | HW16: 0 | HX16: 1 | HY16: 0 | HZ16: 0 | IA16: 0 | IB16: 1 | IC16: 0 | ID16: 0 | IE16: 0 | IF16: 1 | IG16: 0 | IH16: 0 | II16: 0 | IJ16: 1 | IK16: 0 | IL16: 0 | IM16: 0 | IN16: 1 | IO16: 0 | IP16: 0 | IQ16: 0 | IR16: 1 | IS16: 0 | IT16: 0
A17: Ver.05.00 | B17: 140007 | C17: 神奈川県 | D17: - | E17: 1 | F17: 4052570056 | G17: 9607871 | H17: 21215051 | I17: 0 | J17: 294858586 | K17: 5868807 | L17: 0 | M17: 0 | N17: 4268672 | O17: 1600135 | P17: 0 | Q17: 0 | R17: 1252410942 | S17: 53996941 | T17: 0 | U17: 2283419213 | V17: 4384120371 | W17: 3589827096 | X17: 794293275 | Y17: 174398326 | Z17: 1239778819 | AA17: 64 | AB17: 7171370 | AC17: 0 | AD17: 0 | AE17: 0 | AF17: 0 | AG17: 0 | AH17: 0 | AI17: 0 | AJ17: 0 | AK17: 2436501 | AL17: 9607871 | AM17: ① | AN17: 花と緑のふれあいセンター特定事業費 | AO17: 11 | AP17: 1019718 | AQ17: ① | AR17: 衛生研究所特定事業費 | AS17: 14 | AT17: 1730780 | AU17: ① | AV17: 保健福祉大学特定事業費 | AW17: 14 | AX17: 3341345 | AY17: ① | AZ17: 海洋総合文化ゾーン体験学習施設等特定事業費 | BA17: 15 | BB17: 53578 | BC17: ① | BD17: 近代美術館特定事業費 | BE17: 14 | BF17: 1025949 | BG17: ⑩ | BH17: 秦野赤十字病院整備支援事業費 | BI17: 8 | BJ17: 435677 | BK17: ⑩ | BL17: 買取型公営住宅取得費 | BM17: 22 | BN17: 1678451 | BO17: ⑩ | BP17: 交番等警察施設分割購入費 | BQ17: 11 | BR17: 322373 | BS17: 0 | BT17: 0 | BU17: 0 | BV17: 0 | BW17: 0 | BX17: 0 | BY17: 0 | BZ17: 0 | CA17: 0 | CB17: 0 | CC17: 0 | CD17: 0 | CE17: 0 | CF17: 0 | CG17: 0 | CH17: 0 | CI17: 0 | CJ17: 0 | CK17: 0 | CL17: 0 | CM17: 0 | CN17: 0 | CO17: 0 | CP17: 0 | CQ17: 0 | CR17: 0 | CS17: 0 | CT17: 0 | CU17: 0 | CV17: 0 | CW17: 0 | CX17: 0 | CY17: 0 | CZ17: 0 | DA17: 0 | DB17: 0 | DC17: 0 | DD17: 0 | DE17: 0 | DF17: 0 | DG17: 0 | DH17: 0 | DI17: 0 | DJ17: 0 | DK17: 0 | DL17: 0 | DM17: 0 | DN17: 0 | DO17: 0 | DP17: 0 | DQ17: 0 | DR17: 0 | DS17: 0 | DT17: 0 | DU17: 0 | DV17: 0 | DW17: 0 | DX17: 0 | DY17: 0 | DZ17: 0 | EA17: 0 | EB17: 0 | EC17: 0 | ED17: 0 | EE17: 0 | EF17: 0 | EG17: 0 | EH17: 0 | EI17: 0 | EJ17: 0 | EK17: 0 | EL17: 0 | EM17: 0 | EN17: 0 | EO17: 0 | EP17: 0 | EQ17: 0 | ER17: 0 | ES17: 0 | ET17: 0 | EU17: 0 | EV17: 0 | EW17: 0 | EX17: 0 | EY17: 0 | EZ17: 0 | FA17: 0 | FB17: 0 | FC17: 0 | FD17: 0 | FE17: 0 | FF17: 0 | FG17: 0 | FH17: 0 | FI17: 0 | FJ17: 0 | FK17: 0 | FL17: 0 | FM17: 0 | FN17: 0 | FO17: 0 | FP17: 0 | FQ17: 0 | FR17: 0 | FS17: 0 | FT17: 0 | FU17: 0 | FV17: 0 | FW17: 0 | FX17: 0 | FY17: 0 | FZ17: 0 | GA17: 0 | GB17: 0 | GC17: 0 | GD17: 0 | GE17: 0 | GF17: 0 | GG17: 0 | GH17: 0 | GI17: 0 | GJ17: 0 | GK17: 0 | GL17: 0 | GM17: 0 | GN17: 0 | GO17: 0 | GP17: 0 | GQ17: 0 | GR17: 1 | GS17: 0 | GT17: 0 | GU17: 0 | GV17: 1 | GW17: 0 | GX17: 0 | GY17: 0 | GZ17: 1 | HA17: 0 | HB17: 0 | HC17: 0 | HD17: 1 | HE17: 0 | HF17: 0 | HG17: 0 | HH17: 1 | HI17: 0 | HJ17: 0 | HK17: 0 | HL17: 1 | HM17: 0 | HN17: 0 | HO17: 0 | HP17: 1 | HQ17: 0 | HR17: 0 | HS17: 0 | HT17: 1 | HU17: 0 | HV17: 0 | HW17: 0 | HX17: 1 | HY17: 0 | HZ17: 0 | IA17: 0 | IB17: 1 | IC17: 0 | ID17: 0 | IE17: 0 | IF17: 1 | IG17: 0 | IH17: 0 | II17: 0 | IJ17: 1 | IK17: 0 | IL17: 0 | IM17: 0 | IN17: 1 | IO17: 0 | IP17: 0 | IQ17: 0 | IR17: 1 | IS17: 0 | IT17: 0
A18: Ver.05.00 | B18: 150002 | C18: 新潟県 | D18: - | E18: 1 | F18: 2585055397 | G18: 10951628 | H18: 104526832 | I18: 0 | J18: 192461150 | K18: 7329991 | L18: 0 | M18: 0 | N18: 0 | O18: 7329991 | P18: 0 | Q18: 0 | R18: 349304115 | S18: 32676694 | T18: 0 | U18: 1153237524 | V18: 2900324998 | W18: 1535218333 | X18: 1365106665 | Y18: 93918840 | Z18: 458304226 | AA18: 297.8 | AB18: 5072459 | AC18: 0 | AD18: 5277153 | AE18: 0 | AF18: 602016 | AG18: 0 | AH18: 0 | AI18: 0 | AJ18: 0 | AK18: 0 | AL18: 10951628 | AM18: ① | AN18: 人と動物のふれあい拠点施設（仮称）整備及び維持管理契約 | AO18: 13 | AP18: 235534 | AQ18: ① | AR18: にしき園改築及び運営事業契約 | AS18: 11 | AT18: 172898 | AU18: ① | AV18: 新潟学園改装及び維持管理等契約 | AW18: 12 | AX18: 472495 | AY18: ① | AZ18: 県立武道館整備及び運営事業契約 | BA18: 15 | BB18: 4191532 | BC18: ③ | BD18: 国営土地改良事業に対する負担金 | BE18: 20 | BF18: 5277153 | BG18: ⑤ | BH18: 職員住宅賃借契約【六日町（仲田）】 | BI18: 6 | BJ18: 15442 | BK18: ⑤ | BL18: 警察職員住宅賃借契約 | BM18: 18 | BN18: 25272 | BO18: ⑤ | BP18: 交番・駐在所賃借契約 | BQ18: 21 | BR18: 561302 | BS18: 0 | BT18: 0 | BU18: 0 | BV18: 0 | BW18: 0 | BX18: 0 | BY18: 0 | BZ18: 0 | CA18: 0 | CB18: 0 | CC18: 0 | CD18: 0 | CE18: 0 | CF18: 0 | CG18: 0 | CH18: 0 | CI18: 0 | CJ18: 0 | CK18: 0 | CL18: 0 | CM18: 0 | CN18: 0 | CO18: 0 | CP18: 0 | CQ18: 0 | CR18: 0 | CS18: 0 | CT18: 0 | CU18: 0 | CV18: 0 | CW18: 0 | CX18: 0 | CY18: 0 | CZ18: 0 | DA18: 0 | DB18: 0 | DC18: 0 | DD18: 0 | DE18: 0 | DF18: 0 | DG18: 0 | DH18: 0 | DI18: 0 | DJ18: 0 | DK18: 0 | DL18: 0 | DM18: 0 | DN18: 0 | DO18: 0 | DP18: 0 | DQ18: 0 | DR18: 0 | DS18: 0 | DT18: 0 | DU18: 0 | DV18: 0 | DW18: 0 | DX18: 0 | DY18: 0 | DZ18: 0 | EA18: 0 | EB18: 0 | EC18: 0 | ED18: 0 | EE18: 0 | EF18: 0 | EG18: 0 | EH18: 0 | EI18: 0 | EJ18: 0 | EK18: 0 | EL18: 0 | EM18: 0 | EN18: 0 | EO18: 0 | EP18: 0 | EQ18: 0 | ER18: 0 | ES18: 0 | ET18: 0 | EU18: 0 | EV18: 0 | EW18: 0 | EX18: 0 | EY18: 0 | EZ18: 0 | FA18: 0 | FB18: 0 | FC18: 0 | FD18: 0 | FE18: 0 | FF18: 0 | FG18: 0 | FH18: 0 | FI18: 0 | FJ18: 0 | FK18: 0 | FL18: 0 | FM18: 0 | FN18: 0 | FO18: 0 | FP18: 0 | FQ18: 0 | FR18: 0 | FS18: 0 | FT18: 0 | FU18: 0 | FV18: 0 | FW18: 0 | FX18: 0 | FY18: 0 | FZ18: 0 | GA18: 0 | GB18: 0 | GC18: 0 | GD18: 0 | GE18: 0 | GF18: 0 | GG18: 0 | GH18: 0 | GI18: 0 | GJ18: 0 | GK18: 0 | GL18: 0 | GM18: 0 | GN18: 0 | GO18: 0 | GP18: 0 | GQ18: 0 | GR18: 1 | GS18: 0 | GT18: 0 | GU18: 0 | GV18: 1 | GW18: 0 | GX18: 0 | GY18: 0 | GZ18: 1 | HA18: 0 | HB18: 0 | HC18: 0 | HD18: 1 | HE18: 0 | HF18: 0 | HG18: 0 | HH18: 1 | HI18: 0 | HJ18: 0 | HK18: 0 | HL18: 1 | HM18: 0 | HN18: 0 | HO18: 0 | HP18: 1 | HQ18: 0 | HR18: 0 | HS18: 0 | HT18: 1 | HU18: 0 | HV18: 0 | HW18: 0 | HX18: 1 | HY18: 0 | HZ18: 0 | IA18: 0 | IB18: 1 | IC18: 0 | ID18: 0 | IE18: 0 | IF18: 1 | IG18: 0 | IH18: 0 | II18: 0 | IJ18: 1 | IK18: 0 | IL18: 0 | IM18: 0 | IN18: 1 | IO18: 0 | IP18: 0 | IQ18: 0 | IR18: 1 | IS18: 0 | IT18: 0
A19: Ver.05.00 | B19: 160008 | C19: 富山県 | D19: - | E19: 1 | F19: 1125851169 | G19: 0 | H19: 22646995 | I19: 0 | J19: 97120681 | K19: 9426028 | L19: 0 | M19: 0 | N19: 0 | O19: 9426028 | P19: 0 | Q19: 0 | R19: 80752805 | S19: 2904089 | T19: 0 | U19: 611481615 | V19: 1255044873 | W19: 695138509 | X19: 559906364 | Y19: 52719383 | Z19: 257154663 | AA19: 217.7 | AB19: 0 | AC19: 0 | AD19: 0 | AE19: 0 | AF19: 0 | AG19: 0 | AH19: 0 | AI19: 0 | AJ19: 0 | AK19: 0 | AL19: 0 | AM19: 0 | AN19: 0 | AO19: 0 | AP19: 0 | AQ19: 0 | AR19: 0 | AS19: 0 | AT19: 0 | AU19: 0 | AV19: 0 | AW19: 0 | AX19: 0 | AY19: 0 | AZ19: 0 | BA19: 0 | BB19: 0 | BC19: 0 | BD19: 0 | BE19: 0 | BF19: 0 | BG19: 0 | BH19: 0 | BI19: 0 | BJ19: 0 | BK19: 0 | BL19: 0 | BM19: 0 | BN19: 0 | BO19: 0 | BP19: 0 | BQ19: 0 | BR19: 0 | BS19: 0 | BT19: 0 | BU19: 0 | BV19: 0 | BW19: 0 | BX19: 0 | BY19: 0 | BZ19: 0 | CA19: 0 | CB19: 0 | CC19: 0 | CD19: 0 | CE19: 0 | CF19: 0 | CG19: 0 | CH19: 0 | CI19: 0 | CJ19: 0 | CK19: 0 | CL19: 0 | CM19: 0 | CN19: 0 | CO19: 0 | CP19: 0 | CQ19: 0 | CR19: 0 | CS19: 0 | CT19: 0 | CU19: 0 | CV19: 0 | CW19: 0 | CX19: 0 | CY19: 0 | CZ19: 0 | DA19: 0 | DB19: 0 | DC19: 0 | DD19: 0 | DE19: 0 | DF19: 0 | DG19: 0 | DH19: 0 | DI19: 0 | DJ19: 0 | DK19: 0 | DL19: 0 | DM19: 0 | DN19: 0 | DO19: 0 | DP19: 0 | DQ19: 0 | DR19: 0 | DS19: 0 | DT19: 0 | DU19: 0 | DV19: 0 | DW19: 0 | DX19: 0 | DY19: 0 | DZ19: 0 | EA19: 0 | EB19: 0 | EC19: 0 | ED19: 0 | EE19: 0 | EF19: 0 | EG19: 0 | EH19: 0 | EI19: 0 | EJ19: 0 | EK19: 0 | EL19: 0 | EM19: 0 | EN19: 0 | EO19: 0 | EP19: 0 | EQ19: 0 | ER19: 0 | ES19: 0 | ET19: 0 | EU19: 0 | EV19: 0 | EW19: 0 | EX19: 0 | EY19: 0 | EZ19: 0 | FA19: 0 | FB19: 0 | FC19: 0 | FD19: 0 | FE19: 0 | FF19: 0 | FG19: 0 | FH19: 0 | FI19: 0 | FJ19: 0 | FK19: 0 | FL19: 0 | FM19: 0 | FN19: 0 | FO19: 0 | FP19: 0 | FQ19: 0 | FR19: 0 | FS19: 0 | FT19: 0 | FU19: 0 | FV19: 0 | FW19: 0 | FX19: 0 | FY19: 0 | FZ19: 0 | GA19: 0 | GB19: 0 | GC19: 0 | GD19: 0 | GE19: 0 | GF19: 0 | GG19: 0 | GH19: 0 | GI19: 0 | GJ19: 0 | GK19: 0 | GL19: 0 | GM19: 0 | GN19: 0 | GO19: 0 | GP19: 0 | GQ19: 0 | GR19: 1 | GS19: 0 | GT19: 0 | GU19: 0 | GV19: 1 | GW19: 0 | GX19: 0 | GY19: 0 | GZ19: 1 | HA19: 0 | HB19: 0 | HC19: 0 | HD19: 1 | HE19: 0 | HF19: 0 | HG19: 0 | HH19: 1 | HI19: 0 | HJ19: 0 | HK19: 0 | HL19: 1 | HM19: 0 | HN19: 0 | HO19: 0 | HP19: 1 | HQ19: 0 | HR19: 0 | HS19: 0 | HT19: 1 | HU19: 0 | HV19: 0 | HW19: 0 | HX19: 1 | HY19: 0 | HZ19: 0 | IA19: 0 | IB19: 1 | IC19: 0 | ID19: 0 | IE19: 0 | IF19: 1 | IG19: 0 | IH19: 0 | II19: 0 | IJ19: 1 | IK19: 0 | IL19: 0 | IM19: 0 | IN19: 1 | IO19: 0 | IP19: 0 | IQ19: 0 | IR19: 1 | IS19: 0 | IT19: 0
A20: Ver.05.00 | B20: 170003 | C20: 石川県 | D20: - | E20: 1 | F20: 1181252770 | G20: 0 | H20: 26310794 | I20: 0 | J20: 92053932 | K20: 17931250 | L20: 0 | M20: 0 | N20: 0 | O20: 17931250 | P20: 0 | Q20: 0 | R20: 148358832.9 | S20: 31371146 | T20: 0 | U20: 626412851 | V20: 1317548746 | W20: 806142829.9 | X20: 511405916.1 | Y20: 49782938 | Z20: 266310268 | AA20: 192 | AB20: 0 | AC20: 0 | AD20: 0 | AE20: 0 | AF20: 0 | AG20: 0 | AH20: 0 | AI20: 0 | AJ20: 0 | AK20: 0 | AL20: 0 | AM20: 0 | AN20: 0 | AO20: 0 | AP20: 0 | AQ20: 0 | AR20: 0 | AS20: 0 | AT20: 0 | AU20: 0 | AV20: 0 | AW20: 0 | AX20: 0 | AY20: 0 | AZ20: 0 | BA20: 0 | BB20: 0 | BC20: 0 | BD20: 0 | BE20: 0 | BF20: 0 | BG20: 0 | BH20: 0 | BI20: 0 | BJ20: 0 | BK20: 0 | BL20: 0 | BM20: 0 | BN20: 0 | BO20: 0 | BP20: 0 | BQ20: 0 | BR20: 0 | BS20: 0 | BT20: 0 | BU20: 0 | BV20: 0 | BW20: 0 | BX20: 0 | BY20: 0 | BZ20: 0 | CA20: 0 | CB20: 0 | CC20: 0 | CD20: 0 | CE20: 0 | CF20: 0 | CG20: 0 | CH20: 0 | CI20: 0 | CJ20: 0 | CK20: 0 | CL20: 0 | CM20: 0 | CN20: 0 | CO20: 0 | CP20: 0 | CQ20: 0 | CR20: 0 | CS20: 0 | CT20: 0 | CU20: 0 | CV20: 0 | CW20: 0 | CX20: 0 | CY20: 0 | CZ20: 0 | DA20: 0 | DB20: 0 | DC20: 0 | DD20: 0 | DE20: 0 | DF20: 0 | DG20: 0 | DH20: 0 | DI20: 0 | DJ20: 0 | DK20: 0 | DL20: 0 | DM20: 0 | DN20: 0 | DO20: 0 | DP20: 0 | DQ20: 0 | DR20: 0 | DS20: 0 | DT20: 0 | DU20: 0 | DV20: 0 | DW20: 0 | DX20: 0 | DY20: 0 | DZ20: 0 | EA20: 0 | EB20: 0 | EC20: 0 | ED20: 0 | EE20: 0 | EF20: 0 | EG20: 0 | EH20: 0 | EI20: 0 | EJ20: 0 | EK20: 0 | EL20: 0 | EM20: 0 | EN20: 0 | EO20: 0 | EP20: 0 | EQ20: 0 | ER20: 0 | ES20: 0 | ET20: 0 | EU20: 0 | EV20: 0 | EW20: 0 | EX20: 0 | EY20: 0 | EZ20: 0 | FA20: 0 | FB20: 0 | FC20: 0 | FD20: 0 | FE20: 0 | FF20: 0 | FG20: 0 | FH20: 0 | FI20: 0 | FJ20: 0 | FK20: 0 | FL20: 0 | FM20: 0 | FN20: 0 | FO20: 0 | FP20: 0 | FQ20: 0 | FR20: 0 | FS20: 0 | FT20: 0 | FU20: 0 | FV20: 0 | FW20: 0 | FX20: 0 | FY20: 0 | FZ20: 0 | GA20: 0 | GB20: 0 | GC20: 0 | GD20: 0 | GE20: 0 | GF20: 0 | GG20: 0 | GH20: 0 | GI20: 0 | GJ20: 0 | GK20: 0 | GL20: 0 | GM20: 0 | GN20: 0 | GO20: 0 | GP20: 0 | GQ20: 0 | GR20: 1 | GS20: 0 | GT20: 0 | GU20: 0 | GV20: 1 | GW20: 0 | GX20: 0 | GY20: 0 | GZ20: 1 | HA20: 0 | HB20: 0 | HC20: 0 | HD20: 1 | HE20: 0 | HF20: 0 | HG20: 0 | HH20: 1 | HI20: 0 | HJ20: 0 | HK20: 0 | HL20: 1 | HM20: 0 | HN20: 0 | HO20: 0 | HP20: 1 | HQ20: 0 | HR20: 0 | HS20: 0 | HT20: 1 | HU20: 0 | HV20: 0 | HW20: 0 | HX20: 1 | HY20: 0 | HZ20: 0 | IA20: 0 | IB20: 1 | IC20: 0 | ID20: 0 | IE20: 0 | IF20: 1 | IG20: 0 | IH20: 0 | II20: 0 | IJ20: 1 | IK20: 0 | IL20: 0 | IM20: 0 | IN20: 1 | IO20: 0 | IP20: 0 | IQ20: 0 | IR20: 1 | IS20: 0 | IT20: 0
A21: Ver.05.00 | B21: 180009 | C21: 福井県 | D21: - | E21: 1 | F21: 910227687 | G21: 6104331 | H21: 26542917 | I21: 0 | J21: 95765859 | K21: 20002 | L21: 0 | M21: 0 | N21: 0 | O21: 20002 | P21: 0 | Q21: 0 | R21: 135888135 | S21: 16839223 | T21: 0 | U21: 545976157 | V21: 1038660796 | W21: 698703515 | X21: 339957281 | Y21: 43097371 | Z21: 220958204 | AA21: 153.8 | AB21: 0 | AC21: 0 | AD21: 0 | AE21: 0 | AF21: 0 | AG21: 0 | AH21: 0 | AI21: 0 | AJ21: 6104331 | AK21: 0 | AL21: 6104331 | AM21: ⑨ | AN21: 国営土地改良事業（九頭竜川） | AO21: 17 | AP21: 0 | AQ21: ⑨ | AR21: 分収林整備事業償還金 | AS21: 40 | AT21: 6104331 | AU21: 0 | AV21: 0 | AW21: 0 | AX21: 0 | AY21: 0 | AZ21: 0 | BA21: 0 | BB21: 0 | BC21: 0 | BD21: 0 | BE21: 0 | BF21: 0 | BG21: 0 | BH21: 0 | BI21: 0 | BJ21: 0 | BK21: 0 | BL21: 0 | BM21: 0 | BN21: 0 | BO21: 0 | BP21: 0 | BQ21: 0 | BR21: 0 | BS21: 0 | BT21: 0 | BU21: 0 | BV21: 0 | BW21: 0 | BX21: 0 | BY21: 0 | BZ21: 0 | CA21: 0 | CB21: 0 | CC21: 0 | CD21: 0 | CE21: 0 | CF21: 0 | CG21: 0 | CH21: 0 | CI21: 0 | CJ21: 0 | CK21: 0 | CL21: 0 | CM21: 0 | CN21: 0 | CO21: 0 | CP21: 0 | CQ21: 0 | CR21: 0 | CS21: 0 | CT21: 0 | CU21: 0 | CV21: 0 | CW21: 0 | CX21: 0 | CY21: 0 | CZ21: 0 | DA21: 0 | DB21: 0 | DC21: 0 | DD21: 0 | DE21: 0 | DF21: 0 | DG21: 0 | DH21: 0 | DI21: 0 | DJ21: 0 | DK21: 0 | DL21: 0 | DM21: 0 | DN21: 0 | DO21: 0 | DP21: 0 | DQ21: 0 | DR21: 0 | DS21: 0 | DT21: 0 | DU21: 0 | DV21: 0 | DW21: 0 | DX21: 0 | DY21: 0 | DZ21: 0 | EA21: 0 | EB21: 0 | EC21: 0 | ED21: 0 | EE21: 0 | EF21: 0 | EG21: 0 | EH21: 0 | EI21: 0 | EJ21: 0 | EK21: 0 | EL21: 0 | EM21: 0 | EN21: 0 | EO21: 0 | EP21: 0 | EQ21: 0 | ER21: 0 | ES21: 0 | ET21: 0 | EU21: 0 | EV21: 0 | EW21: 0 | EX21: 0 | EY21: 0 | EZ21: 0 | FA21: 0 | FB21: 0 | FC21: 0 | FD21: 0 | FE21: 0 | FF21: 0 | FG21: 0 | FH21: 0 | FI21: 0 | FJ21: 0 | FK21: 0 | FL21: 0 | FM21: 0 | FN21: 0 | FO21: 0 | FP21: 0 | FQ21: 0 | FR21: 0 | FS21: 0 | FT21: 0 | FU21: 0 | FV21: 0 | FW21: 0 | FX21: 0 | FY21: 0 | FZ21: 0 | GA21: 0 | GB21: 0 | GC21: 0 | GD21: 0 | GE21: 0 | GF21: 0 | GG21: 0 | GH21: 0 | GI21: 0 | GJ21: 0 | GK21: 0 | GL21: 0 | GM21: 0 | GN21: 0 | GO21: 0 | GP21: 0 | GQ21: 0 | GR21: 1 | GS21: 0 | GT21: 0 | GU21: 0 | GV21: 1 | GW21: 0 | GX21: 0 | GY21: 0 | GZ21: 1 | HA21: 0 | HB21: 0 | HC21: 0 | HD21: 1 | HE21: 0 | HF21: 0 | HG21: 0 | HH21: 1 | HI21: 0 | HJ21: 0 | HK21: 0 | HL21: 1 | HM21: 0 | HN21: 0 | HO21: 0 | HP21: 1 | HQ21: 0 | HR21: 0 | HS21: 0 | HT21: 1 | HU21: 0 | HV21: 0 | HW21: 0 | HX21: 1 | HY21: 0 | HZ21: 0 | IA21: 0 | IB21: 1 | IC21: 0 | ID21: 0 | IE21: 0 | IF21: 1 | IG21: 0 | IH21: 0 | II21: 0 | IJ21: 1 | IK21: 0 | IL21: 0 | IM21: 0 | IN21: 1 | IO21: 0 | IP21: 0 | IQ21: 0 | IR21: 1 | IS21: 0 | IT21: 0
A22: Ver.05.00 | B22: 190004 | C22: 山梨県 | D22: - | E22: 1 | F22: 943607114 | G22: 1141693 | H22: 10699944 | I22: 0 | J22: 90266809 | K22: 12083441 | L22: 0 | M22: 5296890 | N22: 0 | O22: 6786551 | P22: 0 | Q22: 0 | R22: 123459903 | S22: 17012353 | T22: 0 | U22: 523903673 | V22: 1057799001 | W22: 664375929 | X22: 393423072 | Y22: 44004973 | Z22: 226851633 | AA22: 173.4 | AB22: 957787 | AC22: 0 | AD22: 0 | AE22: 0 | AF22: 0 | AG22: 0 | AH22: 0 | AI22: 0 | AJ22: 0 | AK22: 183906 | AL22: 1141693 | AM22: ① | AN22: 新庁舎（防災新館）整備費の支払 | AO22: 9 | AP22: 957787 | AQ22: ⑩ | AR22: 県庁構内LED照明機器整備費の支払 | AS22: 14 | AT22: 183906 | AU22: 0 | AV22: 0 | AW22: 0 | AX22: 0 | AY22: 0 | AZ22: 0 | BA22: 0 | BB22: 0 | BC22: 0 | BD22: 0 | BE22: 0 | BF22: 0 | BG22: 0 | BH22: 0 | BI22: 0 | BJ22: 0 | BK22: 0 | BL22: 0 | BM22: 0 | BN22: 0 | BO22: 0 | BP22: 0 | BQ22: 0 | BR22: 0 | BS22: 0 | BT22: 0 | BU22: 0 | BV22: 0 | BW22: 0 | BX22: 0 | BY22: 0 | BZ22: 0 | CA22: 0 | CB22: 0 | CC22: 0 | CD22: 0 | CE22: 0 | CF22: 0 | CG22: 0 | CH22: 0 | CI22: 0 | CJ22: 0 | CK22: 0 | CL22: 0 | CM22: 0 | CN22: 0 | CO22: 0 | CP22: 0 | CQ22: 0 | CR22: 0 | CS22: 0 | CT22: 0 | CU22: 0 | CV22: 0 | CW22: 0 | CX22: 0 | CY22: 0 | CZ22: 0 | DA22: 0 | DB22: 0 | DC22: 0 | DD22: 0 | DE22: 0 | DF22: 0 | DG22: 0 | DH22: 0 | DI22: 0 | DJ22: 0 | DK22: 0 | DL22: 0 | DM22: 0 | DN22: 0 | DO22: 0 | DP22: 0 | DQ22: 0 | DR22: 0 | DS22: 0 | DT22: 0 | DU22: 0 | DV22: 0 | DW22: 0 | DX22: 0 | DY22: 0 | DZ22: 0 | EA22: 0 | EB22: 0 | EC22: 0 | ED22: 0 | EE22: 0 | EF22: 0 | EG22: 0 | EH22: 0 | EI22: 0 | EJ22: 0 | EK22: 0 | EL22: 0 | EM22: 0 | EN22: 0 | EO22: 0 | EP22: 0 | EQ22: 0 | ER22: 0 | ES22: 0 | ET22: 0 | EU22: 0 | EV22: 0 | EW22: 0 | EX22: 0 | EY22: 0 | EZ22: 0 | FA22: 0 | FB22: 0 | FC22: 0 | FD22: 0 | FE22: 0 | FF22: 0 | FG22: 0 | FH22: 0 | FI22: 0 | FJ22: 0 | FK22: 0 | FL22: 0 | FM22: 0 | FN22: 0 | FO22: 0 | FP22: 0 | FQ22: 0 | FR22: 0 | FS22: 0 | FT22: 0 | FU22: 0 | FV22: 0 | FW22: 0 | FX22: 0 | FY22: 0 | FZ22: 0 | GA22: 0 | GB22: 0 | GC22: 0 | GD22: 0 | GE22: 0 | GF22: 0 | GG22: 0 | GH22: 0 | GI22: 0 | GJ22: 0 | GK22: 0 | GL22: 0 | GM22: 0 | GN22: 0 | GO22: 0 | GP22: 0 | GQ22: 0 | GR22: 1 | GS22: 0 | GT22: 0 | GU22: 0 | GV22: 1 | GW22: 0 | GX22: 0 | GY22: 0 | GZ22: 1 | HA22: 0 | HB22: 0 | HC22: 0 | HD22: 1 | HE22: 0 | HF22: 0 | HG22: 0 | HH22: 1 | HI22: 0 | HJ22: 0 | HK22: 0 | HL22: 1 | HM22: 0 | HN22: 0 | HO22: 0 | HP22: 1 | HQ22: 0 | HR22: 0 | HS22: 0 | HT22: 1 | HU22: 0 | HV22: 0 | HW22: 0 | HX22: 1 | HY22: 0 | HZ22: 0 | IA22: 0 | IB22: 1 | IC22: 0 | ID22: 0 | IE22: 0 | IF22: 1 | IG22: 0 | IH22: 0 | II22: 0 | IJ22: 1 | IK22: 0 | IL22: 0 | IM22: 0 | IN22: 1 | IO22: 0 | IP22: 0 | IQ22: 0 | IR22: 1 | IS22: 0 | IT22: 0
A23: Ver.05.00 | B23: 200000 | C23: 長野県 | D23: - | E23: 1 | F23: 1924347774 | G23: 5501475 | H23: 21986649 | I23: 0 | J23: 182141442 | K23: 6025445 | L23: 0 | M23: 0 | N23: 0 | O23: 6025445 | P23: 0 | Q23: 0 | R23: 439525374 | S23: 13449070 | T23: 0 | U23: 1005113183 | V23: 2140002785 | W23: 1458087627 | X23: 681915158 | Y23: 74851593 | Z23: 448342250 | AA23: 152 | AB23: 0 | AC23: 0 | AD23: 0 | AE23: 0 | AF23: 0 | AG23: 5501475 | AH23: 0 | AI23: 0 | AJ23: 0 | AK23: 0 | AL23: 5501475 | AM23: ⑥ | AN23: 土木公共用地先行取得事業 | AO23: 9 | AP23: 5501475 | AQ23: 0 | AR23: 0 | AS23: 0 | AT23: 0 | AU23: 0 | AV23: 0 | AW23: 0 | AX23: 0 | AY23: 0 | AZ23: 0 | BA23: 0 | BB23: 0 | BC23: 0 | BD23: 0 | BE23: 0 | BF23: 0 | BG23: 0 | BH23: 0 | BI23: 0 | BJ23: 0 | BK23: 0 | BL23: 0 | BM23: 0 | BN23: 0 | BO23: 0 | BP23: 0 | BQ23: 0 | BR23: 0 | BS23: 0 | BT23: 0 | BU23: 0 | BV23: 0 | BW23: 0 | BX23: 0 | BY23: 0 | BZ23: 0 | CA23: 0 | CB23: 0 | CC23: 0 | CD23: 0 | CE23: 0 | CF23: 0 | CG23: 0 | CH23: 0 | CI23: 0 | CJ23: 0 | CK23: 0 | CL23: 0 | CM23: 0 | CN23: 0 | CO23: 0 | CP23: 0 | CQ23: 0 | CR23: 0 | CS23: 0 | CT23: 0 | CU23: 0 | CV23: 0 | CW23: 0 | CX23: 0 | CY23: 0 | CZ23: 0 | DA23: 0 | DB23: 0 | DC23: 0 | DD23: 0 | DE23: 0 | DF23: 0 | DG23: 0 | DH23: 0 | DI23: 0 | DJ23: 0 | DK23: 0 | DL23: 0 | DM23: 0 | DN23: 0 | DO23: 0 | DP23: 0 | DQ23: 0 | DR23: 0 | DS23: 0 | DT23: 0 | DU23: 0 | DV23: 0 | DW23: 0 | DX23: 0 | DY23: 0 | DZ23: 0 | EA23: 0 | EB23: 0 | EC23: 0 | ED23: 0 | EE23: 0 | EF23: 0 | EG23: 0 | EH23: 0 | EI23: 0 | EJ23: 0 | EK23: 0 | EL23: 0 | EM23: 0 | EN23: 0 | EO23: 0 | EP23: 0 | EQ23: 0 | ER23: 0 | ES23: 0 | ET23: 0 | EU23: 0 | EV23: 0 | EW23: 0 | EX23: 0 | EY23: 0 | EZ23: 0 | FA23: 0 | FB23: 0 | FC23: 0 | FD23: 0 | FE23: 0 | FF23: 0 | FG23: 0 | FH23: 0 | FI23: 0 | FJ23: 0 | FK23: 0 | FL23: 0 | FM23: 0 | FN23: 0 | FO23: 0 | FP23: 0 | FQ23: 0 | FR23: 0 | FS23: 0 | FT23: 0 | FU23: 0 | FV23: 0 | FW23: 0 | FX23: 0 | FY23: 0 | FZ23: 0 | GA23: 0 | GB23: 0 | GC23: 0 | GD23: 0 | GE23: 0 | GF23: 0 | GG23: 0 | GH23: 0 | GI23: 0 | GJ23: 0 | GK23: 0 | GL23: 0 | GM23: 0 | GN23: 0 | GO23: 0 | GP23: 0 | GQ23: 0 | GR23: 1 | GS23: 0 | GT23: 0 | GU23: 0 | GV23: 1 | GW23: 0 | GX23: 0 | GY23: 0 | GZ23: 1 | HA23: 0 | HB23: 0 | HC23: 0 | HD23: 1 | HE23: 0 | HF23: 0 | HG23: 0 | HH23: 1 | HI23: 0 | HJ23: 0 | HK23: 0 | HL23: 1 | HM23: 0 | HN23: 0 | HO23: 0 | HP23: 1 | HQ23: 0 | HR23: 0 | HS23: 0 | HT23: 1 | HU23: 0 | HV23: 0 | HW23: 0 | HX23: 1 | HY23: 0 | HZ23: 0 | IA23: 0 | IB23: 1 | IC23: 0 | ID23: 0 | IE23: 0 | IF23: 1 | IG23: 0 | IH23: 0 | II23: 0 | IJ23: 1 | IK23: 0 | IL23: 0 | IM23: 0 | IN23: 1 | IO23: 0 | IP23: 0 | IQ23: 0 | IR23: 1 | IS23: 0 | IT23: 0
A24: Ver.05.00 | B24: 210005 | C24: 岐阜県 | D24: - | E24: 1 | F24: 1838978510 | G24: 23549466 | H24: 3797410 | I24: 0 | J24: 171716327 | K24: 30825837 | L24: 0 | M24: 0 | N24: 12805554 | O24: 18020283 | P24: 0 | Q24: 0 | R24: 180288176 | S24: 42834166 | T24: 0 | U24: 902628145 | V24: 2068867550 | W24: 1125750487 | X24: 943117063 | Y24: 68590901 | Z24: 421421010 | AA24: 223.7 | AB24: 0 | AC24: 0 | AD24: 0 | AE24: 15249582 | AF24: 100004 | AG24: 6354040 | AH24: 0 | AI24: 0 | AJ24: 0 | AK24: 1845840 | AL24: 23549466 | AM24: ⑩ | AN24: 長野県との境界変更に伴う財産処分により生ずる長野県地方債償還金の負担 | AO24: 10 | AP24: 6362 | AQ24: ④ | AR24: 緑資源機構が施行した美濃東部区域農用地総合整備事業に係る建設費等の負担 | AS24: 9 | AT24: 24623 | AU24: ④ | AV24: 水資源機構が施行する徳山ダム建設事業に係る建設費等の負担 | AW24: 12 | AX24: 15224959 | AY24: ⑥ | AZ24: 公共用地等の取得及び造成委託 | BA24: 9 | BB24: 6354040 | BC24: ⑩ | BD24: 世界淡水魚園水族館借上げ | BE24: 15 | BF24: 1839478 | BG24: ⑤ | BH24: 警察職員の住宅建設の用に供するため警察職員共済組合岐阜支部が同本部から借り入れる借入金の償還金等の負担 | BI24: 15 | BJ24: 100004 | BK24: 0 | BL24: 0 | BM24: 0 | BN24: 0 | BO24: 0 | BP24: 0 | BQ24: 0 | BR24: 0 | BS24: 0 | BT24: 0 | BU24: 0 | BV24: 0 | BW24: 0 | BX24: 0 | BY24: 0 | BZ24: 0 | CA24: 0 | CB24: 0 | CC24: 0 | CD24: 0 | CE24: 0 | CF24: 0 | CG24: 0 | CH24: 0 | CI24: 0 | CJ24: 0 | CK24: 0 | CL24: 0 | CM24: 0 | CN24: 0 | CO24: 0 | CP24: 0 | CQ24: 0 | CR24: 0 | CS24: 0 | CT24: 0 | CU24: 0 | CV24: 0 | CW24: 0 | CX24: 0 | CY24: 0 | CZ24: 0 | DA24: 0 | DB24: 0 | DC24: 0 | DD24: 0 | DE24: 0 | DF24: 0 | DG24: 0 | DH24: 0 | DI24: 0 | DJ24: 0 | DK24: 0 | DL24: 0 | DM24: 0 | DN24: 0 | DO24: 0 | DP24: 0 | DQ24: 0 | DR24: 0 | DS24: 0 | DT24: 0 | DU24: 0 | DV24: 0 | DW24: 0 | DX24: 0 | DY24: 0 | DZ24: 0 | EA24: 0 | EB24: 0 | EC24: 0 | ED24: 0 | EE24: 0 | EF24: 0 | EG24: 0 | EH24: 0 | EI24: 0 | EJ24: 0 | EK24: 0 | EL24: 0 | EM24: 0 | EN24: 0 | EO24: 0 | EP24: 0 | EQ24: 0 | ER24: 0 | ES24: 0 | ET24: 0 | EU24: 0 | EV24: 0 | EW24: 0 | EX24: 0 | EY24: 0 | EZ24: 0 | FA24: 0 | FB24: 0 | FC24: 0 | FD24: 0 | FE24: 0 | FF24: 0 | FG24: 0 | FH24: 0 | FI24: 0 | FJ24: 0 | FK24: 0 | FL24: 0 | FM24: 0 | FN24: 0 | FO24: 0 | FP24: 0 | FQ24: 0 | FR24: 0 | FS24: 0 | FT24: 0 | FU24: 0 | FV24: 0 | FW24: 0 | FX24: 0 | FY24: 0 | FZ24: 0 | GA24: 0 | GB24: 0 | GC24: 0 | GD24: 0 | GE24: 0 | GF24: 0 | GG24: 0 | GH24: 0 | GI24: 0 | GJ24: 0 | GK24: 0 | GL24: 0 | GM24: 0 | GN24: 0 | GO24: 0 | GP24: 0 | GQ24: 0 | GR24: 1 | GS24: 0 | GT24: 0 | GU24: 0 | GV24: 1 | GW24: 0 | GX24: 0 | GY24: 0 | GZ24: 1 | HA24: 0 | HB24: 0 | HC24: 0 | HD24: 1 | HE24: 0 | HF24: 0 | HG24: 0 | HH24: 1 | HI24: 0 | HJ24: 0 | HK24: 0 | HL24: 1 | HM24: 0 | HN24: 0 | HO24: 0 | HP24: 1 | HQ24: 0 | HR24: 0 | HS24: 0 | HT24: 1 | HU24: 0 | HV24: 0 | HW24: 0 | HX24: 1 | HY24: 0 | HZ24: 0 | IA24: 0 | IB24: 1 | IC24: 0 | ID24: 0 | IE24: 0 | IF24: 1 | IG24: 0 | IH24: 0 | II24: 0 | IJ24: 1 | IK24: 0 | IL24: 0 | IM24: 0 | IN24: 1 | IO24: 0 | IP24: 0 | IQ24: 0 | IR24: 1 | IS24: 0 | IT24: 0
A25: Ver.05.00 | B25: 220001 | C25: 静岡県 | D25: - | E25: 1 | F25: 3507011409 | G25: 12950374 | H25: 21325354 | I25: 0 | J25: 213637437 | K25: 911809 | L25: 0 | M25: 0 | N25: 0 | O25: 911809 | P25: 0 | Q25: 0 | R25: 813791833 | S25: 43606518.51 | T25: 0 | U25: 1420378166 | V25: 3755836383 | W25: 2277776518 | X25: 1478059865 | Y25: 109882931 | Z25: 627708337 | AA25: 235.4 | AB25: 2837987 | AC25: 0 | AD25: 3212318 | AE25: 0 | AF25: 0 | AG25: 6900069 | AH25: 0 | AI25: 0 | AJ25: 0 | AK25: 0 | AL25: 12950374 | AM25: ① | AN25: 西遠地区新構想高等学校（仮称）ＰＦＩ事業契約 | AO25: 7 | AP25: 355341 | AQ25: ① | AR25: 総合科学技術高等学校（仮称）ＰＦＩ事業契約 | AS25: 9 | AT25: 824577 | AU25: ① | AV25: 森地区新構想高等学校（仮称）ＰＦＩ事業契約 | AW25: 11 | AX25: 918849 | AY25: ① | AZ25: 中部運転免許センターPFI事業契約 | BA25: 12 | BB25: 739220 | BC25: ③ | BD25: 国直轄等農業用水事業費負担金（豊川用水二期事業） | BE25: 10 | BF25: 39009 | BG25: ③ | BH25: 国直轄等農業用水事業費負担金（国営かんがい排水事業大井川用水（二期）地区） | BI25: 16 | BJ25: 3173309 | BK25: ⑥ | BL25: 静岡県土地開発公社事業資金による河川事業等国庫補助事業用地譲受契約（令和３年度分） | BM25: 7 | BN25: 68330 | BO25: ⑥ | BP25: 静岡県土地開発公社事業資金による河川事業等国庫補助事業用地譲受契約（令和４年度分） | BQ25: 8 | BR25: 338539 | BS25: ⑥ | BT25: 静岡県土地開発公社事業資金による河川事業等国庫補助事業用地譲受契約（令和５年度分） | BU25: 9 | BV25: 3367200 | BW25: ⑥ | BX25: 静岡県土地開発公社事業資金による道路事業県単独事業用地譲受契約 | BY25: 10 | BZ25: 45600 | CA25: ⑥ | CB25: 静岡県土地開発公社事業資金による街路事業国庫補助事業用地譲受契約 | CC25: 10 | CD25: 3080400 | CE25: 0 | CF25: 0 | CG25: 0 | CH25: 0 | CI25: 0 | CJ25: 0 | CK25: 0 | CL25: 0 | CM25: 0 | CN25: 0 | CO25: 0 | CP25: 0 | CQ25: 0 | CR25: 0 | CS25: 0 | CT25: 0 | CU25: 0 | CV25: 0 | CW25: 0 | CX25: 0 | CY25: 0 | CZ25: 0 | DA25: 0 | DB25: 0 | DC25: 0 | DD25: 0 | DE25: 0 | DF25: 0 | DG25: 0 | DH25: 0 | DI25: 0 | DJ25: 0 | DK25: 0 | DL25: 0 | DM25: 0 | DN25: 0 | DO25: 0 | DP25: 0 | DQ25: 0 | DR25: 0 | DS25: 0 | DT25: 0 | DU25: 0 | DV25: 0 | DW25: 0 | DX25: 0 | DY25: 0 | DZ25: 0 | EA25: 0 | EB25: 0 | EC25: 0 | ED25: 0 | EE25: 0 | EF25: 0 | EG25: 0 | EH25: 0 | EI25: 0 | EJ25: 0 | EK25: 0 | EL25: 0 | EM25: 0 | EN25: 0 | EO25: 0 | EP25: 0 | EQ25: 0 | ER25: 0 | ES25: 0 | ET25: 0 | EU25: 0 | EV25: 0 | EW25: 0 | EX25: 0 | EY25: 0 | EZ25: 0 | FA25: 0 | FB25: 0 | FC25: 0 | FD25: 0 | FE25: 0 | FF25: 0 | FG25: 0 | FH25: 0 | FI25: 0 | FJ25: 0 | FK25: 0 | FL25: 0 | FM25: 0 | FN25: 0 | FO25: 0 | FP25: 0 | FQ25: 0 | FR25: 0 | FS25: 0 | FT25: 0 | FU25: 0 | FV25: 0 | FW25: 0 | FX25: 0 | FY25: 0 | FZ25: 0 | GA25: 0 | GB25: 0 | GC25: 0 | GD25: 0 | GE25: 0 | GF25: 0 | GG25: 0 | GH25: 0 | GI25: 0 | GJ25: 0 | GK25: 0 | GL25: 0 | GM25: 0 | GN25: 0 | GO25: 0 | GP25: 0 | GQ25: 0 | GR25: 1 | GS25: 0 | GT25: 0 | GU25: 0 | GV25: 1 | GW25: 0 | GX25: 0 | GY25: 0 | GZ25: 1 | HA25: 0 | HB25: 0 | HC25: 0 | HD25: 1 | HE25: 0 | HF25: 0 | HG25: 0 | HH25: 1 | HI25: 0 | HJ25: 0 | HK25: 0 | HL25: 1 | HM25: 0 | HN25: 0 | HO25: 0 | HP25: 1 | HQ25: 0 | HR25: 0 | HS25: 0 | HT25: 1 | HU25: 0 | HV25: 0 | HW25: 0 | HX25: 1 | HY25: 0 | HZ25: 0 | IA25: 0 | IB25: 1 | IC25: 0 | ID25: 0 | IE25: 0 | IF25: 1 | IG25: 0 | IH25: 0 | II25: 0 | IJ25: 1 | IK25: 0 | IL25: 0 | IM25: 0 | IN25: 1 | IO25: 0 | IP25: 0 | IQ25: 0 | IR25: 1 | IS25: 0 | IT25: 0
A26: Ver.05.00 | B26: 230006 | C26: 愛知県 | D26: - | E26: 1 | F26: 5471504138 | G26: 55025183 | H26: 83545148 | I26: 37328882 | J26: 380574897 | K26: 15628538 | L26: 0 | M26: 0 | N26: 0 | O26: 15628538 | P26: 0 | Q26: 0 | R26: 1231051659 | S26: 57738994 | T26: 0 | U26: 2764410670 | V26: 6043606786 | W26: 4053201323 | X26: 1990405463 | Y26: 214368818 | Z26: 1226037018 | AA26: 162.3 | AB26: 2172380 | AC26: 0 | AD26: 35056 | AE26: 45187894 | AF26: 0 | AG26: 7629853 | AH26: 0 | AI26: 0 | AJ26: 0 | AK26: 0 | AL26: 55025183 | AM26: ① | AN26: 産業労働センター整備・運営事業契約 | AO26: 21 | AP26: 2172380 | AQ26: ③ | AR26: 国営土地改良事業負担金 | AS26: 6 | AT26: 35056 | AU26: ④ | AV26: 水資源機構営事業負担金 | AW26: 21 | AX26: 45187894 | AY26: ⑥ | AZ26: 公共用地先行取得 | BA26: 6 | BB26: 309602 | BC26: ⑥ | BD26: 公共用地先行取得 | BE26: 7 | BF26: 946075 | BG26: ⑥ | BH26: 公共用地先行取得 | BI26: 8 | BJ26: 3428714 | BK26: ⑥ | BL26: 公共用地先行取得 | BM26: 9 | BN26: 2945462 | BO26: 0 | BP26: 0 | BQ26: 0 | BR26: 0 | BS26: 0 | BT26: 0 | BU26: 0 | BV26: 0 | BW26: 0 | BX26: 0 | BY26: 0 | BZ26: 0 | CA26: 0 | CB26: 0 | CC26: 0 | CD26: 0 | CE26: 0 | CF26: 0 | CG26: 0 | CH26: 0 | CI26: 0 | CJ26: 0 | CK26: 0 | CL26: 0 | CM26: 0 | CN26: 0 | CO26: 0 | CP26: 0 | CQ26: 0 | CR26: 0 | CS26: 0 | CT26: 0 | CU26: 0 | CV26: 0 | CW26: 0 | CX26: 0 | CY26: 0 | CZ26: 0 | DA26: 0 | DB26: 0 | DC26: 0 | DD26: 0 | DE26: 0 | DF26: 0 | DG26: 0 | DH26: 0 | DI26: 0 | DJ26: 0 | DK26: 0 | DL26: 0 | DM26: 0 | DN26: 0 | DO26: 0 | DP26: 0 | DQ26: 0 | DR26: 0 | DS26: 0 | DT26: 0 | DU26: 0 | DV26: 0 | DW26: 0 | DX26: 0 | DY26: 0 | DZ26: 0 | EA26: 0 | EB26: 0 | EC26: 0 | ED26: 0 | EE26: 0 | EF26: 0 | EG26: 0 | EH26: 0 | EI26: 0 | EJ26: 0 | EK26: 0 | EL26: 0 | EM26: 0 | EN26: 0 | EO26: 0 | EP26: 0 | EQ26: 0 | ER26: 0 | ES26: 0 | ET26: 0 | EU26: 0 | EV26: 0 | EW26: 0 | EX26: 0 | EY26: 0 | EZ26: 0 | FA26: 0 | FB26: 0 | FC26: 0 | FD26: 0 | FE26: 0 | FF26: 0 | FG26: 0 | FH26: 0 | FI26: 0 | FJ26: 0 | FK26: 0 | FL26: 0 | FM26: 0 | FN26: 0 | FO26: 0 | FP26: 0 | FQ26: 0 | FR26: 0 | FS26: 0 | FT26: 0 | FU26: 0 | FV26: 0 | FW26: 0 | FX26: 0 | FY26: 0 | FZ26: 0 | GA26: 0 | GB26: 0 | GC26: 0 | GD26: 0 | GE26: 0 | GF26: 0 | GG26: 0 | GH26: 0 | GI26: 0 | GJ26: 0 | GK26: 0 | GL26: 0 | GM26: 0 | GN26: 0 | GO26: 0 | GP26: 0 | GQ26: 0 | GR26: 1 | GS26: 0 | GT26: 0 | GU26: 0 | GV26: 1 | GW26: 0 | GX26: 0 | GY26: 0 | GZ26: 1 | HA26: 0 | HB26: 0 | HC26: 0 | HD26: 1 | HE26: 0 | HF26: 0 | HG26: 0 | HH26: 1 | HI26: 0 | HJ26: 0 | HK26: 0 | HL26: 1 | HM26: 0 | HN26: 0 | HO26: 0 | HP26: 1 | HQ26: 0 | HR26: 0 | HS26: 0 | HT26: 1 | HU26: 0 | HV26: 0 | HW26: 0 | HX26: 1 | HY26: 0 | HZ26: 0 | IA26: 0 | IB26: 1 | IC26: 0 | ID26: 0 | IE26: 0 | IF26: 1 | IG26: 0 | IH26: 0 | II26: 0 | IJ26: 1 | IK26: 0 | IL26: 0 | IM26: 0 | IN26: 1 | IO26: 0 | IP26: 0 | IQ26: 0 | IR26: 1 | IS26: 0 | IT26: 0
A27: Ver.05.00 | B27: 240001 | C27: 三重県 | D27: - | E27: 1 | F27: 1486293744 | G27: 4424121 | H27: 30891353 | I27: 10758870 | J27: 157614945 | K27: 5394 | L27: 0 | M27: 0 | N27: 0 | O27: 5394 | P27: 0 | Q27: 0 | R27: 135134143 | S27: 8577902 | T27: 0 | U27: 922360347 | V27: 1689988427 | W27: 1066072392 | X27: 623916035 | Y27: 71586001 | Z27: 379167938 | AA27: 164.5 | AB27: 683981 | AC27: 0 | AD27: 55043 | AE27: 0 | AF27: 2344613 | AG27: 1340484 | AH27: 0 | AI27: 0 | AJ27: 0 | AK27: 0 | AL27: 4424121 | AM27: ① | AN27: 東紀州職員公舎に係る契約（熊野世帯用） | AO27: 14 | AP27: 50092 | AQ27: ③ | AR27: 国営土地改良事業に係るもの | AS27: 7 | AT27: 55043 | AU27: ⑥ | AV27: 公共事業用地の先行取得に関する契約 | AW27: 99 | AX27: 34010 | AY27: ⑥ | AZ27: 公共事業用地の先行取得に関する契約 | BA27: 99 | BB27: 0 | BC27: ⑥ | BD27: 公共事業用地の先行取得に関する契約 | BE27: 99 | BF27: 0 | BG27: ⑥ | BH27: 公共事業用地の先行取得に関する契約 | BI27: 99 | BJ27: 428608 | BK27: ⑥ | BL27: 公共事業用地の先行取得に関する契約 | BM27: 99 | BN27: 877866 | BO27: ⑤ | BP27: 警察職員住宅賃貸借等契約 | BQ27: 23 | BR27: 2344613 | BS27: ① | BT27: 鈴鹿青少年センターと鈴鹿青少年の森の整備運営事業に係る契約 | BU27: 22 | BV27: 604289 | BW27: ① | BX27: 鈴鹿青少年センターと鈴鹿青少年の森の整備運営事業に係る契約 | BY27: 22 | BZ27: 29600 | CA27: 0 | CB27: 0 | CC27: 0 | CD27: 0 | CE27: 0 | CF27: 0 | CG27: 0 | CH27: 0 | CI27: 0 | CJ27: 0 | CK27: 0 | CL27: 0 | CM27: 0 | CN27: 0 | CO27: 0 | CP27: 0 | CQ27: 0 | CR27: 0 | CS27: 0 | CT27: 0 | CU27: 0 | CV27: 0 | CW27: 0 | CX27: 0 | CY27: 0 | CZ27: 0 | DA27: 0 | DB27: 0 | DC27: 0 | DD27: 0 | DE27: 0 | DF27: 0 | DG27: 0 | DH27: 0 | DI27: 0 | DJ27: 0 | DK27: 0 | DL27: 0 | DM27: 0 | DN27: 0 | DO27: 0 | DP27: 0 | DQ27: 0 | DR27: 0 | DS27: 0 | DT27: 0 | DU27: 0 | DV27: 0 | DW27: 0 | DX27: 0 | DY27: 0 | DZ27: 0 | EA27: 0 | EB27: 0 | EC27: 0 | ED27: 0 | EE27: 0 | EF27: 0 | EG27: 0 | EH27: 0 | EI27: 0 | EJ27: 0 | EK27: 0 | EL27: 0 | EM27: 0 | EN27: 0 | EO27: 0 | EP27: 0 | EQ27: 0 | ER27: 0 | ES27: 0 | ET27: 0 | EU27: 0 | EV27: 0 | EW27: 0 | EX27: 0 | EY27: 0 | EZ27: 0 | FA27: 0 | FB27: 0 | FC27: 0 | FD27: 0 | FE27: 0 | FF27: 0 | FG27: 0 | FH27: 0 | FI27: 0 | FJ27: 0 | FK27: 0 | FL27: 0 | FM27: 0 | FN27: 0 | FO27: 0 | FP27: 0 | FQ27: 0 | FR27: 0 | FS27: 0 | FT27: 0 | FU27: 0 | FV27: 0 | FW27: 0 | FX27: 0 | FY27: 0 | FZ27: 0 | GA27: 0 | GB27: 0 | GC27: 0 | GD27: 0 | GE27: 0 | GF27: 0 | GG27: 0 | GH27: 0 | GI27: 0 | GJ27: 0 | GK27: 0 | GL27: 0 | GM27: 0 | GN27: 0 | GO27: 0 | GP27: 0 | GQ27: 0 | GR27: 1 | GS27: 0 | GT27: 0 | GU27: 0 | GV27: 1 | GW27: 0 | GX27: 0 | GY27: 0 | GZ27: 1 | HA27: 0 | HB27: 0 | HC27: 0 | HD27: 1 | HE27: 0 | HF27: 0 | HG27: 0 | HH27: 1 | HI27: 0 | HJ27: 0 | HK27: 0 | HL27: 1 | HM27: 0 | HN27: 0 | HO27: 0 | HP27: 1 | HQ27: 0 | HR27: 0 | HS27: 0 | HT27: 1 | HU27: 0 | HV27: 0 | HW27: 0 | HX27: 1 | HY27: 0 | HZ27: 0 | IA27: 0 | IB27: 1 | IC27: 0 | ID27: 0 | IE27: 0 | IF27: 1 | IG27: 0 | IH27: 0 | II27: 0 | IJ27: 1 | IK27: 0 | IL27: 0 | IM27: 0 | IN27: 1 | IO27: 0 | IP27: 0 | IQ27: 0 | IR27: 1 | IS27: 0 | IT27: 0
A28: Ver.05.00 | B28: 250007 | C28: 滋賀県 | D28: - | E28: 1 | F28: 1081264819 | G28: 52543125 | H28: 31834895 | I28: 270 | J28: 113417423 | K28: 1316503 | L28: 0 | M28: 0 | N28: 0 | O28: 1316503 | P28: 0 | Q28: 0 | R28: 104272753 | S28: 4039615 | T28: 0 | U28: 613089635 | V28: 1280377035 | W28: 721402003 | X28: 558975032 | Y28: 48048756 | Z28: 304869692 | AA28: 183.3 | AB28: 22283141 | AC28: 0 | AD28: 0 | AE28: 0 | AF28: 0 | AG28: 719102 | AH28: 0 | AI28: 0 | AJ28: 26746873 | AK28: 2794009 | AL28: 52543125 | AM28: ① | AN28: コラボしが２１整備事業 | AO28: 16 | AP28: 648871 | AQ28: ① | AR28: 新県立体育館整備事業 | AS28: 18 | AT28: 6259808 | AU28: ⑥ | AV28: 滋賀県土地開発公社公共用地先行取得事業（米原駅周辺地域活性化のための中核施設用地） | AW28: 6 | AX28: 719102 | AY28: ⑨ | AZ28: 滋賀県造林公社事業資金融資免責的債務負担 | BA28: 31 | BB28: 5893649 | BC28: ⑨ | BD28: びわ湖造林公社事業資金融資免責的債務負担 | BE28: 31 | BF28: 20853224 | BG28: ⑩ | BH28: 県立学校空調設備賃借（高等学校） | BI28: 14 | BJ28: 2466887 | BK28: ⑩ | BL28: 県立学校空調設備賃借（特別支援学校） | BM28: 13 | BN28: 327122 | BO28: ① | BP28: 県営住宅建設事業 | BQ28: 7 | BR28: 160215 | BS28: ① | BT28: 県立近江学園整備事業 | BU28: 19 | BV28: 3983010 | BW28: ① | BX28: 東北部工業技術センター庁舎整備事業 | BY28: 8 | BZ28: 4022211 | CA28: ① | CB28: （仮称）新・琵琶湖文化館整備事業 | CC28: 23 | CD28: 7209026 | CE28: 0 | CF28: 0 | CG28: 0 | CH28: 0 | CI28: 0 | CJ28: 0 | CK28: 0 | CL28: 0 | CM28: 0 | CN28: 0 | CO28: 0 | CP28: 0 | CQ28: 0 | CR28: 0 | CS28: 0 | CT28: 0 | CU28: 0 | CV28: 0 | CW28: 0 | CX28: 0 | CY28: 0 | CZ28: 0 | DA28: 0 | DB28: 0 | DC28: 0 | DD28: 0 | DE28: 0 | DF28: 0 | DG28: 0 | DH28: 0 | DI28: 0 | DJ28: 0 | DK28: 0 | DL28: 0 | DM28: 0 | DN28: 0 | DO28: 0 | DP28: 0 | DQ28: 0 | DR28: 0 | DS28: 0 | DT28: 0 | DU28: 0 | DV28: 0 | DW28: 0 | DX28: 0 | DY28: 0 | DZ28: 0 | EA28: 0 | EB28: 0 | EC28: 0 | ED28: 0 | EE28: 0 | EF28: 0 | EG28: 0 | EH28: 0 | EI28: 0 | EJ28: 0 | EK28: 0 | EL28: 0 | EM28: 0 | EN28: 0 | EO28: 0 | EP28: 0 | EQ28: 0 | ER28: 0 | ES28: 0 | ET28: 0 | EU28: 0 | EV28: 0 | EW28: 0 | EX28: 0 | EY28: 0 | EZ28: 0 | FA28: 0 | FB28: 0 | FC28: 0 | FD28: 0 | FE28: 0 | FF28: 0 | FG28: 0 | FH28: 0 | FI28: 0 | FJ28: 0 | FK28: 0 | FL28: 0 | FM28: 0 | FN28: 0 | FO28: 0 | FP28: 0 | FQ28: 0 | FR28: 0 | FS28: 0 | FT28: 0 | FU28: 0 | FV28: 0 | FW28: 0 | FX28: 0 | FY28: 0 | FZ28: 0 | GA28: 0 | GB28: 0 | GC28: 0 | GD28: 0 | GE28: 0 | GF28: 0 | GG28: 0 | GH28: 0 | GI28: 0 | GJ28: 0 | GK28: 0 | GL28: 0 | GM28: 0 | GN28: 0 | GO28: 0 | GP28: 0 | GQ28: 0 | GR28: 1 | GS28: 0 | GT28: 0 | GU28: 0 | GV28: 1 | GW28: 0 | GX28: 0 | GY28: 0 | GZ28: 1 | HA28: 0 | HB28: 0 | HC28: 0 | HD28: 1 | HE28: 0 | HF28: 0 | HG28: 0 | HH28: 1 | HI28: 0 | HJ28: 0 | HK28: 0 | HL28: 1 | HM28: 0 | HN28: 0 | HO28: 0 | HP28: 1 | HQ28: 0 | HR28: 0 | HS28: 0 | HT28: 1 | HU28: 0 | HV28: 0 | HW28: 0 | HX28: 1 | HY28: 0 | HZ28: 0 | IA28: 0 | IB28: 1 | IC28: 0 | ID28: 0 | IE28: 0 | IF28: 1 | IG28: 0 | IH28: 0 | II28: 0 | IJ28: 1 | IK28: 0 | IL28: 0 | IM28: 0 | IN28: 1 | IO28: 0 | IP28: 0 | IQ28: 0 | IR28: 1 | IS28: 0 | IT28: 0
A29: Ver.05.00 | B29: 260002 | C29: 京都府 | D29: - | E29: 1 | F29: 2379158854 | G29: 2256840 | H29: 25185217 | I29: 4172 | J29: 131192874 | K29: 2048876 | L29: 0 | M29: 0 | N29: 1206322 | O29: 842554 | P29: 0 | Q29: 0 | R29: 357907674.4 | S29: 21568285 | T29: 0 | U29: 924439049 | V29: 2539846833 | W29: 1303915008 | X29: 1235931825 | Y29: 73378404 | Z29: 466979367 | AA29: 264.6 | AB29: 957806 | AC29: 0 | AD29: 0 | AE29: 0 | AF29: 0 | AG29: 1299034 | AH29: 0 | AI29: 0 | AJ29: 0 | AK29: 0 | AL29: 2256840 | AM29: ① | AN29: 平成17年度府営住宅整備等事業費 | AO29: 9 | AP29: 957806 | AQ29: ⑥ | AR29: 公共用地取得事業費 | AS29: 15 | AT29: 1299034 | AU29: 0 | AV29: 0 | AW29: 0 | AX29: 0 | AY29: 0 | AZ29: 0 | BA29: 0 | BB29: 0 | BC29: 0 | BD29: 0 | BE29: 0 | BF29: 0 | BG29: 0 | BH29: 0 | BI29: 0 | BJ29: 0 | BK29: 0 | BL29: 0 | BM29: 0 | BN29: 0 | BO29: 0 | BP29: 0 | BQ29: 0 | BR29: 0 | BS29: 0 | BT29: 0 | BU29: 0 | BV29: 0 | BW29: 0 | BX29: 0 | BY29: 0 | BZ29: 0 | CA29: 0 | CB29: 0 | CC29: 0 | CD29: 0 | CE29: 0 | CF29: 0 | CG29: 0 | CH29: 0 | CI29: 0 | CJ29: 0 | CK29: 0 | CL29: 0 | CM29: 0 | CN29: 0 | CO29: 0 | CP29: 0 | CQ29: 0 | CR29: 0 | CS29: 0 | CT29: 0 | CU29: 0 | CV29: 0 | CW29: 0 | CX29: 0 | CY29: 0 | CZ29: 0 | DA29: 0 | DB29: 0 | DC29: 0 | DD29: 0 | DE29: 0 | DF29: 0 | DG29: 0 | DH29: 0 | DI29: 0 | DJ29: 0 | DK29: 0 | DL29: 0 | DM29: 0 | DN29: 0 | DO29: 0 | DP29: 0 | DQ29: 0 | DR29: 0 | DS29: 0 | DT29: 0 | DU29: 0 | DV29: 0 | DW29: 0 | DX29: 0 | DY29: 0 | DZ29: 0 | EA29: 0 | EB29: 0 | EC29: 0 | ED29: 0 | EE29: 0 | EF29: 0 | EG29: 0 | EH29: 0 | EI29: 0 | EJ29: 0 | EK29: 0 | EL29: 0 | EM29: 0 | EN29: 0 | EO29: 0 | EP29: 0 | EQ29: 0 | ER29: 0 | ES29: 0 | ET29: 0 | EU29: 0 | EV29: 0 | EW29: 0 | EX29: 0 | EY29: 0 | EZ29: 0 | FA29: 0 | FB29: 0 | FC29: 0 | FD29: 0 | FE29: 0 | FF29: 0 | FG29: 0 | FH29: 0 | FI29: 0 | FJ29: 0 | FK29: 0 | FL29: 0 | FM29: 0 | FN29: 0 | FO29: 0 | FP29: 0 | FQ29: 0 | FR29: 0 | FS29: 0 | FT29: 0 | FU29: 0 | FV29: 0 | FW29: 0 | FX29: 0 | FY29: 0 | FZ29: 0 | GA29: 0 | GB29: 0 | GC29: 0 | GD29: 0 | GE29: 0 | GF29: 0 | GG29: 0 | GH29: 0 | GI29: 0 | GJ29: 0 | GK29: 0 | GL29: 0 | GM29: 0 | GN29: 0 | GO29: 0 | GP29: 0 | GQ29: 0 | GR29: 1 | GS29: 0 | GT29: 0 | GU29: 0 | GV29: 1 | GW29: 0 | GX29: 0 | GY29: 0 | GZ29: 1 | HA29: 0 | HB29: 0 | HC29: 0 | HD29: 1 | HE29: 0 | HF29: 0 | HG29: 0 | HH29: 1 | HI29: 0 | HJ29: 0 | HK29: 0 | HL29: 1 | HM29: 0 | HN29: 0 | HO29: 0 | HP29: 1 | HQ29: 0 | HR29: 0 | HS29: 0 | HT29: 1 | HU29: 0 | HV29: 0 | HW29: 0 | HX29: 1 | HY29: 0 | HZ29: 0 | IA29: 0 | IB29: 1 | IC29: 0 | ID29: 0 | IE29: 0 | IF29: 1 | IG29: 0 | IH29: 0 | II29: 0 | IJ29: 1 | IK29: 0 | IL29: 0 | IM29: 0 | IN29: 1 | IO29: 0 | IP29: 0 | IQ29: 0 | IR29: 1 | IS29: 0 | IT29: 0
A30: Ver.05.00 | B30: 270008 | C30: 大阪府 | D30: - | E30: 1 | F30: 5668922326 | G30: 35164841 | H30: 121123547 | I30: 4993 | J30: 377141125 | K30: 45098115 | L30: 0 | M30: 0 | N30: 3522123 | O30: 41575992 | P30: 0 | Q30: 0 | R30: 1368458091 | S30: 296823639 | T30: 0 | U30: 2809354336 | V30: 6247454947 | W30: 4474636066 | X30: 1772818881 | Y30: 209795213 | Z30: 1497261152 | AA30: 118.4 | AB30: 6808569 | AC30: 0 | AD30: 0 | AE30: 0 | AF30: 0 | AG30: 9249315 | AH30: 0 | AI30: 0 | AJ30: 0 | AK30: 19106957 | AL30: 35164841 | AM30: ① | AN30: 消防学校再整備事業 | AO30: 20 | AP30: 1401919 | AQ30: ⑩ | AR30: 大阪府立大学施設整備事業 | AS30: 20 | AT30: 7224460 | AU30: ⑩ | AV30: 大阪府立大学施設整備費補助金 | AW30: 10 | AX30: 1948855 | AY30: ⑥ | AZ30: 公共用地先行取得 | BA30: 9 | BB30: 9249315 | BC30: ⑩ | BD30: うめきた地区土地区画整理事業補助金 | BE30: 31 | BF30: 850000 | BG30: ① | BH30: 待機宿舎ＰＦＩ整備事業 | BI30: 21 | BJ30: 5406650 | BK30: ⑩ | BL30: 旧大阪市立特別支援学校関連事業費負担金 | BM30: 27 | BN30: 652182 | BO30: ⑩ | BP30: 旧大阪市立高等学校関連事業費負担金 | BQ30: 34 | BR30: 8431460 | BS30: 0 | BT30: 0 | BU30: 0 | BV30: 0 | BW30: 0 | BX30: 0 | BY30: 0 | BZ30: 0 | CA30: 0 | CB30: 0 | CC30: 0 | CD30: 0 | CE30: 0 | CF30: 0 | CG30: 0 | CH30: 0 | CI30: 0 | CJ30: 0 | CK30: 0 | CL30: 0 | CM30: 0 | CN30: 0 | CO30: 0 | CP30: 0 | CQ30: 0 | CR30: 0 | CS30: 0 | CT30: 0 | CU30: 0 | CV30: 0 | CW30: 0 | CX30: 0 | CY30: 0 | CZ30: 0 | DA30: 0 | DB30: 0 | DC30: 0 | DD30: 0 | DE30: 0 | DF30: 0 | DG30: 0 | DH30: 0 | DI30: 0 | DJ30: 0 | DK30: 0 | DL30: 0 | DM30: 0 | DN30: 0 | DO30: 0 | DP30: 0 | DQ30: 0 | DR30: 0 | DS30: 0 | DT30: 0 | DU30: 0 | DV30: 0 | DW30: 0 | DX30: 0 | DY30: 0 | DZ30: 0 | EA30: 0 | EB30: 0 | EC30: 0 | ED30: 0 | EE30: 0 | EF30: 0 | EG30: 0 | EH30: 0 | EI30: 0 | EJ30: 0 | EK30: 0 | EL30: 0 | EM30: 0 | EN30: 0 | EO30: 0 | EP30: 0 | EQ30: 0 | ER30: 0 | ES30: 0 | ET30: 0 | EU30: 0 | EV30: 0 | EW30: 0 | EX30: 0 | EY30: 0 | EZ30: 0 | FA30: 0 | FB30: 0 | FC30: 0 | FD30: 0 | FE30: 0 | FF30: 0 | FG30: 0 | FH30: 0 | FI30: 0 | FJ30: 0 | FK30: 0 | FL30: 0 | FM30: 0 | FN30: 0 | FO30: 0 | FP30: 0 | FQ30: 0 | FR30: 0 | FS30: 0 | FT30: 0 | FU30: 0 | FV30: 0 | FW30: 0 | FX30: 0 | FY30: 0 | FZ30: 0 | GA30: 0 | GB30: 0 | GC30: 0 | GD30: 0 | GE30: 0 | GF30: 0 | GG30: 0 | GH30: 0 | GI30: 0 | GJ30: 0 | GK30: 0 | GL30: 0 | GM30: 0 | GN30: 0 | GO30: 0 | GP30: 0 | GQ30: 0 | GR30: 1 | GS30: 0 | GT30: 0 | GU30: 0 | GV30: 1 | GW30: 0 | GX30: 0 | GY30: 0 | GZ30: 1 | HA30: 0 | HB30: 0 | HC30: 0 | HD30: 1 | HE30: 0 | HF30: 0 | HG30: 0 | HH30: 1 | HI30: 0 | HJ30: 0 | HK30: 0 | HL30: 1 | HM30: 0 | HN30: 0 | HO30: 0 | HP30: 1 | HQ30: 0 | HR30: 0 | HS30: 0 | HT30: 1 | HU30: 0 | HV30: 0 | HW30: 0 | HX30: 1 | HY30: 0 | HZ30: 0 | IA30: 0 | IB30: 1 | IC30: 0 | ID30: 0 | IE30: 0 | IF30: 1 | IG30: 0 | IH30: 0 | II30: 0 | IJ30: 1 | IK30: 0 | IL30: 0 | IM30: 0 | IN30: 1 | IO30: 0 | IP30: 0 | IQ30: 0 | IR30: 1 | IS30: 0 | IT30: 0
A31: Ver.05.00 | B31: 280003 | C31: 兵庫県 | D31: - | E31: 1 | F31: 5335678325 | G31: 14715419 | H31: 160863003 | I31: 13698 | J31: 319252378 | K31: 58580851 | L31: 30163524 | M31: 0 | N31: 0 | O31: 28417327 | P31: 0 | Q31: 0 | R31: 561792991 | S31: 152761974 | T31: 0 | U31: 2082600796 | V31: 5889103674 | W31: 2797155761 | X31: 3091947913 | Y31: 159773043 | Z31: 961559829 | AA31: 321.5 | AB31: 0 | AC31: 2051595 | AD31: 0 | AE31: 0 | AF31: 0 | AG31: 12217000 | AH31: 0 | AI31: 0 | AJ31: 0 | AK31: 446824 | AL31: 14715419 | AM31: ⑩ | AN31: 公立豊岡病院救命救急センター・精神科病棟建設費元利補給費 | AO31: 16 | AP31: 254306 | AQ31: ⑩ | AR31: 赤十字血液センター施設整備費補助 | AS31: 9 | AT31: 123258 | AU31: ⑥ | AV31: 公拡法第17条第１項第１号に規定する土地の取得に要する経費 | AW31: 7 | AX31: 12217000 | AY31: ② | AZ31: 災害公営住宅住宅購入費 | BA31: 13 | BB31: 2051595 | BC31: ⑩ | BD31: 神戸市中央卸売市場再整備支援事業 | BE31: 15 | BF31: 69260 | BG31: 0 | BH31: 0 | BI31: 0 | BJ31: 0 | BK31: 0 | BL31: 0 | BM31: 0 | BN31: 0 | BO31: 0 | BP31: 0 | BQ31: 0 | BR31: 0 | BS31: 0 | BT31: 0 | BU31: 0 | BV31: 0 | BW31: 0 | BX31: 0 | BY31: 0 | BZ31: 0 | CA31: 0 | CB31: 0 | CC31: 0 | CD31: 0 | CE31: 0 | CF31: 0 | CG31: 0 | CH31: 0 | CI31: 0 | CJ31: 0 | CK31: 0 | CL31: 0 | CM31: 0 | CN31: 0 | CO31: 0 | CP31: 0 | CQ31: 0 | CR31: 0 | CS31: 0 | CT31: 0 | CU31: 0 | CV31: 0 | CW31: 0 | CX31: 0 | CY31: 0 | CZ31: 0 | DA31: 0 | DB31: 0 | DC31: 0 | DD31: 0 | DE31: 0 | DF31: 0 | DG31: 0 | DH31: 0 | DI31: 0 | DJ31: 0 | DK31: 0 | DL31: 0 | DM31: 0 | DN31: 0 | DO31: 0 | DP31: 0 | DQ31: 0 | DR31: 0 | DS31: 0 | DT31: 0 | DU31: 0 | DV31: 0 | DW31: 0 | DX31: 0 | DY31: 0 | DZ31: 0 | EA31: 0 | EB31: 0 | EC31: 0 | ED31: 0 | EE31: 0 | EF31: 0 | EG31: 0 | EH31: 0 | EI31: 0 | EJ31: 0 | EK31: 0 | EL31: 0 | EM31: 0 | EN31: 0 | EO31: 0 | EP31: 0 | EQ31: 0 | ER31: 0 | ES31: 0 | ET31: 0 | EU31: 0 | EV31: 0 | EW31: 0 | EX31: 0 | EY31: 0 | EZ31: 0 | FA31: 0 | FB31: 0 | FC31: 0 | FD31: 0 | FE31: 0 | FF31: 0 | FG31: 0 | FH31: 0 | FI31: 0 | FJ31: 0 | FK31: 0 | FL31: 0 | FM31: 0 | FN31: 0 | FO31: 0 | FP31: 0 | FQ31: 0 | FR31: 0 | FS31: 0 | FT31: 0 | FU31: 0 | FV31: 0 | FW31: 0 | FX31: 0 | FY31: 0 | FZ31: 0 | GA31: 0 | GB31: 0 | GC31: 0 | GD31: 0 | GE31: 0 | GF31: 0 | GG31: 0 | GH31: 0 | GI31: 0 | GJ31: 0 | GK31: 0 | GL31: 0 | GM31: 0 | GN31: 0 | GO31: 0 | GP31: 0 | GQ31: 0 | GR31: 1 | GS31: 0 | GT31: 0 | GU31: 0 | GV31: 1 | GW31: 0 | GX31: 0 | GY31: 0 | GZ31: 1 | HA31: 0 | HB31: 0 | HC31: 0 | HD31: 1 | HE31: 0 | HF31: 0 | HG31: 0 | HH31: 1 | HI31: 0 | HJ31: 0 | HK31: 0 | HL31: 1 | HM31: 0 | HN31: 0 | HO31: 0 | HP31: 1 | HQ31: 0 | HR31: 0 | HS31: 0 | HT31: 1 | HU31: 0 | HV31: 0 | HW31: 0 | HX31: 1 | HY31: 0 | HZ31: 0 | IA31: 0 | IB31: 1 | IC31: 0 | ID31: 0 | IE31: 0 | IF31: 1 | IG31: 0 | IH31: 0 | II31: 0 | IJ31: 1 | IK31: 0 | IL31: 0 | IM31: 0 | IN31: 1 | IO31: 0 | IP31: 0 | IQ31: 0 | IR31: 1 | IS31: 0 | IT31: 0
A32: Ver.05.00 | B32: 290009 | C32: 奈良県 | D32: - | E32: 1 | F32: 957248504 | G32: 8549898 | H32: 5411747 | I32: 1505678 | J32: 83297870 | K32: 13811144 | L32: 0 | M32: 0 | N32: 13811144 | O32: 0 | P32: 0 | Q32: 0 | R32: 194416772 | S32: 8548094 | T32: 0 | U32: 557270562 | V32: 1069824841 | W32: 760235428 | X32: 309589413 | Y32: 48104217 | Z32: 291760434 | AA32: 106.1 | AB32: 157521 | AC32: 0 | AD32: 391092 | AE32: 0 | AF32: 0 | AG32: 8001285 | AH32: 0 | AI32: 0 | AJ32: 0 | AK32: 0 | AL32: 8549898 | AM32: ③ | AN32: 国営農業用水再編対策事業 | AO32: 16 | AP32: 391092 | AQ32: ① | AR32: 新県営プール施設等整備事業 | AS32: 10 | AT32: 157521 | AU32: ⑥ | AV32: 公共用地先行取得 | AW32: 11 | AX32: 8001285 | AY32: 0 | AZ32: 0 | BA32: 0 | BB32: 0 | BC32: 0 | BD32: 0 | BE32: 0 | BF32: 0 | BG32: 0 | BH32: 0 | BI32: 0 | BJ32: 0 | BK32: 0 | BL32: 0 | BM32: 0 | BN32: 0 | BO32: 0 | BP32: 0 | BQ32: 0 | BR32: 0 | BS32: 0 | BT32: 0 | BU32: 0 | BV32: 0 | BW32: 0 | BX32: 0 | BY32: 0 | BZ32: 0 | CA32: 0 | CB32: 0 | CC32: 0 | CD32: 0 | CE32: 0 | CF32: 0 | CG32: 0 | CH32: 0 | CI32: 0 | CJ32: 0 | CK32: 0 | CL32: 0 | CM32: 0 | CN32: 0 | CO32: 0 | CP32: 0 | CQ32: 0 | CR32: 0 | CS32: 0 | CT32: 0 | CU32: 0 | CV32: 0 | CW32: 0 | CX32: 0 | CY32: 0 | CZ32: 0 | DA32: 0 | DB32: 0 | DC32: 0 | DD32: 0 | DE32: 0 | DF32: 0 | DG32: 0 | DH32: 0 | DI32: 0 | DJ32: 0 | DK32: 0 | DL32: 0 | DM32: 0 | DN32: 0 | DO32: 0 | DP32: 0 | DQ32: 0 | DR32: 0 | DS32: 0 | DT32: 0 | DU32: 0 | DV32: 0 | DW32: 0 | DX32: 0 | DY32: 0 | DZ32: 0 | EA32: 0 | EB32: 0 | EC32: 0 | ED32: 0 | EE32: 0 | EF32: 0 | EG32: 0 | EH32: 0 | EI32: 0 | EJ32: 0 | EK32: 0 | EL32: 0 | EM32: 0 | EN32: 0 | EO32: 0 | EP32: 0 | EQ32: 0 | ER32: 0 | ES32: 0 | ET32: 0 | EU32: 0 | EV32: 0 | EW32: 0 | EX32: 0 | EY32: 0 | EZ32: 0 | FA32: 0 | FB32: 0 | FC32: 0 | FD32: 0 | FE32: 0 | FF32: 0 | FG32: 0 | FH32: 0 | FI32: 0 | FJ32: 0 | FK32: 0 | FL32: 0 | FM32: 0 | FN32: 0 | FO32: 0 | FP32: 0 | FQ32: 0 | FR32: 0 | FS32: 0 | FT32: 0 | FU32: 0 | FV32: 0 | FW32: 0 | FX32: 0 | FY32: 0 | FZ32: 0 | GA32: 0 | GB32: 0 | GC32: 0 | GD32: 0 | GE32: 0 | GF32: 0 | GG32: 0 | GH32: 0 | GI32: 0 | GJ32: 0 | GK32: 0 | GL32: 0 | GM32: 0 | GN32: 0 | GO32: 0 | GP32: 0 | GQ32: 0 | GR32: 1 | GS32: 0 | GT32: 0 | GU32: 0 | GV32: 1 | GW32: 0 | GX32: 0 | GY32: 0 | GZ32: 1 | HA32: 0 | HB32: 0 | HC32: 0 | HD32: 1 | HE32: 0 | HF32: 0 | HG32: 0 | HH32: 1 | HI32: 0 | HJ32: 0 | HK32: 0 | HL32: 1 | HM32: 0 | HN32: 0 | HO32: 0 | HP32: 1 | HQ32: 0 | HR32: 0 | HS32: 0 | HT32: 1 | HU32: 0 | HV32: 0 | HW32: 0 | HX32: 1 | HY32: 0 | HZ32: 0 | IA32: 0 | IB32: 1 | IC32: 0 | ID32: 0 | IE32: 0 | IF32: 1 | IG32: 0 | IH32: 0 | II32: 0 | IJ32: 1 | IK32: 0 | IL32: 0 | IM32: 0 | IN32: 1 | IO32: 0 | IP32: 0 | IQ32: 0 | IR32: 1 | IS32: 0 | IT32: 0
A33: Ver.05.00 | B33: 300004 | C33: 和歌山県 | D33: - | E33: 1 | F33: 1070329505 | G33: 705279 | H33: 10508711 | I33: 0 | J33: 92186098 | K33: 23942552 | L33: 0 | M33: 21247046 | N33: 0 | O33: 2695506 | P33: 0 | Q33: 0 | R33: 94064579 | S33: 14950316 | T33: 0 | U33: 564353874 | V33: 1197672145 | W33: 673368769 | X33: 524303376 | Y33: 46841611 | Z33: 259532192 | AA33: 202 | AB33: 0 | AC33: 0 | AD33: 0 | AE33: 705279 | AF33: 0 | AG33: 0 | AH33: 0 | AI33: 0 | AJ33: 0 | AK33: 0 | AL33: 705279 | AM33: ④ | AN33: 河西緩衝緑地取得 | AO33: 6 | AP33: 705279 | AQ33: 0 | AR33: 0 | AS33: 0 | AT33: 0 | AU33: 0 | AV33: 0 | AW33: 0 | AX33: 0 | AY33: 0 | AZ33: 0 | BA33: 0 | BB33: 0 | BC33: 0 | BD33: 0 | BE33: 0 | BF33: 0 | BG33: 0 | BH33: 0 | BI33: 0 | BJ33: 0 | BK33: 0 | BL33: 0 | BM33: 0 | BN33: 0 | BO33: 0 | BP33: 0 | BQ33: 0 | BR33: 0 | BS33: 0 | BT33: 0 | BU33: 0 | BV33: 0 | BW33: 0 | BX33: 0 | BY33: 0 | BZ33: 0 | CA33: 0 | CB33: 0 | CC33: 0 | CD33: 0 | CE33: 0 | CF33: 0 | CG33: 0 | CH33: 0 | CI33: 0 | CJ33: 0 | CK33: 0 | CL33: 0 | CM33: 0 | CN33: 0 | CO33: 0 | CP33: 0 | CQ33: 0 | CR33: 0 | CS33: 0 | CT33: 0 | CU33: 0 | CV33: 0 | CW33: 0 | CX33: 0 | CY33: 0 | CZ33: 0 | DA33: 0 | DB33: 0 | DC33: 0 | DD33: 0 | DE33: 0 | DF33: 0 | DG33: 0 | DH33: 0 | DI33: 0 | DJ33: 0 | DK33: 0 | DL33: 0 | DM33: 0 | DN33: 0 | DO33: 0 | DP33: 0 | DQ33: 0 | DR33: 0 | DS33: 0 | DT33: 0 | DU33: 0 | DV33: 0 | DW33: 0 | DX33: 0 | DY33: 0 | DZ33: 0 | EA33: 0 | EB33: 0 | EC33: 0 | ED33: 0 | EE33: 0 | EF33: 0 | EG33: 0 | EH33: 0 | EI33: 0 | EJ33: 0 | EK33: 0 | EL33: 0 | EM33: 0 | EN33: 0 | EO33: 0 | EP33: 0 | EQ33: 0 | ER33: 0 | ES33: 0 | ET33: 0 | EU33: 0 | EV33: 0 | EW33: 0 | EX33: 0 | EY33: 0 | EZ33: 0 | FA33: 0 | FB33: 0 | FC33: 0 | FD33: 0 | FE33: 0 | FF33: 0 | FG33: 0 | FH33: 0 | FI33: 0 | FJ33: 0 | FK33: 0 | FL33: 0 | FM33: 0 | FN33: 0 | FO33: 0 | FP33: 0 | FQ33: 0 | FR33: 0 | FS33: 0 | FT33: 0 | FU33: 0 | FV33: 0 | FW33: 0 | FX33: 0 | FY33: 0 | FZ33: 0 | GA33: 0 | GB33: 0 | GC33: 0 | GD33: 0 | GE33: 0 | GF33: 0 | GG33: 0 | GH33: 0 | GI33: 0 | GJ33: 0 | GK33: 0 | GL33: 0 | GM33: 0 | GN33: 0 | GO33: 0 | GP33: 0 | GQ33: 0 | GR33: 1 | GS33: 0 | GT33: 0 | GU33: 0 | GV33: 1 | GW33: 0 | GX33: 0 | GY33: 0 | GZ33: 1 | HA33: 0 | HB33: 0 | HC33: 0 | HD33: 1 | HE33: 0 | HF33: 0 | HG33: 0 | HH33: 1 | HI33: 0 | HJ33: 0 | HK33: 0 | HL33: 1 | HM33: 0 | HN33: 0 | HO33: 0 | HP33: 1 | HQ33: 0 | HR33: 0 | HS33: 0 | HT33: 1 | HU33: 0 | HV33: 0 | HW33: 0 | HX33: 1 | HY33: 0 | HZ33: 0 | IA33: 0 | IB33: 1 | IC33: 0 | ID33: 0 | IE33: 0 | IF33: 1 | IG33: 0 | IH33: 0 | II33: 0 | IJ33: 1 | IK33: 0 | IL33: 0 | IM33: 0 | IN33: 1 | IO33: 0 | IP33: 0 | IQ33: 0 | IR33: 1 | IS33: 0 | IT33: 0
A34: Ver.05.00 | B34: 310000 | C34: 鳥取県 | D34: - | E34: 1 | F34: 606497394 | G34: 7915573 | H34: 10226442 | I34: 15365102 | J34: 66320631 | K34: 5368918 | L34: 0 | M34: 0 | N34: 0 | O34: 5368918 | P34: 0 | Q34: 0 | R34: 59143534 | S34: 10501839 | T34: 0 | U34: 402232514 | V34: 711694060 | W34: 471877887 | X34: 239816173 | Y34: 35921323 | Z34: 182445736 | AA34: 131.4 | AB34: 7793479 | AC34: 0 | AD34: 0 | AE34: 66438 | AF34: 0 | AG34: 0 | AH34: 198 | AI34: 0 | AJ34: 0 | AK34: 55458 | AL34: 7915573 | AM34: ① | AN34: 令和元・４・５年度鳥取県立美術館整備費 | AO34: 21 | AP34: 7560711 | AQ34: ① | AR34: 令和２・４・５年度鳥取県西部総合事務所新棟・米子市役所糀町庁舎整備事業費 | AS34: 14 | AT34: 232768 | AU34: ④ | AV34: 平成20年度緑資源幹線林道事業賦課金（緑資源機構営事業負担金） | AW34: 8 | AX34: 812 | AY34: ④ | AZ34: 平成20年度緑資源幹線林道事業費（緑資源機構営事業負担金） | BA34: 10 | BB34: 65626 | BC34: ⑦ | BD34: 平成17年度独立行政法人福祉医療機構資金借入金利子補給 | BE34: 6 | BF34: 61 | BG34: ⑦ | BH34: 平成13年度介護老人保健施設整備費借入金利子補給 | BI34: 7 | BJ34: 137 | BK34: ⑩ | BL34: 平成19～令和５年度農業近代化資金等利子補給 | BM34: 25 | BN34: 45345 | BO34: ⑩ | BP34: 平成19～令和５年度漁業近代化資金利子補給 | BQ34: 25 | BR34: 8696 | BS34: ⑩ | BT34: 令和２～５年度JFマリンバンクコロナ対策長期資金利子補給 | BU34: 11 | BV34: 792 | BW34: ⑩ | BX34: 平成26～令和５年度漁業経営財務基盤強化資金利子補給 | BY34: 14 | BZ34: 625 | CA34: 0 | CB34: 0 | CC34: 0 | CD34: 0 | CE34: 0 | CF34: 0 | CG34: 0 | CH34: 0 | CI34: 0 | CJ34: 0 | CK34: 0 | CL34: 0 | CM34: 0 | CN34: 0 | CO34: 0 | CP34: 0 | CQ34: 0 | CR34: 0 | CS34: 0 | CT34: 0 | CU34: 0 | CV34: 0 | CW34: 0 | CX34: 0 | CY34: 0 | CZ34: 0 | DA34: 0 | DB34: 0 | DC34: 0 | DD34: 0 | DE34: 0 | DF34: 0 | DG34: 0 | DH34: 0 | DI34: 0 | DJ34: 0 | DK34: 0 | DL34: 0 | DM34: 0 | DN34: 0 | DO34: 0 | DP34: 0 | DQ34: 0 | DR34: 0 | DS34: 0 | DT34: 0 | DU34: 0 | DV34: 0 | DW34: 0 | DX34: 0 | DY34: 0 | DZ34: 0 | EA34: 0 | EB34: 0 | EC34: 0 | ED34: 0 | EE34: 0 | EF34: 0 | EG34: 0 | EH34: 0 | EI34: 0 | EJ34: 0 | EK34: 0 | EL34: 0 | EM34: 0 | EN34: 0 | EO34: 0 | EP34: 0 | EQ34: 0 | ER34: 0 | ES34: 0 | ET34: 0 | EU34: 0 | EV34: 0 | EW34: 0 | EX34: 0 | EY34: 0 | EZ34: 0 | FA34: 0 | FB34: 0 | FC34: 0 | FD34: 0 | FE34: 0 | FF34: 0 | FG34: 0 | FH34: 0 | FI34: 0 | FJ34: 0 | FK34: 0 | FL34: 0 | FM34: 0 | FN34: 0 | FO34: 0 | FP34: 0 | FQ34: 0 | FR34: 0 | FS34: 0 | FT34: 0 | FU34: 0 | FV34: 0 | FW34: 0 | FX34: 0 | FY34: 0 | FZ34: 0 | GA34: 0 | GB34: 0 | GC34: 0 | GD34: 0 | GE34: 0 | GF34: 0 | GG34: 0 | GH34: 0 | GI34: 0 | GJ34: 0 | GK34: 0 | GL34: 0 | GM34: 0 | GN34: 0 | GO34: 0 | GP34: 0 | GQ34: 0 | GR34: 1 | GS34: 0 | GT34: 0 | GU34: 0 | GV34: 1 | GW34: 0 | GX34: 0 | GY34: 0 | GZ34: 1 | HA34: 0 | HB34: 0 | HC34: 0 | HD34: 1 | HE34: 0 | HF34: 0 | HG34: 0 | HH34: 1 | HI34: 0 | HJ34: 0 | HK34: 0 | HL34: 1 | HM34: 0 | HN34: 0 | HO34: 0 | HP34: 1 | HQ34: 0 | HR34: 0 | HS34: 0 | HT34: 1 | HU34: 0 | HV34: 0 | HW34: 0 | HX34: 1 | HY34: 0 | HZ34: 0 | IA34: 0 | IB34: 1 | IC34: 0 | ID34: 0 | IE34: 0 | IF34: 1 | IG34: 0 | IH34: 0 | II34: 0 | IJ34: 1 | IK34: 0 | IL34: 0 | IM34: 0 | IN34: 1 | IO34: 0 | IP34: 0 | IQ34: 0 | IR34: 1 | IS34: 0 | IT34: 0
A35: Ver.05.00 | B35: 320005 | C35: 島根県 | D35: - | E35: 1 | F35: 916784411 | G35: 1093965.463 | H35: 16340598 | I35: 1124562 | J35: 93143316 | K35: 10326743 | L35: 0 | M35: 526717 | N35: 0 | O35: 9800026 | P35: 0 | Q35: 0 | R35: 95997452 | S35: 9745968 | T35: 0 | U35: 565229501 | V35: 1038813595 | W35: 670972921 | X35: 367840674.5 | Y35: 49159128 | Z35: 227263112 | AA35: 161.8 | AB35: 0 | AC35: 0 | AD35: 0 | AE35: 538645.4625 | AF35: 0 | AG35: 97918 | AH35: 139531 | AI35: 0 | AJ35: 0 | AK35: 317871 | AL35: 1093965.463 | AM35: ① | AN35: こころの医療センターPFI（債務負担行為は病院会計設定←一般会計からの繰出分） | AO35: 9 | AP35: 0 | AQ35: ④ | AR35: 邑智西部区域特定中山間保全整備事業負担金 | AS35: 10 | AT35: 440066.4625 | AU35: ④ | AV35: 緑資源幹線林道負担金 | AW35: 11 | AX35: 98579 | AY35: ⑥ | AZ35: 公共土木事業用地先行取得費 | BA35: 9 | BB35: 97918 | BC35: ⑦ | BD35: 民間福祉施設整備資金借入金償還元利利子補給 | BE35: 8 | BF35: 139531 | BG35: ⑩ | BH35: 公立邑智病院増築等資金元利補給 | BI35: 9 | BJ35: 54468 | BK35: ⑩ | BL35: 益田赤十字病院建替整備支援事業費 | BM35: 9 | BN35: 186240 | BO35: ⑩ | BP35: 移動通信用鉄塔施設整備資金借入金償還元利補給金 | BQ35: 18 | BR35: 38698 | BS35: ⑩ | BT35: 島前内航船代替船建造支援補助金 | BU35: 6 | BV35: 3462 | BW35: ⑩ | BX35: 隠岐航路運行維持事業費 | BY35: 7 | BZ35: 35003 | CA35: 0 | CB35: 0 | CC35: 0 | CD35: 0 | CE35: 0 | CF35: 0 | CG35: 0 | CH35: 0 | CI35: 0 | CJ35: 0 | CK35: 0 | CL35: 0 | CM35: 0 | CN35: 0 | CO35: 0 | CP35: 0 | CQ35: 0 | CR35: 0 | CS35: 0 | CT35: 0 | CU35: 0 | CV35: 0 | CW35: 0 | CX35: 0 | CY35: 0 | CZ35: 0 | DA35: 0 | DB35: 0 | DC35: 0 | DD35: 0 | DE35: 0 | DF35: 0 | DG35: 0 | DH35: 0 | DI35: 0 | DJ35: 0 | DK35: 0 | DL35: 0 | DM35: 0 | DN35: 0 | DO35: 0 | DP35: 0 | DQ35: 0 | DR35: 0 | DS35: 0 | DT35: 0 | DU35: 0 | DV35: 0 | DW35: 0 | DX35: 0 | DY35: 0 | DZ35: 0 | EA35: 0 | EB35: 0 | EC35: 0 | ED35: 0 | EE35: 0 | EF35: 0 | EG35: 0 | EH35: 0 | EI35: 0 | EJ35: 0 | EK35: 0 | EL35: 0 | EM35: 0 | EN35: 0 | EO35: 0 | EP35: 0 | EQ35: 0 | ER35: 0 | ES35: 0 | ET35: 0 | EU35: 0 | EV35: 0 | EW35: 0 | EX35: 0 | EY35: 0 | EZ35: 0 | FA35: 0 | FB35: 0 | FC35: 0 | FD35: 0 | FE35: 0 | FF35: 0 | FG35: 0 | FH35: 0 | FI35: 0 | FJ35: 0 | FK35: 0 | FL35: 0 | FM35: 0 | FN35: 0 | FO35: 0 | FP35: 0 | FQ35: 0 | FR35: 0 | FS35: 0 | FT35: 0 | FU35: 0 | FV35: 0 | FW35: 0 | FX35: 0 | FY35: 0 | FZ35: 0 | GA35: 0 | GB35: 0 | GC35: 0 | GD35: 0 | GE35: 0 | GF35: 0 | GG35: 0 | GH35: 0 | GI35: 0 | GJ35: 0 | GK35: 0 | GL35: 0 | GM35: 0 | GN35: 0 | GO35: 0 | GP35: 0 | GQ35: 0 | GR35: 1 | GS35: 0 | GT35: 0 | GU35: 0 | GV35: 1 | GW35: 0 | GX35: 0 | GY35: 0 | GZ35: 1 | HA35: 0 | HB35: 0 | HC35: 0 | HD35: 1 | HE35: 0 | HF35: 0 | HG35: 0 | HH35: 1 | HI35: 0 | HJ35: 0 | HK35: 0 | HL35: 1 | HM35: 0 | HN35: 0 | HO35: 0 | HP35: 1 | HQ35: 0 | HR35: 0 | HS35: 0 | HT35: 1 | HU35: 0 | HV35: 0 | HW35: 0 | HX35: 1 | HY35: 0 | HZ35: 0 | IA35: 0 | IB35: 1 | IC35: 0 | ID35: 0 | IE35: 0 | IF35: 1 | IG35: 0 | IH35: 0 | II35: 0 | IJ35: 1 | IK35: 0 | IL35: 0 | IM35: 0 | IN35: 1 | IO35: 0 | IP35: 0 | IQ35: 0 | IR35: 1 | IS35: 0 | IT35: 0
A36: Ver.05.00 | B36: 330001 | C36: 岡山県 | D36: - | E36: 1 | F36: 1329095131 | G36: 4931058 | H36: 6158890 | I36: 0 | J36: 142645078 | K36: 3125823 | L36: 0 | M36: 0 | N36: 0 | O36: 3125823 | P36: 0 | Q36: 0 | R36: 145744999 | S36: 11410917 | T36: 0 | U36: 708318894 | V36: 1485955980 | W36: 865474810 | X36: 620481170 | Y36: 55721394 | Z36: 376819535 | AA36: 164.6 | AB36: 310421 | AC36: 0 | AD36: 0 | AE36: 0 | AF36: 1777590 | AG36: 1253097 | AH36: 0 | AI36: 0 | AJ36: 0 | AK36: 1589950 | AL36: 4931058 | AM36: ⑩ | AN36: 冷夏長雨等緊急対策農林事業費 | AO36: 10 | AP36: 37928 | AQ36: ⑩ | AR36: 小規模基盤整備事業元利償還助成金 | AS36: 9 | AT36: 4703 | AU36: ⑩ | AV36: 小規模ため池補強事業元利償還助成金 | AW36: 24 | AX36: 1547319 | AY36: ⑥ | AZ36: 連島呼松線用地 | BA36: 9 | BB36: 207616 | BC36: ⑥ | BD36: 六条院東里庄線用地（里庄ICｱｸｾｽ工区） | BE36: 9 | BF36: 170455 | BG36: ⑥ | BH36: 高梁御津線用地 | BI36: 9 | BJ36: 39772 | BK36: ⑥ | BL36: 国道181号用地 | BM36: 9 | BN36: 89812 | BO36: ⑥ | BP36: 美作岡山道路(周匝)用地 | BQ36: 9 | BR36: 218032 | BS36: ⑥ | BT36: 玉島黒崎金光線用地 | BU36: 9 | BV36: 198090 | BW36: ⑥ | BX36: 美作岡山道路(飯岡)用地 | BY36: 9 | BZ36: 329320 | CA36: ⑤ | CB36: 岡山県警察職員住宅購入費 | CC36: 15 | CD36: 1777590 | CE36: ① | CF36: 総合教育センター維持運営費 | CG36: 8 | CH36: 310421 | CI36: 0 | CJ36: 0 | CK36: 0 | CL36: 0 | CM36: 0 | CN36: 0 | CO36: 0 | CP36: 0 | CQ36: 0 | CR36: 0 | CS36: 0 | CT36: 0 | CU36: 0 | CV36: 0 | CW36: 0 | CX36: 0 | CY36: 0 | CZ36: 0 | DA36: 0 | DB36: 0 | DC36: 0 | DD36: 0 | DE36: 0 | DF36: 0 | DG36: 0 | DH36: 0 | DI36: 0 | DJ36: 0 | DK36: 0 | DL36: 0 | DM36: 0 | DN36: 0 | DO36: 0 | DP36: 0 | DQ36: 0 | DR36: 0 | DS36: 0 | DT36: 0 | DU36: 0 | DV36: 0 | DW36: 0 | DX36: 0 | DY36: 0 | DZ36: 0 | EA36: 0 | EB36: 0 | EC36: 0 | ED36: 0 | EE36: 0 | EF36: 0 | EG36: 0 | EH36: 0 | EI36: 0 | EJ36: 0 | EK36: 0 | EL36: 0 | EM36: 0 | EN36: 0 | EO36: 0 | EP36: 0 | EQ36: 0 | ER36: 0 | ES36: 0 | ET36: 0 | EU36: 0 | EV36: 0 | EW36: 0 | EX36: 0 | EY36: 0 | EZ36: 0 | FA36: 0 | FB36: 0 | FC36: 0 | FD36: 0 | FE36: 0 | FF36: 0 | FG36: 0 | FH36: 0 | FI36: 0 | FJ36: 0 | FK36: 0 | FL36: 0 | FM36: 0 | FN36: 0 | FO36: 0 | FP36: 0 | FQ36: 0 | FR36: 0 | FS36: 0 | FT36: 0 | FU36: 0 | FV36: 0 | FW36: 0 | FX36: 0 | FY36: 0 | FZ36: 0 | GA36: 0 | GB36: 0 | GC36: 0 | GD36: 0 | GE36: 0 | GF36: 0 | GG36: 0 | GH36: 0 | GI36: 0 | GJ36: 0 | GK36: 0 | GL36: 0 | GM36: 0 | GN36: 0 | GO36: 0 | GP36: 0 | GQ36: 0 | GR36: 1 | GS36: 0 | GT36: 0 | GU36: 0 | GV36: 1 | GW36: 0 | GX36: 0 | GY36: 0 | GZ36: 1 | HA36: 0 | HB36: 0 | HC36: 0 | HD36: 1 | HE36: 0 | HF36: 0 | HG36: 0 | HH36: 1 | HI36: 0 | HJ36: 0 | HK36: 0 | HL36: 1 | HM36: 0 | HN36: 0 | HO36: 0 | HP36: 1 | HQ36: 0 | HR36: 0 | HS36: 0 | HT36: 1 | HU36: 0 | HV36: 0 | HW36: 0 | HX36: 1 | HY36: 0 | HZ36: 0 | IA36: 0 | IB36: 1 | IC36: 0 | ID36: 0 | IE36: 0 | IF36: 1 | IG36: 0 | IH36: 0 | II36: 0 | IJ36: 1 | IK36: 0 | IL36: 0 | IM36: 0 | IN36: 1 | IO36: 0 | IP36: 0 | IQ36: 0 | IR36: 1 | IS36: 0 | IT36: 0
A37: Ver.05.00 | B37: 340006 | C37: 広島県 | D37: - | E37: 1 | F37: 2385567858 | G37: 966274 | H37: 30625567 | I37: 64743 | J37: 151806800 | K37: 15946168 | L37: 11126569 | M37: 0 | N37: 0 | O37: 4819599 | P37: 0 | Q37: 0 | R37: 456708507 | S37: 24973866 | T37: 0 | U37: 1116736171 | V37: 2584977410 | W37: 1598418544 | X37: 986558866 | Y37: 83116917 | Z37: 505100710 | AA37: 195.3 | AB37: 0 | AC37: 0 | AD37: 0 | AE37: 227625 | AF37: 0 | AG37: 269154 | AH37: 0 | AI37: 0 | AJ37: 0 | AK37: 469495 | AL37: 966274 | AM37: ⑩ | AN37: 生活排水処理対策推進事業 | AO37: 14 | AP37: 23180 | AQ37: ⑩ | AR37: 生活排水処理対策推進事業 | AS37: 15 | AT37: 35431 | AU37: ⑩ | AV37: 生活排水処理対策推進事業 | AW37: 16 | AX37: 30835 | AY37: ⑩ | AZ37: 生活排水処理対策推進事業 | BA37: 17 | BB37: 21872 | BC37: ⑩ | BD37: 生活排水処理対策推進事業 | BE37: 18 | BF37: 25208 | BG37: ⑩ | BH37: 生活排水処理対策推進事業 | BI37: 19 | BJ37: 22560 | BK37: ⑩ | BL37: 生活排水処理対策推進事業 | BM37: 20 | BN37: 18117 | BO37: ⑩ | BP37: 生活排水処理対策推進事業 | BQ37: 21 | BR37: 19898 | BS37: ⑩ | BT37: 生活排水処理対策推進事業 | BU37: 22 | BV37: 24340 | BW37: ⑩ | BX37: 生活排水処理対策推進事業 | BY37: 23 | BZ37: 22537 | CA37: ⑩ | CB37: 生活排水処理対策推進事業 | CC37: 24 | CD37: 23801 | CE37: ⑩ | CF37: 生活排水処理対策推進事業 | CG37: 25 | CH37: 23116 | CI37: ⑩ | CJ37: 生活排水処理対策推進事業 | CK37: 26 | CL37: 21169 | CM37: ⑩ | CN37: 生活排水処理対策推進事業 | CO37: 37 | CP37: 18969 | CQ37: ⑩ | CR37: 生活排水処理対策推進事業 | CS37: 38 | CT37: 19170 | CU37: ⑩ | CV37: 生活排水処理対策推進事業 | CW37: 39 | CX37: 18329 | CY37: ⑩ | CZ37: 生活排水処理対策推進事業 | DA37: 40 | DB37: 18833 | DC37: ⑩ | DD37: 生活排水処理対策推進事業 | DE37: 41 | DF37: 19221 | DG37: ⑩ | DH37: 生活排水処理対策推進事業 | DI37: 42 | DJ37: 17966 | DK37: ⑩ | DL37: 生活排水処理対策推進事業 | DM37: 43 | DN37: 15628 | DO37: ⑩ | DP37: 生活排水処理対策推進事業 | DQ37: 44 | DR37: 14587 | DS37: ⑩ | DT37: 生活排水処理対策推進事業 | DU37: 45 | DV37: 14728 | DW37: ④ | DX37: 幹線林道整備事業負担金 | DY37: 10 | DZ37: 227625 | EA37: ⑥ | EB37: 広島県土地開発公社（令和２年度） | EC37: 6 | ED37: 110769 | EE37: ⑥ | EF37: 広島県土地開発公社（令和３年度） | EG37: 7 | EH37: 59099 | EI37: ⑥ | EJ37: 広島県土地開発公社（令和４年度） | EK37: 8 | EL37: 1648 | EM37: ⑥ | EN37: 広島県土地開発公社（令和５年度） | EO37: 9 | EP37: 97638 | EQ37: 0 | ER37: 0 | ES37: 0 | ET37: 0 | EU37: 0 | EV37: 0 | EW37: 0 | EX37: 0 | EY37: 0 | EZ37: 0 | FA37: 0 | FB37: 0 | FC37: 0 | FD37: 0 | FE37: 0 | FF37: 0 | FG37: 0 | FH37: 0 | FI37: 0 | FJ37: 0 | FK37: 0 | FL37: 0 | FM37: 0 | FN37: 0 | FO37: 0 | FP37: 0 | FQ37: 0 | FR37: 0 | FS37: 0 | FT37: 0 | FU37: 0 | FV37: 0 | FW37: 0 | FX37: 0 | FY37: 0 | FZ37: 0 | GA37: 0 | GB37: 0 | GC37: 0 | GD37: 0 | GE37: 0 | GF37: 0 | GG37: 0 | GH37: 0 | GI37: 0 | GJ37: 0 | GK37: 0 | GL37: 0 | GM37: 0 | GN37: 0 | GO37: 0 | GP37: 0 | GQ37: 0 | GR37: 1 | GS37: 0 | GT37: 0 | GU37: 0 | GV37: 1 | GW37: 0 | GX37: 0 | GY37: 0 | GZ37: 1 | HA37: 0 | HB37: 0 | HC37: 0 | HD37: 1 | HE37: 0 | HF37: 0 | HG37: 0 | HH37: 1 | HI37: 0 | HJ37: 0 | HK37: 0 | HL37: 1 | HM37: 0 | HN37: 0 | HO37: 0 | HP37: 1 | HQ37: 0 | HR37: 0 | HS37: 0 | HT37: 1 | HU37: 0 | HV37: 0 | HW37: 0 | HX37: 1 | HY37: 0 | HZ37: 0 | IA37: 0 | IB37: 1 | IC37: 0 | ID37: 0 | IE37: 0 | IF37: 1 | IG37: 0 | IH37: 0 | II37: 0 | IJ37: 1 | IK37: 0 | IL37: 0 | IM37: 0 | IN37: 1 | IO37: 0 | IP37: 0 | IQ37: 0 | IR37: 1 | IS37: 0 | IT37: 0
A38: Ver.05.00 | B38: 350001 | C38: 山口県 | D38: - | E38: 1 | F38: 1122000407 | G38: 464066 | H38: 1485223 | I38: 0 | J38: 128332504 | K38: 2822513 | L38: 0 | M38: 0 | N38: 0 | O38: 2822513 | P38: 0 | Q38: 0 | R38: 56452119 | S38: 24183959 | T38: 0 | U38: 622564015 | V38: 1255104713 | W38: 703200093 | X38: 551904620 | Y38: 53605746 | Z38: 323449062 | AA38: 170.6 | AB38: 368216 | AC38: 0 | AD38: 0 | AE38: 95850 | AF38: 0 | AG38: 0 | AH38: 0 | AI38: 0 | AJ38: 0 | AK38: 0 | AL38: 464066 | AM38: ① | AN38: 県営住宅建設事業等の年度を越える工事等の一括契約 | AO38: 10 | AP38: 368216 | AQ38: ④ | AR38: 大規模林業圏開発事業に伴う森林総合研究所に対する負担金 | AS38: 10 | AT38: 95850 | AU38: 0 | AV38: 0 | AW38: 0 | AX38: 0 | AY38: 0 | AZ38: 0 | BA38: 0 | BB38: 0 | BC38: 0 | BD38: 0 | BE38: 0 | BF38: 0 | BG38: 0 | BH38: 0 | BI38: 0 | BJ38: 0 | BK38: 0 | BL38: 0 | BM38: 0 | BN38: 0 | BO38: 0 | BP38: 0 | BQ38: 0 | BR38: 0 | BS38: 0 | BT38: 0 | BU38: 0 | BV38: 0 | BW38: 0 | BX38: 0 | BY38: 0 | BZ38: 0 | CA38: 0 | CB38: 0 | CC38: 0 | CD38: 0 | CE38: 0 | CF38: 0 | CG38: 0 | CH38: 0 | CI38: 0 | CJ38: 0 | CK38: 0 | CL38: 0 | CM38: 0 | CN38: 0 | CO38: 0 | CP38: 0 | CQ38: 0 | CR38: 0 | CS38: 0 | CT38: 0 | CU38: 0 | CV38: 0 | CW38: 0 | CX38: 0 | CY38: 0 | CZ38: 0 | DA38: 0 | DB38: 0 | DC38: 0 | DD38: 0 | DE38: 0 | DF38: 0 | DG38: 0 | DH38: 0 | DI38: 0 | DJ38: 0 | DK38: 0 | DL38: 0 | DM38: 0 | DN38: 0 | DO38: 0 | DP38: 0 | DQ38: 0 | DR38: 0 | DS38: 0 | DT38: 0 | DU38: 0 | DV38: 0 | DW38: 0 | DX38: 0 | DY38: 0 | DZ38: 0 | EA38: 0 | EB38: 0 | EC38: 0 | ED38: 0 | EE38: 0 | EF38: 0 | EG38: 0 | EH38: 0 | EI38: 0 | EJ38: 0 | EK38: 0 | EL38: 0 | EM38: 0 | EN38: 0 | EO38: 0 | EP38: 0 | EQ38: 0 | ER38: 0 | ES38: 0 | ET38: 0 | EU38: 0 | EV38: 0 | EW38: 0 | EX38: 0 | EY38: 0 | EZ38: 0 | FA38: 0 | FB38: 0 | FC38: 0 | FD38: 0 | FE38: 0 | FF38: 0 | FG38: 0 | FH38: 0 | FI38: 0 | FJ38: 0 | FK38: 0 | FL38: 0 | FM38: 0 | FN38: 0 | FO38: 0 | FP38: 0 | FQ38: 0 | FR38: 0 | FS38: 0 | FT38: 0 | FU38: 0 | FV38: 0 | FW38: 0 | FX38: 0 | FY38: 0 | FZ38: 0 | GA38: 0 | GB38: 0 | GC38: 0 | GD38: 0 | GE38: 0 | GF38: 0 | GG38: 0 | GH38: 0 | GI38: 0 | GJ38: 0 | GK38: 0 | GL38: 0 | GM38: 0 | GN38: 0 | GO38: 0 | GP38: 0 | GQ38: 0 | GR38: 1 | GS38: 0 | GT38: 0 | GU38: 0 | GV38: 1 | GW38: 0 | GX38: 0 | GY38: 0 | GZ38: 1 | HA38: 0 | HB38: 0 | HC38: 0 | HD38: 1 | HE38: 0 | HF38: 0 | HG38: 0 | HH38: 1 | HI38: 0 | HJ38: 0 | HK38: 0 | HL38: 1 | HM38: 0 | HN38: 0 | HO38: 0 | HP38: 1 | HQ38: 0 | HR38: 0 | HS38: 0 | HT38: 1 | HU38: 0 | HV38: 0 | HW38: 0 | HX38: 1 | HY38: 0 | HZ38: 0 | IA38: 0 | IB38: 1 | IC38: 0 | ID38: 0 | IE38: 0 | IF38: 1 | IG38: 0 | IH38: 0 | II38: 0 | IJ38: 1 | IK38: 0 | IL38: 0 | IM38: 0 | IN38: 1 | IO38: 0 | IP38: 0 | IQ38: 0 | IR38: 1 | IS38: 0 | IT38: 0
A39: Ver.05.00 | B39: 360007 | C39: 徳島県 | D39: - | E39: 1 | F39: 829323989 | G39: 4974444 | H39: 25689244 | I39: 8212 | J39: 86275794 | K39: 6226758 | L39: 0 | M39: 0 | N39: 0 | O39: 6226758 | P39: 0 | Q39: 0 | R39: 140584526 | S39: 18889031 | T39: 0 | U39: 463267524 | V39: 952498441 | W39: 622741081 | X39: 329757360 | Y39: 40375075 | Z39: 216547912 | AA39: 152.2 | AB39: 2735099 | AC39: 0 | AD39: 2239345 | AE39: 0 | AF39: 0 | AG39: 0 | AH39: 0 | AI39: 0 | AJ39: 0 | AK39: 0 | AL39: 4974444 | AM39: ① | AN39: 徳島県立農林水産総合技術支援センターPFI事業契約 | AO39: 14 | AP39: 133097 | AQ39: ① | AR39: 徳島県営住宅PFI事業契約 | AS39: 15 | AT39: 1096874 | AU39: ① | AV39: 新浜町団地県営住宅PFI事業契約 | AW39: 19 | AX39: 0 | AY39: ① | AZ39: 徳島東警察署等PFI事業契約 | BA39: 17 | BB39: 1462855 | BC39: ① | BD39: 駐在所整備等PFI事業契約 | BE39: 30 | BF39: 42273 | BG39: ③ | BH39: 国営吉野川下流域総合農地防災事業に係る負担金（平成23年度事業実施分） | BI39: 6 | BJ39: 69882 | BK39: ③ | BL39: 国営那賀川総合農地防災事業に係る負担金（平成23年度事業実施分） | BM39: 6 | BN39: 2920 | BO39: ③ | BP39: 国営吉野川下流域総合農地防災事業に係る負担金（平成24年度事業実施分） | BQ39: 7 | BR39: 128716 | BS39: ③ | BT39: 国営那賀川総合農地防災事業に係る負担金（平成24年度事業実施分） | BU39: 7 | BV39: 6045 | BW39: ③ | BX39: 国営吉野川下流域総合農地防災事業に係る負担金（平成25年度事業実施分） | BY39: 8 | BZ39: 174426 | CA39: ③ | CB39: 国営那賀川総合農地防災事業に係る負担金（平成25年度事業実施分） | CC39: 8 | CD39: 8816 | CE39: ③ | CF39: 国営吉野川下流域総合農地防災事業に係る負担金（平成26年度事業実施分） | CG39: 9 | CH39: 52358 | CI39: ③ | CJ39: 国営那賀川総合農地防災事業に係る負担金（平成26年度事業実施分） | CK39: 9 | CL39: 9959 | CM39: ③ | CN39: 国営那賀川総合農地防災事業に係る負担金（平成27年度事業実施分） | CO39: 10 | CP39: 15017 | CQ39: ③ | CR39: 国営那賀川総合農地防災事業に係る負担金（平成28年度事業実施分） | CS39: 11 | CT39: 131911 | CU39: ③ | CV39: 国営那賀川総合農地防災事業に係る負担金（平成29年度事業実施分） | CW39: 12 | CX39: 240434 | CY39: ③ | CZ39: 国営那賀川総合農地防災事業に係る負担金（平成30年度事業実施分） | DA39: 13 | DB39: 517420 | DC39: ③ | DD39: 国営那賀川総合農地防災事業に係る負担金（令和元年度事業実施分） | DE39: 14 | DF39: 427273 | DG39: ③ | DH39: 国営那賀川総合農地防災事業に係る負担金（令和２年度事業実施分） | DI39: 15 | DJ39: 383122 | DK39: ③ | DL39: 国営那賀川総合農地防災事業に係る負担金（令和３年度事業実施分） | DM39: 16 | DN39: 71046 | DO39: 0 | DP39: 0 | DQ39: 0 | DR39: 0 | DS39: 0 | DT39: 0 | DU39: 0 | DV39: 0 | DW39: 0 | DX39: 0 | DY39: 0 | DZ39: 0 | EA39: 0 | EB39: 0 | EC39: 0 | ED39: 0 | EE39: 0 | EF39: 0 | EG39: 0 | EH39: 0 | EI39: 0 | EJ39: 0 | EK39: 0 | EL39: 0 | EM39: 0 | EN39: 0 | EO39: 0 | EP39: 0 | EQ39: 0 | ER39: 0 | ES39: 0 | ET39: 0 | EU39: 0 | EV39: 0 | EW39: 0 | EX39: 0 | EY39: 0 | EZ39: 0 | FA39: 0 | FB39: 0 | FC39: 0 | FD39: 0 | FE39: 0 | FF39: 0 | FG39: 0 | FH39: 0 | FI39: 0 | FJ39: 0 | FK39: 0 | FL39: 0 | FM39: 0 | FN39: 0 | FO39: 0 | FP39: 0 | FQ39: 0 | FR39: 0 | FS39: 0 | FT39: 0 | FU39: 0 | FV39: 0 | FW39: 0 | FX39: 0 | FY39: 0 | FZ39: 0 | GA39: 0 | GB39: 0 | GC39: 0 | GD39: 0 | GE39: 0 | GF39: 0 | GG39: 0 | GH39: 0 | GI39: 0 | GJ39: 0 | GK39: 0 | GL39: 0 | GM39: 0 | GN39: 0 | GO39: 0 | GP39: 0 | GQ39: 0 | GR39: 1 | GS39: 0 | GT39: 0 | GU39: 0 | GV39: 1 | GW39: 0 | GX39: 0 | GY39: 0 | GZ39: 1 | HA39: 0 | HB39: 0 | HC39: 0 | HD39: 1 | HE39: 0 | HF39: 0 | HG39: 0 | HH39: 1 | HI39: 0 | HJ39: 0 | HK39: 0 | HL39: 1 | HM39: 0 | HN39: 0 | HO39: 0 | HP39: 1 | HQ39: 0 | HR39: 0 | HS39: 0 | HT39: 1 | HU39: 0 | HV39: 0 | HW39: 0 | HX39: 1 | HY39: 0 | HZ39: 0 | IA39: 0 | IB39: 1 | IC39: 0 | ID39: 0 | IE39: 0 | IF39: 1 | IG39: 0 | IH39: 0 | II39: 0 | IJ39: 1 | IK39: 0 | IL39: 0 | IM39: 0 | IN39: 1 | IO39: 0 | IP39: 0 | IQ39: 0 | IR39: 1 | IS39: 0 | IT39: 0
A40: Ver.05.00 | B40: 370002 | C40: 香川県 | D40: - | E40: 1 | F40: 797453643 | G40: 0 | H40: 15167150 | I40: 0 | J40: 87513956 | K40: 18308 | L40: 0 | M40: 0 | N40: 0 | O40: 18308 | P40: 0 | Q40: 0 | R40: 72630761 | S40: 12976019 | T40: 0 | U40: 428202377 | V40: 900153057 | W40: 513809157 | X40: 386343900 | Y40: 36217172 | Z40: 233894845 | AA40: 165.1 | AB40: 0 | AC40: 0 | AD40: 0 | AE40: 0 | AF40: 0 | AG40: 0 | AH40: 0 | AI40: 0 | AJ40: 0 | AK40: 0 | AL40: 0 | AM40: 0 | AN40: 0 | AO40: 0 | AP40: 0 | AQ40: 0 | AR40: 0 | AS40: 0 | AT40: 0 | AU40: 0 | AV40: 0 | AW40: 0 | AX40: 0 | AY40: 0 | AZ40: 0 | BA40: 0 | BB40: 0 | BC40: 0 | BD40: 0 | BE40: 0 | BF40: 0 | BG40: 0 | BH40: 0 | BI40: 0 | BJ40: 0 | BK40: 0 | BL40: 0 | BM40: 0 | BN40: 0 | BO40: 0 | BP40: 0 | BQ40: 0 | BR40: 0 | BS40: 0 | BT40: 0 | BU40: 0 | BV40: 0 | BW40: 0 | BX40: 0 | BY40: 0 | BZ40: 0 | CA40: 0 | CB40: 0 | CC40: 0 | CD40: 0 | CE40: 0 | CF40: 0 | CG40: 0 | CH40: 0 | CI40: 0 | CJ40: 0 | CK40: 0 | CL40: 0 | CM40: 0 | CN40: 0 | CO40: 0 | CP40: 0 | CQ40: 0 | CR40: 0 | CS40: 0 | CT40: 0 | CU40: 0 | CV40: 0 | CW40: 0 | CX40: 0 | CY40: 0 | CZ40: 0 | DA40: 0 | DB40: 0 | DC40: 0 | DD40: 0 | DE40: 0 | DF40: 0 | DG40: 0 | DH40: 0 | DI40: 0 | DJ40: 0 | DK40: 0 | DL40: 0 | DM40: 0 | DN40: 0 | DO40: 0 | DP40: 0 | DQ40: 0 | DR40: 0 | DS40: 0 | DT40: 0 | DU40: 0 | DV40: 0 | DW40: 0 | DX40: 0 | DY40: 0 | DZ40: 0 | EA40: 0 | EB40: 0 | EC40: 0 | ED40: 0 | EE40: 0 | EF40: 0 | EG40: 0 | EH40: 0 | EI40: 0 | EJ40: 0 | EK40: 0 | EL40: 0 | EM40: 0 | EN40: 0 | EO40: 0 | EP40: 0 | EQ40: 0 | ER40: 0 | ES40: 0 | ET40: 0 | EU40: 0 | EV40: 0 | EW40: 0 | EX40: 0 | EY40: 0 | EZ40: 0 | FA40: 0 | FB40: 0 | FC40: 0 | FD40: 0 | FE40: 0 | FF40: 0 | FG40: 0 | FH40: 0 | FI40: 0 | FJ40: 0 | FK40: 0 | FL40: 0 | FM40: 0 | FN40: 0 | FO40: 0 | FP40: 0 | FQ40: 0 | FR40: 0 | FS40: 0 | FT40: 0 | FU40: 0 | FV40: 0 | FW40: 0 | FX40: 0 | FY40: 0 | FZ40: 0 | GA40: 0 | GB40: 0 | GC40: 0 | GD40: 0 | GE40: 0 | GF40: 0 | GG40: 0 | GH40: 0 | GI40: 0 | GJ40: 0 | GK40: 0 | GL40: 0 | GM40: 0 | GN40: 0 | GO40: 0 | GP40: 0 | GQ40: 0 | GR40: 1 | GS40: 0 | GT40: 0 | GU40: 0 | GV40: 1 | GW40: 0 | GX40: 0 | GY40: 0 | GZ40: 1 | HA40: 0 | HB40: 0 | HC40: 0 | HD40: 1 | HE40: 0 | HF40: 0 | HG40: 0 | HH40: 1 | HI40: 0 | HJ40: 0 | HK40: 0 | HL40: 1 | HM40: 0 | HN40: 0 | HO40: 0 | HP40: 1 | HQ40: 0 | HR40: 0 | HS40: 0 | HT40: 1 | HU40: 0 | HV40: 0 | HW40: 0 | HX40: 1 | HY40: 0 | HZ40: 0 | IA40: 0 | IB40: 1 | IC40: 0 | ID40: 0 | IE40: 0 | IF40: 1 | IG40: 0 | IH40: 0 | II40: 0 | IJ40: 1 | IK40: 0 | IL40: 0 | IM40: 0 | IN40: 1 | IO40: 0 | IP40: 0 | IQ40: 0 | IR40: 1 | IS40: 0 | IT40: 0
A41: Ver.05.00 | B41: 380008 | C41: 愛媛県 | D41: - | E41: 1 | F41: 972070523 | G41: 1721647 | H41: 25690957 | I41: 0 | J41: 138832263 | K41: 23421 | L41: 0 | M41: 0 | N41: 0 | O41: 23421 | P41: 0 | Q41: 0 | R41: 140034974 | S41: 17955385 | T41: 0 | U41: 604954507 | V41: 1138338811 | W41: 762944866 | X41: 375393945 | Y41: 48359519 | Z41: 315280196 | AA41: 119 | AB41: 0 | AC41: 0 | AD41: 0 | AE41: 0 | AF41: 1721647 | AG41: 0 | AH41: 0 | AI41: 0 | AJ41: 0 | AK41: 0 | AL41: 1721647 | AM41: ⑤ | AN41: 職員住宅取得 | AO41: 17 | AP41: 1721647 | AQ41: 0 | AR41: 0 | AS41: 0 | AT41: 0 | AU41: 0 | AV41: 0 | AW41: 0 | AX41: 0 | AY41: 0 | AZ41: 0 | BA41: 0 | BB41: 0 | BC41: 0 | BD41: 0 | BE41: 0 | BF41: 0 | BG41: 0 | BH41: 0 | BI41: 0 | BJ41: 0 | BK41: 0 | BL41: 0 | BM41: 0 | BN41: 0 | BO41: 0 | BP41: 0 | BQ41: 0 | BR41: 0 | BS41: 0 | BT41: 0 | BU41: 0 | BV41: 0 | BW41: 0 | BX41: 0 | BY41: 0 | BZ41: 0 | CA41: 0 | CB41: 0 | CC41: 0 | CD41: 0 | CE41: 0 | CF41: 0 | CG41: 0 | CH41: 0 | CI41: 0 | CJ41: 0 | CK41: 0 | CL41: 0 | CM41: 0 | CN41: 0 | CO41: 0 | CP41: 0 | CQ41: 0 | CR41: 0 | CS41: 0 | CT41: 0 | CU41: 0 | CV41: 0 | CW41: 0 | CX41: 0 | CY41: 0 | CZ41: 0 | DA41: 0 | DB41: 0 | DC41: 0 | DD41: 0 | DE41: 0 | DF41: 0 | DG41: 0 | DH41: 0 | DI41: 0 | DJ41: 0 | DK41: 0 | DL41: 0 | DM41: 0 | DN41: 0 | DO41: 0 | DP41: 0 | DQ41: 0 | DR41: 0 | DS41: 0 | DT41: 0 | DU41: 0 | DV41: 0 | DW41: 0 | DX41: 0 | DY41: 0 | DZ41: 0 | EA41: 0 | EB41: 0 | EC41: 0 | ED41: 0 | EE41: 0 | EF41: 0 | EG41: 0 | EH41: 0 | EI41: 0 | EJ41: 0 | EK41: 0 | EL41: 0 | EM41: 0 | EN41: 0 | EO41: 0 | EP41: 0 | EQ41: 0 | ER41: 0 | ES41: 0 | ET41: 0 | EU41: 0 | EV41: 0 | EW41: 0 | EX41: 0 | EY41: 0 | EZ41: 0 | FA41: 0 | FB41: 0 | FC41: 0 | FD41: 0 | FE41: 0 | FF41: 0 | FG41: 0 | FH41: 0 | FI41: 0 | FJ41: 0 | FK41: 0 | FL41: 0 | FM41: 0 | FN41: 0 | FO41: 0 | FP41: 0 | FQ41: 0 | FR41: 0 | FS41: 0 | FT41: 0 | FU41: 0 | FV41: 0 | FW41: 0 | FX41: 0 | FY41: 0 | FZ41: 0 | GA41: 0 | GB41: 0 | GC41: 0 | GD41: 0 | GE41: 0 | GF41: 0 | GG41: 0 | GH41: 0 | GI41: 0 | GJ41: 0 | GK41: 0 | GL41: 0 | GM41: 0 | GN41: 0 | GO41: 0 | GP41: 0 | GQ41: 0 | GR41: 1 | GS41: 0 | GT41: 0 | GU41: 0 | GV41: 1 | GW41: 0 | GX41: 0 | GY41: 0 | GZ41: 1 | HA41: 0 | HB41: 0 | HC41: 0 | HD41: 1 | HE41: 0 | HF41: 0 | HG41: 0 | HH41: 1 | HI41: 0 | HJ41: 0 | HK41: 0 | HL41: 1 | HM41: 0 | HN41: 0 | HO41: 0 | HP41: 1 | HQ41: 0 | HR41: 0 | HS41: 0 | HT41: 1 | HU41: 0 | HV41: 0 | HW41: 0 | HX41: 1 | HY41: 0 | HZ41: 0 | IA41: 0 | IB41: 1 | IC41: 0 | ID41: 0 | IE41: 0 | IF41: 1 | IG41: 0 | IH41: 0 | II41: 0 | IJ41: 1 | IK41: 0 | IL41: 0 | IM41: 0 | IN41: 1 | IO41: 0 | IP41: 0 | IQ41: 0 | IR41: 1 | IS41: 0 | IT41: 0
A42: Ver.05.00 | B42: 390003 | C42: 高知県 | D42: - | E42: 1 | F42: 916720880 | G42: 4014875 | H42: 9211137 | I42: 6019970 | J42: 80235520 | K42: 3579075 | L42: 0 | M42: 0 | N42: 0 | O42: 3579075 | P42: 0 | Q42: 0 | R42: 82798870 | S42: 16098517 | T42: 0 | U42: 518723736 | V42: 1019781457 | W42: 617621123 | X42: 402160334 | Y42: 43166319 | Z42: 226815138 | AA42: 177.3 | AB42: 0 | AC42: 0 | AD42: 0 | AE42: 99392 | AF42: 904220 | AG42: 0 | AH42: 0 | AI42: 0 | AJ42: 0 | AK42: 3011263 | AL42: 4014875 | AM42: ④ | AN42: 緑資源幹線林道事業費負担金 | AO42: 10 | AP42: 99392 | AQ42: ⑤ | AR42: 警察共済組合職員住宅の賃借料 平成22年３月議決 | AS42: 8 | AT42: 57271 | AU42: ⑤ | AV42: 警察共済組合職員住宅の賃借料 平成23年３月議決 | AW42: 9 | AX42: 107452 | AY42: ⑤ | AZ42: 警察共済組合職員住宅の賃借料 平成24年３月議決 | BA42: 10 | BB42: 119069 | BC42: ⑤ | BD42: 警察共済組合職員住宅の賃借料 令和５年３月議決 | BE42: 22 | BF42: 358829 | BG42: ⑤ | BH42: 警察共済組合職員住宅の賃借料 令和６年３月議決 | BI42: 23 | BJ42: 261599 | BK42: ⑩ | BL42: 中小企業制度金融貸付金保証料補給金（平成21年度） | BM42: 7 | BN42: 1 | BO42: ⑩ | BP42: 中小企業制度金融貸付金保証料補給金（平成22年度） | BQ42: 8 | BR42: 1 | BS42: ⑩ | BT42: 中小企業制度金融貸付金保証料補給金（平成23年度） | BU42: 9 | BV42: 1 | BW42: ⑩ | BX42: 中小企業制度金融貸付金保証料補給金（平成24年度） | BY42: 10 | BZ42: 1 | CA42: ⑩ | CB42: 中小企業制度金融貸付金保証料補給金（平成25年度） | CC42: 11 | CD42: 1 | CE42: ⑩ | CF42: 中小企業制度金融貸付金保証料補給金（平成26年度） | CG42: 17 | CH42: 7207 | CI42: ⑩ | CJ42: 中小企業制度金融貸付金保証料補給金（平成27年度） | CK42: 18 | CL42: 16865 | CM42: ⑩ | CN42: 中小企業制度金融貸付金保証料補給金（平成28年度） | CO42: 19 | CP42: 29205 | CQ42: ⑩ | CR42: 中小企業制度金融貸付金保証料補給金（平成29年度） | CS42: 20 | CT42: 37750 | CU42: ⑩ | CV42: 中小企業制度金融貸付金保証料補給金（平成30年度） | CW42: 21 | CX42: 69427 | CY42: ⑩ | CZ42: 中小企業制度金融貸付金保証料補給金（令和元年度） | DA42: 22 | DB42: 128380 | DC42: ⑩ | DD42: 中小企業制度金融貸付金保証料補給金（令和２年度） | DE42: 23 | DF42: 2120005 | DG42: ⑩ | DH42: 中小企業制度金融貸付金保証料補給金（令和３年度） | DI42: 24 | DJ42: 116993 | DK42: ⑩ | DL42: 中小企業制度金融貸付金保証料補給金（令和４年度） | DM42: 25 | DN42: 257337 | DO42: ⑩ | DP42: 中小企業制度金融貸付金保証料補給金（令和5年度） | DQ42: 26 | DR42: 190968 | DS42: ⑩ | DT42: 室戸急潮漁業災害対策特別資金の保証料補給補助（平成26年度） | DU42: 10 | DV42: 1359 | DW42: ⑩ | DX42: 漁協経営改善資金の保証料補給（平成29年度） | DY42: 9 | DZ42: 488 | EA42: ⑩ | EB42: 沿岸漁業改善資金の保証料補給（平成31年度） | EC42: 12 | ED42: 16 | EE42: ⑩ | EF42: 沿岸漁業改善資金の保証料補給（令和２年度） | EG42: 12 | EH42: 157 | EI42: ⑩ | EJ42: 沿岸漁業改善資金の保証料補給（令和３年度） | EK42: 13 | EL42: 283 | EM42: ⑩ | EN42: 沿岸漁業経営改善資金の保証料補給（令和４年度） | EO42: 14 | EP42: 249 | EQ42: ⑩ | ER42: 沿岸漁業経営改善資金の保証料補給（令和５年度） | ES42: 15 | ET42: 310 | EU42: ⑩ | EV42: かつお一本釣漁船建造等支援資金の保証料補給（令和５年度） | EW42: 25 | EX42: 34259 | EY42: 0 | EZ42: 0 | FA42: 0 | FB42: 0 | FC42: 0 | FD42: 0 | FE42: 0 | FF42: 0 | FG42: 0 | FH42: 0 | FI42: 0 | FJ42: 0 | FK42: 0 | FL42: 0 | FM42: 0 | FN42: 0 | FO42: 0 | FP42: 0 | FQ42: 0 | FR42: 0 | FS42: 0 | FT42: 0 | FU42: 0 | FV42: 0 | FW42: 0 | FX42: 0 | FY42: 0 | FZ42: 0 | GA42: 0 | GB42: 0 | GC42: 0 | GD42: 0 | GE42: 0 | GF42: 0 | GG42: 0 | GH42: 0 | GI42: 0 | GJ42: 0 | GK42: 0 | GL42: 0 | GM42: 0 | GN42: 0 | GO42: 0 | GP42: 0 | GQ42: 0 | GR42: 1 | GS42: 0 | GT42: 0 | GU42: 0 | GV42: 1 | GW42: 0 | GX42: 0 | GY42: 0 | GZ42: 1 | HA42: 0 | HB42: 0 | HC42: 0 | HD42: 1 | HE42: 0 | HF42: 0 | HG42: 0 | HH42: 1 | HI42: 0 | HJ42: 0 | HK42: 0 | HL42: 1 | HM42: 0 | HN42: 0 | HO42: 0 | HP42: 1 | HQ42: 0 | HR42: 0 | HS42: 0 | HT42: 1 | HU42: 0 | HV42: 0 | HW42: 0 | HX42: 1 | HY42: 0 | HZ42: 0 | IA42: 0 | IB42: 1 | IC42: 0 | ID42: 0 | IE42: 0 | IF42: 1 | IG42: 0 | IH42: 0 | II42: 0 | IJ42: 1 | IK42: 0 | IL42: 0 | IM42: 0 | IN42: 1 | IO42: 0 | IP42: 0 | IQ42: 0 | IR42: 1 | IS42: 0 | IT42: 0
A43: Ver.05.00 | B43: 400009 | C43: 福岡県 | D43: - | E43: 1 | F43: 4459128221 | G43: 0 | H43: 77275832 | I43: 0 | J43: 275836945 | K43: 4422480 | L43: 0 | M43: 0 | N43: 0 | O43: 4422480 | P43: 0 | Q43: 0 | R43: 823780364 | S43: 42599962 | T43: 0 | U43: 1787363880 | V43: 4816663478 | W43: 2653744206 | X43: 2162919272 | Y43: 136632647 | Z43: 870575705 | AA43: 248.4 | AB43: 0 | AC43: 0 | AD43: 0 | AE43: 0 | AF43: 0 | AG43: 0 | AH43: 0 | AI43: 0 | AJ43: 0 | AK43: 0 | AL43: 0 | AM43: 0 | AN43: 0 | AO43: 0 | AP43: 0 | AQ43: 0 | AR43: 0 | AS43: 0 | AT43: 0 | AU43: 0 | AV43: 0 | AW43: 0 | AX43: 0 | AY43: 0 | AZ43: 0 | BA43: 0 | BB43: 0 | BC43: 0 | BD43: 0 | BE43: 0 | BF43: 0 | BG43: 0 | BH43: 0 | BI43: 0 | BJ43: 0 | BK43: 0 | BL43: 0 | BM43: 0 | BN43: 0 | BO43: 0 | BP43: 0 | BQ43: 0 | BR43: 0 | BS43: 0 | BT43: 0 | BU43: 0 | BV43: 0 | BW43: 0 | BX43: 0 | BY43: 0 | BZ43: 0 | CA43: 0 | CB43: 0 | CC43: 0 | CD43: 0 | CE43: 0 | CF43: 0 | CG43: 0 | CH43: 0 | CI43: 0 | CJ43: 0 | CK43: 0 | CL43: 0 | CM43: 0 | CN43: 0 | CO43: 0 | CP43: 0 | CQ43: 0 | CR43: 0 | CS43: 0 | CT43: 0 | CU43: 0 | CV43: 0 | CW43: 0 | CX43: 0 | CY43: 0 | CZ43: 0 | DA43: 0 | DB43: 0 | DC43: 0 | DD43: 0 | DE43: 0 | DF43: 0 | DG43: 0 | DH43: 0 | DI43: 0 | DJ43: 0 | DK43: 0 | DL43: 0 | DM43: 0 | DN43: 0 | DO43: 0 | DP43: 0 | DQ43: 0 | DR43: 0 | DS43: 0 | DT43: 0 | DU43: 0 | DV43: 0 | DW43: 0 | DX43: 0 | DY43: 0 | DZ43: 0 | EA43: 0 | EB43: 0 | EC43: 0 | ED43: 0 | EE43: 0 | EF43: 0 | EG43: 0 | EH43: 0 | EI43: 0 | EJ43: 0 | EK43: 0 | EL43: 0 | EM43: 0 | EN43: 0 | EO43: 0 | EP43: 0 | EQ43: 0 | ER43: 0 | ES43: 0 | ET43: 0 | EU43: 0 | EV43: 0 | EW43: 0 | EX43: 0 | EY43: 0 | EZ43: 0 | FA43: 0 | FB43: 0 | FC43: 0 | FD43: 0 | FE43: 0 | FF43: 0 | FG43: 0 | FH43: 0 | FI43: 0 | FJ43: 0 | FK43: 0 | FL43: 0 | FM43: 0 | FN43: 0 | FO43: 0 | FP43: 0 | FQ43: 0 | FR43: 0 | FS43: 0 | FT43: 0 | FU43: 0 | FV43: 0 | FW43: 0 | FX43: 0 | FY43: 0 | FZ43: 0 | GA43: 0 | GB43: 0 | GC43: 0 | GD43: 0 | GE43: 0 | GF43: 0 | GG43: 0 | GH43: 0 | GI43: 0 | GJ43: 0 | GK43: 0 | GL43: 0 | GM43: 0 | GN43: 0 | GO43: 0 | GP43: 0 | GQ43: 0 | GR43: 1 | GS43: 0 | GT43: 0 | GU43: 0 | GV43: 1 | GW43: 0 | GX43: 0 | GY43: 0 | GZ43: 1 | HA43: 0 | HB43: 0 | HC43: 0 | HD43: 1 | HE43: 0 | HF43: 0 | HG43: 0 | HH43: 1 | HI43: 0 | HJ43: 0 | HK43: 0 | HL43: 1 | HM43: 0 | HN43: 0 | HO43: 0 | HP43: 1 | HQ43: 0 | HR43: 0 | HS43: 0 | HT43: 1 | HU43: 0 | HV43: 0 | HW43: 0 | HX43: 1 | HY43: 0 | HZ43: 0 | IA43: 0 | IB43: 1 | IC43: 0 | ID43: 0 | IE43: 0 | IF43: 1 | IG43: 0 | IH43: 0 | II43: 0 | IJ43: 1 | IK43: 0 | IL43: 0 | IM43: 0 | IN43: 1 | IO43: 0 | IP43: 0 | IQ43: 0 | IR43: 1 | IS43: 0 | IT43: 0
A44: Ver.05.00 | B44: 410004 | C44: 佐賀県 | D44: - | E44: 1 | F44: 765465507 | G44: 593033 | H44: 0 | I44: 0 | J44: 96719061 | K44: 370032 | L44: 0 | M44: 0 | N44: 0 | O44: 370032 | P44: 0 | Q44: 0 | R44: 89024705 | S44: 13236441 | T44: 0 | U44: 449677158 | V44: 863147633 | W44: 551938304 | X44: 311209329 | Y44: 37793517 | Z44: 229920901 | AA44: 135.3 | AB44: 0 | AC44: 0 | AD44: 593033 | AE44: 0 | AF44: 0 | AG44: 0 | AH44: 0 | AI44: 0 | AJ44: 0 | AK44: 0 | AL44: 593033 | AM44: ③ | AN44: 平成23年度筑後川下流地区国営かんがい排水事業負担金 | AO44: 6 | AP44: 21311 | AQ44: ③ | AR44: 平成24年度筑後川下流地区国営かんがい排水事業負担金 | AS44: 7 | AT44: 32218 | AU44: ③ | AV44: 平成25年度筑後川下流地区国営かんがい排水事業負担金 | AW44: 8 | AX44: 108252 | AY44: ③ | AZ44: 平成26年度筑後川下流地区国営かんがい排水事業負担金 | BA44: 9 | BB44: 71836 | BC44: ③ | BD44: 平成27年度筑後川下流地区国営かんがい排水事業負担金 | BE44: 10 | BF44: 55888 | BG44: ③ | BH44: 平成28年度筑後川下流地区国営かんがい排水事業負担金 | BI44: 11 | BJ44: 129210 | BK44: ③ | BL44: 平成29年度筑後川下流地区国営かんがい排水事業負担金 | BM44: 12 | BN44: 136540 | BO44: ③ | BP44: 平成30年度筑後川下流地区国営かんがい排水事業負担金 | BQ44: 13 | BR44: 37778 | BS44: 0 | BT44: 0 | BU44: 0 | BV44: 0 | BW44: 0 | BX44: 0 | BY44: 0 | BZ44: 0 | CA44: 0 | CB44: 0 | CC44: 0 | CD44: 0 | CE44: 0 | CF44: 0 | CG44: 0 | CH44: 0 | CI44: 0 | CJ44: 0 | CK44: 0 | CL44: 0 | CM44: 0 | CN44: 0 | CO44: 0 | CP44: 0 | CQ44: 0 | CR44: 0 | CS44: 0 | CT44: 0 | CU44: 0 | CV44: 0 | CW44: 0 | CX44: 0 | CY44: 0 | CZ44: 0 | DA44: 0 | DB44: 0 | DC44: 0 | DD44: 0 | DE44: 0 | DF44: 0 | DG44: 0 | DH44: 0 | DI44: 0 | DJ44: 0 | DK44: 0 | DL44: 0 | DM44: 0 | DN44: 0 | DO44: 0 | DP44: 0 | DQ44: 0 | DR44: 0 | DS44: 0 | DT44: 0 | DU44: 0 | DV44: 0 | DW44: 0 | DX44: 0 | DY44: 0 | DZ44: 0 | EA44: 0 | EB44: 0 | EC44: 0 | ED44: 0 | EE44: 0 | EF44: 0 | EG44: 0 | EH44: 0 | EI44: 0 | EJ44: 0 | EK44: 0 | EL44: 0 | EM44: 0 | EN44: 0 | EO44: 0 | EP44: 0 | EQ44: 0 | ER44: 0 | ES44: 0 | ET44: 0 | EU44: 0 | EV44: 0 | EW44: 0 | EX44: 0 | EY44: 0 | EZ44: 0 | FA44: 0 | FB44: 0 | FC44: 0 | FD44: 0 | FE44: 0 | FF44: 0 | FG44: 0 | FH44: 0 | FI44: 0 | FJ44: 0 | FK44: 0 | FL44: 0 | FM44: 0 | FN44: 0 | FO44: 0 | FP44: 0 | FQ44: 0 | FR44: 0 | FS44: 0 | FT44: 0 | FU44: 0 | FV44: 0 | FW44: 0 | FX44: 0 | FY44: 0 | FZ44: 0 | GA44: 0 | GB44: 0 | GC44: 0 | GD44: 0 | GE44: 0 | GF44: 0 | GG44: 0 | GH44: 0 | GI44: 0 | GJ44: 0 | GK44: 0 | GL44: 0 | GM44: 0 | GN44: 0 | GO44: 0 | GP44: 0 | GQ44: 0 | GR44: 1 | GS44: 0 | GT44: 0 | GU44: 0 | GV44: 1 | GW44: 0 | GX44: 0 | GY44: 0 | GZ44: 1 | HA44: 0 | HB44: 0 | HC44: 0 | HD44: 1 | HE44: 0 | HF44: 0 | HG44: 0 | HH44: 1 | HI44: 0 | HJ44: 0 | HK44: 0 | HL44: 1 | HM44: 0 | HN44: 0 | HO44: 0 | HP44: 1 | HQ44: 0 | HR44: 0 | HS44: 0 | HT44: 1 | HU44: 0 | HV44: 0 | HW44: 0 | HX44: 1 | HY44: 0 | HZ44: 0 | IA44: 0 | IB44: 1 | IC44: 0 | ID44: 0 | IE44: 0 | IF44: 1 | IG44: 0 | IH44: 0 | II44: 0 | IJ44: 1 | IK44: 0 | IL44: 0 | IM44: 0 | IN44: 1 | IO44: 0 | IP44: 0 | IQ44: 0 | IR44: 1 | IS44: 0 | IT44: 0
A45: Ver.05.00 | B45: 420000 | C45: 長崎県 | D45: - | E45: 1 | F45: 1249424903 | G45: 0 | H45: 3227645 | I45: 5037505 | J45: 154302534 | K45: 1687646 | L45: 0 | M45: 0 | N45: 0 | O45: 1687646 | P45: 0 | Q45: 0 | R45: 99981239 | S45: 7227523 | T45: 0 | U45: 716240313 | V45: 1413680233 | W45: 823449075 | X45: 590231158 | Y45: 54630158 | Z45: 335605165 | AA45: 175.8 | AB45: 0 | AC45: 0 | AD45: 0 | AE45: 0 | AF45: 0 | AG45: 0 | AH45: 0 | AI45: 0 | AJ45: 0 | AK45: 0 | AL45: 0 | AM45: 0 | AN45: 0 | AO45: 0 | AP45: 0 | AQ45: 0 | AR45: 0 | AS45: 0 | AT45: 0 | AU45: 0 | AV45: 0 | AW45: 0 | AX45: 0 | AY45: 0 | AZ45: 0 | BA45: 0 | BB45: 0 | BC45: 0 | BD45: 0 | BE45: 0 | BF45: 0 | BG45: 0 | BH45: 0 | BI45: 0 | BJ45: 0 | BK45: 0 | BL45: 0 | BM45: 0 | BN45: 0 | BO45: 0 | BP45: 0 | BQ45: 0 | BR45: 0 | BS45: 0 | BT45: 0 | BU45: 0 | BV45: 0 | BW45: 0 | BX45: 0 | BY45: 0 | BZ45: 0 | CA45: 0 | CB45: 0 | CC45: 0 | CD45: 0 | CE45: 0 | CF45: 0 | CG45: 0 | CH45: 0 | CI45: 0 | CJ45: 0 | CK45: 0 | CL45: 0 | CM45: 0 | CN45: 0 | CO45: 0 | CP45: 0 | CQ45: 0 | CR45: 0 | CS45: 0 | CT45: 0 | CU45: 0 | CV45: 0 | CW45: 0 | CX45: 0 | CY45: 0 | CZ45: 0 | DA45: 0 | DB45: 0 | DC45: 0 | DD45: 0 | DE45: 0 | DF45: 0 | DG45: 0 | DH45: 0 | DI45: 0 | DJ45: 0 | DK45: 0 | DL45: 0 | DM45: 0 | DN45: 0 | DO45: 0 | DP45: 0 | DQ45: 0 | DR45: 0 | DS45: 0 | DT45: 0 | DU45: 0 | DV45: 0 | DW45: 0 | DX45: 0 | DY45: 0 | DZ45: 0 | EA45: 0 | EB45: 0 | EC45: 0 | ED45: 0 | EE45: 0 | EF45: 0 | EG45: 0 | EH45: 0 | EI45: 0 | EJ45: 0 | EK45: 0 | EL45: 0 | EM45: 0 | EN45: 0 | EO45: 0 | EP45: 0 | EQ45: 0 | ER45: 0 | ES45: 0 | ET45: 0 | EU45: 0 | EV45: 0 | EW45: 0 | EX45: 0 | EY45: 0 | EZ45: 0 | FA45: 0 | FB45: 0 | FC45: 0 | FD45: 0 | FE45: 0 | FF45: 0 | FG45: 0 | FH45: 0 | FI45: 0 | FJ45: 0 | FK45: 0 | FL45: 0 | FM45: 0 | FN45: 0 | FO45: 0 | FP45: 0 | FQ45: 0 | FR45: 0 | FS45: 0 | FT45: 0 | FU45: 0 | FV45: 0 | FW45: 0 | FX45: 0 | FY45: 0 | FZ45: 0 | GA45: 0 | GB45: 0 | GC45: 0 | GD45: 0 | GE45: 0 | GF45: 0 | GG45: 0 | GH45: 0 | GI45: 0 | GJ45: 0 | GK45: 0 | GL45: 0 | GM45: 0 | GN45: 0 | GO45: 0 | GP45: 0 | GQ45: 0 | GR45: 1 | GS45: 0 | GT45: 0 | GU45: 0 | GV45: 1 | GW45: 0 | GX45: 0 | GY45: 0 | GZ45: 1 | HA45: 0 | HB45: 0 | HC45: 0 | HD45: 1 | HE45: 0 | HF45: 0 | HG45: 0 | HH45: 1 | HI45: 0 | HJ45: 0 | HK45: 0 | HL45: 1 | HM45: 0 | HN45: 0 | HO45: 0 | HP45: 1 | HQ45: 0 | HR45: 0 | HS45: 0 | HT45: 1 | HU45: 0 | HV45: 0 | HW45: 0 | HX45: 1 | HY45: 0 | HZ45: 0 | IA45: 0 | IB45: 1 | IC45: 0 | ID45: 0 | IE45: 0 | IF45: 1 | IG45: 0 | IH45: 0 | II45: 0 | IJ45: 1 | IK45: 0 | IL45: 0 | IM45: 0 | IN45: 1 | IO45: 0 | IP45: 0 | IQ45: 0 | IR45: 1 | IS45: 0 | IT45: 0
A46: Ver.05.00 | B46: 430005 | C46: 熊本県 | D46: - | E46: 1 | F46: 1759743442 | G46: 1027344 | H46: 11751382 | I46: 0 | J46: 139266684 | K46: 6152647 | L46: 0 | M46: 0 | N46: 0 | O46: 6152647 | P46: 0 | Q46: 0 | R46: 173972855 | S46: 56192738 | T46: 0 | U46: 881316882 | V46: 1917941499 | W46: 1111482475 | X46: 806459024 | Y46: 68841054 | Z46: 371606538 | AA46: 217 | AB46: 0 | AC46: 0 | AD46: 768686 | AE46: 175701 | AF46: 82957 | AG46: 0 | AH46: 0 | AI46: 0 | AJ46: 0 | AK46: 0 | AL46: 1027344 | AM46: ③ | AN46: 国営土地改良事業負担金 | AO46: 19 | AP46: 768686 | AQ46: ④ | AR46: 国立研究開発法人森林総合研究所営特定中山間保全整備事業負担金 | AS46: 6 | AT46: 9570 | AU46: ④ | AV46: 緑資源幹線林道事業負担金 | AW46: 10 | AX46: 112031 | AY46: ④ | AZ46: 阿蘇小国郷区域農林道事業負担金 | BA46: 6 | BB46: 54100 | BC46: ⑤ | BD46: 熊本県教職員住宅借上 | BE46: 9 | BF46: 82957 | BG46: 0 | BH46: 0 | BI46: 0 | BJ46: 0 | BK46: 0 | BL46: 0 | BM46: 0 | BN46: 0 | BO46: 0 | BP46: 0 | BQ46: 0 | BR46: 0 | BS46: 0 | BT46: 0 | BU46: 0 | BV46: 0 | BW46: 0 | BX46: 0 | BY46: 0 | BZ46: 0 | CA46: 0 | CB46: 0 | CC46: 0 | CD46: 0 | CE46: 0 | CF46: 0 | CG46: 0 | CH46: 0 | CI46: 0 | CJ46: 0 | CK46: 0 | CL46: 0 | CM46: 0 | CN46: 0 | CO46: 0 | CP46: 0 | CQ46: 0 | CR46: 0 | CS46: 0 | CT46: 0 | CU46: 0 | CV46: 0 | CW46: 0 | CX46: 0 | CY46: 0 | CZ46: 0 | DA46: 0 | DB46: 0 | DC46: 0 | DD46: 0 | DE46: 0 | DF46: 0 | DG46: 0 | DH46: 0 | DI46: 0 | DJ46: 0 | DK46: 0 | DL46: 0 | DM46: 0 | DN46: 0 | DO46: 0 | DP46: 0 | DQ46: 0 | DR46: 0 | DS46: 0 | DT46: 0 | DU46: 0 | DV46: 0 | DW46: 0 | DX46: 0 | DY46: 0 | DZ46: 0 | EA46: 0 | EB46: 0 | EC46: 0 | ED46: 0 | EE46: 0 | EF46: 0 | EG46: 0 | EH46: 0 | EI46: 0 | EJ46: 0 | EK46: 0 | EL46: 0 | EM46: 0 | EN46: 0 | EO46: 0 | EP46: 0 | EQ46: 0 | ER46: 0 | ES46: 0 | ET46: 0 | EU46: 0 | EV46: 0 | EW46: 0 | EX46: 0 | EY46: 0 | EZ46: 0 | FA46: 0 | FB46: 0 | FC46: 0 | FD46: 0 | FE46: 0 | FF46: 0 | FG46: 0 | FH46: 0 | FI46: 0 | FJ46: 0 | FK46: 0 | FL46: 0 | FM46: 0 | FN46: 0 | FO46: 0 | FP46: 0 | FQ46: 0 | FR46: 0 | FS46: 0 | FT46: 0 | FU46: 0 | FV46: 0 | FW46: 0 | FX46: 0 | FY46: 0 | FZ46: 0 | GA46: 0 | GB46: 0 | GC46: 0 | GD46: 0 | GE46: 0 | GF46: 0 | GG46: 0 | GH46: 0 | GI46: 0 | GJ46: 0 | GK46: 0 | GL46: 0 | GM46: 0 | GN46: 0 | GO46: 0 | GP46: 0 | GQ46: 0 | GR46: 1 | GS46: 0 | GT46: 0 | GU46: 0 | GV46: 1 | GW46: 0 | GX46: 0 | GY46: 0 | GZ46: 1 | HA46: 0 | HB46: 0 | HC46: 0 | HD46: 1 | HE46: 0 | HF46: 0 | HG46: 0 | HH46: 1 | HI46: 0 | HJ46: 0 | HK46: 0 | HL46: 1 | HM46: 0 | HN46: 0 | HO46: 0 | HP46: 1 | HQ46: 0 | HR46: 0 | HS46: 0 | HT46: 1 | HU46: 0 | HV46: 0 | HW46: 0 | HX46: 1 | HY46: 0 | HZ46: 0 | IA46: 0 | IB46: 1 | IC46: 0 | ID46: 0 | IE46: 0 | IF46: 1 | IG46: 0 | IH46: 0 | II46: 0 | IJ46: 1 | IK46: 0 | IL46: 0 | IM46: 0 | IN46: 1 | IO46: 0 | IP46: 0 | IQ46: 0 | IR46: 1 | IS46: 0 | IT46: 0
A47: Ver.05.00 | B47: 440001 | C47: 大分県 | D47: - | E47: 1 | F47: 1101585790 | G47: 6296047 | H47: 3919403 | I47: 0 | J47: 113679097 | K47: 974861 | L47: 0 | M47: 0 | N47: 0 | O47: 974861 | P47: 0 | Q47: 0 | R47: 117591637 | S47: 12166745 | T47: 0 | U47: 627376915 | V47: 1226455198 | W47: 757135297 | X47: 469319901 | Y47: 49540141 | Z47: 285121374 | AA47: 164.6 | AB47: 195232 | AC47: 0 | AD47: 1420688 | AE47: 0 | AF47: 0 | AG47: 0 | AH47: 0 | AI47: 0 | AJ47: 4680127 | AK47: 0 | AL47: 6296047 | AM47: ① | AN47: 消費生活・男女共同参画プラザPFI特定事業 | AO47: 14 | AP47: 195232 | AQ47: ③ | AR47: 国営大野川上流 直轄事業負担金 | AS47: 14 | AT47: 1420688 | AU47: ⑨ | AV47: 林業公社からの引き受け債務償還金（日本政策金融国庫分） | AW47: 35 | AX47: 4680127 | AY47: 0 | AZ47: 0 | BA47: 0 | BB47: 0 | BC47: 0 | BD47: 0 | BE47: 0 | BF47: 0 | BG47: 0 | BH47: 0 | BI47: 0 | BJ47: 0 | BK47: 0 | BL47: 0 | BM47: 0 | BN47: 0 | BO47: 0 | BP47: 0 | BQ47: 0 | BR47: 0 | BS47: 0 | BT47: 0 | BU47: 0 | BV47: 0 | BW47: 0 | BX47: 0 | BY47: 0 | BZ47: 0 | CA47: 0 | CB47: 0 | CC47: 0 | CD47: 0 | CE47: 0 | CF47: 0 | CG47: 0 | CH47: 0 | CI47: 0 | CJ47: 0 | CK47: 0 | CL47: 0 | CM47: 0 | CN47: 0 | CO47: 0 | CP47: 0 | CQ47: 0 | CR47: 0 | CS47: 0 | CT47: 0 | CU47: 0 | CV47: 0 | CW47: 0 | CX47: 0 | CY47: 0 | CZ47: 0 | DA47: 0 | DB47: 0 | DC47: 0 | DD47: 0 | DE47: 0 | DF47: 0 | DG47: 0 | DH47: 0 | DI47: 0 | DJ47: 0 | DK47: 0 | DL47: 0 | DM47: 0 | DN47: 0 | DO47: 0 | DP47: 0 | DQ47: 0 | DR47: 0 | DS47: 0 | DT47: 0 | DU47: 0 | DV47: 0 | DW47: 0 | DX47: 0 | DY47: 0 | DZ47: 0 | EA47: 0 | EB47: 0 | EC47: 0 | ED47: 0 | EE47: 0 | EF47: 0 | EG47: 0 | EH47: 0 | EI47: 0 | EJ47: 0 | EK47: 0 | EL47: 0 | EM47: 0 | EN47: 0 | EO47: 0 | EP47: 0 | EQ47: 0 | ER47: 0 | ES47: 0 | ET47: 0 | EU47: 0 | EV47: 0 | EW47: 0 | EX47: 0 | EY47: 0 | EZ47: 0 | FA47: 0 | FB47: 0 | FC47: 0 | FD47: 0 | FE47: 0 | FF47: 0 | FG47: 0 | FH47: 0 | FI47: 0 | FJ47: 0 | FK47: 0 | FL47: 0 | FM47: 0 | FN47: 0 | FO47: 0 | FP47: 0 | FQ47: 0 | FR47: 0 | FS47: 0 | FT47: 0 | FU47: 0 | FV47: 0 | FW47: 0 | FX47: 0 | FY47: 0 | FZ47: 0 | GA47: 0 | GB47: 0 | GC47: 0 | GD47: 0 | GE47: 0 | GF47: 0 | GG47: 0 | GH47: 0 | GI47: 0 | GJ47: 0 | GK47: 0 | GL47: 0 | GM47: 0 | GN47: 0 | GO47: 0 | GP47: 0 | GQ47: 0 | GR47: 1 | GS47: 0 | GT47: 0 | GU47: 0 | GV47: 1 | GW47: 0 | GX47: 0 | GY47: 0 | GZ47: 1 | HA47: 0 | HB47: 0 | HC47: 0 | HD47: 1 | HE47: 0 | HF47: 0 | HG47: 0 | HH47: 1 | HI47: 0 | HJ47: 0 | HK47: 0 | HL47: 1 | HM47: 0 | HN47: 0 | HO47: 0 | HP47: 1 | HQ47: 0 | HR47: 0 | HS47: 0 | HT47: 1 | HU47: 0 | HV47: 0 | HW47: 0 | HX47: 1 | HY47: 0 | HZ47: 0 | IA47: 0 | IB47: 1 | IC47: 0 | ID47: 0 | IE47: 0 | IF47: 1 | IG47: 0 | IH47: 0 | II47: 0 | IJ47: 1 | IK47: 0 | IL47: 0 | IM47: 0 | IN47: 1 | IO47: 0 | IP47: 0 | IQ47: 0 | IR47: 1 | IS47: 0 | IT47: 0
A48: Ver.05.00 | B48: 450006 | C48: 宮崎県 | D48: - | E48: 1 | F48: 845379527 | G48: 5137826 | H48: 28275025 | I48: 0 | J48: 112239925.8 | K48: 3476944 | L48: 0 | M48: 0 | N48: 0 | O48: 3476944 | P48: 0 | Q48: 0 | R48: 144224031 | S48: 12203718 | T48: 0 | U48: 557605255 | V48: 994509247.8 | W48: 714033004 | X48: 280476243.8 | Y48: 45950134 | Z48: 286937533 | AA48: 97.7 | AB48: 3894851 | AC48: 0 | AD48: 492539 | AE48: 71851 | AF48: 678585 | AG48: 0 | AH48: 0 | AI48: 0 | AJ48: 0 | AK48: 0 | AL48: 5137826 | AM48: ⑤ | AN48: 平成14年度から平成15年度に公立学校共済組合宮崎支部が建設する教職員住宅の借家料 | AO48: 6 | AP48: 980 | AQ48: ⑤ | AR48: 宮崎県総合自動車運転免許センター建設整備事業（デザインビルドによる建設・償還費） | AS48: 9 | AT48: 567574 | AU48: ⑤ | AV48: 平成２７年度警察共済組合宮崎県支部交番、駐在所借家料 | AW48: 8 | AX48: 14360 | AY48: ⑤ | AZ48: 平成２８年度警察共済組合宮崎県支部交番、駐在所借家料 | BA48: 8 | BB48: 21598 | BC48: ⑤ | BD48: 平成２９年度警察共済組合宮崎県支部交番、駐在所借家料 | BE48: 10 | BF48: 31373 | BG48: ⑤ | BH48: 平成３０年度警察共済組合宮崎県支部交番、駐在所借家料 | BI48: 11 | BJ48: 42700 | BK48: ① | BL48: 県有スポーツ施設整備費（プール整備運営事業） | BM48: 21 | BN48: 3894851 | BO48: ④ | BP48: 緑資源幹線林道事業負担金 | BQ48: 10 | BR48: 71851 | BS48: ③ | BT48: 国営土地改良事業負担金 尾鈴地区 国営かんがい排水事業負担金 平成23年度実施分 | BU48: 6 | BV48: 28647 | BW48: ③ | BX48: 国営土地改良事業負担金 尾鈴地区 国営かんがい排水事業負担金 平成24年度実施分 | BY48: 7 | BZ48: 12444 | CA48: ③ | CB48: 国営土地改良事業負担金 尾鈴地区 国営かんがい排水事業負担金 平成25年度実施分 | CC48: 8 | CD48: 29766 | CE48: ③ | CF48: 国営土地改良事業負担金 尾鈴地区 国営かんがい排水事業負担金 平成26年度実施分 | CG48: 9 | CH48: 2160 | CI48: ③ | CJ48: 国営土地改良事業負担金 西諸地区 国営かんがい排水事業負担金 平成23年度実施分 | CK48: 6 | CL48: 24100 | CM48: ③ | CN48: 国営土地改良事業負担金 西諸地区 国営かんがい排水事業負担金 平成24年度実施分 | CO48: 7 | CP48: 83888 | CQ48: ③ | CR48: 国営土地改良事業負担金 西諸地区 国営かんがい排水事業負担金 平成25年度実施分 | CS48: 8 | CT48: 146196 | CU48: ③ | CV48: 国営土地改良事業負担金 西諸地区 国営かんがい排水事業負担金 平成26年度実施分 | CW48: 9 | CX48: 31076 | CY48: ③ | CZ48: 国営土地改良事業負担金 西諸地区 国営かんがい排水事業負担金 平成27年度実施分 | DA48: 10 | DB48: 41800 | DC48: ③ | DD48: 国営土地改良事業負担金 西諸地区 国営かんがい排水事業負担金 平成28年度実施分 | DE48: 11 | DF48: 83838 | DG48: ③ | DH48: 国営土地改良事業負担金 西諸地区 国営かんがい排水事業負担金 平成29年度実施分 | DI48: 12 | DJ48: 8624 | DK48: 0 | DL48: 0 | DM48: 0 | DN48: 0 | DO48: 0 | DP48: 0 | DQ48: 0 | DR48: 0 | DS48: 0 | DT48: 0 | DU48: 0 | DV48: 0 | DW48: 0 | DX48: 0 | DY48: 0 | DZ48: 0 | EA48: 0 | EB48: 0 | EC48: 0 | ED48: 0 | EE48: 0 | EF48: 0 | EG48: 0 | EH48: 0 | EI48: 0 | EJ48: 0 | EK48: 0 | EL48: 0 | EM48: 0 | EN48: 0 | EO48: 0 | EP48: 0 | EQ48: 0 | ER48: 0 | ES48: 0 | ET48: 0 | EU48: 0 | EV48: 0 | EW48: 0 | EX48: 0 | EY48: 0 | EZ48: 0 | FA48: 0 | FB48: 0 | FC48: 0 | FD48: 0 | FE48: 0 | FF48: 0 | FG48: 0 | FH48: 0 | FI48: 0 | FJ48: 0 | FK48: 0 | FL48: 0 | FM48: 0 | FN48: 0 | FO48: 0 | FP48: 0 | FQ48: 0 | FR48: 0 | FS48: 0 | FT48: 0 | FU48: 0 | FV48: 0 | FW48: 0 | FX48: 0 | FY48: 0 | FZ48: 0 | GA48: 0 | GB48: 0 | GC48: 0 | GD48: 0 | GE48: 0 | GF48: 0 | GG48: 0 | GH48: 0 | GI48: 0 | GJ48: 0 | GK48: 0 | GL48: 0 | GM48: 0 | GN48: 0 | GO48: 0 | GP48: 0 | GQ48: 0 | GR48: 1 | GS48: 0 | GT48: 0 | GU48: 0 | GV48: 1 | GW48: 0 | GX48: 0 | GY48: 0 | GZ48: 1 | HA48: 0 | HB48: 0 | HC48: 0 | HD48: 1 | HE48: 0 | HF48: 0 | HG48: 0 | HH48: 1 | HI48: 0 | HJ48: 0 | HK48: 0 | HL48: 1 | HM48: 0 | HN48: 0 | HO48: 0 | HP48: 1 | HQ48: 0 | HR48: 0 | HS48: 0 | HT48: 1 | HU48: 0 | HV48: 0 | HW48: 0 | HX48: 1 | HY48: 0 | HZ48: 0 | IA48: 0 | IB48: 1 | IC48: 0 | ID48: 0 | IE48: 0 | IF48: 1 | IG48: 0 | IH48: 0 | II48: 0 | IJ48: 1 | IK48: 0 | IL48: 0 | IM48: 0 | IN48: 1 | IO48: 0 | IP48: 0 | IQ48: 0 | IR48: 1 | IS48: 0 | IT48: 0
A49: Ver.05.00 | B49: 460001 | C49: 鹿児島県 | D49: - | E49: 1 | F49: 1665781514 | G49: 782840 | H49: 8741954 | I49: 0 | J49: 204125431 | K49: 9060173 | L49: 0 | M49: 0 | N49: 0 | O49: 9060173 | P49: 0 | Q49: 0 | R49: 243554052 | S49: 31891672 | T49: 0 | U49: 790056894 | V49: 1888491912 | W49: 1065502618 | X49: 822989294 | Y49: 64183296 | Z49: 419390635 | AA49: 196.2 | AB49: 0 | AC49: 0 | AD49: 665224 | AE49: 0 | AF49: 61616 | AG49: 0 | AH49: 0 | AI49: 0 | AJ49: 0 | AK49: 56000 | AL49: 782840 | AM49: ⑤ | AN49: 職員住宅施設（地方職員共済組合有）賃借料 | AO49: 6 | AP49: 21102 | AQ49: ⑩ | AR49: エコパークかごしま（仮称）土地賃借料 | AS49: 9 | AT49: 56000 | AU49: ③ | AV49: 平成30年度国営かんがい排水事業肝属中部地区償還金 | AW49: 13 | AX49: 7579 | AY49: ③ | AZ49: 平成28年度国営かんがい排水事業肝属中部地区償還金 | BA49: 11 | BB49: 13596 | BC49: ③ | BD49: 平成29年度国営かんがい排水事業徳之島用水地区償還金 | BE49: 12 | BF49: 13928 | BG49: ③ | BH49: 平成29年度国営かんがい排水事業肝属中部地区償還金 | BI49: 12 | BJ49: 17721 | BK49: ③ | BL49: 平成28年度国営かんがい排水事業徳之島用水地区償還金 | BM49: 11 | BN49: 26861 | BO49: ③ | BP49: 平成28年度国営かんがい排水事業肝属中部地区償還金 | BQ49: 11 | BR49: 33248 | BS49: ③ | BT49: 平成27年度国営かんがい排水事業徳之島用水地区償還金 | BU49: 10 | BV49: 12509 | BW49: ③ | BX49: 平成27年度国営かんがい排水事業肝属中部地区償還金 | BY49: 10 | BZ49: 101069 | CA49: ③ | CB49: 平成26年度国営かんがい排水事業徳之島用水地区償還金 | CC49: 9 | CD49: 34605 | CE49: ③ | CF49: 平成26年度国営かんがい排水事業肝属中部地区償還金 | CG49: 9 | CH49: 157426 | CI49: ③ | CJ49: 平成25年度国営かんがい排水事業徳之島用水地区償還金 | CK49: 8 | CL49: 35860 | CM49: ③ | CN49: 平成25年度国営かんがい排水事業肝属中部地区償還金 | CO49: 8 | CP49: 69917 | CQ49: ③ | CR49: 平成24年度国営かんがい排水事業徳之島用水地区償還金 | CS49: 7 | CT49: 18913 | CU49: ③ | CV49: 平成24年度国営かんがい排水事業肝属中部地区償還金 | CW49: 7 | CX49: 70999 | CY49: ③ | CZ49: 平成24年度国営かんがい排水事業曽於北部地区償還金 | DA49: 7 | DB49: 1905 | DC49: ③ | DD49: 平成23年度国営かんがい排水事業徳之島用水地区償還金 | DE49: 6 | DF49: 10941 | DG49: ③ | DH49: 平成23年度国営かんがい排水事業肝属中部地区償還金 | DI49: 6 | DJ49: 27263 | DK49: ③ | DL49: 平成23年度国営かんがい排水事業曽於北部地区償還金 | DM49: 6 | DN49: 10884 | DO49: ③ | DP49: 平成２２年度国営かんがい排水事業肝属中部地区償還金 | DQ49: 5 | DR49: 0 | DS49: ③ | DT49: 平成２２年度国営かんがい排水事業曽於北部地区償還金 | DU49: 5 | DV49: 0 | DW49: ③ | DX49: 平成２２年度国営かんがい排水事業徳之島用水地区償還金 | DY49: 5 | DZ49: 0 | EA49: ⑤ | EB49: 警察施設整備事業（鹿児島西警察署玉江交番） | EC49: 13 | ED49: 40514 | EE49: 0 | EF49: 0 | EG49: 0 | EH49: 0 | EI49: 0 | EJ49: 0 | EK49: 0 | EL49: 0 | EM49: 0 | EN49: 0 | EO49: 0 | EP49: 0 | EQ49: 0 | ER49: 0 | ES49: 0 | ET49: 0 | EU49: 0 | EV49: 0 | EW49: 0 | EX49: 0 | EY49: 0 | EZ49: 0 | FA49: 0 | FB49: 0 | FC49: 0 | FD49: 0 | FE49: 0 | FF49: 0 | FG49: 0 | FH49: 0 | FI49: 0 | FJ49: 0 | FK49: 0 | FL49: 0 | FM49: 0 | FN49: 0 | FO49: 0 | FP49: 0 | FQ49: 0 | FR49: 0 | FS49: 0 | FT49: 0 | FU49: 0 | FV49: 0 | FW49: 0 | FX49: 0 | FY49: 0 | FZ49: 0 | GA49: 0 | GB49: 0 | GC49: 0 | GD49: 0 | GE49: 0 | GF49: 0 | GG49: 0 | GH49: 0 | GI49: 0 | GJ49: 0 | GK49: 0 | GL49: 0 | GM49: 0 | GN49: 0 | GO49: 0 | GP49: 0 | GQ49: 0 | GR49: 1 | GS49: 0 | GT49: 0 | GU49: 0 | GV49: 1 | GW49: 0 | GX49: 0 | GY49: 0 | GZ49: 1 | HA49: 0 | HB49: 0 | HC49: 0 | HD49: 1 | HE49: 0 | HF49: 0 | HG49: 0 | HH49: 1 | HI49: 0 | HJ49: 0 | HK49: 0 | HL49: 1 | HM49: 0 | HN49: 0 | HO49: 0 | HP49: 1 | HQ49: 0 | HR49: 0 | HS49: 0 | HT49: 1 | HU49: 0 | HV49: 0 | HW49: 0 | HX49: 1 | HY49: 0 | HZ49: 0 | IA49: 0 | IB49: 1 | IC49: 0 | ID49: 0 | IE49: 0 | IF49: 1 | IG49: 0 | IH49: 0 | II49: 0 | IJ49: 1 | IK49: 0 | IL49: 0 | IM49: 0 | IN49: 1 | IO49: 0 | IP49: 0 | IQ49: 0 | IR49: 1 | IS49: 0 | IT49: 0
A50: Ver.05.00 | B50: 470007 | C50: 沖縄県 | D50: - | E50: 1 | F50: 532505865 | G50: 0 | H50: 38798981 | I50: 3221757 | J50: 152672843 | K50: 1751104 | L50: 0 | M50: 0 | N50: 0 | O50: 1751104 | P50: 0 | Q50: 0 | R50: 140484243 | S50: 17917054 | T50: 0 | U50: 478894803 | V50: 728950550 | W50: 637296100 | X50: 91654450 | Y50: 40135407 | Z50: 367379020 | AA50: 24.9 | AB50: 0 | AC50: 0 | AD50: 0 | AE50: 0 | AF50: 0 | AG50: 0 | AH50: 0 | AI50: 0 | AJ50: 0 | AK50: 0 | AL50: 0 | AM50: ③ | AN50: 国営かんがい排水事業費償還金（羽地大川地区） | AO50: 5 | AP50: 0 | AQ50: 0 | AR50: 0 | AS50: 0 | AT50: 0 | AU50: 0 | AV50: 0 | AW50: 0 | AX50: 0 | AY50: 0 | AZ50: 0 | BA50: 0 | BB50: 0 | BC50: 0 | BD50: 0 | BE50: 0 | BF50: 0 | BG50: 0 | BH50: 0 | BI50: 0 | BJ50: 0 | BK50: 0 | BL50: 0 | BM50: 0 | BN50: 0 | BO50: 0 | BP50: 0 | BQ50: 0 | BR50: 0 | BS50: 0 | BT50: 0 | BU50: 0 | BV50: 0 | BW50: 0 | BX50: 0 | BY50: 0 | BZ50: 0 | CA50: 0 | CB50: 0 | CC50: 0 | CD50: 0 | CE50: 0 | CF50: 0 | CG50: 0 | CH50: 0 | CI50: 0 | CJ50: 0 | CK50: 0 | CL50: 0 | CM50: 0 | CN50: 0 | CO50: 0 | CP50: 0 | CQ50: 0 | CR50: 0 | CS50: 0 | CT50: 0 | CU50: 0 | CV50: 0 | CW50: 0 | CX50: 0 | CY50: 0 | CZ50: 0 | DA50: 0 | DB50: 0 | DC50: 0 | DD50: 0 | DE50: 0 | DF50: 0 | DG50: 0 | DH50: 0 | DI50: 0 | DJ50: 0 | DK50: 0 | DL50: 0 | DM50: 0 | DN50: 0 | DO50: 0 | DP50: 0 | DQ50: 0 | DR50: 0 | DS50: 0 | DT50: 0 | DU50: 0 | DV50: 0 | DW50: 0 | DX50: 0 | DY50: 0 | DZ50: 0 | EA50: 0 | EB50: 0 | EC50: 0 | ED50: 0 | EE50: 0 | EF50: 0 | EG50: 0 | EH50: 0 | EI50: 0 | EJ50: 0 | EK50: 0 | EL50: 0 | EM50: 0 | EN50: 0 | EO50: 0 | EP50: 0 | EQ50: 0 | ER50: 0 | ES50: 0 | ET50: 0 | EU50: 0 | EV50: 0 | EW50: 0 | EX50: 0 | EY50: 0 | EZ50: 0 | FA50: 0 | FB50: 0 | FC50: 0 | FD50: 0 | FE50: 0 | FF50: 0 | FG50: 0 | FH50: 0 | FI50: 0 | FJ50: 0 | FK50: 0 | FL50: 0 | FM50: 0 | FN50: 0 | FO50: 0 | FP50: 0 | FQ50: 0 | FR50: 0 | FS50: 0 | FT50: 0 | FU50: 0 | FV50: 0 | FW50: 0 | FX50: 0 | FY50: 0 | FZ50: 0 | GA50: 0 | GB50: 0 | GC50: 0 | GD50: 0 | GE50: 0 | GF50: 0 | GG50: 0 | GH50: 0 | GI50: 0 | GJ50: 0 | GK50: 0 | GL50: 0 | GM50: 0 | GN50: 0 | GO50: 0 | GP50: 0 | GQ50: 0 | GR50: 1 | GS50: 0 | GT50: 0 | GU50: 0 | GV50: 1 | GW50: 0 | GX50: 0 | GY50: 0 | GZ50: 1 | HA50: 0 | HB50: 0 | HC50: 0 | HD50: 1 | HE50: 0 | HF50: 0 | HG50: 0 | HH50: 1 | HI50: 0 | HJ50: 0 | HK50: 0 | HL50: 1 | HM50: 0 | HN50: 0 | HO50: 0 | HP50: 1 | HQ50: 0 | HR50: 0 | HS50: 0 | HT50: 1 | HU50: 0 | HV50: 0 | HW50: 0 | HX50: 1 | HY50: 0 | HZ50: 0 | IA50: 0 | IB50: 1 | IC50: 0 | ID50: 0 | IE50: 0 | IF50: 1 | IG50: 0 | IH50: 0 | II50: 0 | IJ50: 1 | IK50: 0 | IL50: 0 | IM50: 0 | IN50: 1 | IO50: 0 | IP50: 0 | IQ50: 0 | IR50: 1 | IS50: 0 | IT50: 0
F52: =SUM(F4:F50) -> 96114430871 | G52: =SUM(G4:G50) -> 436029304.5 | H52: 2467775813 | I52: 94844869 | J52: 8847717540 | K52: 476146858 | L52: 68857695 | M52: 36267017 | N52: 54130883 | O52: 316891263 | P52: 0 | Q52: 0 | R52: 1.915368929e+10 | S52: 3440160769 | T52: 1681827439 | U52: 46982178521 | V52: 1.084369453e+11 | W52: 6.957602858e+10 | X52: 3.886091668e+10 | Y52: 3764664172 | Z52: 26124448227
F53: =ROUNDDOWN(X52/Z52*100,1) -> 148.7

Sheet Sheet3
B1: 総括表① | C1: 総括表① | D1: 総括表① | E1: 総括表① | F1: ４①表 | G1: ４①表 | H1: ４①表 | I1: ４①表 | J1: ４①表 | K1: ４①表 | L1: ４①表 | M1: ４①表 | N1: ４①表 | O1: ４①表 | P1: ４①表 | Q1: ４①表 | R1: ４①表 | S1: ４①表 | T1: ４①表 | U1: ４①表 | V1: ４①表 | W1: ４①表 | X1: ４①表 | Y1: ４①表 | Z1: ４①表 | AA1: ４①表 | AB1: ４①表 | AC1: ４①表 | AD1: ４①表 | AE1: ４①表 | AF1: ４①表 | AG1: ４①表 | AH1: ４①表 | AI1: ４①表 | AJ1: ４①表 | AK1: ４①表 | AL1: ４①表 | AM1: ４①表 | AN1: ４①表 | AO1: ４①表 | AP1: ４①表 | AQ1: ４①表 | AR1: ４①表 | AS1: ４①表 | AT1: ４①表 | AU1: ４①表 | AV1: ４①表 | AW1: ４①表 | AX1: ４①表 | AY1: ４①表 | AZ1: ４①表 | BA1: ４①表 | BB1: ４①表 | BC1: ４①表 | BD1: ４①表 | BE1: ４①表 | BF1: ４①表 | BG1: ４①表 | BH1: ４①表 | BI1: ４①表 | BJ1: ４①表 | BK1: ４①表 | BL1: ４①表 | BM1: ４①表 | BN1: ４①表 | BO1: ４①表 | BP1: ４①表 | BQ1: ４①表 | BR1: ４①表 | BS1: ４①表 | BT1: ４①表 | BU1: ４①表 | BV1: ４①表 | BW1: ４①表 | BX1: ４①表 | BY1: ４①表 | BZ1: ４①表 | CA1: ４①表 | CB1: ４①表 | CC1: ４①表 | CD1: ４①表 | CE1: ４①表 | CF1: ４①表 | CG1: ４①表 | CH1: ４①表 | CI1: ４①表 | CJ1: ４①表 | CK1: ４①表 | CL1: ４①表 | CM1: ４①表 | CN1: ４①表 | CO1: ４①表 | CP1: ４①表 | CQ1: ４①表 | CR1: ４①表 | CS1: ４①表 | CT1: ４①表 | CU1: ４①表 | CV1: ４①表 | CW1: ４①表 | CX1: ４①表 | CY1: ４①表 | CZ1: ４①表 | DA1: ４①表 | DB1: ４①表 | DC1: ４①表 | DD1: ４①表 | DE1: ４①表 | DF1: ４④表 | DG1: ４④表 | DH1: ４④表 | DI1: ４④表 | DJ1: ４④表 | DK1: ４④表 | DL1: ４④表 | DM1: ４④表 | DN1: ４④表 | DO1: ４④表 | DP1: ４④表 | DQ1: ４④表 | DR1: ４④表 | DS1: ４④表 | DT1: ４④表 | DU1: ４④表 | DV1: ４④表 | DW1: ４④表 | DX1: ４④表 | DY1: ４④表 | DZ1: ４④表 | EA1: ４④表 | EB1: ４④表 | EC1: ４④表 | ED1: ４④表 | EE1: ４④表 | EF1: ４④表 | EG1: ４④表 | EH1: ４④表 | EI1: ４④表 | EJ1: ４④表 | EK1: ４④表 | EL1: ４④表 | EM1: ４④表 | EN1: ４④表 | EO1: ４④表 | EP1: ４④表 | EQ1: ４④表 | ER1: ４④表 | ES1: ４④表 | ET1: ４④表 | EU1: ４④表 | EV1: ４④表 | EW1: ４④表 | EX1: ４④表 | EY1: ４④表 | EZ1: ４④表 | FA1: ４④表 | FB1: ４④表 | FC1: ４④表 | FD1: ４④表 | FE1: ４④表 | FF1: ４④表 | FG1: ４④表 | FH1: ４④表 | FI1: ４④表 | FJ1: ４④表 | FK1: ４④表 | FL1: ４④表 | FM1: ４④表 | FN1: ４④表 | FO1: ４④表 | FP1: ４④表 | FQ1: ４④表 | FR1: ４④表 | FS1: ４④表 | FT1: ４④表 | FU1: ４④表 | FV1: ４④表 | FW1: ４④表 | FX1: ４④表 | FY1: ４④表 | FZ1: ４④表 | GA1: ４④表 | GB1: ４④表 | GC1: ４④表 | GD1: ４④表 | GE1: ４④表 | GF1: ４④表 | GG1: ４④表 | GH1: ４④表 | GI1: ４④表 | GJ1: ４④表 | GK1: ４④表 | GL1: ４④表 | GM1: ４④表 | GN1: ４④表 | GO1: ４④表 | GP1: ４④表 | GQ1: ４④表 | GR1: ４④表 | GS1: ４④表 | GT1: ４④表 | GU1: ４④表 | GV1: ４④表 | GW1: ４④表 | GX1: ４④表 | GY1: ４④表 | GZ1: ４④表 | HA1: ４④表 | HB1: ４④表 | HC1: ４④表 | HD1: ４④表 | HE1: ４④表 | HF1: ４④表 | HG1: ４④表 | HH1: ４④表 | HI1: ４④表 | HJ1: ４④表 | HK1: ４④表 | HL1: ４④表 | HM1: ４④表 | HN1: ４④表 | HO1: ４④表 | HP1: ４④表 | HQ1: ４④表 | HR1: ４④表 | HS1: ４④表 | HT1: ４④表 | HU1: ４④表 | HV1: ４④表 | HW1: ４④表 | HX1: ４④表 | HY1: ４④表 | HZ1: ４④表 | IA1: ４④表 | IB1: ４④表 | IC1: ４④表 | ID1: ４④表 | IE1: ４④表 | IF1: ４④表 | IG1: ４④表 | IH1: ４④表 | II1: ４④表 | IJ1: ４④表 | IK1: ４④表 | IL1: ４④表 | IM1: ４④表 | IN1: ４④表 | IO1: ４④表 | IP1: ４④表 | IQ1: ４④表 | IR1: ４④表 | IS1: ４④表
A2: バージョン | F2: 55 | G2: 55 | H2: 55 | I2: 55 | J2: 56 | K2: 56 | L2: 56 | M2: 56 | N2: =J2+1 -> 57 | O2: 57 | P2: 57 | Q2: 57 | R2: 58 | S2: 58 | T2: 58 | U2: 58 | V2: 59 | W2: 59 | X2: 59 | Y2: 59 | Z2: 60 | AA2: 60 | AB2: 60 | AC2: 60 | AD2: 61 | AE2: 61 | AF2: 61 | AG2: 61 | AH2: 62 | AI2: 62 | AJ2: 62 | AK2: 62 | AL2: 63 | AM2: 63 | AN2: 63 | AO2: 63 | AP2: 64 | AQ2: 64 | AR2: 64 | AS2: 64 | AT2: 65 | AU2: 65 | AV2: 65 | AW2: 65 | AX2: 66 | AY2: 66 | AZ2: 66 | BA2: 66 | BB2: 67 | BC2: 67 | BD2: 67 | BE2: 67 | BF2: 68 | BG2: 68 | BH2: 68 | BI2: 68 | BJ2: 69 | BK2: 69 | BL2: 69 | BM2: 69 | BN2: 70 | BO2: 70 | BP2: 70 | BQ2: 70 | BR2: 71 | BS2: 71 | BT2: 71 | BU2: 71 | BV2: 72 | BW2: 72 | BX2: 72 | BY2: 72 | BZ2: =BV2+1 -> 73 | CA2: 73 | CB2: 73 | CC2: 73 | CD2: 74 | CE2: 74 | CF2: 74 | CG2: 74 | CH2: 75 | CI2: 75 | CJ2: 75 | CK2: 75 | CL2: 76 | CM2: 76 | CN2: 76 | CO2: 76 | CP2: 77 | CQ2: 77 | CR2: 77 | CS2: 77 | CT2: 78 | CU2: 78 | CV2: 78 | CW2: 78 | CX2: 79 | CY2: 79 | CZ2: 79 | DA2: 79 | DB2: 80 | DC2: 80 | DD2: 80 | DE2: 80 | DF2: 組合等1 | DG2: 会計1 | DH2: 会計1 | DI2: 会計1 | DJ2: 会計1 | DK2: 会計2 | DL2: 会計2 | DM2: 会計2 | DN2: 会計2 | DO2: 会計3 | DP2: 会計3 | DQ2: 会計3 | DR2: 会計3 | DS2: 会計4 | DT2: 会計4 | DU2: 会計4 | DV2: 会計4 | DW2: 会計5 | DX2: 会計5 | DY2: 会計5 | DZ2: 会計5 | EA2: 会計6 | EB2: 会計6 | EC2: 会計6 | ED2: 会計6 | EE2: 会計7 | EF2: 会計7 | EG2: 会計7 | EH2: 会計7 | EI2: 会計8 | EJ2: 会計8 | EK2: 会計8 | EL2: 会計8 | EM2: 会計9 | EN2: 会計9 | EO2: 会計9 | EP2: 会計9 | EQ2: 会計10 | ER2: 会計10 | ES2: 会計10 | ET2: 会計10 | EU2: 組合等2 | EV2: 会計1 | EW2: 会計1 | EX2: 会計1 | EY2: 会計1 | EZ2: 会計2 | FA2: 会計2 | FB2: 会計2 | FC2: 会計2 | FD2: 会計3 | FE2: 会計3 | FF2: 会計3 | FG2: 会計3 | FH2: 会計4 | FI2: 会計4 | FJ2: 会計4 | FK2: 会計4 | FL2: 会計5 | FM2: 会計5 | FN2: 会計5 | FO2: 会計5 | FP2: 会計6 | FQ2: 会計6 | FR2: 会計6 | FS2: 会計6 | FT2: 会計7 | FU2: 会計7 | FV2: 会計7 | FW2: 会計7 | FX2: 会計8 | FY2: 会計8 | FZ2: 会計8 | GA2: 会計8 | GB2: 会計9 | GC2: 会計9 | GD2: 会計9 | GE2: 会計9 | GF2: 会計10 | GG2: 会計10 | GH2: 会計10 | GI2: 会計10 | GJ2: 組合等3 | GK2: 会計1 | GL2: 会計1 | GM2: 会計1 | GN2: 会計1 | GO2: 会計2 | GP2: 会計2 | GQ2: 会計2 | GR2: 会計2 | GS2: 会計3 | GT2: 会計3 | GU2: 会計3 | GV2: 会計3 | GW2: 会計4 | GX2: 会計4 | GY2: 会計4 | GZ2: 会計4 | HA2: 会計5 | HB2: 会計5 | HC2: 会計5 | HD2: 会計5 | HE2: 会計6 | HF2: 会計6 | HG2: 会計6 | HH2: 会計6 | HI2: 会計7 | HJ2: 会計7 | HK2: 会計7 | HL2: 会計7 | HM2: 会計8 | HN2: 会計8 | HO2: 会計8 | HP2: 会計8 | HQ2: 会計9 | HR2: 会計9 | HS2: 会計9 | HT2: 会計9 | HU2: 会計10 | HV2: 会計10 | HW2: 会計10 | HX2: 会計10 | HY2: 組合等4 | HZ2: 会計1 | IA2: 会計1 | IB2: 会計1 | IC2: 会計1 | ID2: 会計2 | IE2: 会計2 | IF2: 会計2 | IG2: 会計2 | IH2: 会計3 | II2: 会計3 | IJ2: 会計3 | IK2: 会計3 | IL2: 会計4 | IM2: 会計4 | IN2: 会計4 | IO2: 会計4 | IP2: 会計5 | IQ2: 会計5 | IR2: 会計5 | IS2: 会計5
B3: 地方公共団体コード | C3: 都道府県名 | D3: 市区町村名 | E3: 団体区分 | F3: 区分 | G3: 事項 | H3: 期間 | I3: 支出予定額 | J3: 区分 | K3: 事項 | L3: 期間 | M3: 支出予定額 | N3: 区分 | O3: 事項 | P3: 期間 | Q3: 支出予定額 | R3: 区分 | S3: 事項 | T3: 期間 | U3: 支出予定額 | V3: 区分 | W3: 事項 | X3: 期間 | Y3: 支出予定額 | Z3: 区分 | AA3: 事項 | AB3: 期間 | AC3: 支出予定額 | AD3: 区分 | AE3: 事項 | AF3: 期間 | AG3: 支出予定額 | AH3: 区分 | AI3: 事項 | AJ3: 期間 | AK3: 支出予定額 | AL3: 区分 | AM3: 事項 | AN3: 期間 | AO3: 支出予定額 | AP3: 区分 | AQ3: 事項 | AR3: 期間 | AS3: 支出予定額 | AT3: 区分 | AU3: 事項 | AV3: 期間 | AW3: 支出予定額 | AX3: 区分 | AY3: 事項 | AZ3: 期間 | BA3: 支出予定額 | BB3: 区分 | BC3: 事項 | BD3: 期間 | BE3: 支出予定額 | BF3: 区分 | BG3: 事項 | BH3: 期間 | BI3: 支出予定額 | BJ3: 区分 | BK3: 事項 | BL3: 期間 | BM3: 支出予定額 | BN3: 区分 | BO3: 事項 | BP3: 期間 | BQ3: 支出予定額 | BR3: 区分 | BS3: 事項 | BT3: 期間 | BU3: 支出予定額 | BV3: 区分 | BW3: 事項 | BX3: 期間 | BY3: 支出予定額 | BZ3: 区分 | CA3: 事項 | CB3: 期間 | CC3: 支出予定額 | CD3: 区分 | CE3: 事項 | CF3: 期間 | CG3: 支出予定額 | CH3: 区分 | CI3: 事項 | CJ3: 期間 | CK3: 支出予定額 | CL3: 区分 | CM3: 事項 | CN3: 期間 | CO3: 支出予定額 | CP3: 区分 | CQ3: 事項 | CR3: 期間 | CS3: 支出予定額 | CT3: 区分 | CU3: 事項 | CV3: 期間 | CW3: 支出予定額 | CX3: 区分 | CY3: 事項 | CZ3: 期間 | DA3: 支出予定額 | DB3: 区分 | DC3: 事項 | DD3: 期間 | DE3: 支出予定額 | DF3: 組合等名称 | DG3: 名称 | DH3: 現在高 | DI3: 負担見込(4) | DJ3: 負担見込(8) | DK3: 名称 | DL3: 現在高 | DM3: 負担見込(4) | DN3: 負担見込(8) | DO3: 名称 | DP3: 現在高 | DQ3: 負担見込(4) | DR3: 負担見込(8) | DS3: 名称 | DT3: 現在高 | DU3: 負担見込(4) | DV3: 負担見込(8) | DW3: 名称 | DX3: 現在高 | DY3: 負担見込(4) | DZ3: 負担見込(8) | EA3: 名称 | EB3: 現在高 | EC3: 負担見込(4) | ED3: 負担見込(8) | EE3: 名称 | EF3: 現在高 | EG3: 負担見込(4) | EH3: 負担見込(8) | EI3: 名称 | EJ3: 現在高 | EK3: 負担見込(4) | EL3: 負担見込(8) | EM3: 名称 | EN3: 現在高 | EO3: 負担見込(4) | EP3: 負担見込(8) | EQ3: 名称 | ER3: 現在高 | ES3: 負担見込(4) | ET3: 負担見込(8) | EU3: 組合等名称 | EV3: 名称 | EW3: 現在高 | EX3: 負担見込(4) | EY3: 負担見込(8) | EZ3: 名称 | FA3: 現在高 | FB3: 負担見込(4) | FC3: 負担見込(8) | FD3: 名称 | FE3: 現在高 | FF3: 負担見込(4) | FG3: 負担見込(8) | FH3: 名称 | FI3: 現在高 | FJ3: 負担見込(4) | FK3: 負担見込(8) | FL3: 名称 | FM3: 現在高 | FN3: 負担見込(4) | FO3: 負担見込(8) | FP3: 名称 | FQ3: 現在高 | FR3: 負担見込(4) | FS3: 負担見込(8) | FT3: 名称 | FU3: 現在高 | FV3: 負担見込(4) | FW3: 負担見込(8) | FX3: 名称 | FY3: 現在高 | FZ3: 負担見込(4) | GA3: 負担見込(8) | GB3: 名称 | GC3: 現在高 | GD3: 負担見込(4) | GE3: 負担見込(8) | GF3: 名称 | GG3: 現在高 | GH3: 負担見込(4) | GI3: 負担見込(8) | GJ3: 組合等名称 | GK3: 名称 | GL3: 現在高 | GM3: 負担見込(4) | GN3: 負担見込(8) | GO3: 名称 | GP3: 現在高 | GQ3: 負担見込(4) | GR3: 負担見込(8) | GS3: 名称 | GT3: 現在高 | GU3: 負担見込(4) | GV3: 負担見込(8) | GW3: 名称 | GX3: 現在高 | GY3: 負担見込(4) | GZ3: 負担見込(8) | HA3: 名称 | HB3: 現在高 | HC3: 負担見込(4) | HD3: 負担見込(8) | HE3: 名称 | HF3: 現在高 | HG3: 負担見込(4) | HH3: 負担見込(8) | HI3: 名称 | HJ3: 現在高 | HK3: 負担見込(4) | HL3: 負担見込(8) | HM3: 名称 | HN3: 現在高 | HO3: 負担見込(4) | HP3: 負担見込(8) | HQ3: 名称 | HR3: 現在高 | HS3: 負担見込(4) | HT3: 負担見込(8) | HU3: 名称 | HV3: 現在高 | HW3: 負担見込(4) | HX3: 負担見込(8) | HY3: 組合等名称 | HZ3: 名称 | IA3: 現在高 | IB3: 負担見込(4) | IC3: 負担見込(8) | ID3: 名称 | IE3: 現在高 | IF3: 負担見込(4) | IG3: 負担見込(8) | IH3: 名称 | II3: 現在高 | IJ3: 負担見込(4) | IK3: 負担見込(8) | IL3: 名称 | IM3: 現在高 | IN3: 負担見込(4) | IO3: 負担見込(8) | IP3: 名称 | IQ3: 現在高 | IR3: 負担見込(4) | IS3: 負担見込(8)
A4: Ver.05.00 | B4: 10006 | C4: 北海道 | D4: - | E4: 1 | F4: 0 | G4: 1 | H4: 0 | I4: 0 | J4: 0 | K4: 1 | L4: 0 | M4: 0 | N4: 0 | O4: 1 | P4: 0 | Q4: 0 | R4: 0 | S4: 1 | T4: 0 | U4: 0 | V4: 0 | W4: 1 | X4: 0 | Y4: 0 | Z4: 0 | AA4: 1 | AB4: 0 | AC4: 0 | AD4: 0 | AE4: 1 | AF4: 0 | AG4: 0 | AH4: 0 | AI4: 1 | AJ4: 0 | AK4: 0 | AL4: 0 | AM4: 1 | AN4: 0 | AO4: 0 | AP4: 0 | AQ4: 1 | AR4: 0 | AS4: 0 | AT4: 0 | AU4: 1 | AV4: 0 | AW4: 0 | AX4: 0 | AY4: 1 | AZ4: 0 | BA4: 0 | BB4: 0 | BC4: 1 | BD4: 0 | BE4: 0 | BF4: 0 | BG4: 1 | BH4: 0 | BI4: 0 | BJ4: 0 | BK4: 1 | BL4: 0 | BM4: 0 | BN4: 0 | BO4: 1 | BP4: 0 | BQ4: 0 | BR4: 0 | BS4: 1 | BT4: 0 | BU4: 0 | BV4: 0 | BW4: 1 | BX4: 0 | BY4: 0 | BZ4: 0 | CA4: 1 | CB4: 0 | CC4: 0 | CD4: 0 | CE4: 1 | CF4: 0 | CG4: 0 | CH4: 0 | CI4: 1 | CJ4: 0 | CK4: 0 | CL4: 0 | CM4: 1 | CN4: 0 | CO4: 0 | CP4: 0 | CQ4: 1 | CR4: 0 | CS4: 0 | CT4: 0 | CU4: 1 | CV4: 0 | CW4: 0 | CX4: 0 | CY4: 1 | CZ4: 0 | DA4: 0 | DB4: 0 | DC4: 1 | DD4: 0 | DE4: 0 | DF4: 苫小牧港管理組合 | DG4: 一般会計 | DH4: 13661685 | DI4: 0 | DJ4: 2240516 | DK4: 港湾整備事業特別会計 | DL4: 19318677 | DM4: 0 | DN4: 5563779 | DO4: 0 | DP4: 0 | DQ4: 0 | DR4: - | DS4: 0 | DT4: 0 | DU4: 0 | DV4: - | DW4: 0 | DX4: 0 | DY4: 0 | DZ4: - | EA4: 0 | EB4: 0 | EC4: 0 | ED4: - | EE4: 0 | EF4: 0 | EG4: 0 | EH4: - | EI4: 0 | EJ4: 0 | EK4: 0 | EL4: - | EM4: 0 | EN4: 0 | EO4: 0 | EP4: - | EQ4: 0 | ER4: 0 | ES4: 0 | ET4: - | EU4: 石狩湾新港管理組合 | EV4: 一般会計 | EW4: 3509720 | EX4: 0 | EY4: 1554806 | EZ4: 港湾整備特別会計 | FA4: 4995997 | FB4: 0 | FC4: 989207 | FD4: 0 | FE4: 0 | FF4: 0 | FG4: - | FH4: 0 | FI4: 0 | FJ4: 0 | FK4: - | FL4: 0 | FM4: 0 | FN4: 0 | FO4: - | FP4: 0 | FQ4: 0 | FR4: 0 | FS4: - | FT4: 0 | FU4: 0 | FV4: 0 | FW4: - | FX4: 0 | FY4: 0 | FZ4: 0 | GA4: - | GB4: 0 | GC4: 0 | GD4: 0 | GE4: - | GF4: 0 | GG4: 0 | GH4: 0 | GI4: - | GJ4: 石狩東部広域水道企業団 | GK4: 水道用水供給事業会計 | GL4: 14172150 | GM4: 0 | GN4: - | GO4: 0 | GP4: 0 | GQ4: 0 | GR4: - | GS4: 0 | GT4: 0 | GU4: 0 | GV4: - | GW4: 0 | GX4: 0 | GY4: 0 | GZ4: - | HA4: 0 | HB4: 0 | HC4: 0 | HD4: - | HE4: 0 | HF4: 0 | HG4: 0 | HH4: - | HI4: 0 | HJ4: 0 | HK4: 0 | HL4: - | HM4: 0 | HN4: 0 | HO4: 0 | HP4: - | HQ4: 0 | HR4: 0 | HS4: 0 | HT4: - | HU4: 0 | HV4: 0 | HW4: 0 | HX4: - | HY4: 石狩西部広域水道企業団 | HZ4: 水道用水供給事業会計 | IA4: 16234539 | IB4: 0 | IC4: - | ID4: 0 | IE4: 0 | IF4: 0 | IG4: - | IH4: 0 | II4: 0 | IJ4: 0 | IK4: - | IL4: 0 | IM4: 0 | IN4: 0 | IO4: - | IP4: 0 | IQ4: 0 | IR4: 0 | IS4: -
A5: Ver.05.00 | B5: 20001 | C5: 青森県 | D5: - | E5: 1 | F5: 0 | G5: 1 | H5: 0 | I5: 0 | J5: 0 | K5: 1 | L5: 0 | M5: 0 | N5: 0 | O5: 1 | P5: 0 | Q5: 0 | R5: 0 | S5: 1 | T5: 0 | U5: 0 | V5: 0 | W5: 1 | X5: 0 | Y5: 0 | Z5: 0 | AA5: 1 | AB5: 0 | AC5: 0 | AD5: 0 | AE5: 1 | AF5: 0 | AG5: 0 | AH5: 0 | AI5: 1 | AJ5: 0 | AK5: 0 | AL5: 0 | AM5: 1 | AN5: 0 | AO5: 0 | AP5: 0 | AQ5: 1 | AR5: 0 | AS5: 0 | AT5: 0 | AU5: 1 | AV5: 0 | AW5: 0 | AX5: 0 | AY5: 1 | AZ5: 0 | BA5: 0 | BB5: 0 | BC5: 1 | BD5: 0 | BE5: 0 | BF5: 0 | BG5: 1 | BH5: 0 | BI5: 0 | BJ5: 0 | BK5: 1 | BL5: 0 | BM5: 0 | BN5: 0 | BO5: 1 | BP5: 0 | BQ5: 0 | BR5: 0 | BS5: 1 | BT5: 0 | BU5: 0 | BV5: 0 | BW5: 1 | BX5: 0 | BY5: 0 | BZ5: 0 | CA5: 1 | CB5: 0 | CC5: 0 | CD5: 0 | CE5: 1 | CF5: 0 | CG5: 0 | CH5: 0 | CI5: 1 | CJ5: 0 | CK5: 0 | CL5: 0 | CM5: 1 | CN5: 0 | CO5: 0 | CP5: 0 | CQ5: 1 | CR5: 0 | CS5: 0 | CT5: 0 | CU5: 1 | CV5: 0 | CW5: 0 | CX5: 0 | CY5: 1 | CZ5: 0 | DA5: 0 | DB5: 0 | DC5: 1 | DD5: 0 | DE5: 0 | DF5: 0 | DG5: 0 | DH5: 0 | DI5: 0 | DJ5: - | DK5: 0 | DL5: 0 | DM5: 0 | DN5: - | DO5: 0 | DP5: 0 | DQ5: 0 | DR5: - | DS5: 0 | DT5: 0 | DU5: 0 | DV5: - | DW5: 0 | DX5: 0 | DY5: 0 | DZ5: - | EA5: 0 | EB5: 0 | EC5: 0 | ED5: - | EE5: 0 | EF5: 0 | EG5: 0 | EH5: - | EI5: 0 | EJ5: 0 | EK5: 0 | EL5: - | EM5: 0 | EN5: 0 | EO5: 0 | EP5: - | EQ5: 0 | ER5: 0 | ES5: 0 | ET5: - | EU5: 0 | EV5: 0 | EW5: 0 | EX5: 0 | EY5: - | EZ5: 0 | FA5: 0 | FB5: 0 | FC5: - | FD5: 0 | FE5: 0 | FF5: 0 | FG5: - | FH5: 0 | FI5: 0 | FJ5: 0 | FK5: - | FL5: 0 | FM5: 0 | FN5: 0 | FO5: - | FP5: 0 | FQ5: 0 | FR5: 0 | FS5: - | FT5: 0 | FU5: 0 | FV5: 0 | FW5: - | FX5: 0 | FY5: 0 | FZ5: 0 | GA5: - | GB5: 0 | GC5: 0 | GD5: 0 | GE5: - | GF5: 0 | GG5: 0 | GH5: 0 | GI5: - | GJ5: 0 | GK5: 0 | GL5: 0 | GM5: 0 | GN5: - | GO5: 0 | GP5: 0 | GQ5: 0 | GR5: - | GS5: 0 | GT5: 0 | GU5: 0 | GV5: - | GW5: 0 | GX5: 0 | GY5: 0 | GZ5: - | HA5: 0 | HB5: 0 | HC5: 0 | HD5: - | HE5: 0 | HF5: 0 | HG5: 0 | HH5: - | HI5: 0 | HJ5: 0 | HK5: 0 | HL5: - | HM5: 0 | HN5: 0 | HO5: 0 | HP5: - | HQ5: 0 | HR5: 0 | HS5: 0 | HT5: - | HU5: 0 | HV5: 0 | HW5: 0 | HX5: - | HY5: 0 | HZ5: 0 | IA5: 0 | IB5: 0 | IC5: - | ID5: 0 | IE5: 0 | IF5: 0 | IG5: - | IH5: 0 | II5: 0 | IJ5: 0 | IK5: - | IL5: 0 | IM5: 0 | IN5: 0 | IO5: - | IP5: 0 | IQ5: 0 | IR5: 0 | IS5: -
A6: Ver.05.00 | B6: 30007 | C6: 岩手県 | D6: - | E6: 1 | F6: 0 | G6: 1 | H6: 0 | I6: 0 | J6: 0 | K6: 1 | L6: 0 | M6: 0 | N6: 0 | O6: 1 | P6: 0 | Q6: 0 | R6: 0 | S6: 1 | T6: 0 | U6: 0 | V6: 0 | W6: 1 | X6: 0 | Y6: 0 | Z6: 0 | AA6: 1 | AB6: 0 | AC6: 0 | AD6: 0 | AE6: 1 | AF6: 0 | AG6: 0 | AH6: 0 | AI6: 1 | AJ6: 0 | AK6: 0 | AL6: 0 | AM6: 1 | AN6: 0 | AO6: 0 | AP6: 0 | AQ6: 1 | AR6: 0 | AS6: 0 | AT6: 0 | AU6: 1 | AV6: 0 | AW6: 0 | AX6: 0 | AY6: 1 | AZ6: 0 | BA6: 0 | BB6: 0 | BC6: 1 | BD6: 0 | BE6: 0 | BF6: 0 | BG6: 1 | BH6: 0 | BI6: 0 | BJ6: 0 | BK6: 1 | BL6: 0 | BM6: 0 | BN6: 0 | BO6: 1 | BP6: 0 | BQ6: 0 | BR6: 0 | BS6: 1 | BT6: 0 | BU6: 0 | BV6: 0 | BW6: 1 | BX6: 0 | BY6: 0 | BZ6: 0 | CA6: 1 | CB6: 0 | CC6: 0 | CD6: 0 | CE6: 1 | CF6: 0 | CG6: 0 | CH6: 0 | CI6: 1 | CJ6: 0 | CK6: 0 | CL6: 0 | CM6: 1 | CN6: 0 | CO6: 0 | CP6: 0 | CQ6: 1 | CR6: 0 | CS6: 0 | CT6: 0 | CU6: 1 | CV6: 0 | CW6: 0 | CX6: 0 | CY6: 1 | CZ6: 0 | DA6: 0 | DB6: 0 | DC6: 1 | DD6: 0 | DE6: 0 | DF6: 0 | DG6: 0 | DH6: 0 | DI6: 0 | DJ6: - | DK6: 0 | DL6: 0 | DM6: 0 | DN6: - | DO6: 0 | DP6: 0 | DQ6: 0 | DR6: - | DS6: 0 | DT6: 0 | DU6: 0 | DV6: - | DW6: 0 | DX6: 0 | DY6: 0 | DZ6: - | EA6: 0 | EB6: 0 | EC6: 0 | ED6: - | EE6: 0 | EF6: 0 | EG6: 0 | EH6: - | EI6: 0 | EJ6: 0 | EK6: 0 | EL6: - | EM6: 0 | EN6: 0 | EO6: 0 | EP6: - | EQ6: 0 | ER6: 0 | ES6: 0 | ET6: - | EU6: 0 | EV6: 0 | EW6: 0 | EX6: 0 | EY6: - | EZ6: 0 | FA6: 0 | FB6: 0 | FC6: - | FD6: 0 | FE6: 0 | FF6: 0 | FG6: - | FH6: 0 | FI6: 0 | FJ6: 0 | FK6: - | FL6: 0 | FM6: 0 | FN6: 0 | FO6: - | FP6: 0 | FQ6: 0 | FR6: 0 | FS6: - | FT6: 0 | FU6: 0 | FV6: 0 | FW6: - | FX6: 0 | FY6: 0 | FZ6: 0 | GA6: - | GB6: 0 | GC6: 0 | GD6: 0 | GE6: - | GF6: 0 | GG6: 0 | GH6: 0 | GI6: - | GJ6: 0 | GK6: 0 | GL6: 0 | GM6: 0 | GN6: - | GO6: 0 | GP6: 0 | GQ6: 0 | GR6: - | GS6: 0 | GT6: 0 | GU6: 0 | GV6: - | GW6: 0 | GX6: 0 | GY6: 0 | GZ6: - | HA6: 0 | HB6: 0 | HC6: 0 | HD6: - | HE6: 0 | HF6: 0 | HG6: 0 | HH6: - | HI6: 0 | HJ6: 0 | HK6: 0 | HL6: - | HM6: 0 | HN6: 0 | HO6: 0 | HP6: - | HQ6: 0 | HR6: 0 | HS6: 0 | HT6: - | HU6: 0 | HV6: 0 | HW6: 0 | HX6: - | HY6: 0 | HZ6: 0 | IA6: 0 | IB6: 0 | IC6: - | ID6: 0 | IE6: 0 | IF6: 0 | IG6: - | IH6: 0 | II6: 0 | IJ6: 0 | IK6: - | IL6: 0 | IM6: 0 | IN6: 0 | IO6: - | IP6: 0 | IQ6: 0 | IR6: 0 | IS6: -
A7: Ver.05.00 | B7: 40002 | C7: 宮城県 | D7: - | E7: 1 | F7: 0 | G7: 1 | H7: 0 | I7: 0 | J7: 0 | K7: 1 | L7: 0 | M7: 0 | N7: 0 | O7: 1 | P7: 0 | Q7: 0 | R7: 0 | S7: 1 | T7: 0 | U7: 0 | V7: 0 | W7: 1 | X7: 0 | Y7: 0 | Z7: 0 | AA7: 1 | AB7: 0 | AC7: 0 | AD7: 0 | AE7: 1 | AF7: 0 | AG7: 0 | AH7: 0 | AI7: 1 | AJ7: 0 | AK7: 0 | AL7: 0 | AM7: 1 | AN7: 0 | AO7: 0 | AP7: 0 | AQ7: 1 | AR7: 0 | AS7: 0 | AT7: 0 | AU7: 1 | AV7: 0 | AW7: 0 | AX7: 0 | AY7: 1 | AZ7: 0 | BA7: 0 | BB7: 0 | BC7: 1 | BD7: 0 | BE7: 0 | BF7: 0 | BG7: 1 | BH7: 0 | BI7: 0 | BJ7: 0 | BK7: 1 | BL7: 0 | BM7: 0 | BN7: 0 | BO7: 1 | BP7: 0 | BQ7: 0 | BR7: 0 | BS7: 1 | BT7: 0 | BU7: 0 | BV7: 0 | BW7: 1 | BX7: 0 | BY7: 0 | BZ7: 0 | CA7: 1 | CB7: 0 | CC7: 0 | CD7: 0 | CE7: 1 | CF7: 0 | CG7: 0 | CH7: 0 | CI7: 1 | CJ7: 0 | CK7: 0 | CL7: 0 | CM7: 1 | CN7: 0 | CO7: 0 | CP7: 0 | CQ7: 1 | CR7: 0 | CS7: 0 | CT7: 0 | CU7: 1 | CV7: 0 | CW7: 0 | CX7: 0 | CY7: 1 | CZ7: 0 | DA7: 0 | DB7: 0 | DC7: 1 | DD7: 0 | DE7: 0 | DF7: 0 | DG7: 0 | DH7: 0 | DI7: 0 | DJ7: - | DK7: 0 | DL7: 0 | DM7: 0 | DN7: - | DO7: 0 | DP7: 0 | DQ7: 0 | DR7: - | DS7: 0 | DT7: 0 | DU7: 0 | DV7: - | DW7: 0 | DX7: 0 | DY7: 0 | DZ7: - | EA7: 0 | EB7: 0 | EC7: 0 | ED7: - | EE7: 0 | EF7: 0 | EG7: 0 | EH7: - | EI7: 0 | EJ7: 0 | EK7: 0 | EL7: - | EM7: 0 | EN7: 0 | EO7: 0 | EP7: - | EQ7: 0 | ER7: 0 | ES7: 0 | ET7: - | EU7: 0 | EV7: 0 | EW7: 0 | EX7: 0 | EY7: - | EZ7: 0 | FA7: 0 | FB7: 0 | FC7: - | FD7: 0 | FE7: 0 | FF7: 0 | FG7: - | FH7: 0 | FI7: 0 | FJ7: 0 | FK7: - | FL7: 0 | FM7: 0 | FN7: 0 | FO7: - | FP7: 0 | FQ7: 0 | FR7: 0 | FS7: - | FT7: 0 | FU7: 0 | FV7: 0 | FW7: - | FX7: 0 | FY7: 0 | FZ7: 0 | GA7: - | GB7: 0 | GC7: 0 | GD7: 0 | GE7: - | GF7: 0 | GG7: 0 | GH7: 0 | GI7: - | GJ7: 0 | GK7: 0 | GL7: 0 | GM7: 0 | GN7: - | GO7: 0 | GP7: 0 | GQ7: 0 | GR7: - | GS7: 0 | GT7: 0 | GU7: 0 | GV7: - | GW7: 0 | GX7: 0 | GY7: 0 | GZ7: - | HA7: 0 | HB7: 0 | HC7: 0 | HD7: - | HE7: 0 | HF7: 0 | HG7: 0 | HH7: - | HI7: 0 | HJ7: 0 | HK7: 0 | HL7: - | HM7: 0 | HN7: 0 | HO7: 0 | HP7: - | HQ7: 0 | HR7: 0 | HS7: 0 | HT7: - | HU7: 0 | HV7: 0 | HW7: 0 | HX7: - | HY7: 0 | HZ7: 0 | IA7: 0 | IB7: 0 | IC7: - | ID7: 0 | IE7: 0 | IF7: 0 | IG7: - | IH7: 0 | II7: 0 | IJ7: 0 | IK7: - | IL7: 0 | IM7: 0 | IN7: 0 | IO7: - | IP7: 0 | IQ7: 0 | IR7: 0 | IS7: -
A8: Ver.05.00 | B8: 50008 | C8: 秋田県 | D8: - | E8: 1 | F8: 0 | G8: 1 | H8: 0 | I8: 0 | J8: 0 | K8: 1 | L8: 0 | M8: 0 | N8: 0 | O8: 1 | P8: 0 | Q8: 0 | R8: 0 | S8: 1 | T8: 0 | U8: 0 | V8: 0 | W8: 1 | X8: 0 | Y8: 0 | Z8: 0 | AA8: 1 | AB8: 0 | AC8: 0 | AD8: 0 | AE8: 1 | AF8: 0 | AG8: 0 | AH8: 0 | AI8: 1 | AJ8: 0 | AK8: 0 | AL8: 0 | AM8: 1 | AN8: 0 | AO8: 0 | AP8: 0 | AQ8: 1 | AR8: 0 | AS8: 0 | AT8: 0 | AU8: 1 | AV8: 0 | AW8: 0 | AX8: 0 | AY8: 1 | AZ8: 0 | BA8: 0 | BB8: 0 | BC8: 1 | BD8: 0 | BE8: 0 | BF8: 0 | BG8: 1 | BH8: 0 | BI8: 0 | BJ8: 0 | BK8: 1 | BL8: 0 | BM8: 0 | BN8: 0 | BO8: 1 | BP8: 0 | BQ8: 0 | BR8: 0 | BS8: 1 | BT8: 0 | BU8: 0 | BV8: 0 | BW8: 1 | BX8: 0 | BY8: 0 | BZ8: 0 | CA8: 1 | CB8: 0 | CC8: 0 | CD8: 0 | CE8: 1 | CF8: 0 | CG8: 0 | CH8: 0 | CI8: 1 | CJ8: 0 | CK8: 0 | CL8: 0 | CM8: 1 | CN8: 0 | CO8: 0 | CP8: 0 | CQ8: 1 | CR8: 0 | CS8: 0 | CT8: 0 | CU8: 1 | CV8: 0 | CW8: 0 | CX8: 0 | CY8: 1 | CZ8: 0 | DA8: 0 | DB8: 0 | DC8: 1 | DD8: 0 | DE8: 0 | DF8: 0 | DG8: 0 | DH8: 0 | DI8: 0 | DJ8: - | DK8: 0 | DL8: 0 | DM8: 0 | DN8: - | DO8: 0 | DP8: 0 | DQ8: 0 | DR8: - | DS8: 0 | DT8: 0 | DU8: 0 | DV8: - | DW8: 0 | DX8: 0 | DY8: 0 | DZ8: - | EA8: 0 | EB8: 0 | EC8: 0 | ED8: - | EE8: 0 | EF8: 0 | EG8: 0 | EH8: - | EI8: 0 | EJ8: 0 | EK8: 0 | EL8: - | EM8: 0 | EN8: 0 | EO8: 0 | EP8: - | EQ8: 0 | ER8: 0 | ES8: 0 | ET8: - | EU8: 0 | EV8: 0 | EW8: 0 | EX8: 0 | EY8: - | EZ8: 0 | FA8: 0 | FB8: 0 | FC8: - | FD8: 0 | FE8: 0 | FF8: 0 | FG8: - | FH8: 0 | FI8: 0 | FJ8: 0 | FK8: - | FL8: 0 | FM8: 0 | FN8: 0 | FO8: - | FP8: 0 | FQ8: 0 | FR8: 0 | FS8: - | FT8: 0 | FU8: 0 | FV8: 0 | FW8: - | FX8: 0 | FY8: 0 | FZ8: 0 | GA8: - | GB8: 0 | GC8: 0 | GD8: 0 | GE8: - | GF8: 0 | GG8: 0 | GH8: 0 | GI8: - | GJ8: 0 | GK8: 0 | GL8: 0 | GM8: 0 | GN8: - | GO8: 0 | GP8: 0 | GQ8: 0 | GR8: - | GS8: 0 | GT8: 0 | GU8: 0 | GV8: - | GW8: 0 | GX8: 0 | GY8: 0 | GZ8: - | HA8: 0 | HB8: 0 | HC8: 0 | HD8: - | HE8: 0 | HF8: 0 | HG8: 0 | HH8: - | HI8: 0 | HJ8: 0 | HK8: 0 | HL8: - | HM8: 0 | HN8: 0 | HO8: 0 | HP8: - | HQ8: 0 | HR8: 0 | HS8: 0 | HT8: - | HU8: 0 | HV8: 0 | HW8: 0 | HX8: - | HY8: 0 | HZ8: 0 | IA8: 0 | IB8: 0 | IC8: - | ID8: 0 | IE8: 0 | IF8: 0 | IG8: - | IH8: 0 | II8: 0 | IJ8: 0 | IK8: - | IL8: 0 | IM8: 0 | IN8: 0 | IO8: - | IP8: 0 | IQ8: 0 | IR8: 0 | IS8: -
A9: Ver.05.00 | B9: 60003 | C9: 山形県 | D9: - | E9: 1 | F9: 0 | G9: 1 | H9: 0 | I9: 0 | J9: 0 | K9: 1 | L9: 0 | M9: 0 | N9: 0 | O9: 1 | P9: 0 | Q9: 0 | R9: 0 | S9: 1 | T9: 0 | U9: 0 | V9: 0 | W9: 1 | X9: 0 | Y9: 0 | Z9: 0 | AA9: 1 | AB9: 0 | AC9: 0 | AD9: 0 | AE9: 1 | AF9: 0 | AG9: 0 | AH9: 0 | AI9: 1 | AJ9: 0 | AK9: 0 | AL9: 0 | AM9: 1 | AN9: 0 | AO9: 0 | AP9: 0 | AQ9: 1 | AR9: 0 | AS9: 0 | AT9: 0 | AU9: 1 | AV9: 0 | AW9: 0 | AX9: 0 | AY9: 1 | AZ9: 0 | BA9: 0 | BB9: 0 | BC9: 1 | BD9: 0 | BE9: 0 | BF9: 0 | BG9: 1 | BH9: 0 | BI9: 0 | BJ9: 0 | BK9: 1 | BL9: 0 | BM9: 0 | BN9: 0 | BO9: 1 | BP9: 0 | BQ9: 0 | BR9: 0 | BS9: 1 | BT9: 0 | BU9: 0 | BV9: 0 | BW9: 1 | BX9: 0 | BY9: 0 | BZ9: 0 | CA9: 1 | CB9: 0 | CC9: 0 | CD9: 0 | CE9: 1 | CF9: 0 | CG9: 0 | CH9: 0 | CI9: 1 | CJ9: 0 | CK9: 0 | CL9: 0 | CM9: 1 | CN9: 0 | CO9: 0 | CP9: 0 | CQ9: 1 | CR9: 0 | CS9: 0 | CT9: 0 | CU9: 1 | CV9: 0 | CW9: 0 | CX9: 0 | CY9: 1 | CZ9: 0 | DA9: 0 | DB9: 0 | DC9: 1 | DD9: 0 | DE9: 0 | DF9: 置賜広域病院企業団 | DG9: 病院事業会計 | DH9: 15379895 | DI9: 4038147 | DJ9: - | DK9: 0 | DL9: 0 | DM9: 0 | DN9: - | DO9: 0 | DP9: 0 | DQ9: 0 | DR9: - | DS9: 0 | DT9: 0 | DU9: 0 | DV9: - | DW9: 0 | DX9: 0 | DY9: 0 | DZ9: - | EA9: 0 | EB9: 0 | EC9: 0 | ED9: - | EE9: 0 | EF9: 0 | EG9: 0 | EH9: - | EI9: 0 | EJ9: 0 | EK9: 0 | EL9: - | EM9: 0 | EN9: 0 | EO9: 0 | EP9: - | EQ9: 0 | ER9: 0 | ES9: 0 | ET9: - | EU9: 0 | EV9: 0 | EW9: 0 | EX9: 0 | EY9: - | EZ9: 0 | FA9: 0 | FB9: 0 | FC9: - | FD9: 0 | FE9: 0 | FF9: 0 | FG9: - | FH9: 0 | FI9: 0 | FJ9: 0 | FK9: - | FL9: 0 | FM9: 0 | FN9: 0 | FO9: - | FP9: 0 | FQ9: 0 | FR9: 0 | FS9: - | FT9: 0 | FU9: 0 | FV9: 0 | FW9: - | FX9: 0 | FY9: 0 | FZ9: 0 | GA9: - | GB9: 0 | GC9: 0 | GD9: 0 | GE9: - | GF9: 0 | GG9: 0 | GH9: 0 | GI9: - | GJ9: 0 | GK9: 0 | GL9: 0 | GM9: 0 | GN9: - | GO9: 0 | GP9: 0 | GQ9: 0 | GR9: - | GS9: 0 | GT9: 0 | GU9: 0 | GV9: - | GW9: 0 | GX9: 0 | GY9: 0 | GZ9: - | HA9: 0 | HB9: 0 | HC9: 0 | HD9: - | HE9: 0 | HF9: 0 | HG9: 0 | HH9: - | HI9: 0 | HJ9: 0 | HK9: 0 | HL9: - | HM9: 0 | HN9: 0 | HO9: 0 | HP9: - | HQ9: 0 | HR9: 0 | HS9: 0 | HT9: - | HU9: 0 | HV9: 0 | HW9: 0 | HX9: - | HY9: 0 | HZ9: 0 | IA9: 0 | IB9: 0 | IC9: - | ID9: 0 | IE9: 0 | IF9: 0 | IG9: - | IH9: 0 | II9: 0 | IJ9: 0 | IK9: - | IL9: 0 | IM9: 0 | IN9: 0 | IO9: - | IP9: 0 | IQ9: 0 | IR9: 0 | IS9: -
A10: Ver.05.00 | B10: 70009 | C10: 福島県 | D10: - | E10: 1 | F10: 0 | G10: 1 | H10: 0 | I10: 0 | J10: 0 | K10: 1 | L10: 0 | M10: 0 | N10: 0 | O10: 1 | P10: 0 | Q10: 0 | R10: 0 | S10: 1 | T10: 0 | U10: 0 | V10: 0 | W10: 1 | X10: 0 | Y10: 0 | Z10: 0 | AA10: 1 | AB10: 0 | AC10: 0 | AD10: 0 | AE10: 1 | AF10: 0 | AG10: 0 | AH10: 0 | AI10: 1 | AJ10: 0 | AK10: 0 | AL10: 0 | AM10: 1 | AN10: 0 | AO10: 0 | AP10: 0 | AQ10: 1 | AR10: 0 | AS10: 0 | AT10: 0 | AU10: 1 | AV10: 0 | AW10: 0 | AX10: 0 | AY10: 1 | AZ10: 0 | BA10: 0 | BB10: 0 | BC10: 1 | BD10: 0 | BE10: 0 | BF10: 0 | BG10: 1 | BH10: 0 | BI10: 0 | BJ10: 0 | BK10: 1 | BL10: 0 | BM10: 0 | BN10: 0 | BO10: 1 | BP10: 0 | BQ10: 0 | BR10: 0 | BS10: 1 | BT10: 0 | BU10: 0 | BV10: 0 | BW10: 1 | BX10: 0 | BY10: 0 | BZ10: 0 | CA10: 1 | CB10: 0 | CC10: 0 | CD10: 0 | CE10: 1 | CF10: 0 | CG10: 0 | CH10: 0 | CI10: 1 | CJ10: 0 | CK10: 0 | CL10: 0 | CM10: 1 | CN10: 0 | CO10: 0 | CP10: 0 | CQ10: 1 | CR10: 0 | CS10: 0 | CT10: 0 | CU10: 1 | CV10: 0 | CW10: 0 | CX10: 0 | CY10: 1 | CZ10: 0 | DA10: 0 | DB10: 0 | DC10: 1 | DD10: 0 | DE10: 0 | DF10: 0 | DG10: 0 | DH10: 0 | DI10: 0 | DJ10: - | DK10: 0 | DL10: 0 | DM10: 0 | DN10: - | DO10: 0 | DP10: 0 | DQ10: 0 | DR10: - | DS10: 0 | DT10: 0 | DU10: 0 | DV10: - | DW10: 0 | DX10: 0 | DY10: 0 | DZ10: - | EA10: 0 | EB10: 0 | EC10: 0 | ED10: - | EE10: 0 | EF10: 0 | EG10: 0 | EH10: - | EI10: 0 | EJ10: 0 | EK10: 0 | EL10: - | EM10: 0 | EN10: 0 | EO10: 0 | EP10: - | EQ10: 0 | ER10: 0 | ES10: 0 | ET10: - | EU10: 0 | EV10: 0 | EW10: 0 | EX10: 0 | EY10: - | EZ10: 0 | FA10: 0 | FB10: 0 | FC10: - | FD10: 0 | FE10: 0 | FF10: 0 | FG10: - | FH10: 0 | FI10: 0 | FJ10: 0 | FK10: - | FL10: 0 | FM10: 0 | FN10: 0 | FO10: - | FP10: 0 | FQ10: 0 | FR10: 0 | FS10: - | FT10: 0 | FU10: 0 | FV10: 0 | FW10: - | FX10: 0 | FY10: 0 | FZ10: 0 | GA10: - | GB10: 0 | GC10: 0 | GD10: 0 | GE10: - | GF10: 0 | GG10: 0 | GH10: 0 | GI10: - | GJ10: 0 | GK10: 0 | GL10: 0 | GM10: 0 | GN10: - | GO10: 0 | GP10: 0 | GQ10: 0 | GR10: - | GS10: 0 | GT10: 0 | GU10: 0 | GV10: - | GW10: 0 | GX10: 0 | GY10: 0 | GZ10: - | HA10: 0 | HB10: 0 | HC10: 0 | HD10: - | HE10: 0 | HF10: 0 | HG10: 0 | HH10: - | HI10: 0 | HJ10: 0 | HK10: 0 | HL10: - | HM10: 0 | HN10: 0 | HO10: 0 | HP10: - | HQ10: 0 | HR10: 0 | HS10: 0 | HT10: - | HU10: 0 | HV10: 0 | HW10: 0 | HX10: - | HY10: 0 | HZ10: 0 | IA10: 0 | IB10: 0 | IC10: - | ID10: 0 | IE10: 0 | IF10: 0 | IG10: - | IH10: 0 | II10: 0 | IJ10: 0 | IK10: - | IL10: 0 | IM10: 0 | IN10: 0 | IO10: - | IP10: 0 | IQ10: 0 | IR10: 0 | IS10: -
A11: Ver.05.00 | B11: 080004 | C11: 茨城県 | D11: - | E11: 1 | F11: 0 | G11: 1 | H11: 0 | I11: 0 | J11: 0 | K11: 1 | L11: 0 | M11: 0 | N11: 0 | O11: 1 | P11: 0 | Q11: 0 | R11: 0 | S11: 1 | T11: 0 | U11: 0 | V11: 0 | W11: 1 | X11: 0 | Y11: 0 | Z11: 0 | AA11: 1 | AB11: 0 | AC11: 0 | AD11: 0 | AE11: 1 | AF11: 0 | AG11: 0 | AH11: 0 | AI11: 1 | AJ11: 0 | AK11: 0 | AL11: 0 | AM11: 1 | AN11: 0 | AO11: 0 | AP11: 0 | AQ11: 1 | AR11: 0 | AS11: 0 | AT11: 0 | AU11: 1 | AV11: 0 | AW11: 0 | AX11: 0 | AY11: 1 | AZ11: 0 | BA11: 0 | BB11: 0 | BC11: 1 | BD11: 0 | BE11: 0 | BF11: 0 | BG11: 1 | BH11: 0 | BI11: 0 | BJ11: 0 | BK11: 1 | BL11: 0 | BM11: 0 | BN11: 0 | BO11: 1 | BP11: 0 | BQ11: 0 | BR11: 0 | BS11: 1 | BT11: 0 | BU11: 0 | BV11: 0 | BW11: 1 | BX11: 0 | BY11: 0 | BZ11: 0 | CA11: 1 | CB11: 0 | CC11: 0 | CD11: 0 | CE11: 1 | CF11: 0 | CG11: 0 | CH11: 0 | CI11: 1 | CJ11: 0 | CK11: 0 | CL11: 0 | CM11: 1 | CN11: 0 | CO11: 0 | CP11: 0 | CQ11: 1 | CR11: 0 | CS11: 0 | CT11: 0 | CU11: 1 | CV11: 0 | CW11: 0 | CX11: 0 | CY11: 1 | CZ11: 0 | DA11: 0 | DB11: 0 | DC11: 1 | DD11: 0 | DE11: 0 | DF11: 0 | DG11: 0 | DH11: 0 | DI11: 0 | DJ11: - | DK11: 0 | DL11: 0 | DM11: 0 | DN11: - | DO11: 0 | DP11: 0 | DQ11: 0 | DR11: - | DS11: 0 | DT11: 0 | DU11: 0 | DV11: - | DW11: 0 | DX11: 0 | DY11: 0 | DZ11: - | EA11: 0 | EB11: 0 | EC11: 0 | ED11: - | EE11: 0 | EF11: 0 | EG11: 0 | EH11: - | EI11: 0 | EJ11: 0 | EK11: 0 | EL11: - | EM11: 0 | EN11: 0 | EO11: 0 | EP11: - | EQ11: 0 | ER11: 0 | ES11: 0 | ET11: - | EU11: 0 | EV11: 0 | EW11: 0 | EX11: 0 | EY11: - | EZ11: 0 | FA11: 0 | FB11: 0 | FC11: - | FD11: 0 | FE11: 0 | FF11: 0 | FG11: - | FH11: 0 | FI11: 0 | FJ11: 0 | FK11: - | FL11: 0 | FM11: 0 | FN11: 0 | FO11: - | FP11: 0 | FQ11: 0 | FR11: 0 | FS11: - | FT11: 0 | FU11: 0 | FV11: 0 | FW11: - | FX11: 0 | FY11: 0 | FZ11: 0 | GA11: - | GB11: 0 | GC11: 0 | GD11: 0 | GE11: - | GF11: 0 | GG11: 0 | GH11: 0 | GI11: - | GJ11: 0 | GK11: 0 | GL11: 0 | GM11: 0 | GN11: - | GO11: 0 | GP11: 0 | GQ11: 0 | GR11: - | GS11: 0 | GT11: 0 | GU11: 0 | GV11: - | GW11: 0 | GX11: 0 | GY11: 0 | GZ11: - | HA11: 0 | HB11: 0 | HC11: 0 | HD11: - | HE11: 0 | HF11: 0 | HG11: 0 | HH11: - | HI11: 0 | HJ11: 0 | HK11: 0 | HL11: - | HM11: 0 | HN11: 0 | HO11: 0 | HP11: - | HQ11: 0 | HR11: 0 | HS11: 0 | HT11: - | HU11: 0 | HV11: 0 | HW11: 0 | HX11: - | HY11: 0 | HZ11: 0 | IA11: 0 | IB11: 0 | IC11: - | ID11: 0 | IE11: 0 | IF11: 0 | IG11: - | IH11: 0 | II11: 0 | IJ11: 0 | IK11: - | IL11: 0 | IM11: 0 | IN11: 0 | IO11: - | IP11: 0 | IQ11: 0 | IR11: 0 | IS11: -
